Workbook

Sheet Datos (hidden)
B9: ANO | D9: MESES | F9: COD_RED | G9: DESC_RED | H9: RED | J9: COD_RED | K9: COD_MIC | L9: DESC_MICRO | M9: MICROREDES | O9: COD_ESTAB | P9: DESC_ESTAB | Q9: COD_RED | R9: COD_MIC | S9: COD_PROV | T9: COD_DIST | U9: REDMIC | V9: CONCATENAR | X9: COD_PROV | Y9: DESC_PROV | Z9: CONCATENAR | AB9: COD_PROV | AC9: COD_DIST | AD9: DESC_DIST | AE9: PROVDIST | AF9: CONCATENAR | AH9: UE
B10: 2024 | D10: 01-Enero | F10: 01 | G10: CUSCO SUR | H10: =CONCATENATE(F10," - ",G10) -> 01 - CUSCO SUR | J10: 00 | K10: 00 | L10: NO PERTENECE A NINGUNA MICRORED | M10: =CONCATENATE(J10,K10," - ",L10) -> 0000 - NO PERTENECE A NINGUNA MICRORED | O10: 000000000 | P10: (All) | Q10: 07 | R10: 00 | U10: =CONCATENATE(Q10,R10) -> 0700 | V10: =CONCATENATE(O10," - ",P10) -> 000000000 - (All) | X10: 00 | Y10: (All) | Z10: =CONCATENATE(X10," - ",Y10) -> 00 - (All) | AB10: 01 | AC10: 00 | AD10: (All) | AE10: =CONCATENATE(AB10,AC10) -> 0100 | AF10: =CONCATENATE(AB10,AC10," - ",AD10) -> 0100 - (All) | AH10: COD_RED | AI10: DESC_RED | AJ10: CONCATENAR
D11: 02-Febrero | F11: 02 | G11: CUSCO NORTE | H11: 02 - CUSCO NORTE | J11: 00 | K11: 99 | L11: (All) | M11: =CONCATENATE(J11,K11," - ",L11) -> 0099 - (All) | O11: 000002289 | P11: HOSPITAL REGIONAL CUSCO | Q11: 07 | R11: 00 | S11: 01 | T11: 01 | U11: =CONCATENATE(Q11,R11) -> 0700 | V11: =CONCATENATE(O11," - ",P11) -> 000002289 - HOSPITAL REGIONAL CUSCO | X11: 01 | Y11: CUSCO | Z11: =CONCATENATE(X11," - ",Y11) -> 01 - CUSCO | AB11: 01 | AC11: 01 | AD11: CUSCO | AE11: =CONCATENATE(AB11,AC11) -> 0101 | AF11: =CONCATENATE(AB11,AC11," - ",AD11) -> 0101 - CUSCO | AH11: 1129 | AI11: UE - SALUD CANAS - CANCHIS - ESPINAR | AJ11: =CONCATENATE(AH11," - ",AI11) -> 1129 - UE - SALUD CANAS - CANCHIS - ESPINAR
D12: 03-Marzo | F12: 03 | G12: LA CONVENCION | H12: 03 - LA CONVENCION | J12: 01 | K12: 00 | L12: HOSPITAL | M12: 0100 - HOSPITAL | O12: 000002305 | P12: HOSPITAL ANTONIO LORENA | Q12: 07 | R12: 00 | S12: 01 | T12: 06 | U12: =CONCATENATE(Q12,R12) -> 0700 | V12: 000002305 - HOSPITAL ANTONIO LORENA | X12: 02 | Y12: ACOMAYO | Z12: =CONCATENATE(X12," - ",Y12) -> 02 - ACOMAYO | AB12: 01 | AC12: 02 | AD12: CCORCA | AE12: 0102 | AF12: 0102 - CCORCA | AH12: 1130 | AI12: UE - HOSPITAL REGIONAL CUSCO | AJ12: =CONCATENATE(AH12," - ",AI12) -> 1130 - UE - HOSPITAL REGIONAL CUSCO
D13: 04-Abril | F13: 04 | G13: CANAS-CANCHIS-ESPINAR | H13: 04 - CANAS-CANCHIS-ESPINAR | J13: 01 | K13: 03 | L13: PARURO | M13: 0103 - PARURO | O13: 999999999 | P13: (All) | Q13: 07 | R13: 99 | U13: =CONCATENATE(Q13,R13) -> 0799 | V13: 999999999 - (All) | X13: 03 | Y13: ANTA | Z13: 03 - ANTA | AB13: 01 | AC13: 03 | AD13: POROY | AE13: 0103 | AF13: 0103 - POROY | AH13: 1169 | AI13: UE - HOSPITAL ANTONIO LORENA | AJ13: 1169 - UE - HOSPITAL ANTONIO LORENA
D14: 05-Mayo | F14: 05 | G14: KIMBIRI PICHARI | H14: 05 - KIMBIRI PICHARI | J14: 01 | K14: 06 | L14: PAUCARTAMBO | M14: 0106 - PAUCARTAMBO | O14: 000025210 | P14: TUPAC AMARU | Q14: 01 | R14: 00 | S14: 01 | T14: 05 | U14: 0100 | V14: 000025210 - TUPAC AMARU | X14: 04 | Y14: CALCA | Z14: 04 - CALCA | AB14: 01 | AC14: 04 | AD14: SAN JERONIMO | AE14: 0104 | AF14: 0104 - SAN JERONIMO | AH14: 1170 | AI14: UE - SALUD LA CONVENCION | AJ14: 1170 - UE - SALUD LA CONVENCION
D15: 06-Junio | F15: 06 | G15: CHUMBIVILCAS | H15: 06 - CHUMBIVILCAS | J15: 01 | K15: 12 | L15: URCOS | M15: 0112 - URCOS | O15: 000000000 | P15: (All) | Q15: 01 | R15: 16 | U15: =CONCATENATE(Q15,R15) -> 0116 | V15: =CONCATENATE(O15," - ",P15) -> 000000000 - (All) | X15: 05 | Y15: CANAS | Z15: 05 - CANAS | AB15: 01 | AC15: 05 | AD15: SAN SEBASTIAN | AE15: 0105 | AF15: 0105 - SAN SEBASTIAN | AH15: 1322 | AI15: UE - SALUD CUSCO SUR | AJ15: 1322 - UE - SALUD CUSCO SUR
D16: 07-Julio | F16: 07 | G16: HOSPITALES III | H16: =CONCATENATE(F16," - ",G16) -> 07 - HOSPITALES III | J16: 01 | K16: 13 | L16: ACOMAYO | M16: 0113 - ACOMAYO | O16: 000002300 | P16: SAN JERONIMO | Q16: 01 | R16: 16 | S16: 01 | T16: 04 | U16: 0116 | V16: 000002300 - SAN JERONIMO | X16: 06 | Y16: CANCHIS | Z16: 06 - CANCHIS | AB16: 01 | AC16: 06 | AD16: SANTIAGO | AE16: 0106 | AF16: 0106 - SANTIAGO | AH16: 1347 | AI16: UE - SALUD KIMBIRI PICHARI | AJ16: 1347 - UE - SALUD KIMBIRI PICHARI
D17: 08-Agosto | F17: 99 | G17: (All) | H17: =CONCATENATE(F17," - ",G17) -> 99 - (All) | J17: 01 | K17: 15 | L17: OCONGATE | M17: 0115 - OCONGATE | O17: 000002301 | P17: SAN SEBASTIAN | Q17: 01 | R17: 16 | S17: 01 | T17: 05 | U17: 0116 | V17: 000002301 - SAN SEBASTIAN | X17: 07 | Y17: CHUMBIVILCAS | Z17: 07 - CHUMBIVILCAS | AB17: 01 | AC17: 07 | AD17: SAYLLA | AE17: 0107 | AF17: 0107 - SAYLLA | AH17: 1348 | AI17: UE - SALUD CUSCO NORTE | AJ17: 1348 - UE - SALUD CUSCO NORTE
D18: 09-Setiembre | J18: 01 | K18: 16 | L18: CUSCO | M18: 0116 - CUSCO | O18: 000002303 | P18: SANTA ROSA | Q18: 01 | R18: 16 | S18: 01 | T18: 05 | U18: 0116 | V18: 000002303 - SANTA ROSA | X18: 08 | Y18: ESPINAR | Z18: 08 - ESPINAR | AB18: 01 | AC18: 08 | AD18: WANCHAQ | AE18: 0108 | AF18: 0108 - WANCHAQ | AH18: 1547 | AI18: UE - HOSPITAL ESPINAR | AJ18: 1547 - UE - HOSPITAL ESPINAR
D19: 10-Octubre | J19: 01 | K19: 99 | L19: (All) | M19: 0199 - (All) | O19: 000002314 | P19: SAYLLA | Q19: 01 | R19: 16 | S19: 01 | T19: 07 | U19: 0116 | V19: 000002314 - SAYLLA | X19: 09 | Y19: LA CONVENCION | Z19: 09 - LA CONVENCION | AB19: 02 | AC19: 00 | AD19: (All) | AE19: 0200 | AF19: 0200 - (All) | AH19: 1625 | AI19: UE - HOSPITAL SICUANI | AJ19: 1625 - UE - HOSPITAL SICUANI
D20: 11-Noviembre | J20: 02 | K20: 01 | L20: BELEMPAMPA | M20: 0201 - BELEMPAMPA | O20: 000002323 | P20: RONDOCAN | Q20: 01 | R20: 16 | S20: 02 | T20: 06 | U20: 0116 | V20: 000002323 - RONDOCAN | X20: 10 | Y20: PARURO | Z20: 10 - PARURO | AB20: 02 | AC20: 01 | AD20: ACOMAYO | AE20: 0201 | AF20: 0201 - ACOMAYO | AH20: 1626 | AI20: UE - HOSPITAL QUILLABAMBA | AJ20: 1626 - UE - HOSPITAL QUILLABAMBA
D21: 12-Diciembre | J21: 02 | K21: 02 | L21: WANCHAQ | M21: 0202 - WANCHAQ | O21: 000007699 | P21: CONCHACALLE | Q21: 01 | R21: 16 | S21: 01 | T21: 04 | U21: 0116 | V21: 000007699 - CONCHACALLE | X21: 11 | Y21: PAUCARTAMBO | Z21: 11 - PAUCARTAMBO | AB21: 02 | AC21: 02 | AD21: ACOPIA | AE21: 0202 | AF21: 0202 - ACOPIA | AH21: 1666 | AI21: UE - SALUD CHUMBIVILCAS | AJ21: 1666 - UE - SALUD CHUMBIVILCAS
J22: 02 | K22: 03 | L22: ANTA | M22: 0203 - ANTA | O22: 000010065 | P22: ESSALUD-SAN SEBASTIAN | Q22: 01 | R22: 16 | S22: 01 | T22: 05 | U22: 0116 | V22: 000010065 - ESSALUD-SAN SEBASTIAN | X22: 12 | Y22: QUISPICANCHI | Z22: 12 - QUISPICANCHI | AB22: 02 | AC22: 03 | AD22: ACOS | AE22: 0203 | AF22: 0203 - ACOS | AH22: 7777 | AI22: (All) | AJ22: =CONCATENATE(AH22," - ",AI22) -> 7777 - (All)
J23: 02 | K23: 04 | L23: LIMATAMBO | M23: 0204 - LIMATAMBO | O23: 000011743 | P23: SANIDAD-SANTA ROSA PNP | Q23: 01 | R23: 16 | S23: 01 | T23: 05 | U23: 0116 | V23: 000011743 - SANIDAD-SANTA ROSA PNP | X23: 13 | Y23: URUBAMBA | Z23: 13 - URUBAMBA | AB23: 02 | AC23: 04 | AD23: MOSOC LLACTA | AE23: 0204 | AF23: 0204 - MOSOC LLACTA
J24: 02 | K24: 05 | L24: PISAC | M24: 0205 - PISAC | O24: 000026181 | P24: MENTAL SAN SEBASTIAN | Q24: 01 | R24: 16 | S24: 01 | T24: 05 | U24: 0116 | V24: 000026181 - MENTAL SAN SEBASTIAN | AB24: 02 | AC24: 05 | AD24: POMACANCHI | AE24: 0205 | AF24: 0205 - POMACANCHI
J25: 02 | K25: 06 | L25: CALCA | M25: 0206 - CALCA | O25: 000030727 | P25: PATRÓN SAN SEBASTIAN | Q25: 01 | R25: 16 | S25: 01 | T25: 04 | U25: =CONCATENATE(Q25,R25) -> 0116 | V25: 000030727 - PATRÓN SAN SEBASTIAN | AB25: 02 | AC25: 06 | AD25: RONDOCAN | AE25: 0206 | AF25: 0206 - RONDOCAN
J26: 02 | K26: 07 | L26: URUBAMBA | M26: 0207 - URUBAMBA | O26: 000000000 | P26: (All) | Q26: 01 | R26: 03 | U26: =CONCATENATE(Q26,R26) -> 0103 | V26: 000000000 - (All) | AB26: 02 | AC26: 07 | AD26: SANGARARA | AE26: 0207 | AF26: 0207 - SANGARARA
J27: 02 | K27: 08 | L27: YANATILE | M27: 0208 - YANATILE | O27: 000002499 | P27: PARURO | Q27: 01 | R27: 03 | S27: 10 | T27: 01 | U27: 0103 | V27: 000002499 - PARURO | AB27: 03 | AC27: 00 | AD27: (All) | AE27: 0300 | AF27: 0300 - (All)
J28: 02 | K28: 09 | L28: SIETE CUARTONES | M28: 0209 - SIETE CUARTONES | O28: 000002500 | P28: ACCHA | Q28: 01 | R28: 03 | S28: 10 | T28: 02 | U28: 0103 | V28: 000002500 - ACCHA | AB28: 03 | AC28: 01 | AD28: ANTA | AE28: 0301 | AF28: 0301 - ANTA
J29: 02 | K29: 99 | L29: (All) | M29: 0299 - (All) | O29: 000002501 | P29: CCAPI | Q29: 01 | R29: 03 | S29: 10 | T29: 03 | U29: 0103 | V29: 000002501 - CCAPI | AB29: 03 | AC29: 02 | AD29: ANCAHUASI | AE29: 0302 | AF29: 0302 - ANCAHUASI
J30: 03 | K30: 00 | L30: HOSPITAL | M30: 0300 - HOSPITAL | O30: 000002502 | P30: CCOYABAMBA | Q30: 01 | R30: 03 | S30: 10 | T30: 03 | U30: 0103 | V30: 000002502 - CCOYABAMBA | AB30: 03 | AC30: 03 | AD30: CACHIMAYO | AE30: 0303 | AF30: 0303 - CACHIMAYO
J31: 03 | K31: 01 | L31: SANTA ANA | M31: 0301 - SANTA ANA | O31: 000002503 | P31: COLCHA | Q31: 01 | R31: 03 | S31: 10 | T31: 04 | U31: 0103 | V31: 000002503 - COLCHA | AB31: 03 | AC31: 04 | AD31: CHINCHAYPUJIO | AE31: 0304 | AF31: 0304 - CHINCHAYPUJIO
J32: 03 | K32: 02 | L32: MARANURA | M32: 0302 - MARANURA | O32: 000002504 | P32: HUANOQUITE | Q32: 01 | R32: 03 | S32: 10 | T32: 05 | U32: 0103 | V32: 000002504 - HUANOQUITE | AB32: 03 | AC32: 05 | AD32: HUAROCONDO | AE32: 0305 | AF32: 0305 - HUAROCONDO
J33: 03 | K33: 03 | L33: QUELLOUNO | M33: 0303 - QUELLOUNO | O33: 000002505 | P33: OMACHA | Q33: 01 | R33: 03 | S33: 10 | T33: 06 | U33: 0103 | V33: 000002505 - OMACHA | AB33: 03 | AC33: 06 | AD33: LIMATAMBO | AE33: 0306 | AF33: 0306 - LIMATAMBO
J34: 03 | K34: 04 | L34: KITENI | M34: 0304 - KITENI | O34: 000002506 | P34: ANTAPALLPA | Q34: 01 | R34: 03 | S34: 10 | T34: 06 | U34: 0103 | V34: 000002506 - ANTAPALLPA | AB34: 03 | AC34: 07 | AD34: MOLLEPATA | AE34: 0307 | AF34: 0307 - MOLLEPATA
J35: 03 | K35: 05 | L35: KAMISEA | M35: 0305 - KAMISEA | O35: 000002507 | P35: PACCARECTAMBO | Q35: 01 | R35: 03 | S35: 10 | T35: 07 | U35: 0103 | V35: 000002507 - PACCARECTAMBO | AB35: 03 | AC35: 08 | AD35: PUCYURA | AE35: 0308 | AF35: 0308 - PUCYURA
J36: 03 | K36: 06 | L36: PUCYURA | M36: 0306 - PUCYURA | O36: 000002509 | P36: YAURISQUE | Q36: 01 | R36: 03 | S36: 10 | T36: 09 | U36: 0103 | V36: 000002509 - YAURISQUE | AB36: 03 | AC36: 09 | AD36: ZURITE | AE36: 0309 | AF36: 0309 - ZURITE
J37: 03 | K37: 99 | L37: (All) | M37: 0399 - (All) | O37: 000006978 | P37: CCOCHIRIHUAY | Q37: 01 | R37: 03 | S37: 10 | T37: 04 | U37: 0103 | V37: 000006978 - CCOCHIRIHUAY | AB37: 04 | AC37: 00 | AD37: (All) | AE37: 0400 | AF37: 0400 - (All)
J38: 04 | K38: 00 | L38: HOSPITAL | M38: 0400 - HOSPITAL | O38: 000007147 | P38: HUASQUILLAY | Q38: 01 | R38: 03 | S38: 10 | T38: 06 | U38: 0103 | V38: 000007147 - HUASQUILLAY | AB38: 04 | AC38: 01 | AD38: CALCA | AE38: 0401 | AF38: 0401 - CALCA
J39: 04 | K39: 01 | L39: YANAOCA | M39: 0401 - YANAOCA | O39: 000012924 | P39: SAHUA SAHUA | Q39: 01 | R39: 03 | S39: 10 | T39: 06 | U39: 0103 | V39: 000012924 - SAHUA SAHUA | AB39: 04 | AC39: 02 | AD39: COYA | AE39: 0402 | AF39: 0402 - COYA
J40: 04 | K40: 02 | L40: EL DESCANSO | M40: 0402 - EL DESCANSO | O40: 000000000 | P40: (All) | Q40: 01 | R40: 06 | U40: 0106 | V40: 000000000 - (All) | AB40: 04 | AC40: 03 | AD40: LAMAY | AE40: 0403 | AF40: 0403 - LAMAY
J41: 04 | K41: 03 | L41: COMBAPATA | M41: 0403 - COMBAPATA | O41: 000002510 | P41: PAUCARTAMBO | Q41: 01 | R41: 06 | S41: 11 | T41: 01 | U41: 0106 | V41: 000002510 - PAUCARTAMBO | AB41: 04 | AC41: 04 | AD41: LARES | AE41: 0404 | AF41: 0404 - LARES
J42: 04 | K42: 04 | L42: TECHO OBRERO | M42: 0404 - TECHO OBRERO | O42: 000002511 | P42: MOLLOMARCA | Q42: 01 | R42: 06 | S42: 11 | T42: 01 | U42: 0106 | V42: 000002511 - MOLLOMARCA | AB42: 04 | AC42: 05 | AD42: PISAC | AE42: 0405 | AF42: 0405 - PISAC
J43: 04 | K43: 05 | L43: PAMPAPHALLA | M43: 0405 - PAMPAPHALLA | O43: 000002512 | P43: CAICAY | Q43: 01 | R43: 06 | S43: 11 | T43: 02 | U43: 0106 | V43: 000002512 - CAICAY | AB43: 04 | AC43: 06 | AD43: SAN SALVADOR | AE43: 0406 | AF43: 0406 - SAN SALVADOR
J44: 04 | K44: 06 | L44: YAURI | M44: 0406 - YAURI | O44: 000002513 | P44: HUASAC | Q44: 01 | R44: 06 | S44: 11 | T44: 02 | U44: 0106 | V44: 000002513 - HUASAC | AB44: 04 | AC44: 07 | AD44: TARAY | AE44: 0407 | AF44: 0407 - TARAY
J45: 04 | K45: 99 | L45: (All) | M45: 0499 - (All) | O45: 000002514 | P45: CHALLABAMBA | Q45: 01 | R45: 06 | S45: 11 | T45: 03 | U45: 0106 | V45: 000002514 - CHALLABAMBA | AB45: 04 | AC45: 08 | AD45: YANATILE | AE45: 0408 | AF45: 0408 - YANATILE
J46: 05 | K46: 00 | L46: HOSPITAL | M46: 0500 - HOSPITAL | O46: 000002516 | P46: COLQUEPATA | Q46: 01 | R46: 06 | S46: 11 | T46: 04 | U46: 0106 | V46: 000002516 - COLQUEPATA | AB46: 05 | AC46: 00 | AD46: (All) | AE46: 0500 | AF46: 0500 - (All)
J47: 05 | K47: 01 | L47: KIMBIRI | M47: 0501 - KIMBIRI | O47: 000002517 | P47: PICHIHUA COLQUEPATA | Q47: 01 | R47: 06 | S47: 11 | T47: 04 | U47: 0106 | V47: 000002517 - PICHIHUA COLQUEPATA | AB47: 05 | AC47: 01 | AD47: YANAOCA | AE47: 0501 | AF47: 0501 - YANAOCA
J48: 05 | K48: 02 | L48: PICHARI | M48: 0502 - PICHARI | O48: 000002518 | P48: VIZCOCHONI | Q48: 01 | R48: 06 | S48: 11 | T48: 04 | U48: 0106 | V48: 000002518 - VIZCOCHONI | AB48: 05 | AC48: 02 | AD48: CHECCA | AE48: 0502 | AF48: 0502 - CHECCA
J49: 05 | K49: 99 | L49: (All) | M49: 0599 - (All) | O49: 000002519 | P49: AYRE | Q49: 01 | R49: 06 | S49: 11 | T49: 04 | U49: 0106 | V49: 000002519 - AYRE | AB49: 05 | AC49: 03 | AD49: KUNTURKANKI | AE49: 0503 | AF49: 0503 - KUNTURKANKI
J50: 06 | K50: 00 | L50: HOSPITAL | M50: 0600 - HOSPITAL | O50: 000002520 | P50: HUANCARANI | Q50: 01 | R50: 06 | S50: 11 | T50: 05 | U50: 0106 | V50: 000002520 - HUANCARANI | AB50: 05 | AC50: 04 | AD50: LANGUI | AE50: 0504 | AF50: 0504 - LANGUI
J51: 06 | K51: 09 | L51: SANTO TOMAS | M51: 0609 - SANTO TOMAS | O51: 000002521 | P51: PILCOPATA | Q51: 01 | R51: 06 | S51: 11 | T51: 06 | U51: 0106 | V51: 000002521 - PILCOPATA | AB51: 05 | AC51: 05 | AD51: LAYO | AE51: 0505 | AF51: 0505 - LAYO
J52: 06 | K52: 01 | L52: LIVITACA | M52: 0601 - LIVITACA | O52: 000002522 | P52: PATRIA | Q52: 01 | R52: 06 | S52: 11 | T52: 06 | U52: 0106 | V52: 000002522 - PATRIA | AB52: 05 | AC52: 06 | AD52: PAMPAMARCA | AE52: 0506 | AF52: 0506 - PAMPAMARCA
J53: 06 | K53: 99 | L53: (All) | M53: 0699 - (All) | O53: 000006979 | P53: TOCRA | Q53: 01 | R53: 06 | S53: 11 | T53: 04 | U53: 0106 | V53: 000006979 - TOCRA | AB53: 05 | AC53: 07 | AD53: QUEHUE | AE53: 0507 | AF53: 0507 - QUEHUE
J54: 07 | K54: 00 | L54: HOSPITAL | M54: 0700 - HOSPITAL | O54: 000010077 | P54: ESSALUD-PAUCARTAMBO | Q54: 01 | R54: 06 | S54: 11 | T54: 01 | U54: 0106 | V54: 000010077 - ESSALUD-PAUCARTAMBO | AB54: 05 | AC54: 08 | AD54: TUPAC AMARU | AE54: 0508 | AF54: 0508 - TUPAC AMARU
J55: 99 | K55: 99 | L55: (All) | M55: =CONCATENATE(J55,K55," - ",L55) -> 9999 - (All) | O55: 000033777 | P55: MENTAL COMUNITARIO VIRGEN DEL ROSARIO | Q55: 01 | R55: 06 | S55: 11 | T55: 01 | U55: 0106 | V55: 000033777 - MENTAL COMUNITARIO VIRGEN DEL ROSARIO | AB55: 06 | AC55: 00 | AD55: (All) | AE55: 0600 | AF55: 0600 - (All)
O56: 000000000 | P56: (All) | Q56: 01 | R56: 12 | U56: 0112 | V56: 000000000 - (All) | AB56: 06 | AC56: 01 | AD56: SICUANI | AE56: 0601 | AF56: 0601 - SICUANI
O57: 000002523 | P57: URCOS | Q57: 01 | R57: 12 | S57: 12 | T57: 01 | U57: 0112 | V57: 000002523 - URCOS | AB57: 06 | AC57: 02 | AD57: CHECACUPE | AE57: 0602 | AF57: 0602 - CHECACUPE
O58: 000002525 | P58: ANDAHUAYLILLAS | Q58: 01 | R58: 12 | S58: 12 | T58: 02 | U58: 0112 | V58: 000002525 - ANDAHUAYLILLAS | AB58: 06 | AC58: 03 | AD58: COMBAPATA | AE58: 0603 | AF58: 0603 - COMBAPATA
O59: 000002530 | P59: CUSIPATA | Q59: 01 | R59: 12 | S59: 12 | T59: 06 | U59: 0112 | V59: 000002530 - CUSIPATA | AB59: 06 | AC59: 04 | AD59: MARANGANI | AE59: 0604 | AF59: 0604 - MARANGANI
O60: 000002532 | P60: HUARO | Q60: 01 | R60: 12 | S60: 12 | T60: 07 | U60: 0112 | V60: 000002532 - HUARO | AB60: 06 | AC60: 05 | AD60: PITUMARCA | AE60: 0605 | AF60: 0605 - PITUMARCA
O61: 000002533 | P61: URPAY | Q61: 01 | R61: 12 | S61: 12 | T61: 07 | U61: 0112 | V61: 000002533 - URPAY | AB61: 06 | AC61: 06 | AD61: SAN PABLO | AE61: 0606 | AF61: 0606 - SAN PABLO
O62: 000002534 | P62: LUCRE | Q62: 01 | R62: 12 | S62: 12 | T62: 08 | U62: 0112 | V62: 000002534 - LUCRE | AB62: 06 | AC62: 07 | AD62: SAN PEDRO | AE62: 0607 | AF62: 0607 - SAN PEDRO
O63: 000002537 | P63: OROPESA | Q63: 01 | R63: 12 | S63: 12 | T63: 11 | U63: 0112 | V63: 000002537 - OROPESA | AB63: 06 | AC63: 08 | AD63: TINTA | AE63: 0608 | AF63: 0608 - TINTA
O64: 000002538 | P64: QUIQUIJANA | Q64: 01 | R64: 12 | S64: 12 | T64: 12 | U64: 0112 | V64: 000002538 - QUIQUIJANA | AB64: 07 | AC64: 00 | AD64: (All) | AE64: 0700 | AF64: 0700 - (All)
O65: 000002539 | P65: CCOLCA | Q65: 01 | R65: 12 | S65: 12 | T65: 12 | U65: 0112 | V65: 000002539 - CCOLCA | AB65: 07 | AC65: 01 | AD65: SANTO TOMAS | AE65: 0701 | AF65: 0701 - SANTO TOMAS
O66: 000006980 | P66: CHILLIHUANI | Q66: 01 | R66: 12 | S66: 12 | T66: 06 | U66: 0112 | V66: 000006980 - CHILLIHUANI | AB66: 07 | AC66: 02 | AD66: CAPACMARCA | AE66: 0702 | AF66: 0702 - CAPACMARCA
O67: 000008911 | P67: HUARA HUARA | Q67: 01 | R67: 12 | S67: 12 | T67: 05 | U67: 0112 | V67: 000008911 - HUARA HUARA | AB67: 07 | AC67: 03 | AD67: CHAMACA | AE67: 0703 | AF67: 0703 - CHAMACA
O68: 000011747 | P68: SANIDAD-PUCUTO PNP | Q68: 01 | R68: 12 | S68: 12 | T68: 07 | U68: 0112 | V68: 000011747 - SANIDAD-PUCUTO PNP | AB68: 07 | AC68: 04 | AD68: COLQUEMARCA | AE68: 0704 | AF68: 0704 - COLQUEMARCA
O69: 000026385 | P69: ESSALUD-URCOS | Q69: 01 | R69: 12 | S69: 12 | T69: 01 | U69: 0112 | V69: 000026385 - ESSALUD-URCOS | AB69: 07 | AC69: 05 | AD69: LIVITACA | AE69: 0705 | AF69: 0705 - LIVITACA
O70: 000030708 | P70: MENTAL COMUNITARIO HUARO | Q70: 01 | R70: 12 | S70: 12 | T70: 07 | U70: 0112 | V70: 000030708 - MENTAL COMUNITARIO HUARO | AB70: 07 | AC70: 06 | AD70: LLUSCO | AE70: 0706 | AF70: 0706 - LLUSCO
O71: 000000000 | P71: (All) | Q71: 01 | R71: 13 | U71: 0113 | V71: 000000000 - (All) | AB71: 07 | AC71: 07 | AD71: QUIÑOTA | AE71: 0707 | AF71: 0707 - QUIÑOTA
O72: 000002317 | P72: ACOMAYO | Q72: 01 | R72: 13 | S72: 02 | T72: 01 | U72: 0113 | V72: 000002317 - ACOMAYO | AB72: 07 | AC72: 08 | AD72: VELILLE | AE72: 0708 | AF72: 0708 - VELILLE
O73: 000002318 | P73: ACOPIA | Q73: 01 | R73: 13 | S73: 02 | T73: 02 | U73: 0113 | V73: 000002318 - ACOPIA | AB73: 08 | AC73: 00 | AD73: (All) | AE73: 0800 | AF73: 0800 - (All)
O74: 000002319 | P74: ACOS | Q74: 01 | R74: 13 | S74: 02 | T74: 03 | U74: 0113 | V74: 000002319 - ACOS | AB74: 08 | AC74: 01 | AD74: ESPINAR | AE74: 0801 | AF74: 0801 - ESPINAR
O75: 000002321 | P75: CENTRO DE SALUD POMACANCHI | Q75: 01 | R75: 13 | S75: 02 | T75: 05 | U75: 0113 | V75: =CONCATENATE(O75," - ",P75) -> 000002321 - CENTRO DE SALUD POMACANCHI | AB75: 08 | AC75: 02 | AD75: CONDOROMA | AE75: =CONCATENATE(AB75,AC75) -> 0802 | AF75: =CONCATENATE(AB75,AC75," - ",AD75) -> 0802 - CONDOROMA
O76: 000002322 | P76: SAN JUAN DE POMACANCHI | Q76: 01 | R76: 13 | S76: 02 | T76: 05 | U76: 0113 | V76: 000002322 - SAN JUAN DE POMACANCHI | AB76: 08 | AC76: 03 | AD76: COPORAQUE | AE76: 0803 | AF76: 0803 - COPORAQUE
O77: 000002324 | P77: PUESTO DE SALUD SANGARARA | Q77: 01 | R77: 13 | S77: 02 | T77: 07 | U77: 0113 | V77: 000002324 - PUESTO DE SALUD SANGARARA | AB77: 08 | AC77: 04 | AD77: OCORURO | AE77: 0804 | AF77: 0804 - OCORURO
O78: 000002325 | P78: PUESTO DE SALUD MARCACONGA | Q78: 01 | R78: 13 | S78: 02 | T78: 07 | U78: 0113 | V78: 000002325 - PUESTO DE SALUD MARCACONGA | AB78: 08 | AC78: 05 | AD78: PALLPATA | AE78: 0805 | AF78: 0805 - PALLPATA
O79: 000002508 | P79: PILLPINTO | Q79: 01 | R79: 13 | S79: 10 | T79: 08 | U79: 0113 | V79: 000002508 - PILLPINTO | AB79: 08 | AC79: 06 | AD79: PICHIGUA | AE79: 0806 | AF79: 0806 - PICHIGUA
O80: 000010076 | P80: ESSALUD-ACOMAYO | Q80: 01 | R80: 13 | S80: 02 | T80: 01 | U80: 0113 | V80: 000010076 - ESSALUD-ACOMAYO | AB80: 08 | AC80: 07 | AD80: SUYCKUTAMBO | AE80: 0807 | AF80: 0807 - SUYCKUTAMBO
O81: 000012926 | P81: SANTA LUCIA | Q81: 01 | R81: 13 | S81: 02 | T81: 05 | U81: 0113 | V81: 000012926 - SANTA LUCIA | AB81: 08 | AC81: 08 | AD81: ALTO PICHIGUA | AE81: 0808 | AF81: 0808 - ALTO PICHIGUA
O82: 000000000 | P82: (All) | Q82: 01 | R82: 15 | U82: 0115 | V82: 000000000 - (All) | AB82: 09 | AC82: 00 | AD82: (All) | AE82: 0900 | AF82: 0900 - (All)
O83: 000002524 | P83: PAMPACAMARA | Q83: 01 | R83: 15 | S83: 12 | T83: 05 | U83: 0115 | V83: 000002524 - PAMPACAMARA | AB83: 09 | AC83: 01 | AD83: SANTA ANA | AE83: 0901 | AF83: 0901 - SANTA ANA
O84: 000002526 | P84: QUINCE MIL | Q84: 01 | R84: 15 | S84: 12 | T84: 03 | U84: 0115 | V84: 000002526 - QUINCE MIL | AB84: 09 | AC84: 02 | AD84: ECHARATE | AE84: 0902 | AF84: 0902 - ECHARATE
O85: 000002527 | P85: CCARHUAYO | Q85: 01 | R85: 15 | S85: 12 | T85: 04 | U85: 0115 | V85: 000002527 - CCARHUAYO | AB85: 09 | AC85: 03 | AD85: HUAYOPATA | AE85: 0903 | AF85: 0903 - HUAYOPATA
O86: 000002528 | P86: CCATCCA | Q86: 01 | R86: 15 | S86: 12 | T86: 05 | U86: 0115 | V86: 000002528 - CCATCCA | AB86: 09 | AC86: 04 | AD86: MARANURA | AE86: 0904 | AF86: 0904 - MARANURA
O87: 000002529 | P87: KCAURY | Q87: 01 | R87: 15 | S87: 12 | T87: 05 | U87: 0115 | V87: 000002529 - KCAURY | AB87: 09 | AC87: 05 | AD87: OCOBAMBA | AE87: 0905 | AF87: 0905 - OCOBAMBA
O88: 000002535 | P88: MARCAPATA | Q88: 01 | R88: 15 | S88: 12 | T88: 09 | U88: 0115 | V88: 000002535 - MARCAPATA | AB88: 09 | AC88: 06 | AD88: QUELLOUNO | AE88: 0906 | AF88: 0906 - QUELLOUNO
O89: 000002536 | P89: OCONGATE | Q89: 01 | R89: 15 | S89: 12 | T89: 10 | U89: 0115 | V89: 000002536 - OCONGATE | AB89: 09 | AC89: 07 | AD89: KIMBIRI | AE89: 0907 | AF89: 0907 - KIMBIRI
O90: 000006977 | P90: TINKI | Q90: 01 | R90: 15 | S90: 12 | T90: 10 | U90: =CONCATENATE(Q90,R90) -> 0115 | V90: 000006977 - TINKI | AB90: 09 | AC90: 08 | AD90: SANTA TERESA | AE90: 0908 | AF90: 0908 - SANTA TERESA
O91: 000007110 | P91: INCACANCHA | Q91: 01 | R91: 15 | S91: 12 | T91: 09 | U91: 0115 | V91: 000007110 - INCACANCHA | AB91: 09 | AC91: 09 | AD91: VILCABAMBA | AE91: 0909 | AF91: 0909 - VILCABAMBA
O92: 000012931 | P92: CHICHINA | Q92: 01 | R92: 15 | S92: 12 | T92: 05 | U92: 0115 | V92: 000012931 - CHICHINA | AB92: 09 | AC92: 10 | AD92: PICHARI | AE92: 0910 | AF92: 0910 - PICHARI
O93: 000016335 | P93: CCAPANA | Q93: 01 | R93: 15 | S93: 12 | T93: 05 | U93: 0115 | V93: 000016335 - CCAPANA | AB93: 09 | AC93: 11 | AD93: INKAWASI | AE93: 0911 | AF93: 0911 - INKAWASI
O94: 999999999 | P94: (All) | Q94: 01 | R94: 99 | U94: 0199 | V94: 999999999 - (All) | AB94: 09 | AC94: 12 | AD94: VILLA VIRGEN | AE94: 0912 | AF94: 0912 - VILLA VIRGEN
O95: 000000000 | P95: (All) | Q95: 02 | R95: 01 | U95: 0201 | V95: 000000000 - (All) | AB95: 09 | AC95: 13 | AD95: VILLA KINTIARINA | AE95: 0913 | AF95: 0913 - VILLA KINTIARINA
O96: 000002292 | P96: INDEPENDENCIA | Q96: 02 | R96: 01 | S96: 01 | T96: 01 | U96: 0201 | V96: 000002292 - INDEPENDENCIA | AB96: 09 | AC96: 14 | AD96: MEGANTONI | AE96: 0914 | AF96: 0914 - MEGANTONI
O97: 000002297 | P97: CCORCCA | Q97: 02 | R97: 01 | S97: 01 | T97: 02 | U97: 0201 | V97: 000002297 - CCORCCA | AB97: 09 | AC97: 15 | AD97: KUMPIRUSHIATO | AE97: 0915 | AF97: 0915 - KUMPIRUSHIATO
O98: 000002306 | P98: BELEMPAMPA | Q98: 02 | R98: 01 | S98: 01 | T98: 06 | U98: 0201 | V98: 000002306 - BELEMPAMPA | AB98: 09 | AC98: 16 | AD98: CIELO PUNCO | AE98: 0916 | AF98: 0916 - CIELO PUNCO
O99: 000002308 | P99: ZARZUELA ALTA | Q99: 02 | R99: 01 | S99: 01 | T99: 06 | U99: 0201 | V99: 000002308 - ZARZUELA ALTA | AB99: 09 | AC99: 17 | AD99: MANITEA | AE99: 0917 | AF99: 0917 - MANITEA
O100: 000002309 | P100: DIGNIDAD NACIONAL | Q100: 02 | R100: 01 | S100: 01 | T100: 06 | U100: 0201 | V100: 000002309 - DIGNIDAD NACIONAL | AB100: 09 | AC100: 18 | AD100: UNION ASHANINKA | AE100: 0918 | AF100: 0918 - UNION ASHANINKA
O101: 000002313 | P101: OCCOPATA | Q101: 02 | R101: 01 | S101: 01 | T101: 06 | U101: 0201 | V101: 000002313 - OCCOPATA | AB101: 10 | AC101: 00 | AD101: (All) | AE101: 1000 | AF101: 1000 - (All)
O102: 000010067 | P102: ESSALUD-SANTIAGO | Q102: 02 | R102: 01 | S102: 01 | T102: 06 | U102: 0201 | V102: 000010067 - ESSALUD-SANTIAGO | AB102: 10 | AC102: 01 | AD102: PARURO | AE102: 1001 | AF102: 1001 - PARURO
O103: 000010920 | P103: EJERCITO-QUINTA BRIGADA DE MONTAÑA | Q103: 02 | R103: 01 | S103: 01 | T103: 06 | U103: 0201 | V103: 000010920 - EJERCITO-QUINTA BRIGADA DE MONTAÑA | AB103: 10 | AC103: 02 | AD103: ACCHA | AE103: 1002 | AF103: 1002 - ACCHA
O104: 000026182 | P104: MENTAL SANTIAGO | Q104: 02 | R104: 01 | S104: 01 | T104: 06 | U104: 0201 | V104: 000026182 - MENTAL SANTIAGO | AB104: 10 | AC104: 03 | AD104: CCAPI | AE104: 1003 | AF104: 1003 - CCAPI
O105: 000000000 | P105: (All) | Q105: 02 | R105: 02 | U105: 0202 | V105: 000000000 - (All) | AB105: 10 | AC105: 04 | AD105: COLCHA | AE105: 1004 | AF105: 1004 - COLCHA
O106: 000002302 | P106: CCORAO | Q106: 02 | R106: 02 | S106: 01 | T106: 05 | U106: 0202 | V106: 000002302 - CCORAO | AB106: 10 | AC106: 05 | AD106: HUANOQUITE | AE106: 1005 | AF106: 1005 - HUANOQUITE
O107: 000002307 | P107: MANCO CAPAC | Q107: 02 | R107: 02 | S107: 01 | T107: 06 | U107: 0202 | V107: 000002307 - MANCO CAPAC | AB107: 10 | AC107: 06 | AD107: OMACHA | AE107: 1006 | AF107: 1006 - OMACHA
O108: 000002310 | P108: CHOCCO | Q108: 02 | R108: 02 | S108: 01 | T108: 06 | U108: 0202 | V108: 000002310 - CHOCCO | AB108: 10 | AC108: 07 | AD108: PACCARITAMBO | AE108: 1007 | AF108: 1007 - PACCARITAMBO
O109: 000002315 | P109: WANCHAQ | Q109: 02 | R109: 02 | S109: 01 | T109: 08 | U109: 0202 | V109: 000002315 - WANCHAQ | AB109: 10 | AC109: 08 | AD109: PILLPINTO | AE109: 1008 | AF109: 1008 - PILLPINTO
O110: 000002316 | P110: TTIO | Q110: 02 | R110: 02 | S110: 01 | T110: 08 | U110: 0202 | V110: 000002316 - TTIO | AB110: 10 | AC110: 09 | AD110: YAURISQUE | AE110: 1009 | AF110: 1009 - YAURISQUE
O111: 000010041 | P111: ESSALUD-ADOLFO GUEVARA V. | Q111: 02 | R111: 02 | S111: 01 | T111: 08 | U111: 0202 | V111: 000010041 - ESSALUD-ADOLFO GUEVARA V. | AB111: 11 | AC111: 00 | AD111: (All) | AE111: 1100 | AF111: 1100 - (All)
O112: 000026183 | P112: ESSALUD-METROPOLITANO | Q112: 02 | R112: 02 | S112: 01 | T112: 08 | U112: 0202 | V112: 000026183 - ESSALUD-METROPOLITANO | AB112: 11 | AC112: 01 | AD112: PAUCARTAMBO | AE112: 1101 | AF112: 1101 - PAUCARTAMBO
O113: 000030730 | P113: PATRON SANTIAGO | Q113: 02 | R113: 02 | S113: 01 | T113: 08 | U113: 0202 | V113: 000030730 - PATRON SANTIAGO | AB113: 11 | AC113: 02 | AD113: CAICAY | AE113: 1102 | AF113: 1102 - CAICAY
O114: 000034419 | P114: MENTAL COMUNITARIO CUSCO | Q114: 02 | R114: 02 | S114: 01 | T114: 08 | U114: 0202 | V114: 000034419 - MENTAL COMUNITARIO CUSCO | AB114: 11 | AC114: 03 | AD114: CHALLABAMBA | AE114: 1103 | AF114: 1103 - CHALLABAMBA
O115: 000000000 | P115: (All) | Q115: 02 | R115: 03 | U115: 0203 | V115: 000000000 - (All) | AB115: 11 | AC115: 04 | AD115: COLQUEPATA | AE115: 1104 | AF115: 1104 - COLQUEPATA
O116: 000002326 | P116: ANTA | Q116: 02 | R116: 03 | S116: 03 | T116: 01 | U116: 0203 | V116: 000002326 - ANTA | AB116: 11 | AC116: 05 | AD116: HUANCARANI | AE116: 1105 | AF116: 1105 - HUANCARANI
O117: 000002327 | P117: CHACAN | Q117: 02 | R117: 03 | S117: 03 | T117: 01 | U117: 0203 | V117: 000002327 - CHACAN | AB117: 11 | AC117: 06 | AD117: KOSÑIPATA | AE117: 1106 | AF117: 1106 - KOSÑIPATA
O118: 000002328 | P118: COMPONE | Q118: 02 | R118: 03 | S118: 03 | T118: 01 | U118: 0203 | V118: 000002328 - COMPONE | AB118: 12 | AC118: 00 | AD118: (All) | AE118: 1200 | AF118: 1200 - (All)
O119: 000002329 | P119: CONCHACALLA | Q119: 02 | R119: 03 | S119: 03 | T119: 01 | U119: 0203 | V119: 000002329 - CONCHACALLA | AB119: 12 | AC119: 01 | AD119: URCOS | AE119: 1201 | AF119: 1201 - URCOS
O120: 000002330 | P120: ANCAHUASI | Q120: 02 | R120: 03 | S120: 03 | T120: 02 | U120: 0203 | V120: 000002330 - ANCAHUASI | AB120: 12 | AC120: 02 | AD120: ANDAHUAYLILLAS | AE120: 1202 | AF120: 1202 - ANDAHUAYLILLAS
O121: 000002331 | P121: CACHIMAYO | Q121: 02 | R121: 03 | S121: 03 | T121: 03 | U121: 0203 | V121: 000002331 - CACHIMAYO | AB121: 12 | AC121: 03 | AD121: CAMANTI | AE121: 1203 | AF121: 1203 - CAMANTI
O122: 000002332 | P122: CHINCHAYPUJIO | Q122: 02 | R122: 03 | S122: 03 | T122: 04 | U122: 0203 | V122: 000002332 - CHINCHAYPUJIO | AB122: 12 | AC122: 04 | AD122: CCARHUAYO | AE122: 1204 | AF122: 1204 - CCARHUAYO
O123: 000002333 | P123: HUAROCONDO | Q123: 02 | R123: 03 | S123: 03 | T123: 05 | U123: 0203 | V123: 000002333 - HUAROCONDO | AB123: 12 | AC123: 05 | AD123: CCATCA | AE123: 1205 | AF123: 1205 - CCATCA
O124: 000002334 | P124: HUAYLLACOCHA | Q124: 02 | R124: 03 | S124: 03 | T124: 05 | U124: 0203 | V124: 000002334 - HUAYLLACOCHA | AB124: 12 | AC124: 06 | AD124: CUSIPATA | AE124: 1206 | AF124: 1206 - CUSIPATA
O125: 000002339 | P125: PUCYURA ANTA | Q125: 02 | R125: 03 | S125: 03 | T125: 08 | U125: 0203 | V125: 000002339 - PUCYURA ANTA | AB125: 12 | AC125: 07 | AD125: HUARO | AE125: 1207 | AF125: 1207 - HUARO
O126: 000002340 | P126: ZURITE | Q126: 02 | R126: 03 | S126: 03 | T126: 09 | U126: 0203 | V126: 000002340 - ZURITE | AB126: 12 | AC126: 08 | AD126: LUCRE | AE126: 1208 | AF126: 1208 - LUCRE
O127: 000006972 | P127: PANTIPATA | Q127: 02 | R127: 03 | S127: 03 | T127: 04 | U127: 0203 | V127: 000006972 - PANTIPATA | AB127: 12 | AC127: 09 | AD127: MARCAPATA | AE127: 1209 | AF127: 1209 - MARCAPATA
O128: 000027790 | P128: MENTAL COMUNITARIO ANTA | Q128: 02 | R128: 03 | S128: 03 | T128: 01 | U128: 0203 | V128: 000027790 - MENTAL COMUNITARIO ANTA | AB128: 12 | AC128: 10 | AD128: OCONGATE | AE128: 1210 | AF128: 1210 - OCONGATE
O129: 000000000 | P129: (All) | Q129: 02 | R129: 04 | U129: 0204 | V129: 000000000 - (All) | AB129: 12 | AC129: 11 | AD129: OROPESA | AE129: 1211 | AF129: 1211 - OROPESA
O130: 000002336 | P130: LIMATAMBO | Q130: 02 | R130: 04 | S130: 03 | T130: 06 | U130: 0204 | V130: 000002336 - LIMATAMBO | AB130: 12 | AC130: 12 | AD130: QUIQUIJANA | AE130: 1212 | AF130: 1212 - QUIQUIJANA
O131: 000002337 | P131: PAMPACONGA | Q131: 02 | R131: 04 | S131: 03 | T131: 06 | U131: 0204 | V131: 000002337 - PAMPACONGA | AB131: 13 | AC131: 00 | AD131: (All) | AE131: 1300 | AF131: 1300 - (All)
O132: 000002338 | P132: MOLLEPATA | Q132: 02 | R132: 04 | S132: 03 | T132: 07 | U132: 0204 | V132: 000002338 - MOLLEPATA | AB132: 13 | AC132: 01 | AD132: URUBAMBA | AE132: 1301 | AF132: 1301 - URUBAMBA
O133: 000010761 | P133: URATARI | Q133: 02 | R133: 04 | S133: 03 | T133: 06 | U133: 0204 | V133: 000010761 - URATARI | AB133: 13 | AC133: 02 | AD133: CHINCHERO | AE133: 1302 | AF133: 1302 - CHINCHERO
O134: 000021061 | P134: HUAMANPATA | Q134: 02 | R134: 04 | S134: 03 | T134: 07 | U134: 0204 | V134: 000021061 - HUAMANPATA | AB134: 13 | AC134: 03 | AD134: HUAYLLABAMBA | AE134: 1303 | AF134: 1303 - HUAYLLABAMBA
O135: 000000000 | P135: (All) | Q135: 02 | R135: 05 | U135: 0205 | V135: 000000000 - (All) | AB135: 13 | AC135: 04 | AD135: MACHUPICCHU | AE135: 1304 | AF135: 1304 - MACHUPICCHU
O136: 000002343 | P136: COYA | Q136: 02 | R136: 05 | S136: 04 | T136: 02 | U136: 0205 | V136: 000002343 - COYA | AB136: 13 | AC136: 05 | AD136: MARAS | AE136: 1305 | AF136: 1305 - MARAS
O137: 000002344 | P137: LAMAY | Q137: 02 | R137: 05 | S137: 04 | T137: 03 | U137: 0205 | V137: 000002344 - LAMAY | AB137: 13 | AC137: 06 | AD137: OLLANTAYTAMBO | AE137: 1306 | AF137: 1306 - OLLANTAYTAMBO
O138: 000002348 | P138: PISAC | Q138: 02 | R138: 05 | S138: 04 | T138: 05 | U138: 0205 | V138: 000002348 - PISAC | AB138: 13 | AC138: 07 | AD138: YUCAY | AE138: 1307 | AF138: 1307 - YUCAY
O139: 000002349 | P139: CUYO CHICO | Q139: 02 | R139: 05 | S139: 04 | T139: 05 | U139: 0205 | V139: =CONCATENATE(O139," - ",P139) -> 000002349 - CUYO CHICO | AB139: 00 | AC139: 00 | AD139: (All) | AE139: =CONCATENATE(AB139,AC139) -> 0000 | AF139: =CONCATENATE(AB139,AC139," - ",AD139) -> 0000 - (All)
O140: 000002350 | P140: CUYO GRANDE | Q140: 02 | R140: 05 | S140: 04 | T140: 05 | U140: 0205 | V140: 000002350 - CUYO GRANDE
O141: 000002351 | P141: QUELLO QUELLO | Q141: 02 | R141: 05 | S141: 04 | T141: 05 | U141: 0205 | V141: 000002351 - QUELLO QUELLO
O142: 000002352 | P142: SAN SALVADOR | Q142: 02 | R142: 05 | S142: 04 | T142: 06 | U142: 0205 | V142: 000002352 - SAN SALVADOR
O143: 000002353 | P143: TARAY | Q143: 02 | R143: 05 | S143: 04 | T143: 07 | U143: 0205 | V143: 000002353 - TARAY
O144: 000002354 | P144: HUANCALLE | Q144: 02 | R144: 05 | S144: 04 | T144: 07 | U144: 0205 | V144: 000002354 - HUANCALLE
O145: 000006970 | P145: TIRACANCHA | Q145: 02 | R145: 05 | S145: 04 | T145: 06 | U145: 0205 | V145: 000006970 - TIRACANCHA
O146: 000006975 | P146: SAYLLAFAYA | Q146: 02 | R146: 05 | S146: 04 | T146: 03 | U146: 0205 | V146: 000006975 - SAYLLAFAYA
O147: 000007145 | P147: HUAMA | Q147: 02 | R147: 05 | S147: 04 | T147: 03 | U147: 0205 | V147: 000007145 - HUAMA
O148: 000007146 | P148: POQUES | Q148: 02 | R148: 05 | S148: 04 | T148: 03 | U148: 0205 | V148: 000007146 - POQUES
O149: 000025368 | P149: HUARQUI | Q149: 02 | R149: 05 | S149: 04 | T149: 03 | U149: 0205 | V149: 000025368 - HUARQUI
O150: 000000000 | P150: (All) | Q150: 02 | R150: 06 | U150: 0206 | V150: 000000000 - (All)
O151: 000002341 | P151: CALCA | Q151: 02 | R151: 06 | S151: 04 | T151: 01 | U151: 0206 | V151: 000002341 - CALCA
O152: 000002342 | P152: AMPARAES | Q152: 02 | R152: 06 | S152: 04 | T152: 04 | U152: 0206 | V152: 000002342 - AMPARAES
O153: 000002345 | P153: CCACHIN | Q153: 02 | R153: 06 | S153: 04 | T153: 04 | U153: 0206 | V153: 000002345 - CCACHIN
O154: 000002346 | P154: CHOQUECANCHA | Q154: 02 | R154: 06 | S154: 04 | T154: 04 | U154: =CONCATENATE(Q154,R154) -> 0206 | V154: 000002346 - CHOQUECANCHA
O155: 000002347 | P155: LARES | Q155: 02 | R155: 06 | S155: 04 | T155: 04 | U155: 0206 | V155: 000002347 - LARES
O156: 000002361 | P156: SUYO | Q156: 02 | R156: 06 | S156: 04 | T156: 04 | U156: 0206 | V156: 000002361 - SUYO
O157: 000002515 | P157: PAROBAMBA | Q157: 02 | R157: 06 | S157: 11 | T157: 03 | U157: 0206 | V157: 000002515 - PAROBAMBA
O158: 000007143 | P158: OTOCANI | Q158: 02 | R158: 06 | S158: 11 | T158: 03 | U158: 0206 | V158: 000007143 - OTOCANI
O159: 000007144 | P159: PATABAMBA | Q159: 02 | R159: 06 | S159: 04 | T159: 07 | U159: 0206 | V159: 000007144 - PATABAMBA
O160: 000010069 | P160: ESSALUD-CALCA | Q160: 02 | R160: 06 | S160: 04 | T160: 01 | U160: 0206 | V160: 000010069 - ESSALUD-CALCA
O161: 000010759 | P161: HUARAN | Q161: 02 | R161: 06 | S161: 04 | T161: 01 | U161: 0206 | V161: 000010759 - HUARAN
O162: 000010762 | P162: ACCHA ALTA - PAMPALLACTA | Q162: 02 | R162: 06 | S162: 04 | T162: 01 | U162: 0206 | V162: 000010762 - ACCHA ALTA - PAMPALLACTA
O163: 000026273 | P163: MENTAL COMUNITARIO CALCA | Q163: 02 | R163: 06 | S163: 04 | T163: 01 | U163: 0206 | V163: 000026273 - MENTAL COMUNITARIO CALCA
O164: 000000000 | P164: (All) | Q164: 02 | R164: 07 | U164: 0207 | V164: 000000000 - (All)
O165: 000002540 | P165: URUBAMBA | Q165: 02 | R165: 07 | S165: 13 | T165: 01 | U165: 0207 | V165: 000002540 - URUBAMBA
O166: 000002541 | P166: YANAHUARA | Q166: 02 | R166: 07 | S166: 13 | T166: 01 | U166: 0207 | V166: 000002541 - YANAHUARA
O167: 000002543 | P167: CHINCHERO | Q167: 02 | R167: 07 | S167: 13 | T167: 02 | U167: 0207 | V167: 000002543 - CHINCHERO
O168: 000002544 | P168: OCCOTUAN | Q168: 02 | R168: 07 | S168: 13 | T168: 02 | U168: 0207 | V168: 000002544 - OCCOTUAN
O169: 000002545 | P169: HUAYLLABAMBA | Q169: 02 | R169: 07 | S169: 13 | T169: 03 | U169: 0207 | V169: 000002545 - HUAYLLABAMBA
O170: 000002546 | P170: MACHUPICCHU | Q170: 02 | R170: 07 | S170: 13 | T170: 04 | U170: 0207 | V170: 000002546 - MACHUPICCHU
O171: 000002547 | P171: COLLPANI | Q171: 02 | R171: 07 | S171: 13 | T171: 04 | U171: 0207 | V171: 000002547 - COLLPANI
O172: 000002548 | P172: MARAS | Q172: 02 | R172: 07 | S172: 13 | T172: 05 | U172: 0207 | V172: 000002548 - MARAS
O173: 000002549 | P173: OLLANTAYTAMBO | Q173: 02 | R173: 07 | S173: 13 | T173: 06 | U173: 0207 | V173: 000002549 - OLLANTAYTAMBO
O174: 000002550 | P174: CHILLCA | Q174: 02 | R174: 07 | S174: 13 | T174: 06 | U174: 0207 | V174: 000002550 - CHILLCA
O175: 000002551 | P175: YUCAY | Q175: 02 | R175: 07 | S175: 13 | T175: 07 | U175: 0207 | V175: 000002551 - YUCAY
O176: 000006974 | P176: CAMINO INCA HUAYLLABAMBA | Q176: 02 | R176: 07 | S176: 13 | T176: 04 | U176: 0207 | V176: 000006974 - CAMINO INCA HUAYLLABAMBA
O177: 000010060 | P177: ESSALUD-URUBAMBA | Q177: 02 | R177: 07 | S177: 13 | T177: 01 | U177: 0207 | V177: 000010060 - ESSALUD-URUBAMBA
O178: 000010073 | P178: ESSALUD-MACHU PICCHU | Q178: 02 | R178: 07 | S178: 13 | T178: 04 | U178: 0207 | V178: 000010073 - ESSALUD-MACHU PICCHU
O179: 000010758 | P179: CRUZPATA | Q179: 02 | R179: 07 | S179: 13 | T179: 05 | U179: 0207 | V179: 000010758 - CRUZPATA
O180: 000010760 | P180: PATACANCHA | Q180: 02 | R180: 07 | S180: 13 | T180: 06 | U180: 0207 | V180: 000010760 - PATACANCHA
O181: 000030666 | P181: MENTAL COMUNITARIO URUBAMBA | Q181: 02 | R181: 07 | S181: 13 | T181: 01 | U181: 0207 | V181: 000030666 - MENTAL COMUNITARIO URUBAMBA
O182: 000000000 | P182: (All) | Q182: 02 | R182: 08 | U182: 0208 | V182: 000000000 - (All)
O183: 000002355 | P183: LA QUEBRADA | Q183: 02 | R183: 08 | S183: 04 | T183: 08 | U183: 0208 | V183: 000002355 - LA QUEBRADA
O184: 000002356 | P184: CCORIMAYO | Q184: 02 | R184: 08 | S184: 04 | T184: 08 | U184: 0208 | V184: 000002356 - CCORIMAYO
O185: 000002357 | P185: COLCCA YANATILE | Q185: 02 | R185: 08 | S185: 04 | T185: 08 | U185: 0208 | V185: 000002357 - COLCCA YANATILE
O186: 000002358 | P186: MUYUPAY | Q186: 02 | R186: 08 | S186: 04 | T186: 08 | U186: 0208 | V186: 000002358 - MUYUPAY
O187: 000002359 | P187: PUTUCUSI | Q187: 02 | R187: 08 | S187: 04 | T187: 08 | U187: 0208 | V187: 000002359 - PUTUCUSI
O188: 000002360 | P188: QUESQUENTO | Q188: 02 | R188: 08 | S188: 04 | T188: 08 | U188: 0208 | V188: 000002360 - QUESQUENTO
O189: 000002362 | P189: HUACHIBAMBA | Q189: 02 | R189: 08 | S189: 04 | T189: 08 | U189: 0208 | V189: 000002362 - HUACHIBAMBA
O190: 000002464 | P190: VERSALLES | Q190: 02 | R190: 08 | S190: 09 | T190: 05 | U190: 0208 | V190: 000002464 - VERSALLES
O191: 000002467 | P191: PUENTE SANTIAGO | Q191: 02 | R191: 08 | S191: 09 | T191: 06 | U191: 0208 | V191: 000002467 - PUENTE SANTIAGO
O192: 000006971 | P192: COMBAPATA YANATILE | Q192: 02 | R192: 08 | S192: 04 | T192: 08 | U192: 0208 | V192: 000006971 - COMBAPATA YANATILE
O193: 000006973 | P193: BELLAVISTA | Q193: 02 | R193: 08 | S193: 04 | T193: 08 | U193: 0208 | V193: 000006973 - BELLAVISTA
O194: 000007142 | P194: CHANCAMAYO | Q194: 02 | R194: 08 | S194: 04 | T194: 08 | U194: 0208 | V194: 000007142 - CHANCAMAYO
O195: 000000000 | P195: (All) | Q195: 02 | R195: 09 | U195: 0209 | V195: 000000000 - (All)
O196: 000002290 | P196: SAN PEDRO CUSCO | Q196: 02 | R196: 09 | S196: 01 | T196: 01 | U196: 0209 | V196: 000002290 - SAN PEDRO CUSCO
O197: 000002291 | P197: SIETE CUARTONES | Q197: 02 | R197: 09 | S197: 01 | T197: 01 | U197: 0209 | V197: 000002291 - SIETE CUARTONES
O198: 000002293 | P198: MIRAFLORES | Q198: 02 | R198: 09 | S198: 01 | T198: 01 | U198: 0209 | V198: 000002293 - MIRAFLORES
O199: 000002294 | P199: PICCHU LA RINCONADA | Q199: 02 | R199: 09 | S199: 01 | T199: 01 | U199: 0209 | V199: 000002294 - PICCHU LA RINCONADA
O200: 000002295 | P200: BUENA VISTA | Q200: 02 | R200: 09 | S200: 01 | T200: 01 | U200: 0209 | V200: 000002295 - BUENA VISTA
O201: 000002299 | P201: POROY | Q201: 02 | R201: 09 | S201: 01 | T201: 03 | U201: 0209 | V201: 000002299 - POROY
O202: 999999999 | P202: (All) | Q202: 02 | R202: 99 | U202: 0299 | V202: 999999999 - (All)
O203: 000002421 | P203: HOSPITAL QUILLABAMBA | Q203: 03 | R203: 00 | S203: 09 | T203: 01 | U203: =CONCATENATE(Q203,R203) -> 0300 | V203: =CONCATENATE(O203," - ",P203) -> 000002421 - HOSPITAL QUILLABAMBA
O204: 000000000 | P204: (All) | Q204: 03 | R204: 01 | U204: =CONCATENATE(Q204,R204) -> 0301 | V204: =CONCATENATE(O204," - ",P204) -> 000000000 - (All)
O205: 000002422 | P205: HUAYANAY | Q205: 03 | R205: 01 | S205: 09 | T205: 01 | U205: =CONCATENATE(Q205,R205) -> 0301 | V205: =CONCATENATE(O205," - ",P205) -> 000002422 - HUAYANAY
O206: 000002423 | P206: IDMA | Q206: 03 | R206: 01 | S206: 09 | T206: 01 | U206: 0301 | V206: =CONCATENATE(O206," - ",P206) -> 000002423 - IDMA
O207: 000002424 | P207: POTRERO | Q207: 03 | R207: 01 | S207: 09 | T207: 01 | U207: 0301 | V207: =CONCATENATE(O207," - ",P207) -> 000002424 - POTRERO
O208: 000002425 | P208: ECHARATE | Q208: 03 | R208: 01 | S208: 09 | T208: 02 | U208: 0301 | V208: 000002425 - ECHARATE
... 230 more rows

Sheet TD (hidden)
B2: Datos | F2: Tabla | G2: =IF(F3="(Todas)","CUSCO ","") -> 
B3: RED | C3: 03 - LA CONVENCION | F3: =TRIM(MID(C3,5,90)) -> LA CONVENCION | G3: =IF(F3="(All)"," ",F3) -> LA CONVENCION
B4: Micro Red | C4: 0399 - (All) | F4: =TRIM(MID(C4,7,90)) -> (All)
B5: Establecimiento | C5: 999999999 - (All) | F5: =TRIM(MID(C5,12,90)) -> (All)
B6: Provincia | C6: 00 - (All) | F6: =TRIM(MID(C6,6,90)) -> (All)
B7: Distrito | C7: 0000 - (All) | F7: =TRIM(MID(C7,8,90)) -> (All)
B8: UE | C8: 7777 - (All) | F8: =TRIM(MID(C8,8,90)) -> (All)
B10: AÑO | C10: 2024
B11: MESES | C11: 1 | D11: 2 | E11: 3 | F11: 4 | G11: 5 | H11: 6 | I11: 7 | J11: 8 | K11: 9 | L11: 10 | M11: 11 | N11: 0
B12: Mes_desc | C12: =IF(C11=1,"ENERO","") -> ENERO | D12: =IF(D11=2,"FEBRERO","") -> FEBRERO | E12: =IF(E11=3,"MARZO","") -> MARZO | F12: =IF(F11=4,"ABRIL","") -> ABRIL | G12: =IF(G11=5,"MAYO","") -> MAYO | H12: =IF(H11=6,"JUNIO","") -> JUNIO | I12: =IF(I11=7,"JULIO","") -> JULIO | J12: =IF(J11=8,"AGOSTO","") -> AGOSTO | K12: =IF(K11=9,"SETIEMBRE","") -> SETIEMBRE | L12: =IF(L11=10,"OCTUBRE","") -> OCTUBRE | M12: =IF(M11=11,"NOVIEMBRE","") -> NOVIEMBRE | N12: =IF(N11=12,"DICIEMBRE","") ->  | O12: =IF(C11=1,C12,IF(D11=2,D12,IF(E11=3,E12,IF(F11=4,F12,IF(G11=5,G12,IF(H11=6,H12,IF(I11=7,I12,IF(J11=8,J12,IF(K11=9,K12,IF(L11=10,L12,IF(M11=11,M12,IF(N11=12,N12,"")))))))))))) -> ENERO
B14: ACUMULADO | C14: 20 | D14: 22 | E14: 24 | F14: 26 | G14: 28 | H14: 30 | I14: 32 | J14: 34 | K14: 36 | L14: 38 | M14: 40 | O14: =MIN(C14:N14) -> 20 | P14: =MAX(C14:N14) -> 40
B15: Mes_desc_Acu | C15: =IF(C14=20,"ENERO","") -> ENERO | D15: =IF(D14=22,"FEBRERO","") -> FEBRERO | E15: =IF(E14=24,"MARZO","") -> MARZO | F15: =IF(F14=26,"ABRIL","") -> ABRIL | G15: =IF(G14=28,"MAYO","") -> MAYO | H15: =IF(H14=30,"JUNIO","") -> JUNIO | I15: =IF(I14=32,"JULIO","") -> JULIO | J15: =IF(J14=34,"AGOSTO","") -> AGOSTO | K15: =IF(K14=36,"SETIEMBRE","") -> SETIEMBRE | L15: =IF(L14=38,"OCTUBRE","") -> OCTUBRE | M15: =IF(M14=40,"NOVIEMBRE","") -> NOVIEMBRE | N15: =IF(N14=42,"DICIEMBRE","") ->  | O15: =IF(O14=C14,C15,IF(O14=D14,D15,IF(O14=E14,E15,IF(O14=F14,F15,IF(O14=G14,G15,IF(O14=H14,H15,IF(O14=I14,I15,IF(O14=J14,J15,IF(O14=K14,K15,IF(O14=L14,L15,IF(O14=M14,M15,IF(O14=N14,N15,"")))))))))))) -> ENERO | P15: =IF(P14=D14,D15,IF(P14=E14,E15,IF(P14=F14,F15,IF(P14=G14,G15,IF(P14=H14,H15,IF(P14=I14,I15,IF(P14=J14,J15,IF(P14=K14,K15,IF(P14=L14,L15,IF(P14=M14,M15,IF(P14=N14,N15,IF(P14=O14,O15,"")))))))))))) -> NOVIEMBRE
O16: =CONCATENATE(O15," - ",P15) -> ENERO - NOVIEMBRE
O17: =IF(O14=P14,O12,O16) -> ENERO - NOVIEMBRE
A29: Salud Bucal 1
A30: Anio | B30: 2024
A31: UE | B31: (Todas)
A32: Red | B32: LA CONVENCION
A33: MicroRed | B33: (Todas)
A34: EESS | B34: (Todas)
A35: Provincia | B35: (Todas)
A36: Distrito | B36: (Todas)
A38: Etiquetas de fila | B38: Suma de B_ABO_0_28d | C38: Suma de B_ABO_29_5m | D38: Suma de B_ABO_6_11m | E38: Suma de B_ABO_1a | F38: Suma de B_ABO_2a | G38: Suma de B_ABO_3_5a | H38: Suma de B_ABO_6_11a | I38: Suma de B_ABO_Adolesc | J38: Suma de B_ABO_Joven | K38: Suma de B_ABO_Adulto | L38: Suma de B_ABO_AdultoM | M38: Suma de B_ABO_6_11a_g | N38: Suma de B_ABO_Adolesc_g | O38: Suma de B_ABO_Joven_g | P38: Suma de B_ABO_Adulto_g | Q38: Suma de B_ANCED_I_0_28d | R38: Suma de B_ANCED_I_29_5m | S38: Suma de B_ANCED_I_6_11m | T38: Suma de B_ANCED_I_1a | U38: Suma de B_ANCED_I_2a | V38: Suma de B_ANCED_I_3_5a | W38: Suma de B_ANCED_I_6_11a | X38: Suma de B_ANCED_I_Adolesc | Y38: Suma de B_ANCED_I_Joven | Z38: Suma de B_ANCED_I_Adulto | AA38: Suma de B_ANCED_I_AdultoM | AB38: Suma de B_ANCED_I_Gest | AC38: Suma de B_ANCED_CT_0_28d | AD38: Suma de B_ANCED_CT_29_5m | AE38: Suma de B_ANCED_CT_6_11m | AF38: Suma de B_ANCED_CT_1a | AG38: Suma de B_ANCED_CT_2a | AH38: Suma de B_ANCED_CT_3_5a | AI38: Suma de B_ANCED_CT_6_11a | AJ38: Suma de B_ANCED_CT_Adolesc | AK38: Suma de B_ANCED_CT_Joven | AL38: Suma de B_ANCED_CT_Adulto | AM38: Suma de B_ANCED_CT_AdultoM | AN38: Suma de B_ANCED_CT_Gest | AO38: Suma de B_EXODON_CT_0_28d | AP38: Suma de B_EXODON_CT_29_5m | AQ38: Suma de B_EXODON_CT_6_11m | AR38: Suma de B_EXODON_CT_1a | AS38: Suma de B_EXODON_CT_2a | AT38: Suma de B_EXODON_CT_3_5a | AU38: Suma de B_EXODON_CT_6_11a | AV38: Suma de B_EXODON_CT_Adolesc | AW38: Suma de B_EXODON_CT_Joven | AX38: Suma de B_EXODON_CT_Adulto | AY38: Suma de B_EXODON_CT_AdultoM | AZ38: Suma de B_EXODON_CT_Gest | BA38: Suma de B_IHO_I_0_28d | BB38: Suma de B_IHO_I_29_5m | BC38: Suma de B_IHO_I_6_11m | BD38: Suma de B_IHO_I_1a | BE38: Suma de B_IHO_I_2a | BF38: Suma de B_IHO_I_3_5a | BG38: Suma de B_IHO_I_6_11a | BH38: Suma de B_IHO_I_Adolesc | BI38: Suma de B_IHO_I_Joven | BJ38: Suma de B_IHO_I_Adulto | BK38: Suma de B_IHO_I_AdultoM | BL38: Suma de B_IHO_I_Gest | BM38: Suma de B_IHO_CT_0_28d | BN38: Suma de B_IHO_CT_29_5m | BO38: Suma de B_IHO_CT_6_11m | BP38: Suma de B_IHO_CT_1a | BQ38: Suma de B_IHO_CT_2a | BR38: Suma de B_IHO_CT_3_5a | BS38: Suma de B_IHO_CT_6_11a | BT38: Suma de B_IHO_CT_Adolesc | BU38: Suma de B_IHO_CT_Joven | BV38: Suma de B_IHO_CT_Adulto | BW38: Suma de B_IHO_CT_AdultoM | BX38: Suma de B_IHO_CT_Gest | BY38: Suma de B_ASEL_I_0_28d | BZ38: Suma de B_ASEL_I_29_5m | CA38: Suma de B_ASEL_I_6_11m | CB38: Suma de B_ASEL_I_1a | CC38: Suma de B_ASEL_I_2a | CD38: Suma de B_ASEL_I_3_5a | CE38: Suma de B_ASEL_I_6_11a | CF38: Suma de B_ASEL_I_Adolesc | CG38: Suma de B_ASEL_I_Joven | CH38: Suma de B_ASEL_I_Adulto | CI38: Suma de B_ASEL_I_AdultoM | CJ38: Suma de B_ASEL_I_Gest | CK38: Suma de B_ASEL_CT_0_28d | CL38: Suma de B_ASEL_CT_29_5m | CM38: Suma de B_ASEL_CT_6_11m | CN38: Suma de B_ASEL_CT_1a | CO38: Suma de B_ASEL_CT_2a | CP38: Suma de B_ASEL_CT_3_5a | CQ38: Suma de B_ASEL_CT_6_11a | CR38: Suma de B_ASEL_CT_Adolesc | CS38: Suma de B_ASEL_CT_Joven | CT38: Suma de B_ASEL_CT_Adulto | CU38: Suma de B_ASEL_CT_AdultoM | CV38: Suma de B_ASEL_CT_Gest | CW38: Suma de B_ABF_I_0_28d | CX38: Suma de B_ABF_I_29_5m | CY38: Suma de B_ABF_I_6_11m | CZ38: Suma de B_ABF_I_1a | DA38: Suma de B_ABF_I_2a | DB38: Suma de B_ABF_I_3_5a | DC38: Suma de B_ABF_I_6_11a | DD38: Suma de B_ABF_I_Adolesc | DE38: Suma de B_ABF_I_Joven | DF38: Suma de B_ABF_I_Adulto | DG38: Suma de B_ABF_I_AdultoM | DH38: Suma de B_ABF_I_Gest | DI38: Suma de B_ABF_CT_0_28d | DJ38: Suma de B_ABF_CT_29_5m | DK38: Suma de B_ABF_CT_6_11m | DL38: Suma de B_ABF_CT_1a | DM38: Suma de B_ABF_CT_2a | DN38: Suma de B_ABF_CT_3_5a | DO38: Suma de B_ABF_CT_6_11a | DP38: Suma de B_ABF_CT_Adolesc | DQ38: Suma de B_ABF_CT_Joven | DR38: Suma de B_ABF_CT_Adulto | DS38: Suma de B_ABF_CT_AdultoM | DT38: Suma de B_ABF_CT_Gest | DU38: Suma de B_AFG_I_0_28d | DV38: Suma de B_AFG_I_29_5m | DW38: Suma de B_AFG_I_6_11m | DX38: Suma de B_AFG_I_1a | DY38: Suma de B_AFG_I_2a | DZ38: Suma de B_AFG_I_3_5a | EA38: Suma de B_AFG_I_6_11a | EB38: Suma de B_AFG_I_Adolesc | EC38: Suma de B_AFG_I_Joven | ED38: Suma de B_AFG_I_Adulto | EE38: Suma de B_AFG_I_AdultoM | EF38: Suma de B_AFG_I_Gest | EG38: Suma de B_AFG_CT_0_28d | EH38: Suma de B_AFG_CT_29_5m | EI38: Suma de B_AFG_CT_6_11m | EJ38: Suma de B_AFG_CT_1a | EK38: Suma de B_AFG_CT_2a | EL38: Suma de B_AFG_CT_3_5a | EM38: Suma de B_AFG_CT_6_11a | EN38: Suma de B_AFG_CT_Adolesc | EO38: Suma de B_AFG_CT_Joven | EP38: Suma de B_AFG_CT_Adulto | EQ38: Suma de B_AFG_CT_AdultoM | ER38: Suma de B_AFG_CT_Gest | ES38: Suma de B_PD_I_0_28d | ET38: Suma de B_PD_I_29_5m | EU38: Suma de B_PD_I_6_11m | EV38: Suma de B_PD_I_1a | EW38: Suma de B_PD_I_2a | EX38: Suma de B_PD_I_3_5a | EY38: Suma de B_PD_I_6_11a | EZ38: Suma de B_PD_I_Adolesc | FA38: Suma de B_PD_I_Joven | FB38: Suma de B_PD_I_Adulto | FC38: Suma de B_PD_I_AdultoM | FD38: Suma de B_PD_I_Gest | FE38: Suma de B_PD_CT_0_28d | FF38: Suma de B_PD_CT_29_5m | FG38: Suma de B_PD_CT_6_11m | FH38: Suma de B_PD_CT_1a | FI38: Suma de B_PD_CT_2a | FJ38: Suma de B_PD_CT_3_5a | FK38: Suma de B_PD_CT_6_11a | FL38: Suma de B_PD_CT_Adolesc | FM38: Suma de B_PD_CT_Joven | FN38: Suma de B_PD_CT_Adulto | FO38: Suma de B_PD_CT_AdultoM | FP38: Suma de B_PD_CT_Gest
A39: 1 | B39: 2 | C39: 8 | D39: 15 | E39: 10 | F39: 7 | G39: 15 | H39: 18 | I39: 15 | J39: 11 | K39: 8 | L39: 7 | M39: 0 | N39: 2 | O39: 3 | P39: 8 | Q39: 3 | R39: 8 | S39: 17 | T39: 17 | U39: 17 | V39: 138 | W39: 249 | X39: 210 | Y39: 211 | Z39: 335 | AA39: 106 | AB39: 156 | AC39: 0 | AD39: 0 | AE39: 1 | AF39: 0 | AG39: 2 | AH39: 11 | AI39: 12 | AJ39: 8 | AK39: 13 | AL39: 8 | AM39: 3 | AN39: 7 | AO39: 3 | AP39: 8 | AQ39: 18 | AR39: 17 | AS39: 18 | AT39: 142 | AU39: 252 | AV39: 209 | AW39: 212 | AX39: 335 | AY39: 108 | AZ39: 157 | BA39: 3 | BB39: 8 | BC39: 17 | BD39: 17 | BE39: 18 | BF39: 138 | BG39: 250 | BH39: 210 | BI39: 209 | BJ39: 335 | BK39: 106 | BL39: 157 | BM39: 0 | BN39: 0 | BO39: 1 | BP39: 0 | BQ39: 2 | BR39: 11 | BS39: 12 | BT39: 8 | BU39: 13 | BV39: 8 | BW39: 3 | BX39: 7 | BY39: 0 | BZ39: 0 | CA39: 0 | CB39: 0 | CC39: 0 | CD39: 15 | CE39: 64 | CF39: 15 | CG39: 1 | CH39: 0 | CI39: 0 | CJ39: 2 | CK39: 0 | CL39: 0 | CM39: 0 | CN39: 0 | CO39: 0 | CP39: 3 | CQ39: 18 | CR39: 3 | CS39: 0 | CT39: 0 | CU39: 0 | CV39: 2 | CW39: 0 | CX39: 1 | CY39: 15 | CZ39: 16 | DA39: 18 | DB39: 148 | DC39: 262 | DD39: 151 | DE39: 116 | DF39: 38 | DG39: 24 | DH39: 130 | DI39: 0 | DJ39: 0 | DK39: 1 | DL39: 0 | DM39: 2 | DN39: 20 | DO39: 34 | DP39: 17 | DQ39: 12 | DR39: 0 | DS39: 1 | DT39: 7 | DU39: 0 | DV39: 0 | DW39: 0 | DX39: 0 | DY39: 0 | DZ39: 1 | EA39: 13 | EB39: 27 | EC39: 49 | ED39: 234 | EE39: 60 | EF39: 25 | EG39: 0 | EH39: 0 | EI39: 0 | EJ39: 0 | EK39: 0 | EL39: 0 | EM39: 2 | EN39: 5 | EO39: 7 | EP39: 18 | EQ39: 3 | ER39: 3 | ES39: 0 | ET39: 1 | EU39: 6 | EV39: 11 | EW39: 14 | EX39: 145 | EY39: 269 | EZ39: 193 | FA39: 193 | FB39: 308 | FC39: 94 | FD39: 150 | FE39: 0 | FF39: 0 | FG39: 0 | FH39: 0 | FI39: 2 | FJ39: 18 | FK39: 34 | FL39: 20 | FM39: 19 | FN39: 15 | FO39: 4 | FP39: 8
A40: 2 | B40: 1 | C40: 1 | D40: 0 | E40: 10 | F40: 4 | G40: 17 | H40: 25 | I40: 18 | J40: 8 | K40: 15 | L40: 9 | M40: 0 | N40: 0 | O40: 7 | P40: 7 | Q40: 1 | R40: 1 | S40: 2 | T40: 18 | U40: 13 | V40: 108 | W40: 184 | X40: 151 | Y40: 118 | Z40: 200 | AA40: 68 | AB40: 88 | AC40: 0 | AD40: 0 | AE40: 0 | AF40: 1 | AG40: 0 | AH40: 11 | AI40: 25 | AJ40: 12 | AK40: 6 | AL40: 8 | AM40: 2 | AN40: 22 | AO40: 1 | AP40: 1 | AQ40: 2 | AR40: 17 | AS40: 15 | AT40: 113 | AU40: 189 | AV40: 151 | AW40: 122 | AX40: 201 | AY40: 70 | AZ40: 90 | BA40: 1 | BB40: 1 | BC40: 2 | BD40: 18 | BE40: 13 | BF40: 107 | BG40: 184 | BH40: 150 | BI40: 118 | BJ40: 201 | BK40: 66 | BL40: 89 | BM40: 0 | BN40: 0 | BO40: 0 | BP40: 1 | BQ40: 0 | BR40: 11 | BS40: 25 | BT40: 12 | BU40: 6 | BV40: 8 | BW40: 2 | BX40: 19 | BY40: 0 | BZ40: 0 | CA40: 0 | CB40: 0 | CC40: 2 | CD40: 12 | CE40: 52 | CF40: 8 | CG40: 0 | CH40: 0 | CI40: 0 | CJ40: 0 | CK40: 0 | CL40: 0 | CM40: 0 | CN40: 0 | CO40: 0 | CP40: 2 | CQ40: 13 | CR40: 2 | CS40: 0 | CT40: 0 | CU40: 0 | CV40: 0 | CW40: 0 | CX40: 0 | CY40: 1 | CZ40: 17 | DA40: 12 | DB40: 106 | DC40: 180 | DD40: 109 | DE40: 68 | DF40: 13 | DG40: 13 | DH40: 76 | DI40: 0 | DJ40: 0 | DK40: 0 | DL40: 1 | DM40: 1 | DN40: 13 | DO40: 24 | DP40: 10 | DQ40: 9 | DR40: 0 | DS40: 0 | DT40: 26 | DU40: 0 | DV40: 0 | DW40: 0 | DX40: 1 | DY40: 0 | DZ40: 0 | EA40: 2 | EB40: 15 | EC40: 36 | ED40: 149 | EE40: 40 | EF40: 11 | EG40: 0 | EH40: 0 | EI40: 0 | EJ40: 0 | EK40: 0 | EL40: 0 | EM40: 1 | EN40: 3 | EO40: 10 | EP40: 19 | EQ40: 2 | ER40: 7 | ES40: 0 | ET40: 0 | EU40: 1 | EV40: 9 | EW40: 12 | EX40: 106 | EY40: 187 | EZ40: 138 | FA40: 113 | FB40: 192 | FC40: 56 | FD40: 86 | FE40: 0 | FF40: 0 | FG40: 0 | FH40: 1 | FI40: 1 | FJ40: 13 | FK40: 25 | FL40: 13 | FM40: 20 | FN40: 13 | FO40: 2 | FP40: 30
A41: 3 | B41: 1 | C41: 3 | D41: 11 | E41: 9 | F41: 4 | G41: 18 | H41: 22 | I41: 11 | J41: 14 | K41: 5 | L41: 10 | M41: 0 | N41: 3 | O41: 14 | P41: 9 | Q41: 1 | R41: 3 | S41: 14 | T41: 17 | U41: 14 | V41: 102 | W41: 209 | X41: 190 | Y41: 229 | Z41: 266 | AA41: 98 | AB41: 107 | AC41: 0 | AD41: 0 | AE41: 1 | AF41: 2 | AG41: 1 | AH41: 14 | AI41: 28 | AJ41: 12 | AK41: 13 | AL41: 9 | AM41: 11 | AN41: 46 | AO41: 1 | AP41: 3 | AQ41: 15 | AR41: 18 | AS41: 14 | AT41: 104 | AU41: 200 | AV41: 189 | AW41: 228 | AX41: 272 | AY41: 108 | AZ41: 106 | BA41: 1 | BB41: 3 | BC41: 14 | BD41: 18 | BE41: 14 | BF41: 103 | BG41: 210 | BH41: 191 | BI41: 232 | BJ41: 268 | BK41: 103 | BL41: 106 | BM41: 0 | BN41: 0 | BO41: 1 | BP41: 2 | BQ41: 1 | BR41: 14 | BS41: 28 | BT41: 12 | BU41: 13 | BV41: 9 | BW41: 11 | BX41: 45 | BY41: 0 | BZ41: 0 | CA41: 0 | CB41: 0 | CC41: 0 | CD41: 16 | CE41: 45 | CF41: 6 | CG41: 0 | CH41: 0 | CI41: 0 | CJ41: 0 | CK41: 0 | CL41: 0 | CM41: 0 | CN41: 0 | CO41: 0 | CP41: 6 | CQ41: 10 | CR41: 2 | CS41: 0 | CT41: 0 | CU41: 0 | CV41: 0 | CW41: 0 | CX41: 2 | CY41: 15 | CZ41: 17 | DA41: 13 | DB41: 110 | DC41: 187 | DD41: 142 | DE41: 137 | DF41: 43 | DG41: 11 | DH41: 93 | DI41: 0 | DJ41: 0 | DK41: 1 | DL41: 1 | DM41: 3 | DN41: 20 | DO41: 36 | DP41: 12 | DQ41: 19 | DR41: 3 | DS41: 0 | DT41: 48 | DU41: 0 | DV41: 0 | DW41: 1 | DX41: 0 | DY41: 0 | DZ41: 1 | EA41: 12 | EB41: 31 | EC41: 61 | ED41: 167 | EE41: 72 | EF41: 14 | EG41: 0 | EH41: 0 | EI41: 0 | EJ41: 0 | EK41: 0 | EL41: 0 | EM41: 1 | EN41: 7 | EO41: 11 | EP41: 22 | EQ41: 15 | ER41: 6 | ES41: 0 | ET41: 2 | EU41: 7 | EV41: 11 | EW41: 10 | EX41: 107 | EY41: 202 | EZ41: 180 | FA41: 209 | FB41: 243 | FC41: 84 | FD41: 103 | FE41: 0 | FF41: 0 | FG41: 0 | FH41: 1 | FI41: 3 | FJ41: 17 | FK41: 34 | FL41: 22 | FM41: 26 | FN41: 21 | FO41: 15 | FP41: 54
A42: 4 | B42: 2 | C42: 0 | D42: 23 | E42: 22 | F42: 8 | G42: 79 | H42: 181 | I42: 50 | J42: 14 | K42: 16 | L42: 7 | M42: 0 | N42: 4 | O42: 32 | P42: 25 | Q42: 1 | R42: 0 | S42: 29 | T42: 31 | U42: 32 | V42: 310 | W42: 806 | X42: 450 | Y42: 174 | Z42: 293 | AA42: 121 | AB42: 151 | AC42: 0 | AD42: 2 | AE42: 9 | AF42: 7 | AG42: 3 | AH42: 50 | AI42: 60 | AJ42: 19 | AK42: 20 | AL42: 31 | AM42: 9 | AN42: 75 | AO42: 2 | AP42: 0 | AQ42: 29 | AR42: 31 | AS42: 32 | AT42: 306 | AU42: 808 | AV42: 455 | AW42: 178 | AX42: 296 | AY42: 120 | AZ42: 151 | BA42: 1 | BB42: 0 | BC42: 29 | BD42: 31 | BE42: 32 | BF42: 311 | BG42: 810 | BH42: 452 | BI42: 175 | BJ42: 292 | BK42: 121 | BL42: 152 | BM42: 0 | BN42: 2 | BO42: 9 | BP42: 7 | BQ42: 3 | BR42: 51 | BS42: 61 | BT42: 19 | BU42: 21 | BV42: 30 | BW42: 10 | BX42: 75 | BY42: 0 | BZ42: 0 | CA42: 0 | CB42: 0 | CC42: 0 | CD42: 15 | CE42: 80 | CF42: 15 | CG42: 0 | CH42: 0 | CI42: 0 | CJ42: 2 | CK42: 0 | CL42: 0 | CM42: 0 | CN42: 0 | CO42: 0 | CP42: 4 | CQ42: 19 | CR42: 3 | CS42: 0 | CT42: 0 | CU42: 0 | CV42: 1 | CW42: 0 | CX42: 0 | CY42: 24 | CZ42: 30 | DA42: 30 | DB42: 313 | DC42: 793 | DD42: 419 | DE42: 136 | DF42: 76 | DG42: 25 | DH42: 130 | DI42: 0 | DJ42: 1 | DK42: 6 | DL42: 7 | DM42: 4 | DN42: 64 | DO42: 73 | DP42: 22 | DQ42: 23 | DR42: 10 | DS42: 2 | DT42: 70 | DU42: 0 | DV42: 0 | DW42: 0 | DX42: 0 | DY42: 0 | DZ42: 3 | EA42: 10 | EB42: 23 | EC42: 24 | ED42: 160 | EE42: 88 | EF42: 22 | EG42: 0 | EH42: 0 | EI42: 0 | EJ42: 1 | EK42: 0 | EL42: 0 | EM42: 1 | EN42: 3 | EO42: 8 | EP42: 25 | EQ42: 8 | ER42: 10 | ES42: 0 | ET42: 0 | EU42: 4 | EV42: 10 | EW42: 26 | EX42: 289 | EY42: 744 | EZ42: 409 | FA42: 163 | FB42: 261 | FC42: 114 | FD42: 147 | FE42: 0 | FF42: 1 | FG42: 6 | FH42: 6 | FI42: 5 | FJ42: 65 | FK42: 80 | FL42: 20 | FM42: 27 | FN42: 34 | FO42: 11 | FP42: 75
A43: 5 | B43: 0 | C43: 0 | D43: 19 | E43: 8 | F43: 7 | G43: 33 | H43: 32 | I43: 15 | J43: 22 | K43: 10 | L43: 5 | M43: 0 | N43: 1 | O43: 14 | P43: 15 | Q43: 0 | R43: 0 | S43: 22 | T43: 15 | U43: 20 | V43: 244 | W43: 197 | X43: 157 | Y43: 110 | Z43: 176 | AA43: 61 | AB43: 85 | AC43: 0 | AD43: 0 | AE43: 1 | AF43: 2 | AG43: 6 | AH43: 20 | AI43: 28 | AJ43: 21 | AK43: 23 | AL43: 25 | AM43: 8 | AN43: 61 | AO43: 0 | AP43: 0 | AQ43: 23 | AR43: 15 | AS43: 22 | AT43: 246 | AU43: 198 | AV43: 154 | AW43: 112 | AX43: 181 | AY43: 62 | AZ43: 84 | BA43: 0 | BB43: 0 | BC43: 23 | BD43: 15 | BE43: 20 | BF43: 247 | BG43: 195 | BH43: 158 | BI43: 109 | BJ43: 171 | BK43: 61 | BL43: 85 | BM43: 0 | BN43: 0 | BO43: 1 | BP43: 2 | BQ43: 6 | BR43: 20 | BS43: 29 | BT43: 21 | BU43: 23 | BV43: 25 | BW43: 8 | BX43: 60 | BY43: 0 | BZ43: 0 | CA43: 0 | CB43: 0 | CC43: 2 | CD43: 14 | CE43: 31 | CF43: 2 | CG43: 0 | CH43: 0 | CI43: 0 | CJ43: 0 | CK43: 0 | CL43: 0 | CM43: 0 | CN43: 0 | CO43: 0 | CP43: 7 | CQ43: 9 | CR43: 0 | CS43: 0 | CT43: 0 | CU43: 0 | CV43: 0 | CW43: 0 | CX43: 0 | CY43: 19 | CZ43: 12 | DA43: 19 | DB43: 248 | DC43: 191 | DD43: 107 | DE43: 80 | DF43: 21 | DG43: 5 | DH43: 80 | DI43: 0 | DJ43: 0 | DK43: 1 | DL43: 1 | DM43: 8 | DN43: 30 | DO43: 34 | DP43: 20 | DQ43: 26 | DR43: 10 | DS43: 3 | DT43: 62 | DU43: 0 | DV43: 0 | DW43: 0 | DX43: 0 | DY43: 0 | DZ43: 0 | EA43: 3 | EB43: 42 | EC43: 28 | ED43: 126 | EE43: 49 | EF43: 9 | EG43: 0 | EH43: 0 | EI43: 0 | EJ43: 0 | EK43: 0 | EL43: 0 | EM43: 1 | EN43: 3 | EO43: 0 | EP43: 23 | EQ43: 6 | ER43: 2 | ES43: 0 | ET43: 0 | EU43: 4 | EV43: 5 | EW43: 16 | EX43: 228 | EY43: 193 | EZ43: 149 | FA43: 115 | FB43: 163 | FC43: 57 | FD43: 85 | FE43: 0 | FF43: 0 | FG43: 0 | FH43: 0 | FI43: 7 | FJ43: 28 | FK43: 36 | FL43: 24 | FM43: 26 | FN43: 31 | FO43: 10 | FP43: 65
A44: 6 | B44: 0 | C44: 3 | D44: 6 | E44: 27 | F44: 21 | G44: 49 | H44: 137 | I44: 19 | J44: 22 | K44: 21 | L44: 22 | M44: 0 | N44: 2 | O44: 19 | P44: 19 | Q44: 0 | R44: 2 | S44: 6 | T44: 33 | U44: 39 | V44: 140 | W44: 346 | X44: 126 | Y44: 135 | Z44: 245 | AA44: 100 | AB44: 115 | AC44: 0 | AD44: 1 | AE44: 2 | AF44: 2 | AG44: 6 | AH44: 53 | AI44: 163 | AJ44: 24 | AK44: 32 | AL44: 33 | AM44: 12 | AN44: 54 | AO44: 0 | AP44: 2 | AQ44: 7 | AR44: 35 | AS44: 39 | AT44: 140 | AU44: 345 | AV44: 127 | AW44: 136 | AX44: 255 | AY44: 101 | AZ44: 112 | BA44: 0 | BB44: 2 | BC44: 7 | BD44: 34 | BE44: 39 | BF44: 140 | BG44: 344 | BH44: 126 | BI44: 137 | BJ44: 249 | BK44: 102 | BL44: 116 | BM44: 0 | BN44: 1 | BO44: 2 | BP44: 2 | BQ44: 6 | BR44: 54 | BS44: 164 | BT44: 24 | BU44: 31 | BV44: 32 | BW44: 12 | BX44: 55 | BY44: 0 | BZ44: 0 | CA44: 0 | CB44: 0 | CC44: 4 | CD44: 40 | CE44: 175 | CF44: 4 | CG44: 1 | CH44: 0 | CI44: 0 | CJ44: 0 | CK44: 0 | CL44: 0 | CM44: 0 | CN44: 0 | CO44: 1 | CP44: 11 | CQ44: 43 | CR44: 0 | CS44: 0 | CT44: 0 | CU44: 0 | CV44: 0 | CW44: 0 | CX44: 1 | CY44: 7 | CZ44: 32 | DA44: 37 | DB44: 142 | DC44: 342 | DD44: 76 | DE44: 81 | DF44: 50 | DG44: 13 | DH44: 102 | DI44: 0 | DJ44: 0 | DK44: 2 | DL44: 3 | DM44: 8 | DN44: 66 | DO44: 180 | DP44: 25 | DQ44: 28 | DR44: 14 | DS44: 5 | DT44: 54 | DU44: 0 | DV44: 0 | DW44: 0 | DX44: 1 | DY44: 1 | DZ44: 3 | EA44: 4 | EB44: 43 | EC44: 37 | ED44: 158 | EE44: 45 | EF44: 9 | EG44: 0 | EH44: 0 | EI44: 0 | EJ44: 0 | EK44: 0 | EL44: 1 | EM44: 1 | EN44: 22 | EO44: 12 | EP44: 21 | EQ44: 8 | ER44: 9 | ES44: 0 | ET44: 0 | EU44: 2 | EV44: 16 | EW44: 31 | EX44: 137 | EY44: 335 | EZ44: 126 | FA44: 129 | FB44: 243 | FC44: 65 | FD44: 107 | FE44: 0 | FF44: 0 | FG44: 1 | FH44: 2 | FI44: 8 | FJ44: 60 | FK44: 211 | FL44: 55 | FM44: 43 | FN44: 34 | FO44: 15 | FP44: 59
A45: 7 | B45: 0 | C45: 1 | D45: 10 | E45: 16 | F45: 8 | G45: 36 | H45: 94 | I45: 25 | J45: 18 | K45: 16 | L45: 11 | M45: 0 | N45: 3 | O45: 13 | P45: 11 | Q45: 3 | R45: 1 | S45: 13 | T45: 21 | U45: 12 | V45: 154 | W45: 364 | X45: 325 | Y45: 130 | Z45: 230 | AA45: 77 | AB45: 112 | AC45: 0 | AD45: 0 | AE45: 0 | AF45: 5 | AG45: 6 | AH45: 35 | AI45: 73 | AJ45: 28 | AK45: 26 | AL45: 37 | AM45: 16 | AN45: 65 | AO45: 2 | AP45: 1 | AQ45: 13 | AR45: 21 | AS45: 12 | AT45: 154 | AU45: 372 | AV45: 326 | AW45: 134 | AX45: 239 | AY45: 72 | AZ45: 117 | BA45: 3 | BB45: 1 | BC45: 13 | BD45: 21 | BE45: 12 | BF45: 155 | BG45: 363 | BH45: 323 | BI45: 134 | BJ45: 230 | BK45: 76 | BL45: 113 | BM45: 0 | BN45: 0 | BO45: 0 | BP45: 5 | BQ45: 6 | BR45: 35 | BS45: 74 | BT45: 29 | BU45: 27 | BV45: 37 | BW45: 15 | BX45: 65 | BY45: 0 | BZ45: 0 | CA45: 0 | CB45: 0 | CC45: 0 | CD45: 27 | CE45: 120 | CF45: 12 | CG45: 0 | CH45: 0 | CI45: 0 | CJ45: 0 | CK45: 0 | CL45: 0 | CM45: 0 | CN45: 0 | CO45: 0 | CP45: 11 | CQ45: 52 | CR45: 6 | CS45: 0 | CT45: 0 | CU45: 0 | CV45: 0 | CW45: 0 | CX45: 1 | CY45: 11 | CZ45: 20 | DA45: 14 | DB45: 152 | DC45: 364 | DD45: 307 | DE45: 99 | DF45: 45 | DG45: 7 | DH45: 105 | DI45: 0 | DJ45: 0 | DK45: 0 | DL45: 6 | DM45: 6 | DN45: 35 | DO45: 77 | DP45: 22 | DQ45: 22 | DR45: 6 | DS45: 1 | DT45: 64 | DU45: 0 | DV45: 0 | DW45: 1 | DX45: 1 | DY45: 0 | DZ45: 11 | EA45: 7 | EB45: 13 | EC45: 28 | ED45: 162 | EE45: 59 | EF45: 2 | EG45: 0 | EH45: 0 | EI45: 0 | EJ45: 0 | EK45: 0 | EL45: 0 | EM45: 2 | EN45: 5 | EO45: 8 | EP45: 36 | EQ45: 14 | ER45: 5 | ES45: 0 | ET45: 0 | EU45: 8 | EV45: 10 | EW45: 10 | EX45: 148 | EY45: 368 | EZ45: 327 | FA45: 119 | FB45: 206 | FC45: 66 | FD45: 107 | FE45: 0 | FF45: 0 | FG45: 0 | FH45: 2 | FI45: 6 | FJ45: 62 | FK45: 86 | FL45: 29 | FM45: 33 | FN45: 40 | FO45: 18 | FP45: 66
A46: 8 | B46: 0 | C46: 2 | D46: 6 | E46: 11 | F46: 7 | G46: 24 | H46: 93 | I46: 13 | J46: 6 | K46: 10 | L46: 4 | M46: 0 | N46: 0 | O46: 14 | P46: 16 | Q46: 1 | R46: 2 | S46: 13 | T46: 15 | U46: 13 | V46: 70 | W46: 244 | X46: 267 | Y46: 136 | Z46: 203 | AA46: 95 | AB46: 113 | AC46: 0 | AD46: 0 | AE46: 2 | AF46: 4 | AG46: 1 | AH46: 27 | AI46: 152 | AJ46: 50 | AK46: 21 | AL46: 33 | AM46: 16 | AN46: 52 | AO46: 1 | AP46: 2 | AQ46: 12 | AR46: 18 | AS46: 14 | AT46: 71 | AU46: 236 | AV46: 270 | AW46: 138 | AX46: 204 | AY46: 93 | AZ46: 118 | BA46: 1 | BB46: 2 | BC46: 12 | BD46: 16 | BE46: 14 | BF46: 73 | BG46: 246 | BH46: 270 | BI46: 137 | BJ46: 208 | BK46: 96 | BL46: 113 | BM46: 0 | BN46: 0 | BO46: 3 | BP46: 4 | BQ46: 1 | BR46: 27 | BS46: 153 | BT46: 50 | BU46: 22 | BV46: 32 | BW46: 17 | BX46: 53 | BY46: 0 | BZ46: 0 | CA46: 0 | CB46: 0 | CC46: 0 | CD46: 1 | CE46: 62 | CF46: 0 | CG46: 1 | CH46: 0 | CI46: 0 | CJ46: 0 | CK46: 0 | CL46: 0 | CM46: 0 | CN46: 0 | CO46: 0 | CP46: 1 | CQ46: 28 | CR46: 0 | CS46: 0 | CT46: 0 | CU46: 0 | CV46: 0 | CW46: 0 | CX46: 1 | CY46: 10 | CZ46: 18 | DA46: 15 | DB46: 77 | DC46: 269 | DD46: 258 | DE46: 84 | DF46: 35 | DG46: 11 | DH46: 92 | DI46: 0 | DJ46: 0 | DK46: 3 | DL46: 4 | DM46: 2 | DN46: 30 | DO46: 146 | DP46: 47 | DQ46: 24 | DR46: 5 | DS46: 0 | DT46: 56 | DU46: 0 | DV46: 0 | DW46: 0 | DX46: 0 | DY46: 1 | DZ46: 5 | EA46: 9 | EB46: 15 | EC46: 38 | ED46: 149 | EE46: 77 | EF46: 19 | EG46: 0 | EH46: 0 | EI46: 0 | EJ46: 0 | EK46: 0 | EL46: 2 | EM46: 10 | EN46: 6 | EO46: 7 | EP46: 51 | EQ46: 18 | ER46: 5 | ES46: 0 | ET46: 0 | EU46: 7 | EV46: 14 | EW46: 11 | EX46: 72 | EY46: 263 | EZ46: 269 | FA46: 132 | FB46: 195 | FC46: 92 | FD46: 113 | FE46: 0 | FF46: 0 | FG46: 1 | FH46: 1 | FI46: 2 | FJ46: 29 | FK46: 189 | FL46: 65 | FM46: 32 | FN46: 46 | FO46: 24 | FP46: 58
A47: 9 | B47: 0 | C47: 0 | D47: 5 | E47: 16 | F47: 17 | G47: 91 | H47: 198 | I47: 58 | J47: 13 | K47: 15 | L47: 11 | M47: 0 | N47: 3 | O47: 17 | P47: 16 | Q47: 0 | R47: 0 | S47: 6 | T47: 22 | U47: 24 | V47: 84 | W47: 190 | X47: 104 | Y47: 122 | Z47: 219 | AA47: 88 | AB47: 88 | AC47: 0 | AD47: 0 | AE47: 2 | AF47: 9 | AG47: 7 | AH47: 103 | AI47: 349 | AJ47: 69 | AK47: 32 | AL47: 37 | AM47: 17 | AN47: 56 | AO47: 0 | AP47: 0 | AQ47: 6 | AR47: 20 | AS47: 25 | AT47: 84 | AU47: 179 | AV47: 103 | AW47: 114 | AX47: 222 | AY47: 90 | AZ47: 88 | BA47: 0 | BB47: 0 | BC47: 6 | BD47: 23 | BE47: 26 | BF47: 85 | BG47: 188 | BH47: 104 | BI47: 122 | BJ47: 221 | BK47: 88 | BL47: 90 | BM47: 0 | BN47: 0 | BO47: 2 | BP47: 9 | BQ47: 6 | BR47: 105 | BS47: 354 | BT47: 67 | BU47: 31 | BV47: 37 | BW47: 18 | BX47: 57 | BY47: 0 | BZ47: 0 | CA47: 0 | CB47: 0 | CC47: 0 | CD47: 47 | CE47: 200 | CF47: 19 | CG47: 12 | CH47: 3 | CI47: 0 | CJ47: 0 | CK47: 0 | CL47: 0 | CM47: 0 | CN47: 0 | CO47: 0 | CP47: 15 | CQ47: 72 | CR47: 5 | CS47: 5 | CT47: 2 | CU47: 0 | CV47: 0 | CW47: 0 | CX47: 0 | CY47: 4 | CZ47: 21 | DA47: 24 | DB47: 84 | DC47: 173 | DD47: 81 | DE47: 88 | DF47: 14 | DG47: 6 | DH47: 78 | DI47: 0 | DJ47: 0 | DK47: 2 | DL47: 8 | DM47: 9 | DN47: 109 | DO47: 353 | DP47: 64 | DQ47: 29 | DR47: 15 | DS47: 1 | DT47: 57 | DU47: 0 | DV47: 0 | DW47: 0 | DX47: 0 | DY47: 1 | DZ47: 2 | EA47: 5 | EB47: 14 | EC47: 20 | ED47: 163 | EE47: 64 | EF47: 9 | EG47: 0 | EH47: 0 | EI47: 0 | EJ47: 0 | EK47: 0 | EL47: 1 | EM47: 2 | EN47: 7 | EO47: 8 | EP47: 36 | EQ47: 18 | ER47: 4 | ES47: 0 | ET47: 0 | EU47: 0 | EV47: 16 | EW47: 23 | EX47: 85 | EY47: 184 | EZ47: 96 | FA47: 121 | FB47: 195 | FC47: 73 | FD47: 88 | FE47: 0 | FF47: 0 | FG47: 2 | FH47: 6 | FI47: 8 | FJ47: 111 | FK47: 350 | FL47: 69 | FM47: 36 | FN47: 53 | FO47: 15 | FP47: 59
A48: 10 | B48: 0 | C48: 10 | D48: 12 | E48: 11 | F48: 9 | G48: 141 | H48: 199 | I48: 81 | J48: 15 | K48: 16 | L48: 12 | M48: 0 | N48: 2 | O48: 14 | P48: 11 | Q48: 0 | R48: 10 | S48: 14 | T48: 14 | U48: 20 | V48: 125 | W48: 216 | X48: 87 | Y48: 144 | Z48: 211 | AA48: 79 | AB48: 86 | AC48: 0 | AD48: 0 | AE48: 3 | AF48: 10 | AG48: 5 | AH48: 149 | AI48: 304 | AJ48: 124 | AK48: 38 | AL48: 44 | AM48: 14 | AN48: 36 | AO48: 0 | AP48: 10 | AQ48: 14 | AR48: 15 | AS48: 20 | AT48: 117 | AU48: 184 | AV48: 83 | AW48: 137 | AX48: 200 | AY48: 73 | AZ48: 77 | BA48: 0 | BB48: 10 | BC48: 15 | BD48: 14 | BE48: 20 | BF48: 128 | BG48: 217 | BH48: 87 | BI48: 144 | BJ48: 215 | BK48: 80 | BL48: 87 | BM48: 0 | BN48: 0 | BO48: 3 | BP48: 10 | BQ48: 5 | BR48: 149 | BS48: 304 | BT48: 124 | BU48: 38 | BV48: 45 | BW48: 12 | BX48: 36 | BY48: 0 | BZ48: 0 | CA48: 0 | CB48: 0 | CC48: 0 | CD48: 44 | CE48: 70 | CF48: 7 | CG48: 0 | CH48: 0 | CI48: 0 | CJ48: 0 | CK48: 0 | CL48: 0 | CM48: 0 | CN48: 0 | CO48: 0 | CP48: 7 | CQ48: 18 | CR48: 2 | CS48: 0 | CT48: 0 | CU48: 0 | CV48: 0 | CW48: 0 | CX48: 0 | CY48: 13 | CZ48: 15 | DA48: 20 | DB48: 126 | DC48: 225 | DD48: 79 | DE48: 96 | DF48: 34 | DG48: 6 | DH48: 79 | DI48: 0 | DJ48: 0 | DK48: 3 | DL48: 10 | DM48: 6 | DN48: 153 | DO48: 344 | DP48: 132 | DQ48: 38 | DR48: 4 | DS48: 1 | DT48: 36 | DU48: 0 | DV48: 0 | DW48: 1 | DX48: 0 | DY48: 0 | DZ48: 2 | EA48: 4 | EB48: 1 | EC48: 30 | ED48: 145 | EE48: 62 | EF48: 4 | EG48: 0 | EH48: 0 | EI48: 0 | EJ48: 0 | EK48: 0 | EL48: 2 | EM48: 3 | EN48: 0 | EO48: 10 | EP48: 45 | EQ48: 14 | ER48: 3 | ES48: 0 | ET48: 0 | EU48: 12 | EV48: 12 | EW48: 18 | EX48: 129 | EY48: 227 | EZ48: 84 | FA48: 138 | FB48: 202 | FC48: 76 | FD48: 85 | FE48: 0 | FF48: 0 | FG48: 3 | FH48: 7 | FI48: 5 | FJ48: 129 | FK48: 334 | FL48: 132 | FM48: 44 | FN48: 46 | FO48: 15 | FP48: 38
A49: 11 | B49: 0 | C49: 2 | D49: 7 | E49: 9 | F49: 6 | G49: 124 | H49: 295 | I49: 154 | J49: 18 | K49: 15 | L49: 7 | M49: 0 | N49: 0 | O49: 17 | P49: 16 | Q49: 1 | R49: 1 | S49: 7 | T49: 12 | U49: 15 | V49: 91 | W49: 103 | X49: 93 | Y49: 100 | Z49: 185 | AA49: 69 | AB49: 94 | AC49: 0 | AD49: 7 | AE49: 2 | AF49: 6 | AG49: 2 | AH49: 143 | AI49: 351 | AJ49: 248 | AK49: 36 | AL49: 48 | AM49: 14 | AN49: 54 | AO49: 0 | AP49: 2 | AQ49: 6 | AR49: 11 | AS49: 14 | AT49: 76 | AU49: 86 | AV49: 87 | AW49: 93 | AX49: 182 | AY49: 67 | AZ49: 87 | BA49: 1 | BB49: 1 | BC49: 7 | BD49: 12 | BE49: 15 | BF49: 91 | BG49: 102 | BH49: 94 | BI49: 99 | BJ49: 187 | BK49: 71 | BL49: 92 | BM49: 0 | BN49: 7 | BO49: 2 | BP49: 6 | BQ49: 2 | BR49: 141 | BS49: 349 | BT49: 248 | BU49: 35 | BV49: 48 | BW49: 13 | BX49: 54 | BY49: 0 | BZ49: 0 | CA49: 0 | CB49: 0 | CC49: 0 | CD49: 25 | CE49: 283 | CF49: 10 | CG49: 0 | CH49: 0 | CI49: 0 | CJ49: 0 | CK49: 0 | CL49: 0 | CM49: 0 | CN49: 0 | CO49: 0 | CP49: 5 | CQ49: 78 | CR49: 5 | CS49: 0 | CT49: 0 | CU49: 0 | CV49: 0 | CW49: 0 | CX49: 0 | CY49: 6 | CZ49: 12 | DA49: 14 | DB49: 93 | DC49: 109 | DD49: 82 | DE49: 61 | DF49: 24 | DG49: 4 | DH49: 88 | DI49: 0 | DJ49: 0 | DK49: 1 | DL49: 5 | DM49: 3 | DN49: 156 | DO49: 357 | DP49: 239 | DQ49: 38 | DR49: 12 | DS49: 1 | DT49: 56 | DU49: 0 | DV49: 0 | DW49: 1 | DX49: 0 | DY49: 1 | DZ49: 2 | EA49: 3 | EB49: 3 | EC49: 27 | ED49: 141 | EE49: 53 | EF49: 1 | EG49: 0 | EH49: 0 | EI49: 0 | EJ49: 1 | EK49: 0 | EL49: 3 | EM49: 14 | EN49: 6 | EO49: 3 | EP49: 37 | EQ49: 15 | ER49: 3 | ES49: 0 | ET49: 0 | EU49: 4 | EV49: 7 | EW49: 10 | EX49: 92 | EY49: 109 | EZ49: 94 | FA49: 98 | FB49: 175 | FC49: 63 | FD49: 90 | FE49: 0 | FF49: 0 | FG49: 1 | FH49: 6 | FI49: 4 | FJ49: 162 | FK49: 310 | FL49: 218 | FM49: 40 | FN49: 54 | FO49: 17 | FP49: 56
A50: Total general | B50: 6 | C50: 30 | D50: 114 | E50: 149 | F50: 98 | G50: 627 | H50: 1294 | I50: 459 | J50: 161 | K50: 147 | L50: 105 | M50: 0 | N50: 20 | O50: 164 | P50: 153 | Q50: 11 | R50: 28 | S50: 143 | T50: 215 | U50: 219 | V50: 1566 | W50: 3108 | X50: 2160 | Y50: 1609 | Z50: 2563 | AA50: 962 | AB50: 1195 | AC50: 0 | AD50: 10 | AE50: 23 | AF50: 48 | AG50: 39 | AH50: 616 | AI50: 1545 | AJ50: 615 | AK50: 260 | AL50: 313 | AM50: 122 | AN50: 528 | AO50: 10 | AP50: 29 | AQ50: 145 | AR50: 218 | AS50: 225 | AT50: 1553 | AU50: 3049 | AV50: 2154 | AW50: 1604 | AX50: 2587 | AY50: 964 | AZ50: 1187 | BA50: 11 | BB50: 28 | BC50: 145 | BD50: 219 | BE50: 223 | BF50: 1578 | BG50: 3109 | BH50: 2165 | BI50: 1616 | BJ50: 2577 | BK50: 970 | BL50: 1200 | BM50: 0 | BN50: 10 | BO50: 24 | BP50: 48 | BQ50: 38 | BR50: 618 | BS50: 1553 | BT50: 614 | BU50: 260 | BV50: 311 | BW50: 121 | BX50: 526 | BY50: 0 | BZ50: 0 | CA50: 0 | CB50: 0 | CC50: 8 | CD50: 256 | CE50: 1182 | CF50: 98 | CG50: 15 | CH50: 3 | CI50: 0 | CJ50: 4 | CK50: 0 | CL50: 0 | CM50: 0 | CN50: 0 | CO50: 1 | CP50: 72 | CQ50: 360 | CR50: 28 | CS50: 5 | CT50: 2 | CU50: 0 | CV50: 3 | CW50: 0 | CX50: 6 | CY50: 125 | CZ50: 210 | DA50: 216 | DB50: 1599 | DC50: 3095 | DD50: 1811 | DE50: 1046 | DF50: 393 | DG50: 125 | DH50: 1053 | DI50: 0 | DJ50: 1 | DK50: 20 | DL50: 46 | DM50: 52 | DN50: 696 | DO50: 1658 | DP50: 610 | DQ50: 268 | DR50: 79 | DS50: 15 | DT50: 536 | DU50: 0 | DV50: 0 | DW50: 4 | DX50: 3 | DY50: 4 | DZ50: 30 | EA50: 72 | EB50: 227 | EC50: 378 | ED50: 1754 | EE50: 669 | EF50: 125 | EG50: 0 | EH50: 0 | EI50: 0 | EJ50: 2 | EK50: 0 | EL50: 9 | EM50: 38 | EN50: 67 | EO50: 84 | EP50: 333 | EQ50: 121 | ER50: 57 | ES50: 0 | ET50: 3 | EU50: 55 | EV50: 121 | EW50: 181 | EX50: 1538 | EY50: 3081 | EZ50: 2065 | FA50: 1530 | FB50: 2383 | FC50: 840 | FD50: 1161 | FE50: 0 | FF50: 1 | FG50: 14 | FH50: 32 | FI50: 51 | FJ50: 694 | FK50: 1689 | FL50: 667 | FM50: 346 | FN50: 387 | FO50: 146 | FP50: 568
A53: Salud Bucal 2
A54: Anio | B54: 2024
A55: UE | B55: (Todas)
A56: Red | B56: LA CONVENCION
A57: MicroRed | B57: (Todas)
A58: EESS | B58: (Todas)
A59: Provincia | B59: (Todas)
A60: Distrito | B60: (Todas)
A62: Etiquetas de fila | B62: Suma de B_Destartraje_CT_0_28d | C62: Suma de B_Destartraje_CT_29_5m | D62: Suma de B_Destartraje_CT_6_11m | E62: Suma de B_Destartraje_CT_1a | F62: Suma de B_Destartraje_CT_2a | G62: Suma de B_Destartraje_CT_3_5a | H62: Suma de B_Destartraje_CT_6_11a | I62: Suma de B_Destartraje_CT_Adolesc | J62: Suma de B_Destartraje_CT_Joven | K62: Suma de B_Destartraje_CT_Adulto | L62: Suma de B_Destartraje_CT_AdultoM | M62: Suma de B_Destartraje_CT_Gest | N62: Suma de B_Debridacion_Bucoden_0_28d | O62: Suma de B_Debridacion_Bucoden_29_5m | P62: Suma de B_Debridacion_Bucoden_6_11m | Q62: Suma de B_Debridacion_Bucoden_1a | R62: Suma de B_Debridacion_Bucoden_2a | S62: Suma de B_Debridacion_Bucoden_3_5a | T62: Suma de B_Debridacion_Bucoden_6_11a | U62: Suma de B_Debridacion_Bucoden_Adolesc | V62: Suma de B_Debridacion_Bucoden_Joven | W62: Suma de B_Debridacion_Bucoden_Adulto | X62: Suma de B_Debridacion_Bucoden_AdultoM | Y62: Suma de B_Debridacion_Bucoden_Gest | Z62: Suma de B_Consulta_Estomato_0_28d | AA62: Suma de B_Consulta_Estomato_29_5m | AB62: Suma de B_Consulta_Estomato_6_11m | AC62: Suma de B_Consulta_Estomato_1a | AD62: Suma de B_Consulta_Estomato_2a | AE62: Suma de B_Consulta_Estomato_3_5a | AF62: Suma de B_Consulta_Estomato_6_11a | AG62: Suma de B_Consulta_Estomato_Adolesc | AH62: Suma de B_Consulta_Estomato_Joven | AI62: Suma de B_Consulta_Estomato_Adulto | AJ62: Suma de B_Consulta_Estomato_AdultoM | AK62: Suma de B_Consulta_Estomato_Gest | AL62: Suma de B_Exodoncia_Simple_I_0_28d | AM62: Suma de B_Exodoncia_Simple_I_29_5m | AN62: Suma de B_Exodoncia_Simple_I_6_11m | AO62: Suma de B_Exodoncia_Simple_I_1a | AP62: Suma de B_Exodoncia_Simple_I_2a | AQ62: Suma de B_Exodoncia_Simple_I_3_5a | AR62: Suma de B_Exodoncia_Simple_I_6_11a | AS62: Suma de B_Exodoncia_Simple_I_Adolesc | AT62: Suma de B_Exodoncia_Simple_I_Joven | AU62: Suma de B_Exodoncia_Simple_I_Adulto | AV62: Suma de B_Exodoncia_Simple_I_AdultoM | AW62: Suma de B_Exodoncia_Simple_I_Gest | AX62: Suma de B_Ionomero_Vidrio_I_0_28d | AY62: Suma de B_Ionomero_Vidrio_I_29_5m | AZ62: Suma de B_Ionomero_Vidrio_I_6_11m | BA62: Suma de B_Ionomero_Vidrio_I_1a | BB62: Suma de B_Ionomero_Vidrio_I_2a | BC62: Suma de B_Ionomero_Vidrio_I_3_5a | BD62: Suma de B_Ionomero_Vidrio_I_6_11a | BE62: Suma de B_Ionomero_Vidrio_I_Adolesc | BF62: Suma de B_Ionomero_Vidrio_I_Joven | BG62: Suma de B_Ionomero_Vidrio_I_Adulto | BH62: Suma de B_Ionomero_Vidrio_I_AdultoM | BI62: Suma de B_Ionomero_Vidrio_I_Gest | BJ62: Suma de B_Resina_I_0_28d | BK62: Suma de B_Resina_I_29_5m | BL62: Suma de B_Resina_I_6_11m | BM62: Suma de B_Resina_I_1a | BN62: Suma de B_Resina_I_2a | BO62: Suma de B_Resina_I_3_5a | BP62: Suma de B_Resina_I_6_11a | BQ62: Suma de B_Resina_I_Adolesc | BR62: Suma de B_Resina_I_Joven | BS62: Suma de B_Resina_I_Adulto | BT62: Suma de B_Resina_I_AdultoM | BU62: Suma de B_Resina_I_Gest | BV62: Suma de B_Pulpotomia_I_6_11m | BW62: Suma de B_Pulpotomia_I_1a | BX62: Suma de B_Pulpotomia_I_2a | BY62: Suma de B_Pulpotomia_I_3_5a | BZ62: Suma de B_Pulpotomia_I_6_11a | CA62: Suma de B_Pulpotomia_I_Adolesc | CB62: Suma de B_Pulpotomia_I_Joven | CC62: Suma de B_Pulpotomia_I_Adulto | CD62: Suma de B_Pulpotomia_I_AdultoM | CE62: Suma de B_Pulpotomia_I_Gest | CF62: Suma de B_TEndodontica_IA_6_11m | CG62: Suma de B_TEndodontica_IA_1a | CH62: Suma de B_TEndodontica_IA_2a | CI62: Suma de B_TEndodontica_IA_3_5a | CJ62: Suma de B_TEndodontica_IA_6_11a | CK62: Suma de B_TEndodontica_IA_Adolesc | CL62: Suma de B_TEndodontica_IA_Joven | CM62: Suma de B_TEndodontica_IA_Adulto | CN62: Suma de B_TEndodontica_IA_AdultoM | CO62: Suma de B_TEndodontica_IA_g | CP62: Suma de B_TEndodontica_CA_6_11m | CQ62: Suma de B_TEndodontica_CA_1a | CR62: Suma de B_TEndodontica_CA_2a | CS62: Suma de B_TEndodontica_CA_3_5a | CT62: Suma de B_TEndodontica_CA_6_11a | CU62: Suma de B_TEndodontica_CA_Adolesc | CV62: Suma de B_TEndodontica_CA_Joven | CW62: Suma de B_TEndodontica_CA_Adulto | CX62: Suma de B_TEndodontica_CA_AdultoM | CY62: Suma de B_TEndodontica_CA_g | CZ62: Suma de B_TEndodontica_TA_6_11m | DA62: Suma de B_TEndodontica_TA_1a | DB62: Suma de B_TEndodontica_TA_2a | DC62: Suma de B_TEndodontica_TA_3_5a | DD62: Suma de B_TEndodontica_TA_6_11a | DE62: Suma de B_TEndodontica_TA_Adolesc | DF62: Suma de B_TEndodontica_TA_Joven | DG62: Suma de B_TEndodontica_TA_Adulto | DH62: Suma de B_TEndodontica_TA_AdultoM | DI62: Suma de B_TEndodontica_TA_g | DJ62: Suma de B_OrtopediaMaxilar_ia_6_11m | DK62: Suma de B_OrtopediaMaxilar_ia_1a | DL62: Suma de B_OrtopediaMaxilar_ia_2a | DM62: Suma de B_OrtopediaMaxilar_ia_3_5a | DN62: Suma de B_OrtopediaMaxilar_ia_6_11a | DO62: Suma de B_OrtopediaMaxilar_ia_Adolesc | DP62: Suma de B_OrtopediaMaxilar_ia_Joven | DQ62: Suma de B_OrtopediaMaxilar_ia_Adulto | DR62: Suma de B_OrtopediaMaxilar_ia_AdultoM | DS62: Suma de B_OrtopediaMaxilar_ia_g | DT62: Suma de B_OrtopediaMaxilar_in_6_11m | DU62: Suma de B_OrtopediaMaxilar_in_1a | DV62: Suma de B_OrtopediaMaxilar_in_2a | DW62: Suma de B_OrtopediaMaxilar_in_3_5a | DX62: Suma de B_OrtopediaMaxilar_in_6_11a | DY62: Suma de B_OrtopediaMaxilar_in_Adolesc | DZ62: Suma de B_OrtopediaMaxilar_in_Joven | EA62: Suma de B_OrtopediaMaxilar_in_Adulto | EB62: Suma de B_OrtopediaMaxilar_in_AdultoM | EC62: Suma de B_OrtopediaMaxilar_in_g | ED62: Suma de B_OrtopediaMaxilar_ca_6_11m | EE62: Suma de B_OrtopediaMaxilar_ca_1a | EF62: Suma de B_OrtopediaMaxilar_ca_2a | EG62: Suma de B_OrtopediaMaxilar_ca_3_5a | EH62: Suma de B_OrtopediaMaxilar_ca_6_11a | EI62: Suma de B_OrtopediaMaxilar_ca_Adolesc | EJ62: Suma de B_OrtopediaMaxilar_ca_Joven | EK62: Suma de B_OrtopediaMaxilar_ca_Adulto | EL62: Suma de B_OrtopediaMaxilar_ca_AdultoM | EM62: Suma de B_OrtopediaMaxilar_ca_g | EN62: Suma de B_OrtopediaMaxilar_ta_6_11m | EO62: Suma de B_OrtopediaMaxilar_ta_1a | EP62: Suma de B_OrtopediaMaxilar_ta_2a | EQ62: Suma de B_OrtopediaMaxilar_ta_3_5a | ER62: Suma de B_OrtopediaMaxilar_ta_6_11a | ES62: Suma de B_OrtopediaMaxilar_ta_Adolesc | ET62: Suma de B_OrtopediaMaxilar_ta_Joven | EU62: Suma de B_OrtopediaMaxilar_ta_Adulto | EV62: Suma de B_OrtopediaMaxilar_ta_AdultoM | EW62: Suma de B_OrtopediaMaxilar_ta_g | EX62: Suma de B_RehabProtesica_ip_3_5a | EY62: Suma de B_RehabProtesica_ip_6_11a | EZ62: Suma de B_RehabProtesica_ip_Adolesc | FA62: Suma de B_RehabProtesica_ip_Joven | FB62: Suma de B_RehabProtesica_ip_Adulto | FC62: Suma de B_RehabProtesica_ip_AdultoM | FD62: Suma de B_RehabProtesica_ip_g | FE62: Suma de B_RehabProtesica_id_3_5a | FF62: Suma de B_RehabProtesica_id_6_11a | FG62: Suma de B_RehabProtesica_id_Adolesc | FH62: Suma de B_RehabProtesica_id_Joven | FI62: Suma de B_RehabProtesica_id_Adulto | FJ62: Suma de B_RehabProtesica_id_AdultoM | FK62: Suma de B_RehabProtesica_id_g | FL62: Suma de B_RehabProtesica_ri_3_5a | FM62: Suma de B_RehabProtesica_ri_6_11a | FN62: Suma de B_RehabProtesica_ri_Adolesc | FO62: Suma de B_RehabProtesica_ri_Joven | FP62: Suma de B_RehabProtesica_ri_Adulto | FQ62: Suma de B_RehabProtesica_ri_AdultoM | FR62: Suma de B_RehabProtesica_ri_g | FS62: Suma de B_RehabProtesica_pen_3_5a | FT62: Suma de B_RehabProtesica_pen_6_11a | FU62: Suma de B_RehabProtesica_pen_Adolesc | FV62: Suma de B_RehabProtesica_pen_Joven | FW62: Suma de B_RehabProtesica_pen_Adulto | FX62: Suma de B_RehabProtesica_pen_AdultoM | FY62: Suma de B_RehabProtesica_pen_g | FZ62: Suma de B_RehabProtesica_in_3_5a | GA62: Suma de B_RehabProtesica_in_6_11a | GB62: Suma de B_RehabProtesica_in_Adolesc | GC62: Suma de B_RehabProtesica_in_Joven | GD62: Suma de B_RehabProtesica_in_Adulto | GE62: Suma de B_RehabProtesica_in_AdultoM | GF62: Suma de B_RehabProtesica_in_g | GG62: Suma de B_RehabProtesica_1c_3_5a | GH62: Suma de B_RehabProtesica_1cn_6_11a | GI62: Suma de B_RehabProtesica_1c_Adolesc | GJ62: Suma de B_RehabProtesica_1c_Joven | GK62: Suma de B_RehabProtesica_1c_Adulto | GL62: Suma de B_RehabProtesica_1c_AdultoM | GM62: Suma de B_RehabProtesica_1c_g | GN62: Suma de B_RehabProtesica_2c_3_5a | GO62: Suma de B_RehabProtesica_2cn_6_11a | GP62: Suma de B_RehabProtesica_2c_Adolesc | GQ62: Suma de B_RehabProtesica_2c_Joven | GR62: Suma de B_RehabProtesica_2c_Adulto | GS62: Suma de B_RehabProtesica_2c_AdultoM | GT62: Suma de B_RehabProtesica_2c_g
A63: 1 | B63: 0 | C63: 0 | D63: 0 | E63: 0 | F63: 0 | G63: 0 | H63: 6 | I63: 33 | J63: 41 | K63: 76 | L63: 29 | M63: 48 | N63: 0 | O63: 0 | P63: 0 | Q63: 0 | R63: 0 | S63: 5 | T63: 10 | U63: 10 | V63: 5 | W63: 10 | X63: 2 | Y63: 1 | Z63: 0 | AA63: 0 | AB63: 0 | AC63: 4 | AD63: 2 | AE63: 45 | AF63: 96 | AG63: 50 | AH63: 87 | AI63: 126 | AJ63: 49 | AK63: 9 | AL63: 0 | AM63: 0 | AN63: 0 | AO63: 0 | AP63: 0 | AQ63: 4 | AR63: 88 | AS63: 38 | AT63: 62 | AU63: 119 | AV63: 69 | AW63: 6 | AX63: 0 | AY63: 0 | AZ63: 0 | BA63: 0 | BB63: 0 | BC63: 79 | BD63: 50 | BE63: 17 | BF63: 21 | BG63: 40 | BH63: 4 | BI63: 17 | BJ63: 0 | BK63: 0 | BL63: 0 | BM63: 1 | BN63: 16 | BO63: 104 | BP63: 260 | BQ63: 388 | BR63: 282 | BS63: 331 | BT63: 50 | BU63: 142 | BV63: 0 | BW63: 0 | BX63: 2 | BY63: 10 | BZ63: 9 | CA63: 40 | CB63: 28 | CC63: 26 | CD63: 5 | CE63: 2 | CF63: 0 | CG63: 0 | CH63: 0 | CI63: 1 | CJ63: 0 | CK63: 0 | CL63: 0 | CM63: 0 | CN63: 0 | CO63: 0 | CP63: 0 | CQ63: 0 | CR63: 0 | CS63: 0 | CT63: 0 | CU63: 0 | CV63: 0 | CW63: 0 | CX63: 1 | CY63: 0 | CZ63: 0 | DA63: 0 | DB63: 2 | DC63: 10 | DD63: 0 | DE63: 0 | DF63: 0 | DG63: 0 | DH63: 0 | DI63: 0 | DJ63: 0 | DK63: 0 | DL63: 0 | DM63: 0 | DN63: 0 | DO63: 0 | DP63: 0 | DQ63: 0 | DR63: 0 | DS63: 0 | DT63: 0 | DU63: 0 | DV63: 0 | DW63: 0 | DX63: 0 | DY63: 0 | DZ63: 0 | EA63: 0 | EB63: 0 | EC63: 0 | ED63: 0 | EE63: 0 | EF63: 0 | EG63: 0 | EH63: 0 | EI63: 0 | EJ63: 0 | EK63: 0 | EL63: 0 | EM63: 0 | EN63: 0 | EO63: 0 | EP63: 0 | EQ63: 0 | ER63: 0 | ES63: 0 | ET63: 0 | EU63: 0 | EV63: 0 | EW63: 0 | EX63: 0 | EY63: 0 | EZ63: 0 | FA63: 0 | FB63: 0 | FC63: 0 | FD63: 0 | FE63: 0 | FF63: 0 | FG63: 0 | FH63: 0 | FI63: 0 | FJ63: 0 | FK63: 0 | FL63: 0 | FM63: 0 | FN63: 0 | FO63: 0 | FP63: 0 | FQ63: 0 | FR63: 0 | FS63: 0 | FT63: 0 | FU63: 0 | FV63: 0 | FW63: 0 | FX63: 0 | FY63: 0 | FZ63: 0 | GA63: 0 | GB63: 0 | GC63: 0 | GD63: 0 | GE63: 0 | GF63: 0 | GG63: 0 | GH63: 0 | GI63: 0 | GJ63: 0 | GK63: 0 | GL63: 0 | GM63: 0 | GN63: 0 | GO63: 0 | GP63: 0 | GQ63: 0 | GR63: 0 | GS63: 0 | GT63: 0
A64: 2 | B64: 0 | C64: 0 | D64: 0 | E64: 0 | F64: 0 | G64: 1 | H64: 1 | I64: 23 | J64: 25 | K64: 49 | L64: 16 | M64: 35 | N64: 0 | O64: 0 | P64: 0 | Q64: 0 | R64: 1 | S64: 4 | T64: 3 | U64: 0 | V64: 4 | W64: 3 | X64: 0 | Y64: 0 | Z64: 1 | AA64: 0 | AB64: 0 | AC64: 0 | AD64: 3 | AE64: 28 | AF64: 65 | AG64: 46 | AH64: 48 | AI64: 78 | AJ64: 29 | AK64: 11 | AL64: 0 | AM64: 0 | AN64: 0 | AO64: 0 | AP64: 0 | AQ64: 15 | AR64: 90 | AS64: 32 | AT64: 36 | AU64: 73 | AV64: 49 | AW64: 5 | AX64: 0 | AY64: 0 | AZ64: 0 | BA64: 0 | BB64: 2 | BC64: 73 | BD64: 59 | BE64: 18 | BF64: 16 | BG64: 37 | BH64: 10 | BI64: 11 | BJ64: 0 | BK64: 0 | BL64: 0 | BM64: 0 | BN64: 4 | BO64: 107 | BP64: 233 | BQ64: 288 | BR64: 182 | BS64: 258 | BT64: 33 | BU64: 110 | BV64: 0 | BW64: 0 | BX64: 0 | BY64: 4 | BZ64: 30 | CA64: 42 | CB64: 10 | CC64: 19 | CD64: 9 | CE64: 6 | CF64: 0 | CG64: 0 | CH64: 0 | CI64: 0 | CJ64: 1 | CK64: 0 | CL64: 1 | CM64: 0 | CN64: 0 | CO64: 0 | CP64: 0 | CQ64: 0 | CR64: 0 | CS64: 0 | CT64: 0 | CU64: 0 | CV64: 1 | CW64: 0 | CX64: 0 | CY64: 0 | CZ64: 0 | DA64: 0 | DB64: 0 | DC64: 1 | DD64: 0 | DE64: 0 | DF64: 1 | DG64: 0 | DH64: 0 | DI64: 0 | DJ64: 0 | DK64: 0 | DL64: 0 | DM64: 0 | DN64: 0 | DO64: 0 | DP64: 0 | DQ64: 0 | DR64: 0 | DS64: 0 | DT64: 0 | DU64: 0 | DV64: 0 | DW64: 0 | DX64: 0 | DY64: 0 | DZ64: 0 | EA64: 0 | EB64: 0 | EC64: 0 | ED64: 0 | EE64: 0 | EF64: 0 | EG64: 0 | EH64: 0 | EI64: 0 | EJ64: 0 | EK64: 0 | EL64: 0 | EM64: 0 | EN64: 0 | EO64: 0 | EP64: 0 | EQ64: 0 | ER64: 0 | ES64: 0 | ET64: 0 | EU64: 0 | EV64: 0 | EW64: 0 | EX64: 0 | EY64: 0 | EZ64: 0 | FA64: 0 | FB64: 0 | FC64: 0 | FD64: 0 | FE64: 0 | FF64: 0 | FG64: 0 | FH64: 0 | FI64: 0 | FJ64: 0 | FK64: 0 | FL64: 0 | FM64: 0 | FN64: 0 | FO64: 0 | FP64: 0 | FQ64: 0 | FR64: 0 | FS64: 0 | FT64: 0 | FU64: 0 | FV64: 0 | FW64: 0 | FX64: 0 | FY64: 0 | FZ64: 0 | GA64: 0 | GB64: 0 | GC64: 0 | GD64: 0 | GE64: 0 | GF64: 0 | GG64: 0 | GH64: 0 | GI64: 0 | GJ64: 0 | GK64: 0 | GL64: 0 | GM64: 0 | GN64: 0 | GO64: 0 | GP64: 0 | GQ64: 0 | GR64: 0 | GS64: 0 | GT64: 0
A65: 3 | B65: 0 | C65: 0 | D65: 0 | E65: 0 | F65: 0 | G65: 1 | H65: 3 | I65: 17 | J65: 49 | K65: 73 | L65: 37 | M65: 37 | N65: 0 | O65: 0 | P65: 0 | Q65: 0 | R65: 0 | S65: 5 | T65: 1 | U65: 3 | V65: 5 | W65: 15 | X65: 3 | Y65: 1 | Z65: 0 | AA65: 0 | AB65: 0 | AC65: 0 | AD65: 1 | AE65: 31 | AF65: 33 | AG65: 48 | AH65: 91 | AI65: 107 | AJ65: 51 | AK65: 10 | AL65: 0 | AM65: 0 | AN65: 0 | AO65: 0 | AP65: 0 | AQ65: 15 | AR65: 79 | AS65: 41 | AT65: 82 | AU65: 115 | AV65: 55 | AW65: 11 | AX65: 0 | AY65: 0 | AZ65: 0 | BA65: 0 | BB65: 1 | BC65: 82 | BD65: 71 | BE65: 28 | BF65: 21 | BG65: 9 | BH65: 3 | BI65: 7 | BJ65: 0 | BK65: 0 | BL65: 0 | BM65: 0 | BN65: 3 | BO65: 113 | BP65: 204 | BQ65: 259 | BR65: 282 | BS65: 272 | BT65: 59 | BU65: 177 | BV65: 0 | BW65: 0 | BX65: 0 | BY65: 5 | BZ65: 13 | CA65: 21 | CB65: 15 | CC65: 17 | CD65: 1 | CE65: 2 | CF65: 0 | CG65: 0 | CH65: 0 | CI65: 1 | CJ65: 0 | CK65: 1 | CL65: 2 | CM65: 0 | CN65: 0 | CO65: 0 | CP65: 0 | CQ65: 0 | CR65: 0 | CS65: 0 | CT65: 0 | CU65: 1 | CV65: 2 | CW65: 1 | CX65: 0 | CY65: 0 | CZ65: 0 | DA65: 0 | DB65: 0 | DC65: 11 | DD65: 5 | DE65: 1 | DF65: 2 | DG65: 1 | DH65: 0 | DI65: 0 | DJ65: 0 | DK65: 0 | DL65: 0 | DM65: 0 | DN65: 0 | DO65: 0 | DP65: 0 | DQ65: 0 | DR65: 0 | DS65: 0 | DT65: 0 | DU65: 0 | DV65: 0 | DW65: 0 | DX65: 0 | DY65: 0 | DZ65: 0 | EA65: 0 | EB65: 0 | EC65: 0 | ED65: 0 | EE65: 0 | EF65: 0 | EG65: 0 | EH65: 0 | EI65: 0 | EJ65: 0 | EK65: 0 | EL65: 0 | EM65: 0 | EN65: 0 | EO65: 0 | EP65: 0 | EQ65: 0 | ER65: 0 | ES65: 0 | ET65: 0 | EU65: 0 | EV65: 0 | EW65: 0 | EX65: 0 | EY65: 0 | EZ65: 0 | FA65: 0 | FB65: 0 | FC65: 0 | FD65: 0 | FE65: 0 | FF65: 0 | FG65: 0 | FH65: 0 | FI65: 0 | FJ65: 0 | FK65: 0 | FL65: 0 | FM65: 0 | FN65: 0 | FO65: 0 | FP65: 0 | FQ65: 0 | FR65: 0 | FS65: 0 | FT65: 0 | FU65: 0 | FV65: 0 | FW65: 0 | FX65: 0 | FY65: 0 | FZ65: 0 | GA65: 0 | GB65: 0 | GC65: 0 | GD65: 0 | GE65: 0 | GF65: 0 | GG65: 0 | GH65: 0 | GI65: 0 | GJ65: 0 | GK65: 0 | GL65: 0 | GM65: 0 | GN65: 0 | GO65: 0 | GP65: 0 | GQ65: 0 | GR65: 0 | GS65: 0 | GT65: 0
A66: 4 | B66: 0 | C66: 0 | D66: 0 | E66: 0 | F66: 0 | G66: 1 | H66: 4 | I66: 59 | J66: 53 | K66: 68 | L66: 26 | M66: 78 | N66: 0 | O66: 0 | P66: 0 | Q66: 0 | R66: 0 | S66: 7 | T66: 7 | U66: 3 | V66: 3 | W66: 11 | X66: 2 | Y66: 0 | Z66: 0 | AA66: 0 | AB66: 0 | AC66: 1 | AD66: 1 | AE66: 29 | AF66: 50 | AG66: 25 | AH66: 66 | AI66: 102 | AJ66: 39 | AK66: 26 | AL66: 0 | AM66: 0 | AN66: 0 | AO66: 0 | AP66: 0 | AQ66: 8 | AR66: 80 | AS66: 45 | AT66: 68 | AU66: 120 | AV66: 52 | AW66: 18 | AX66: 0 | AY66: 0 | AZ66: 0 | BA66: 1 | BB66: 0 | BC66: 80 | BD66: 29 | BE66: 13 | BF66: 17 | BG66: 17 | BH66: 10 | BI66: 15 | BJ66: 0 | BK66: 0 | BL66: 0 | BM66: 1 | BN66: 6 | BO66: 113 | BP66: 206 | BQ66: 204 | BR66: 271 | BS66: 290 | BT66: 61 | BU66: 251 | BV66: 0 | BW66: 0 | BX66: 0 | BY66: 4 | BZ66: 23 | CA66: 10 | CB66: 14 | CC66: 21 | CD66: 1 | CE66: 22 | CF66: 0 | CG66: 0 | CH66: 0 | CI66: 3 | CJ66: 0 | CK66: 0 | CL66: 2 | CM66: 2 | CN66: 0 | CO66: 0 | CP66: 0 | CQ66: 0 | CR66: 0 | CS66: 2 | CT66: 0 | CU66: 0 | CV66: 2 | CW66: 0 | CX66: 0 | CY66: 0 | CZ66: 0 | DA66: 0 | DB66: 0 | DC66: 17 | DD66: 0 | DE66: 0 | DF66: 2 | DG66: 0 | DH66: 0 | DI66: 0 | DJ66: 0 | DK66: 0 | DL66: 0 | DM66: 0 | DN66: 0 | DO66: 0 | DP66: 0 | DQ66: 0 | DR66: 0 | DS66: 0 | DT66: 0 | DU66: 0 | DV66: 0 | DW66: 0 | DX66: 0 | DY66: 0 | DZ66: 0 | EA66: 0 | EB66: 0 | EC66: 0 | ED66: 0 | EE66: 0 | EF66: 0 | EG66: 0 | EH66: 0 | EI66: 0 | EJ66: 0 | EK66: 0 | EL66: 0 | EM66: 0 | EN66: 0 | EO66: 0 | EP66: 0 | EQ66: 0 | ER66: 0 | ES66: 0 | ET66: 0 | EU66: 0 | EV66: 0 | EW66: 0 | EX66: 0 | EY66: 0 | EZ66: 0 | FA66: 0 | FB66: 0 | FC66: 0 | FD66: 0 | FE66: 0 | FF66: 0 | FG66: 0 | FH66: 0 | FI66: 0 | FJ66: 0 | FK66: 0 | FL66: 0 | FM66: 0 | FN66: 0 | FO66: 0 | FP66: 0 | FQ66: 0 | FR66: 0 | FS66: 0 | FT66: 0 | FU66: 0 | FV66: 0 | FW66: 0 | FX66: 0 | FY66: 0 | FZ66: 0 | GA66: 0 | GB66: 0 | GC66: 0 | GD66: 0 | GE66: 0 | GF66: 0 | GG66: 0 | GH66: 0 | GI66: 0 | GJ66: 0 | GK66: 0 | GL66: 0 | GM66: 0 | GN66: 0 | GO66: 0 | GP66: 0 | GQ66: 0 | GR66: 0 | GS66: 0 | GT66: 0
A67: 5 | B67: 0 | C67: 0 | D67: 0 | E67: 1 | F67: 0 | G67: 2 | H67: 1 | I67: 12 | J67: 32 | K67: 60 | L67: 20 | M67: 46 | N67: 0 | O67: 0 | P67: 0 | Q67: 0 | R67: 0 | S67: 4 | T67: 5 | U67: 3 | V67: 6 | W67: 14 | X67: 1 | Y67: 0 | Z67: 0 | AA67: 0 | AB67: 0 | AC67: 0 | AD67: 1 | AE67: 21 | AF67: 37 | AG67: 39 | AH67: 56 | AI67: 83 | AJ67: 35 | AK67: 2 | AL67: 0 | AM67: 0 | AN67: 0 | AO67: 0 | AP67: 0 | AQ67: 8 | AR67: 63 | AS67: 28 | AT67: 43 | AU67: 71 | AV67: 51 | AW67: 10 | AX67: 0 | AY67: 0 | AZ67: 0 | BA67: 0 | BB67: 0 | BC67: 219 | BD67: 43 | BE67: 14 | BF67: 7 | BG67: 8 | BH67: 2 | BI67: 8 | BJ67: 0 | BK67: 0 | BL67: 1 | BM67: 1 | BN67: 6 | BO67: 116 | BP67: 118 | BQ67: 147 | BR67: 156 | BS67: 210 | BT67: 42 | BU67: 151 | BV67: 0 | BW67: 0 | BX67: 0 | BY67: 3 | BZ67: 3 | CA67: 4 | CB67: 7 | CC67: 9 | CD67: 1 | CE67: 1 | CF67: 0 | CG67: 0 | CH67: 0 | CI67: 0 | CJ67: 0 | CK67: 0 | CL67: 0 | CM67: 1 | CN67: 0 | CO67: 0 | CP67: 0 | CQ67: 0 | CR67: 0 | CS67: 0 | CT67: 0 | CU67: 0 | CV67: 0 | CW67: 0 | CX67: 0 | CY67: 0 | CZ67: 0 | DA67: 0 | DB67: 0 | DC67: 4 | DD67: 1 | DE67: 0 | DF67: 0 | DG67: 0 | DH67: 0 | DI67: 0 | DJ67: 0 | DK67: 0 | DL67: 0 | DM67: 0 | DN67: 0 | DO67: 0 | DP67: 0 | DQ67: 0 | DR67: 0 | DS67: 0 | DT67: 0 | DU67: 0 | DV67: 0 | DW67: 0 | DX67: 0 | DY67: 0 | DZ67: 0 | EA67: 0 | EB67: 0 | EC67: 0 | ED67: 0 | EE67: 0 | EF67: 0 | EG67: 0 | EH67: 0 | EI67: 0 | EJ67: 0 | EK67: 0 | EL67: 0 | EM67: 0 | EN67: 0 | EO67: 0 | EP67: 0 | EQ67: 0 | ER67: 0 | ES67: 0 | ET67: 0 | EU67: 0 | EV67: 0 | EW67: 0 | EX67: 0 | EY67: 0 | EZ67: 0 | FA67: 0 | FB67: 0 | FC67: 0 | FD67: 0 | FE67: 0 | FF67: 0 | FG67: 0 | FH67: 0 | FI67: 0 | FJ67: 0 | FK67: 0 | FL67: 0 | FM67: 0 | FN67: 0 | FO67: 0 | FP67: 0 | FQ67: 0 | FR67: 0 | FS67: 0 | FT67: 0 | FU67: 0 | FV67: 0 | FW67: 0 | FX67: 0 | FY67: 0 | FZ67: 0 | GA67: 0 | GB67: 0 | GC67: 0 | GD67: 0 | GE67: 0 | GF67: 0 | GG67: 0 | GH67: 0 | GI67: 0 | GJ67: 0 | GK67: 0 | GL67: 0 | GM67: 0 | GN67: 0 | GO67: 0 | GP67: 0 | GQ67: 0 | GR67: 0 | GS67: 0 | GT67: 0
A68: 6 | B68: 0 | C68: 0 | D68: 0 | E68: 0 | F68: 0 | G68: 0 | H68: 2 | I68: 25 | J68: 42 | K68: 104 | L68: 18 | M68: 65 | N68: 0 | O68: 0 | P68: 0 | Q68: 0 | R68: 0 | S68: 6 | T68: 4 | U68: 4 | V68: 8 | W68: 11 | X68: 7 | Y68: 1 | Z68: 0 | AA68: 0 | AB68: 0 | AC68: 1 | AD68: 4 | AE68: 35 | AF68: 40 | AG68: 38 | AH68: 60 | AI68: 96 | AJ68: 42 | AK68: 6 | AL68: 0 | AM68: 0 | AN68: 0 | AO68: 0 | AP68: 1 | AQ68: 14 | AR68: 94 | AS68: 33 | AT68: 50 | AU68: 93 | AV68: 58 | AW68: 6 | AX68: 0 | AY68: 0 | AZ68: 0 | BA68: 0 | BB68: 13 | BC68: 64 | BD68: 54 | BE68: 10 | BF68: 16 | BG68: 20 | BH68: 8 | BI68: 11 | BJ68: 0 | BK68: 0 | BL68: 2 | BM68: 3 | BN68: 10 | BO68: 113 | BP68: 262 | BQ68: 189 | BR68: 224 | BS68: 269 | BT68: 59 | BU68: 157 | BV68: 0 | BW68: 0 | BX68: 0 | BY68: 1 | BZ68: 3 | CA68: 10 | CB68: 9 | CC68: 5 | CD68: 0 | CE68: 4 | CF68: 0 | CG68: 0 | CH68: 0 | CI68: 1 | CJ68: 1 | CK68: 1 | CL68: 2 | CM68: 0 | CN68: 0 | CO68: 0 | CP68: 0 | CQ68: 0 | CR68: 0 | CS68: 0 | CT68: 1 | CU68: 1 | CV68: 2 | CW68: 0 | CX68: 0 | CY68: 0 | CZ68: 0 | DA68: 0 | DB68: 0 | DC68: 2 | DD68: 0 | DE68: 1 | DF68: 2 | DG68: 0 | DH68: 0 | DI68: 0 | DJ68: 0 | DK68: 0 | DL68: 0 | DM68: 0 | DN68: 0 | DO68: 0 | DP68: 0 | DQ68: 0 | DR68: 0 | DS68: 0 | DT68: 0 | DU68: 0 | DV68: 0 | DW68: 0 | DX68: 0 | DY68: 0 | DZ68: 0 | EA68: 0 | EB68: 0 | EC68: 0 | ED68: 0 | EE68: 0 | EF68: 0 | EG68: 0 | EH68: 0 | EI68: 0 | EJ68: 0 | EK68: 0 | EL68: 0 | EM68: 0 | EN68: 0 | EO68: 0 | EP68: 0 | EQ68: 0 | ER68: 0 | ES68: 0 | ET68: 0 | EU68: 0 | EV68: 0 | EW68: 0 | EX68: 0 | EY68: 0 | EZ68: 0 | FA68: 0 | FB68: 0 | FC68: 0 | FD68: 0 | FE68: 0 | FF68: 0 | FG68: 0 | FH68: 0 | FI68: 0 | FJ68: 0 | FK68: 0 | FL68: 0 | FM68: 0 | FN68: 0 | FO68: 0 | FP68: 0 | FQ68: 0 | FR68: 0 | FS68: 0 | FT68: 0 | FU68: 0 | FV68: 0 | FW68: 0 | FX68: 0 | FY68: 0 | FZ68: 0 | GA68: 0 | GB68: 0 | GC68: 0 | GD68: 0 | GE68: 0 | GF68: 0 | GG68: 0 | GH68: 0 | GI68: 0 | GJ68: 0 | GK68: 0 | GL68: 0 | GM68: 0 | GN68: 0 | GO68: 0 | GP68: 0 | GQ68: 0 | GR68: 0 | GS68: 0 | GT68: 0
A69: 7 | B69: 0 | C69: 0 | D69: 0 | E69: 0 | F69: 0 | G69: 5 | H69: 2 | I69: 12 | J69: 28 | K69: 60 | L69: 25 | M69: 73 | N69: 0 | O69: 0 | P69: 0 | Q69: 0 | R69: 0 | S69: 4 | T69: 6 | U69: 11 | V69: 13 | W69: 8 | X69: 3 | Y69: 0 | Z69: 2 | AA69: 0 | AB69: 0 | AC69: 0 | AD69: 4 | AE69: 32 | AF69: 39 | AG69: 34 | AH69: 60 | AI69: 104 | AJ69: 39 | AK69: 10 | AL69: 0 | AM69: 0 | AN69: 0 | AO69: 0 | AP69: 0 | AQ69: 10 | AR69: 87 | AS69: 28 | AT69: 48 | AU69: 129 | AV69: 68 | AW69: 9 | AX69: 0 | AY69: 0 | AZ69: 0 | BA69: 0 | BB69: 2 | BC69: 114 | BD69: 68 | BE69: 162 | BF69: 8 | BG69: 21 | BH69: 1 | BI69: 11 | BJ69: 0 | BK69: 0 | BL69: 0 | BM69: 2 | BN69: 7 | BO69: 105 | BP69: 170 | BQ69: 145 | BR69: 216 | BS69: 253 | BT69: 79 | BU69: 193 | BV69: 0 | BW69: 0 | BX69: 0 | BY69: 1 | BZ69: 6 | CA69: 13 | CB69: 20 | CC69: 14 | CD69: 12 | CE69: 3 | CF69: 0 | CG69: 0 | CH69: 0 | CI69: 5 | CJ69: 0 | CK69: 4 | CL69: 6 | CM69: 0 | CN69: 0 | CO69: 0 | CP69: 0 | CQ69: 0 | CR69: 0 | CS69: 0 | CT69: 0 | CU69: 4 | CV69: 3 | CW69: 0 | CX69: 0 | CY69: 0 | CZ69: 0 | DA69: 0 | DB69: 0 | DC69: 4 | DD69: 1 | DE69: 4 | DF69: 0 | DG69: 0 | DH69: 0 | DI69: 0 | DJ69: 0 | DK69: 0 | DL69: 0 | DM69: 0 | DN69: 0 | DO69: 0 | DP69: 0 | DQ69: 0 | DR69: 0 | DS69: 0 | DT69: 0 | DU69: 0 | DV69: 0 | DW69: 0 | DX69: 0 | DY69: 0 | DZ69: 0 | EA69: 0 | EB69: 0 | EC69: 0 | ED69: 0 | EE69: 0 | EF69: 0 | EG69: 0 | EH69: 0 | EI69: 0 | EJ69: 0 | EK69: 0 | EL69: 0 | EM69: 0 | EN69: 0 | EO69: 0 | EP69: 0 | EQ69: 0 | ER69: 0 | ES69: 0 | ET69: 0 | EU69: 0 | EV69: 0 | EW69: 0 | EX69: 0 | EY69: 0 | EZ69: 0 | FA69: 0 | FB69: 0 | FC69: 0 | FD69: 0 | FE69: 0 | FF69: 0 | FG69: 0 | FH69: 0 | FI69: 0 | FJ69: 0 | FK69: 0 | FL69: 0 | FM69: 0 | FN69: 0 | FO69: 0 | FP69: 0 | FQ69: 0 | FR69: 0 | FS69: 0 | FT69: 0 | FU69: 0 | FV69: 0 | FW69: 0 | FX69: 0 | FY69: 0 | FZ69: 0 | GA69: 0 | GB69: 0 | GC69: 0 | GD69: 0 | GE69: 0 | GF69: 0 | GG69: 0 | GH69: 0 | GI69: 0 | GJ69: 0 | GK69: 0 | GL69: 0 | GM69: 0 | GN69: 0 | GO69: 0 | GP69: 0 | GQ69: 0 | GR69: 0 | GS69: 0 | GT69: 0
A70: 8 | B70: 0 | C70: 0 | D70: 0 | E70: 0 | F70: 0 | G70: 2 | H70: 2 | I70: 31 | J70: 32 | K70: 68 | L70: 32 | M70: 62 | N70: 0 | O70: 0 | P70: 0 | Q70: 0 | R70: 0 | S70: 4 | T70: 6 | U70: 8 | V70: 8 | W70: 11 | X70: 2 | Y70: 0 | Z70: 0 | AA70: 0 | AB70: 0 | AC70: 2 | AD70: 3 | AE70: 25 | AF70: 56 | AG70: 39 | AH70: 60 | AI70: 114 | AJ70: 51 | AK70: 13 | AL70: 0 | AM70: 0 | AN70: 0 | AO70: 0 | AP70: 0 | AQ70: 4 | AR70: 67 | AS70: 25 | AT70: 42 | AU70: 108 | AV70: 70 | AW70: 9 | AX70: 0 | AY70: 0 | AZ70: 1 | BA70: 0 | BB70: 3 | BC70: 44 | BD70: 40 | BE70: 14 | BF70: 14 | BG70: 14 | BH70: 0 | BI70: 8 | BJ70: 0 | BK70: 0 | BL70: 2 | BM70: 0 | BN70: 2 | BO70: 90 | BP70: 246 | BQ70: 241 | BR70: 237 | BS70: 247 | BT70: 42 | BU70: 131 | BV70: 0 | BW70: 0 | BX70: 0 | BY70: 3 | BZ70: 6 | CA70: 20 | CB70: 10 | CC70: 15 | CD70: 2 | CE70: 1 | CF70: 0 | CG70: 0 | CH70: 0 | CI70: 2 | CJ70: 2 | CK70: 4 | CL70: 1 | CM70: 3 | CN70: 0 | CO70: 0 | CP70: 0 | CQ70: 0 | CR70: 0 | CS70: 1 | CT70: 1 | CU70: 4 | CV70: 1 | CW70: 0 | CX70: 0 | CY70: 0 | CZ70: 0 | DA70: 0 | DB70: 0 | DC70: 1 | DD70: 1 | DE70: 4 | DF70: 0 | DG70: 0 | DH70: 0 | DI70: 1 | DJ70: 0 | DK70: 0 | DL70: 0 | DM70: 0 | DN70: 0 | DO70: 0 | DP70: 0 | DQ70: 0 | DR70: 0 | DS70: 0 | DT70: 0 | DU70: 0 | DV70: 0 | DW70: 0 | DX70: 0 | DY70: 0 | DZ70: 0 | EA70: 0 | EB70: 0 | EC70: 0 | ED70: 0 | EE70: 0 | EF70: 0 | EG70: 0 | EH70: 0 | EI70: 0 | EJ70: 0 | EK70: 0 | EL70: 0 | EM70: 0 | EN70: 0 | EO70: 0 | EP70: 0 | EQ70: 0 | ER70: 0 | ES70: 0 | ET70: 0 | EU70: 0 | EV70: 0 | EW70: 0 | EX70: 0 | EY70: 0 | EZ70: 0 | FA70: 0 | FB70: 0 | FC70: 0 | FD70: 0 | FE70: 0 | FF70: 0 | FG70: 0 | FH70: 0 | FI70: 0 | FJ70: 0 | FK70: 0 | FL70: 0 | FM70: 0 | FN70: 0 | FO70: 0 | FP70: 0 | FQ70: 0 | FR70: 0 | FS70: 0 | FT70: 0 | FU70: 0 | FV70: 0 | FW70: 0 | FX70: 0 | FY70: 0 | FZ70: 0 | GA70: 0 | GB70: 0 | GC70: 0 | GD70: 0 | GE70: 0 | GF70: 0 | GG70: 0 | GH70: 0 | GI70: 0 | GJ70: 0 | GK70: 0 | GL70: 0 | GM70: 0 | GN70: 0 | GO70: 0 | GP70: 0 | GQ70: 0 | GR70: 0 | GS70: 0 | GT70: 0
A71: 9 | B71: 0 | C71: 0 | D71: 0 | E71: 0 | F71: 1 | G71: 2 | H71: 3 | I71: 35 | J71: 33 | K71: 62 | L71: 43 | M71: 55 | N71: 0 | O71: 0 | P71: 0 | Q71: 0 | R71: 1 | S71: 6 | T71: 5 | U71: 9 | V71: 11 | W71: 13 | X71: 2 | Y71: 1 | Z71: 0 | AA71: 0 | AB71: 0 | AC71: 4 | AD71: 1 | AE71: 28 | AF71: 44 | AG71: 41 | AH71: 70 | AI71: 101 | AJ71: 45 | AK71: 9 | AL71: 0 | AM71: 0 | AN71: 0 | AO71: 0 | AP71: 0 | AQ71: 13 | AR71: 66 | AS71: 42 | AT71: 54 | AU71: 124 | AV71: 74 | AW71: 2 | AX71: 0 | AY71: 0 | AZ71: 0 | BA71: 1 | BB71: 2 | BC71: 122 | BD71: 45 | BE71: 9 | BF71: 12 | BG71: 14 | BH71: 3 | BI71: 3 | BJ71: 0 | BK71: 0 | BL71: 0 | BM71: 1 | BN71: 4 | BO71: 116 | BP71: 174 | BQ71: 235 | BR71: 197 | BS71: 252 | BT71: 65 | BU71: 134 | BV71: 0 | BW71: 0 | BX71: 0 | BY71: 5 | BZ71: 8 | CA71: 9 | CB71: 6 | CC71: 18 | CD71: 11 | CE71: 14 | CF71: 0 | CG71: 0 | CH71: 0 | CI71: 2 | CJ71: 0 | CK71: 0 | CL71: 0 | CM71: 1 | CN71: 0 | CO71: 0 | CP71: 0 | CQ71: 0 | CR71: 0 | CS71: 2 | CT71: 1 | CU71: 0 | CV71: 0 | CW71: 1 | CX71: 0 | CY71: 0 | CZ71: 0 | DA71: 0 | DB71: 0 | DC71: 2 | DD71: 0 | DE71: 0 | DF71: 0 | DG71: 0 | DH71: 0 | DI71: 0 | DJ71: 0 | DK71: 0 | DL71: 0 | DM71: 0 | DN71: 0 | DO71: 0 | DP71: 0 | DQ71: 0 | DR71: 0 | DS71: 0 | DT71: 0 | DU71: 0 | DV71: 0 | DW71: 0 | DX71: 0 | DY71: 0 | DZ71: 0 | EA71: 0 | EB71: 0 | EC71: 0 | ED71: 0 | EE71: 0 | EF71: 0 | EG71: 0 | EH71: 0 | EI71: 0 | EJ71: 0 | EK71: 0 | EL71: 0 | EM71: 0 | EN71: 0 | EO71: 0 | EP71: 0 | EQ71: 0 | ER71: 0 | ES71: 0 | ET71: 0 | EU71: 0 | EV71: 0 | EW71: 0 | EX71: 0 | EY71: 0 | EZ71: 0 | FA71: 0 | FB71: 0 | FC71: 0 | FD71: 0 | FE71: 0 | FF71: 0 | FG71: 0 | FH71: 0 | FI71: 0 | FJ71: 0 | FK71: 0 | FL71: 0 | FM71: 0 | FN71: 0 | FO71: 0 | FP71: 0 | FQ71: 0 | FR71: 0 | FS71: 0 | FT71: 0 | FU71: 0 | FV71: 0 | FW71: 0 | FX71: 0 | FY71: 0 | FZ71: 0 | GA71: 0 | GB71: 0 | GC71: 0 | GD71: 0 | GE71: 0 | GF71: 0 | GG71: 0 | GH71: 0 | GI71: 0 | GJ71: 0 | GK71: 0 | GL71: 0 | GM71: 0 | GN71: 0 | GO71: 0 | GP71: 0 | GQ71: 0 | GR71: 0 | GS71: 0 | GT71: 0
A72: 10 | B72: 0 | C72: 0 | D72: 0 | E72: 0 | F72: 0 | G72: 1 | H72: 3 | I72: 6 | J72: 42 | K72: 79 | L72: 26 | M72: 55 | N72: 0 | O72: 0 | P72: 0 | Q72: 0 | R72: 0 | S72: 2 | T72: 8 | U72: 4 | V72: 11 | W72: 9 | X72: 0 | Y72: 0 | Z72: 3 | AA72: 0 | AB72: 0 | AC72: 0 | AD72: 1 | AE72: 36 | AF72: 65 | AG72: 39 | AH72: 69 | AI72: 146 | AJ72: 46 | AK72: 10 | AL72: 0 | AM72: 0 | AN72: 0 | AO72: 0 | AP72: 0 | AQ72: 12 | AR72: 74 | AS72: 37 | AT72: 59 | AU72: 125 | AV72: 60 | AW72: 17 | AX72: 0 | AY72: 0 | AZ72: 0 | BA72: 0 | BB72: 4 | BC72: 66 | BD72: 112 | BE72: 10 | BF72: 15 | BG72: 18 | BH72: 4 | BI72: 2 | BJ72: 0 | BK72: 0 | BL72: 0 | BM72: 1 | BN72: 0 | BO72: 160 | BP72: 240 | BQ72: 203 | BR72: 242 | BS72: 237 | BT72: 53 | BU72: 113 | BV72: 0 | BW72: 0 | BX72: 0 | BY72: 4 | BZ72: 4 | CA72: 10 | CB72: 19 | CC72: 20 | CD72: 4 | CE72: 3 | CF72: 0 | CG72: 0 | CH72: 0 | CI72: 2 | CJ72: 0 | CK72: 0 | CL72: 0 | CM72: 1 | CN72: 0 | CO72: 1 | CP72: 0 | CQ72: 0 | CR72: 0 | CS72: 1 | CT72: 0 | CU72: 0 | CV72: 0 | CW72: 2 | CX72: 0 | CY72: 0 | CZ72: 0 | DA72: 0 | DB72: 0 | DC72: 0 | DD72: 2 | DE72: 0 | DF72: 0 | DG72: 0 | DH72: 0 | DI72: 0 | DJ72: 0 | DK72: 0 | DL72: 0 | DM72: 0 | DN72: 0 | DO72: 0 | DP72: 0 | DQ72: 0 | DR72: 0 | DS72: 0 | DT72: 0 | DU72: 0 | DV72: 0 | DW72: 0 | DX72: 0 | DY72: 0 | DZ72: 0 | EA72: 0 | EB72: 0 | EC72: 0 | ED72: 0 | EE72: 0 | EF72: 0 | EG72: 0 | EH72: 0 | EI72: 0 | EJ72: 0 | EK72: 0 | EL72: 0 | EM72: 0 | EN72: 0 | EO72: 0 | EP72: 0 | EQ72: 0 | ER72: 0 | ES72: 0 | ET72: 0 | EU72: 0 | EV72: 0 | EW72: 0 | EX72: 0 | EY72: 0 | EZ72: 0 | FA72: 0 | FB72: 0 | FC72: 0 | FD72: 0 | FE72: 0 | FF72: 0 | FG72: 0 | FH72: 0 | FI72: 0 | FJ72: 0 | FK72: 0 | FL72: 0 | FM72: 0 | FN72: 0 | FO72: 0 | FP72: 0 | FQ72: 0 | FR72: 0 | FS72: 0 | FT72: 0 | FU72: 0 | FV72: 0 | FW72: 0 | FX72: 0 | FY72: 0 | FZ72: 0 | GA72: 0 | GB72: 0 | GC72: 0 | GD72: 0 | GE72: 0 | GF72: 0 | GG72: 0 | GH72: 0 | GI72: 0 | GJ72: 0 | GK72: 0 | GL72: 0 | GM72: 0 | GN72: 0 | GO72: 0 | GP72: 0 | GQ72: 0 | GR72: 0 | GS72: 0 | GT72: 0
A73: 11 | B73: 0 | C73: 0 | D73: 0 | E73: 0 | F73: 0 | G73: 2 | H73: 4 | I73: 24 | J73: 28 | K73: 51 | L73: 8 | M73: 53 | N73: 0 | O73: 0 | P73: 0 | Q73: 0 | R73: 0 | S73: 2 | T73: 4 | U73: 4 | V73: 8 | W73: 6 | X73: 0 | Y73: 1 | Z73: 2 | AA73: 0 | AB73: 1 | AC73: 1 | AD73: 0 | AE73: 26 | AF73: 47 | AG73: 36 | AH73: 45 | AI73: 98 | AJ73: 26 | AK73: 12 | AL73: 0 | AM73: 0 | AN73: 0 | AO73: 0 | AP73: 0 | AQ73: 9 | AR73: 81 | AS73: 43 | AT73: 54 | AU73: 126 | AV73: 61 | AW73: 7 | AX73: 0 | AY73: 0 | AZ73: 0 | BA73: 0 | BB73: 8 | BC73: 114 | BD73: 155 | BE73: 22 | BF73: 12 | BG73: 9 | BH73: 5 | BI73: 0 | BJ73: 0 | BK73: 0 | BL73: 1 | BM73: 0 | BN73: 1 | BO73: 97 | BP73: 157 | BQ73: 167 | BR73: 159 | BS73: 219 | BT73: 28 | BU73: 101 | BV73: 0 | BW73: 0 | BX73: 0 | BY73: 11 | BZ73: 23 | CA73: 11 | CB73: 10 | CC73: 19 | CD73: 0 | CE73: 4 | CF73: 0 | CG73: 0 | CH73: 0 | CI73: 0 | CJ73: 0 | CK73: 0 | CL73: 0 | CM73: 1 | CN73: 0 | CO73: 0 | CP73: 0 | CQ73: 0 | CR73: 0 | CS73: 0 | CT73: 0 | CU73: 0 | CV73: 0 | CW73: 0 | CX73: 0 | CY73: 0 | CZ73: 0 | DA73: 0 | DB73: 0 | DC73: 4 | DD73: 0 | DE73: 0 | DF73: 0 | DG73: 0 | DH73: 0 | DI73: 0 | DJ73: 0 | DK73: 0 | DL73: 0 | DM73: 0 | DN73: 0 | DO73: 0 | DP73: 0 | DQ73: 0 | DR73: 0 | DS73: 0 | DT73: 0 | DU73: 0 | DV73: 0 | DW73: 0 | DX73: 0 | DY73: 0 | DZ73: 0 | EA73: 0 | EB73: 0 | EC73: 0 | ED73: 0 | EE73: 0 | EF73: 0 | EG73: 0 | EH73: 0 | EI73: 0 | EJ73: 0 | EK73: 0 | EL73: 0 | EM73: 0 | EN73: 0 | EO73: 0 | EP73: 0 | EQ73: 0 | ER73: 0 | ES73: 0 | ET73: 0 | EU73: 0 | EV73: 0 | EW73: 0 | EX73: 0 | EY73: 0 | EZ73: 0 | FA73: 0 | FB73: 0 | FC73: 0 | FD73: 0 | FE73: 0 | FF73: 0 | FG73: 0 | FH73: 0 | FI73: 0 | FJ73: 0 | FK73: 0 | FL73: 0 | FM73: 0 | FN73: 0 | FO73: 0 | FP73: 0 | FQ73: 0 | FR73: 0 | FS73: 0 | FT73: 0 | FU73: 0 | FV73: 0 | FW73: 0 | FX73: 0 | FY73: 0 | FZ73: 0 | GA73: 0 | GB73: 0 | GC73: 0 | GD73: 0 | GE73: 0 | GF73: 0 | GG73: 0 | GH73: 0 | GI73: 0 | GJ73: 0 | GK73: 0 | GL73: 0 | GM73: 0 | GN73: 0 | GO73: 0 | GP73: 0 | GQ73: 0 | GR73: 0 | GS73: 0 | GT73: 0
A74: Total general | B74: 0 | C74: 0 | D74: 0 | E74: 1 | F74: 1 | G74: 17 | H74: 31 | I74: 277 | J74: 405 | K74: 750 | L74: 280 | M74: 607 | N74: 0 | O74: 0 | P74: 0 | Q74: 0 | R74: 2 | S74: 49 | T74: 59 | U74: 59 | V74: 82 | W74: 111 | X74: 22 | Y74: 5 | Z74: 8 | AA74: 0 | AB74: 1 | AC74: 13 | AD74: 21 | AE74: 336 | AF74: 572 | AG74: 435 | AH74: 712 | AI74: 1155 | AJ74: 452 | AK74: 118 | AL74: 0 | AM74: 0 | AN74: 0 | AO74: 0 | AP74: 1 | AQ74: 112 | AR74: 869 | AS74: 392 | AT74: 598 | AU74: 1203 | AV74: 667 | AW74: 100 | AX74: 0 | AY74: 0 | AZ74: 1 | BA74: 2 | BB74: 35 | BC74: 1057 | BD74: 726 | BE74: 317 | BF74: 159 | BG74: 207 | BH74: 50 | BI74: 93 | BJ74: 0 | BK74: 0 | BL74: 6 | BM74: 10 | BN74: 59 | BO74: 1234 | BP74: 2270 | BQ74: 2466 | BR74: 2448 | BS74: 2838 | BT74: 571 | BU74: 1660 | BV74: 0 | BW74: 0 | BX74: 2 | BY74: 51 | BZ74: 128 | CA74: 190 | CB74: 148 | CC74: 183 | CD74: 46 | CE74: 62 | CF74: 0 | CG74: 0 | CH74: 0 | CI74: 17 | CJ74: 4 | CK74: 10 | CL74: 14 | CM74: 9 | CN74: 0 | CO74: 1 | CP74: 0 | CQ74: 0 | CR74: 0 | CS74: 6 | CT74: 3 | CU74: 10 | CV74: 11 | CW74: 4 | CX74: 1 | CY74: 0 | CZ74: 0 | DA74: 0 | DB74: 2 | DC74: 56 | DD74: 10 | DE74: 10 | DF74: 7 | DG74: 1 | DH74: 0 | DI74: 1 | DJ74: 0 | DK74: 0 | DL74: 0 | DM74: 0 | DN74: 0 | DO74: 0 | DP74: 0 | DQ74: 0 | DR74: 0 | DS74: 0 | DT74: 0 | DU74: 0 | DV74: 0 | DW74: 0 | DX74: 0 | DY74: 0 | DZ74: 0 | EA74: 0 | EB74: 0 | EC74: 0 | ED74: 0 | EE74: 0 | EF74: 0 | EG74: 0 | EH74: 0 | EI74: 0 | EJ74: 0 | EK74: 0 | EL74: 0 | EM74: 0 | EN74: 0 | EO74: 0 | EP74: 0 | EQ74: 0 | ER74: 0 | ES74: 0 | ET74: 0 | EU74: 0 | EV74: 0 | EW74: 0 | EX74: 0 | EY74: 0 | EZ74: 0 | FA74: 0 | FB74: 0 | FC74: 0 | FD74: 0 | FE74: 0 | FF74: 0 | FG74: 0 | FH74: 0 | FI74: 0 | FJ74: 0 | FK74: 0 | FL74: 0 | FM74: 0 | FN74: 0 | FO74: 0 | FP74: 0 | FQ74: 0 | FR74: 0 | FS74: 0 | FT74: 0 | FU74: 0 | FV74: 0 | FW74: 0 | FX74: 0 | FY74: 0 | FZ74: 0 | GA74: 0 | GB74: 0 | GC74: 0 | GD74: 0 | GE74: 0 | GF74: 0 | GG74: 0 | GH74: 0 | GI74: 0 | GJ74: 0 | GK74: 0 | GL74: 0 | GM74: 0 | GN74: 0 | GO74: 0 | GP74: 0 | GQ74: 0 | GR74: 0 | GS74: 0 | GT74: 0
A77: Salud Bucal 3
A78: Anio | B78: 2024
A79: UE | B79: (Todas)
A80: Red | B80: LA CONVENCION
A81: MicroRed | B81: (Todas)
A82: EESS | B82: (Todas)
A83: Provincia | B83: (Todas)
A84: Distrito | B84: (Todas)
A86: Etiquetas de fila | B86: Suma de B_TtoPeriodontal_3_5a | C86: Suma de B_TtoPeriodontal_6_11a | D86: Suma de B_TtoPeriodontal_Adolesc | E86: Suma de B_TtoPeriodontal_Joven | F86: Suma de B_TtoPeriodontal_Adulto | G86: Suma de B_TtoPeriodontal_AdultoM | H86: Suma de B_TtoPeriodontal_g | I86: Suma de B_MaxiloFacial_I_0_28d | J86: Suma de B_MaxiloFacial_I_29_5m | K86: Suma de B_MaxiloFacial_I_6_11m | L86: Suma de B_MaxiloFacial_I_1a | M86: Suma de B_MaxiloFacial_I_2a | N86: Suma de B_MaxiloFacial_3_5a | O86: Suma de B_MaxiloFacial_6_11a | P86: Suma de B_MaxiloFacial_Adolesc | Q86: Suma de B_MaxiloFacial_Joven | R86: Suma de B_MaxiloFacial_Adulto | S86: Suma de B_MaxiloFacial_AdultoM | T86: Suma de B_MaxiloFacial_g | U86: Suma de B_GR_Edu_doce_Act | V86: Suma de B_GR_Edu_doce_Pers | W86: Suma de B_GR_Edu_Alu_Act | X86: Suma de B_GR_Edu_Alu_Pers | Y86: Suma de B_GR_Edu_Mujer_Act | Z86: Suma de B_GR_Edu_Mujer_Pers | AA86: Suma de B_GR_Edu_Gest_Act | AB86: Suma de B_GR_Edu_Gest_Pers | AC86: Suma de B_GR_Edu_Puerp_Act | AD86: Suma de B_GR_Edu_Puerp_Pers | AE86: Suma de B_GR_Dem_doce_Act | AF86: Suma de B_GR_Dem_doce_Pers | AG86: Suma de B_GR_Dem_Alu_Act | AH86: Suma de B_GR_Dem_Alu_Pers | AI86: Suma de B_GR_Dem_Mujer_Act | AJ86: Suma de B_GR_Dem_Mujer_Pers | AK86: Suma de B_GR_Dem_Gest_Act | AL86: Suma de B_GR_Dem_Gest_Pers | AM86: Suma de B_GR_Dem_Puerp_Act | AN86: Suma de B_GR_Dem_Puerp_Pers | AO86: Suma de B_GR_Edu_Niño_Act | AP86: Suma de B_GR_Edu_Niño_Pers | AQ86: Suma de B_GR_Edu_Adoles_Act | AR86: Suma de B_GR_Edu_Adoles_Pers | AS86: Suma de B_GR_Edu_Joven_Act | AT86: Suma de B_GR_Edu_Joven_Pers | AU86: Suma de B_GR_Edu_Adulto_Act | AV86: Suma de B_GR_Edu_Adulto_Pers | AW86: Suma de B_GR_Edu_AdultoM_Act | AX86: Suma de B_GR_Edu_AdultoM_Pers | AY86: Suma de B_GR_Dem_Niño_Act | AZ86: Suma de B_GR_Dem_Niño_Pers | BA86: Suma de B_GR_Dem_Adoles_Act | BB86: Suma de B_GR_Dem_Adoles_Pers | BC86: Suma de B_GR_Dem_Joven_Act | BD86: Suma de B_GR_Dem_Joven_Pers | BE86: Suma de B_GR_Dem_Adulto_Act | BF86: Suma de B_GR_Dem_Adulto_Pers | BG86: Suma de B_GR_Dem_AdultoM_Act | BH86: Suma de B_GR_Dem_AdultoM_Pers | BI86: Suma de B_ATD_Niños | BJ86: Suma de B_ATD_Adolesc | BK86: Suma de B_ATD_Joven | BL86: Suma de B_ATD_Adulto | BM86: Suma de B_ATD_AdultoM | BN86: Suma de B_ATD_Gest | BO86: Suma de B_ATC_Niños | BP86: Suma de B_ATC_Adolesc | BQ86: Suma de B_ATC_Joven | BR86: Suma de B_ATC_Adulto | BS86: Suma de B_ATC_AdultoM | BT86: Suma de B_ATC_Gest | BU86: Suma de B_InactivaC_F_0_28d | BV86: Suma de B_InactivaC_F_29_5m | BW86: Suma de B_InactivaC_F_6_11m | BX86: Suma de B_InactivaC_F_1a | BY86: Suma de B_InactivaC_F_2a | BZ86: Suma de B_InactivaC_F_3_5a | CA86: Suma de B_InactivaC_F_6_11a | CB86: Suma de B_InactivaC_F_Adolesc | CC86: Suma de B_InactivaC_F_Joven | CD86: Suma de B_InactivaC_F_Adulto | CE86: Suma de B_InactivaC_F_AdultoM | CF86: Suma de B_InactivaC_F_g | CG86: Suma de B_InactivaC_R_0_28d | CH86: Suma de B_InactivaC_R_29_5m | CI86: Suma de B_InactivaC_R_6_11m | CJ86: Suma de B_InactivaC_R_1a | CK86: Suma de B_InactivaC_R_2a | CL86: Suma de B_InactivaC_R_3_5a | CM86: Suma de B_InactivaC_R_6_11a | CN86: Suma de B_InactivaC_R_Adolesc | CO86: Suma de B_InactivaC_R_Joven | CP86: Suma de B_InactivaC_R_Adulto | CQ86: Suma de B_InactivaC_R_AdultoM | CR86: Suma de B_InactivaC_R_g | CS86: Suma de B_InactivaC_IV_0_28d | CT86: Suma de B_InactivaC_IV_29_5m | CU86: Suma de B_InactivaC_IV_6_11m | CV86: Suma de B_InactivaC_IV_1a | CW86: Suma de B_InactivaC_IV_2a | CX86: Suma de B_InactivaC_IV_3_5a | CY86: Suma de B_InactivaC_IV_6_11a | CZ86: Suma de B_InactivaC_IV_Adolesc | DA86: Suma de B_InactivaC_IV_Joven | DB86: Suma de B_InactivaC_IV_Adulto | DC86: Suma de B_InactivaC_IV_AdultoM | DD86: Suma de B_InactivaC_IV_g | DE86: Suma de B_InterConsulHosp_0_28d | DF86: Suma de B_InterConsulHosp_29_5m | DG86: Suma de B_InterConsulHosp_6_11m | DH86: Suma de B_InterConsulHosp_1a | DI86: Suma de B_InterConsulHosp_2a | DJ86: Suma de B_InterConsulHosp_3_5a | DK86: Suma de B_InterConsulHosp_6_11a | DL86: Suma de B_InterConsulHosp_Adolesc | DM86: Suma de B_InterConsulHosp_Joven | DN86: Suma de B_InterConsulHosp_Adulto | DO86: Suma de B_InterConsulHosp_AdultoM | DP86: Suma de B_InterConsulHosp_Gest | DQ86: Suma de B_InterConsulAmb_0_28d | DR86: Suma de B_InterConsulAmb_29_5m | DS86: Suma de B_InterConsulAmb_6_11m | DT86: Suma de B_InterConsulAmb_1a | DU86: Suma de B_InterConsulAmb_2a | DV86: Suma de B_InterConsulAmb_3_5a | DW86: Suma de B_InterConsulAmb_6_11a | DX86: Suma de B_InterConsulAmb_Adolesc | DY86: Suma de B_InterConsulAmb_Joven | DZ86: Suma de B_InterConsulAmb_Adulto | EA86: Suma de B_InterConsulAmb_AdultoM | EB86: Suma de B_InterConsulAmb_Gest | EC86: Suma de B_Referencia_0_28d | ED86: Suma de B_Referencia_29_5m | EE86: Suma de B_Referencia_6_11m | EF86: Suma de B_Referencia_1a | EG86: Suma de B_Referencia_2a | EH86: Suma de B_Referencia_3_5a | EI86: Suma de B_Referencia_6_11a | EJ86: Suma de B_Referencia_Adolesc | EK86: Suma de B_Referencia_Joven | EL86: Suma de B_Referencia_Adulto | EM86: Suma de B_Referencia_AdultoM | EN86: Suma de B_Referencia_Gest | EO86: Suma de B_CReferencia_0_28d | EP86: Suma de B_CReferencia_29_5m | EQ86: Suma de B_CReferencia_6_11m | ER86: Suma de B_CReferencia_1a | ES86: Suma de B_CReferencia_2a | ET86: Suma de B_CReferencia_3_5a | EU86: Suma de B_CReferencia_6_11a | EV86: Suma de B_CReferencia_Adolesc | EW86: Suma de B_CReferencia_Joven | EX86: Suma de B_CReferencia_Adulto | EY86: Suma de B_CReferencia_AdultoM | EZ86: Suma de B_CReferencia_Gest | FA86: Suma de B_Monitoreo | FB86: Suma de B_Supervicion | FC86: Suma de B_Evaluacion | FD86: Suma de B_AsisTecnica | FE86: Suma de B_TeleOriSinc_0_28d | FF86: Suma de B_TeleOriSinc_29_5m | FG86: Suma de B_TeleOriSinc_6_11m | FH86: Suma de B_TeleOriSinc_1a | FI86: Suma de B_TeleOriSinc_2a | FJ86: Suma de B_TeleOriSinc_3_5a | FK86: Suma de B_TeleOriSinc_6_11a | FL86: Suma de B_TeleOriSinc_Adolesc | FM86: Suma de B_TeleOriSinc_Joven | FN86: Suma de B_TeleOriSinc_Adulto | FO86: Suma de B_TeleOriSinc_AdultoM | FP86: Suma de B_TeleOriSinc_Gest | FQ86: Suma de B_TeleOrisinc_ap_0_28d | FR86: Suma de B_TeleOrisinc_ap_29_5m | FS86: Suma de B_TeleOrisinc_ap_6_11m | FT86: Suma de B_TeleOrisinc_ap_1a | FU86: Suma de B_TeleOrisinc_ap_2a | FV86: Suma de B_TeleOrisinc_ap_3_5a | FW86: Suma de B_TeleOrisinc_ap_6_11a | FX86: Suma de B_TeleOrisinc_ap_Adolesc | FY86: Suma de B_TeleOrisinc_ap_Joven | FZ86: Suma de B_TeleOrisinc_ap_Adulto | GA86: Suma de B_TeleOrisinc_ap_AdultoM | GB86: Suma de B_TeleOrisinc_ap_Gest | GC86: Suma de B_Telemonitoreo_0_28d | GD86: Suma de B_Telemonitoreo_29_5m | GE86: Suma de B_Telemonitoreo_6_11m | GF86: Suma de B_Telemonitoreo_1a | GG86: Suma de B_Telemonitoreo_2a | GH86: Suma de B_Telemonitoreo_3_5a | GI86: Suma de B_Telemonitoreo_6_11a | GJ86: Suma de B_Telemonitoreo_Adolesc | GK86: Suma de B_Telemonitoreo_Joven | GL86: Suma de B_Telemonitoreo_Adulto | GM86: Suma de B_Telemonitoreo_AdultoM | GN86: Suma de B_Telemonitoreo_Gest | GO86: Suma de B_TSInterconsultante_0_28d | GP86: Suma de B_TSInterconsultante_29_5m | GQ86: Suma de B_TSInterconsultante_6_11m | GR86: Suma de B_TSInterconsultante_1a | GS86: Suma de B_TSInterconsultante_2a | GT86: Suma de B_TSInterconsultante_3_5a | GU86: Suma de B_TSInterconsultante_6_11a | GV86: Suma de B_TSInterconsultante_Adolesc | GW86: Suma de B_TSInterconsultante_Joven | GX86: Suma de B_TSInterconsultante_Adulto | GY86: Suma de B_TSInterconsultante_AdultoM | GZ86: Suma de B_TSInterconsultante_Gest | HA86: Suma de B_TSInterconsultor_0_28d | HB86: Suma de B_TSInterconsultor_29_5m | HC86: Suma de B_TSInterconsultor_6_11m | HD86: Suma de B_TSInterconsultor_1a | HE86: Suma de B_TSInterconsultor_2a | HF86: Suma de B_TSInterconsultor_3_5a | HG86: Suma de B_TSInterconsultor_6_11a | HH86: Suma de B_TSInterconsultor_Adolesc | HI86: Suma de B_TSInterconsultor_Joven | HJ86: Suma de B_TSInterconsultor_Adulto | HK86: Suma de B_TSInterconsultor_AdultoM | HL86: Suma de B_TSInterconsultor_Gest
A87: 1 | B87: 0 | C87: 0 | D87: 0 | E87: 0 | F87: 1 | G87: 0 | H87: 0 | I87: 0 | J87: 0 | K87: 0 | L87: 0 | M87: 0 | N87: 0 | O87: 0 | P87: 0 | Q87: 3 | R87: 2 | S87: 0 | T87: 0 | U87: 0 | V87: 0 | W87: 0 | X87: 0 | Y87: 0 | Z87: 0 | AA87: 0 | AB87: 0 | AC87: 0 | AD87: 0 | AE87: 0 | AF87: 0 | AG87: 0 | AH87: 0 | AI87: 0 | AJ87: 0 | AK87: 0 | AL87: 0 | AM87: 0 | AN87: 0 | AO87: 0 | AP87: 0 | AQ87: 0 | AR87: 0 | AS87: 0 | AT87: 0 | AU87: 0 | AV87: 0 | AW87: 0 | AX87: 0 | AY87: 0 | AZ87: 0 | BA87: 0 | BB87: 0 | BC87: 0 | BD87: 0 | BE87: 0 | BF87: 0 | BG87: 0 | BH87: 0 | BI87: 1531 | BJ87: 750 | BK87: 753 | BL87: 1159 | BM87: 355 | BN87: 165 | BO87: 1929 | BP87: 961 | BQ87: 986 | BR87: 1430 | BS87: 430 | BT87: 224 | BU87: 0 | BV87: 0 | BW87: 0 | BX87: 0 | BY87: 0 | BZ87: 3 | CA87: 0 | CB87: 0 | CC87: 0 | CD87: 0 | CE87: 0 | CF87: 0 | CG87: 0 | CH87: 0 | CI87: 0 | CJ87: 0 | CK87: 0 | CL87: 0 | CM87: 0 | CN87: 0 | CO87: 0 | CP87: 0 | CQ87: 0 | CR87: 0 | CS87: 0 | CT87: 0 | CU87: 0 | CV87: 0 | CW87: 0 | CX87: 0 | CY87: 0 | CZ87: 0 | DA87: 0 | DB87: 0 | DC87: 0 | DD87: 0 | DE87: 0 | DF87: 0 | DG87: 0 | DH87: 0 | DI87: 0 | DJ87: 0 | DK87: 0 | DL87: 0 | DM87: 0 | DN87: 0 | DO87: 0 | DP87: 0 | DQ87: 0 | DR87: 0 | DS87: 0 | DT87: 0 | DU87: 0 | DV87: 0 | DW87: 0 | DX87: 0 | DY87: 0 | DZ87: 0 | EA87: 0 | EB87: 0 | EC87: 0 | ED87: 0 | EE87: 0 | EF87: 0 | EG87: 0 | EH87: 1 | EI87: 0 | EJ87: 0 | EK87: 0 | EL87: 0 | EM87: 1 | EN87: 0 | EO87: 0 | EP87: 0 | EQ87: 0 | ER87: 1 | ES87: 1 | ET87: 2 | EU87: 2 | EV87: 2 | EW87: 1 | EX87: 1 | EY87: 1 | EZ87: 0 | FA87: 0 | FB87: 0 | FC87: 0 | FD87: 0 | FE87: 0 | FF87: 0 | FG87: 0 | FH87: 0 | FI87: 0 | FJ87: 0 | FK87: 0 | FL87: 0 | FM87: 0 | FN87: 0 | FO87: 0 | FP87: 0 | FQ87: 0 | FR87: 0 | FS87: 0 | FT87: 0 | FU87: 0 | FV87: 0 | FW87: 0 | FX87: 0 | FY87: 0 | FZ87: 0 | GA87: 0 | GB87: 0 | GC87: 0 | GD87: 0 | GE87: 0 | GF87: 0 | GG87: 0 | GH87: 0 | GI87: 0 | GJ87: 0 | GK87: 0 | GL87: 0 | GM87: 0 | GN87: 0 | GO87: 0 | GP87: 0 | GQ87: 0 | GR87: 0 | GS87: 0 | GT87: 0 | GU87: 0 | GV87: 0 | GW87: 0 | GX87: 0 | GY87: 0 | GZ87: 0 | HA87: 0 | HB87: 0 | HC87: 0 | HD87: 0 | HE87: 0 | HF87: 0 | HG87: 0 | HH87: 0 | HI87: 0 | HJ87: 0 | HK87: 0 | HL87: 0
A88: 2 | B88: 0 | C88: 0 | D88: 0 | E88: 0 | F88: 0 | G88: 0 | H88: 0 | I88: 0 | J88: 0 | K88: 0 | L88: 0 | M88: 0 | N88: 0 | O88: 0 | P88: 0 | Q88: 3 | R88: 0 | S88: 1 | T88: 0 | U88: 0 | V88: 0 | W88: 0 | X88: 0 | Y88: 0 | Z88: 0 | AA88: 0 | AB88: 0 | AC88: 0 | AD88: 0 | AE88: 0 | AF88: 0 | AG88: 0 | AH88: 0 | AI88: 0 | AJ88: 0 | AK88: 0 | AL88: 0 | AM88: 0 | AN88: 0 | AO88: 0 | AP88: 0 | AQ88: 0 | AR88: 0 | AS88: 0 | AT88: 0 | AU88: 0 | AV88: 0 | AW88: 0 | AX88: 0 | AY88: 0 | AZ88: 0 | BA88: 0 | BB88: 0 | BC88: 0 | BD88: 0 | BE88: 0 | BF88: 0 | BG88: 0 | BH88: 0 | BI88: 1062 | BJ88: 521 | BK88: 425 | BL88: 722 | BM88: 220 | BN88: 92 | BO88: 1540 | BP88: 728 | BQ88: 630 | BR88: 998 | BS88: 321 | BT88: 155 | BU88: 0 | BV88: 0 | BW88: 0 | BX88: 0 | BY88: 0 | BZ88: 1 | CA88: 0 | CB88: 0 | CC88: 0 | CD88: 0 | CE88: 0 | CF88: 0 | CG88: 0 | CH88: 0 | CI88: 0 | CJ88: 0 | CK88: 0 | CL88: 0 | CM88: 0 | CN88: 0 | CO88: 0 | CP88: 0 | CQ88: 0 | CR88: 0 | CS88: 0 | CT88: 0 | CU88: 0 | CV88: 0 | CW88: 0 | CX88: 0 | CY88: 0 | CZ88: 0 | DA88: 0 | DB88: 0 | DC88: 0 | DD88: 0 | DE88: 1 | DF88: 0 | DG88: 0 | DH88: 0 | DI88: 0 | DJ88: 0 | DK88: 0 | DL88: 0 | DM88: 0 | DN88: 0 | DO88: 0 | DP88: 0 | DQ88: 0 | DR88: 0 | DS88: 0 | DT88: 0 | DU88: 0 | DV88: 0 | DW88: 0 | DX88: 0 | DY88: 0 | DZ88: 0 | EA88: 0 | EB88: 0 | EC88: 0 | ED88: 0 | EE88: 0 | EF88: 0 | EG88: 0 | EH88: 0 | EI88: 0 | EJ88: 0 | EK88: 0 | EL88: 1 | EM88: 0 | EN88: 0 | EO88: 0 | EP88: 0 | EQ88: 0 | ER88: 1 | ES88: 0 | ET88: 2 | EU88: 2 | EV88: 1 | EW88: 0 | EX88: 0 | EY88: 0 | EZ88: 0 | FA88: 0 | FB88: 0 | FC88: 0 | FD88: 0 | FE88: 0 | FF88: 0 | FG88: 0 | FH88: 0 | FI88: 0 | FJ88: 0 | FK88: 0 | FL88: 0 | FM88: 0 | FN88: 0 | FO88: 0 | FP88: 0 | FQ88: 0 | FR88: 0 | FS88: 0 | FT88: 0 | FU88: 0 | FV88: 0 | FW88: 0 | FX88: 0 | FY88: 0 | FZ88: 0 | GA88: 0 | GB88: 0 | GC88: 0 | GD88: 0 | GE88: 0 | GF88: 0 | GG88: 0 | GH88: 0 | GI88: 0 | GJ88: 0 | GK88: 0 | GL88: 0 | GM88: 0 | GN88: 0 | GO88: 0 | GP88: 0 | GQ88: 0 | GR88: 0 | GS88: 0 | GT88: 0 | GU88: 0 | GV88: 0 | GW88: 0 | GX88: 1 | GY88: 0 | GZ88: 0 | HA88: 0 | HB88: 0 | HC88: 0 | HD88: 0 | HE88: 0 | HF88: 0 | HG88: 0 | HH88: 0 | HI88: 0 | HJ88: 0 | HK88: 0 | HL88: 0
A89: 3 | B89: 0 | C89: 0 | D89: 0 | E89: 0 | F89: 0 | G89: 0 | H89: 0 | I89: 0 | J89: 0 | K89: 0 | L89: 0 | M89: 0 | N89: 0 | O89: 2 | P89: 1 | Q89: 1 | R89: 1 | S89: 0 | T89: 0 | U89: 0 | V89: 0 | W89: 0 | X89: 0 | Y89: 0 | Z89: 0 | AA89: 0 | AB89: 0 | AC89: 0 | AD89: 0 | AE89: 0 | AF89: 0 | AG89: 0 | AH89: 0 | AI89: 0 | AJ89: 0 | AK89: 0 | AL89: 0 | AM89: 0 | AN89: 0 | AO89: 0 | AP89: 0 | AQ89: 0 | AR89: 0 | AS89: 0 | AT89: 0 | AU89: 0 | AV89: 0 | AW89: 0 | AX89: 0 | AY89: 0 | AZ89: 0 | BA89: 0 | BB89: 0 | BC89: 0 | BD89: 0 | BE89: 0 | BF89: 0 | BG89: 0 | BH89: 0 | BI89: 1059 | BJ89: 590 | BK89: 728 | BL89: 838 | BM89: 325 | BN89: 116 | BO89: 1528 | BP89: 821 | BQ89: 1050 | BR89: 1114 | BS89: 434 | BT89: 228 | BU89: 0 | BV89: 0 | BW89: 0 | BX89: 0 | BY89: 0 | BZ89: 0 | CA89: 0 | CB89: 0 | CC89: 0 | CD89: 0 | CE89: 0 | CF89: 0 | CG89: 0 | CH89: 0 | CI89: 0 | CJ89: 0 | CK89: 0 | CL89: 0 | CM89: 0 | CN89: 0 | CO89: 0 | CP89: 0 | CQ89: 0 | CR89: 0 | CS89: 0 | CT89: 0 | CU89: 0 | CV89: 0 | CW89: 0 | CX89: 0 | CY89: 0 | CZ89: 0 | DA89: 0 | DB89: 0 | DC89: 0 | DD89: 0 | DE89: 0 | DF89: 0 | DG89: 0 | DH89: 0 | DI89: 0 | DJ89: 0 | DK89: 0 | DL89: 0 | DM89: 1 | DN89: 0 | DO89: 0 | DP89: 0 | DQ89: 0 | DR89: 0 | DS89: 0 | DT89: 0 | DU89: 0 | DV89: 0 | DW89: 0 | DX89: 0 | DY89: 0 | DZ89: 0 | EA89: 0 | EB89: 0 | EC89: 0 | ED89: 0 | EE89: 0 | EF89: 0 | EG89: 0 | EH89: 1 | EI89: 1 | EJ89: 0 | EK89: 1 | EL89: 0 | EM89: 0 | EN89: 0 | EO89: 0 | EP89: 0 | EQ89: 0 | ER89: 0 | ES89: 0 | ET89: 0 | EU89: 1 | EV89: 0 | EW89: 0 | EX89: 0 | EY89: 0 | EZ89: 0 | FA89: 0 | FB89: 0 | FC89: 0 | FD89: 0 | FE89: 0 | FF89: 0 | FG89: 0 | FH89: 0 | FI89: 0 | FJ89: 0 | FK89: 0 | FL89: 0 | FM89: 0 | FN89: 0 | FO89: 0 | FP89: 0 | FQ89: 0 | FR89: 0 | FS89: 0 | FT89: 0 | FU89: 0 | FV89: 0 | FW89: 0 | FX89: 0 | FY89: 0 | FZ89: 0 | GA89: 0 | GB89: 0 | GC89: 0 | GD89: 0 | GE89: 0 | GF89: 0 | GG89: 0 | GH89: 0 | GI89: 0 | GJ89: 0 | GK89: 0 | GL89: 0 | GM89: 0 | GN89: 0 | GO89: 0 | GP89: 0 | GQ89: 0 | GR89: 0 | GS89: 0 | GT89: 0 | GU89: 0 | GV89: 0 | GW89: 0 | GX89: 0 | GY89: 0 | GZ89: 0 | HA89: 0 | HB89: 0 | HC89: 0 | HD89: 0 | HE89: 0 | HF89: 0 | HG89: 0 | HH89: 0 | HI89: 0 | HJ89: 0 | HK89: 0 | HL89: 0
A90: 4 | B90: 0 | C90: 0 | D90: 0 | E90: 0 | F90: 0 | G90: 0 | H90: 0 | I90: 0 | J90: 0 | K90: 0 | L90: 0 | M90: 0 | N90: 0 | O90: 0 | P90: 0 | Q90: 4 | R90: 1 | S90: 0 | T90: 0 | U90: 0 | V90: 0 | W90: 0 | X90: 0 | Y90: 0 | Z90: 0 | AA90: 0 | AB90: 0 | AC90: 0 | AD90: 0 | AE90: 0 | AF90: 0 | AG90: 0 | AH90: 0 | AI90: 0 | AJ90: 0 | AK90: 0 | AL90: 0 | AM90: 0 | AN90: 0 | AO90: 0 | AP90: 0 | AQ90: 0 | AR90: 0 | AS90: 0 | AT90: 0 | AU90: 0 | AV90: 0 | AW90: 0 | AX90: 0 | AY90: 0 | AZ90: 0 | BA90: 0 | BB90: 0 | BC90: 0 | BD90: 0 | BE90: 0 | BF90: 0 | BG90: 0 | BH90: 0 | BI90: 3285 | BJ90: 1246 | BK90: 590 | BL90: 964 | BM90: 350 | BN90: 172 | BO90: 3890 | BP90: 1419 | BQ90: 857 | BR90: 1279 | BS90: 450 | BT90: 314 | BU90: 0 | BV90: 0 | BW90: 0 | BX90: 0 | BY90: 0 | BZ90: 0 | CA90: 0 | CB90: 0 | CC90: 0 | CD90: 0 | CE90: 0 | CF90: 0 | CG90: 0 | CH90: 0 | CI90: 0 | CJ90: 0 | CK90: 0 | CL90: 0 | CM90: 0 | CN90: 0 | CO90: 0 | CP90: 0 | CQ90: 0 | CR90: 0 | CS90: 0 | CT90: 0 | CU90: 0 | CV90: 0 | CW90: 0 | CX90: 0 | CY90: 0 | CZ90: 0 | DA90: 0 | DB90: 0 | DC90: 0 | DD90: 0 | DE90: 0 | DF90: 0 | DG90: 0 | DH90: 0 | DI90: 0 | DJ90: 0 | DK90: 0 | DL90: 0 | DM90: 0 | DN90: 0 | DO90: 0 | DP90: 0 | DQ90: 0 | DR90: 0 | DS90: 0 | DT90: 0 | DU90: 0 | DV90: 0 | DW90: 0 | DX90: 0 | DY90: 0 | DZ90: 0 | EA90: 0 | EB90: 0 | EC90: 0 | ED90: 0 | EE90: 0 | EF90: 0 | EG90: 0 | EH90: 0 | EI90: 0 | EJ90: 0 | EK90: 0 | EL90: 0 | EM90: 0 | EN90: 0 | EO90: 0 | EP90: 0 | EQ90: 0 | ER90: 0 | ES90: 0 | ET90: 2 | EU90: 1 | EV90: 0 | EW90: 0 | EX90: 0 | EY90: 0 | EZ90: 0 | FA90: 0 | FB90: 0 | FC90: 0 | FD90: 0 | FE90: 0 | FF90: 0 | FG90: 0 | FH90: 0 | FI90: 0 | FJ90: 0 | FK90: 0 | FL90: 0 | FM90: 0 | FN90: 0 | FO90: 0 | FP90: 0 | FQ90: 0 | FR90: 0 | FS90: 0 | FT90: 0 | FU90: 0 | FV90: 0 | FW90: 0 | FX90: 0 | FY90: 0 | FZ90: 0 | GA90: 0 | GB90: 0 | GC90: 0 | GD90: 0 | GE90: 0 | GF90: 0 | GG90: 0 | GH90: 0 | GI90: 0 | GJ90: 0 | GK90: 0 | GL90: 0 | GM90: 0 | GN90: 0 | GO90: 0 | GP90: 0 | GQ90: 0 | GR90: 0 | GS90: 0 | GT90: 0 | GU90: 0 | GV90: 0 | GW90: 0 | GX90: 0 | GY90: 0 | GZ90: 0 | HA90: 0 | HB90: 0 | HC90: 0 | HD90: 0 | HE90: 0 | HF90: 0 | HG90: 0 | HH90: 0 | HI90: 0 | HJ90: 0 | HK90: 0 | HL90: 0
A91: 5 | B91: 0 | C91: 0 | D91: 0 | E91: 0 | F91: 0 | G91: 0 | H91: 0 | I91: 0 | J91: 0 | K91: 0 | L91: 0 | M91: 0 | N91: 0 | O91: 0 | P91: 0 | Q91: 2 | R91: 0 | S91: 0 | T91: 0 | U91: 0 | V91: 0 | W91: 0 | X91: 0 | Y91: 0 | Z91: 0 | AA91: 0 | AB91: 0 | AC91: 0 | AD91: 0 | AE91: 0 | AF91: 0 | AG91: 0 | AH91: 0 | AI91: 0 | AJ91: 0 | AK91: 0 | AL91: 0 | AM91: 0 | AN91: 0 | AO91: 0 | AP91: 0 | AQ91: 0 | AR91: 0 | AS91: 0 | AT91: 0 | AU91: 0 | AV91: 0 | AW91: 0 | AX91: 0 | AY91: 0 | AZ91: 0 | BA91: 0 | BB91: 0 | BC91: 0 | BD91: 0 | BE91: 0 | BF91: 0 | BG91: 0 | BH91: 0 | BI91: 1474 | BJ91: 507 | BK91: 396 | BL91: 579 | BM91: 195 | BN91: 92 | BO91: 1896 | BP91: 642 | BQ91: 596 | BR91: 860 | BS91: 283 | BT91: 190 | BU91: 0 | BV91: 0 | BW91: 0 | BX91: 0 | BY91: 0 | BZ91: 0 | CA91: 0 | CB91: 0 | CC91: 0 | CD91: 0 | CE91: 0 | CF91: 0 | CG91: 0 | CH91: 0 | CI91: 0 | CJ91: 0 | CK91: 0 | CL91: 0 | CM91: 0 | CN91: 0 | CO91: 0 | CP91: 0 | CQ91: 0 | CR91: 0 | CS91: 0 | CT91: 0 | CU91: 0 | CV91: 0 | CW91: 0 | CX91: 0 | CY91: 0 | CZ91: 0 | DA91: 0 | DB91: 0 | DC91: 0 | DD91: 0 | DE91: 0 | DF91: 0 | DG91: 0 | DH91: 0 | DI91: 0 | DJ91: 0 | DK91: 0 | DL91: 0 | DM91: 0 | DN91: 0 | DO91: 0 | DP91: 0 | DQ91: 0 | DR91: 0 | DS91: 0 | DT91: 0 | DU91: 0 | DV91: 0 | DW91: 0 | DX91: 0 | DY91: 0 | DZ91: 0 | EA91: 0 | EB91: 0 | EC91: 0 | ED91: 0 | EE91: 0 | EF91: 0 | EG91: 0 | EH91: 1 | EI91: 0 | EJ91: 1 | EK91: 0 | EL91: 0 | EM91: 0 | EN91: 0 | EO91: 1 | EP91: 0 | EQ91: 0 | ER91: 0 | ES91: 0 | ET91: 1 | EU91: 0 | EV91: 0 | EW91: 0 | EX91: 0 | EY91: 0 | EZ91: 0 | FA91: 0 | FB91: 0 | FC91: 0 | FD91: 0 | FE91: 0 | FF91: 0 | FG91: 0 | FH91: 0 | FI91: 0 | FJ91: 0 | FK91: 0 | FL91: 0 | FM91: 0 | FN91: 0 | FO91: 0 | FP91: 0 | FQ91: 0 | FR91: 0 | FS91: 0 | FT91: 0 | FU91: 0 | FV91: 0 | FW91: 0 | FX91: 0 | FY91: 0 | FZ91: 0 | GA91: 0 | GB91: 0 | GC91: 0 | GD91: 0 | GE91: 0 | GF91: 0 | GG91: 0 | GH91: 0 | GI91: 0 | GJ91: 0 | GK91: 0 | GL91: 0 | GM91: 0 | GN91: 0 | GO91: 0 | GP91: 0 | GQ91: 0 | GR91: 0 | GS91: 0 | GT91: 0 | GU91: 0 | GV91: 0 | GW91: 0 | GX91: 0 | GY91: 0 | GZ91: 0 | HA91: 0 | HB91: 0 | HC91: 0 | HD91: 0 | HE91: 0 | HF91: 0 | HG91: 0 | HH91: 0 | HI91: 0 | HJ91: 0 | HK91: 0 | HL91: 0
A92: 6 | B92: 0 | C92: 0 | D92: 0 | E92: 0 | F92: 0 | G92: 0 | H92: 2 | I92: 0 | J92: 0 | K92: 0 | L92: 0 | M92: 0 | N92: 0 | O92: 0 | P92: 0 | Q92: 2 | R92: 0 | S92: 1 | T92: 0 | U92: 0 | V92: 0 | W92: 0 | X92: 0 | Y92: 0 | Z92: 0 | AA92: 0 | AB92: 0 | AC92: 0 | AD92: 0 | AE92: 0 | AF92: 0 | AG92: 0 | AH92: 0 | AI92: 0 | AJ92: 0 | AK92: 0 | AL92: 0 | AM92: 0 | AN92: 0 | AO92: 0 | AP92: 0 | AQ92: 0 | AR92: 0 | AS92: 0 | AT92: 0 | AU92: 0 | AV92: 0 | AW92: 0 | AX92: 0 | AY92: 0 | AZ92: 0 | BA92: 0 | BB92: 0 | BC92: 0 | BD92: 0 | BE92: 0 | BF92: 0 | BG92: 0 | BH92: 0 | BI92: 1548 | BJ92: 392 | BK92: 477 | BL92: 868 | BM92: 305 | BN92: 123 | BO92: 2424 | BP92: 607 | BQ92: 733 | BR92: 1216 | BS92: 467 | BT92: 244 | BU92: 0 | BV92: 0 | BW92: 0 | BX92: 0 | BY92: 0 | BZ92: 0 | CA92: 0 | CB92: 0 | CC92: 0 | CD92: 0 | CE92: 0 | CF92: 0 | CG92: 0 | CH92: 0 | CI92: 0 | CJ92: 0 | CK92: 0 | CL92: 0 | CM92: 0 | CN92: 0 | CO92: 0 | CP92: 0 | CQ92: 0 | CR92: 0 | CS92: 0 | CT92: 0 | CU92: 0 | CV92: 0 | CW92: 0 | CX92: 0 | CY92: 0 | CZ92: 0 | DA92: 0 | DB92: 0 | DC92: 0 | DD92: 0 | DE92: 0 | DF92: 0 | DG92: 0 | DH92: 0 | DI92: 0 | DJ92: 1 | DK92: 1 | DL92: 0 | DM92: 0 | DN92: 0 | DO92: 0 | DP92: 0 | DQ92: 0 | DR92: 0 | DS92: 0 | DT92: 0 | DU92: 0 | DV92: 0 | DW92: 0 | DX92: 0 | DY92: 0 | DZ92: 0 | EA92: 0 | EB92: 0 | EC92: 0 | ED92: 0 | EE92: 0 | EF92: 0 | EG92: 1 | EH92: 0 | EI92: 0 | EJ92: 0 | EK92: 0 | EL92: 1 | EM92: 0 | EN92: 0 | EO92: 0 | EP92: 0 | EQ92: 0 | ER92: 0 | ES92: 1 | ET92: 1 | EU92: 0 | EV92: 0 | EW92: 0 | EX92: 0 | EY92: 0 | EZ92: 0 | FA92: 0 | FB92: 0 | FC92: 0 | FD92: 0 | FE92: 0 | FF92: 0 | FG92: 0 | FH92: 0 | FI92: 0 | FJ92: 0 | FK92: 0 | FL92: 0 | FM92: 0 | FN92: 0 | FO92: 0 | FP92: 0 | FQ92: 0 | FR92: 0 | FS92: 0 | FT92: 0 | FU92: 0 | FV92: 0 | FW92: 0 | FX92: 0 | FY92: 0 | FZ92: 0 | GA92: 0 | GB92: 0 | GC92: 0 | GD92: 0 | GE92: 0 | GF92: 0 | GG92: 0 | GH92: 0 | GI92: 0 | GJ92: 0 | GK92: 0 | GL92: 0 | GM92: 0 | GN92: 0 | GO92: 0 | GP92: 0 | GQ92: 0 | GR92: 0 | GS92: 0 | GT92: 0 | GU92: 0 | GV92: 0 | GW92: 0 | GX92: 0 | GY92: 0 | GZ92: 0 | HA92: 0 | HB92: 0 | HC92: 0 | HD92: 0 | HE92: 0 | HF92: 0 | HG92: 0 | HH92: 0 | HI92: 0 | HJ92: 0 | HK92: 0 | HL92: 0
A93: 7 | B93: 1 | C93: 1 | D93: 1 | E93: 0 | F93: 1 | G93: 0 | H93: 1 | I93: 0 | J93: 0 | K93: 0 | L93: 0 | M93: 0 | N93: 0 | O93: 0 | P93: 0 | Q93: 3 | R93: 3 | S93: 1 | T93: 0 | U93: 0 | V93: 0 | W93: 0 | X93: 0 | Y93: 0 | Z93: 0 | AA93: 0 | AB93: 0 | AC93: 0 | AD93: 0 | AE93: 0 | AF93: 0 | AG93: 0 | AH93: 0 | AI93: 0 | AJ93: 0 | AK93: 0 | AL93: 0 | AM93: 0 | AN93: 0 | AO93: 0 | AP93: 0 | AQ93: 0 | AR93: 0 | AS93: 0 | AT93: 0 | AU93: 0 | AV93: 0 | AW93: 0 | AX93: 0 | AY93: 0 | AZ93: 0 | BA93: 0 | BB93: 0 | BC93: 0 | BD93: 0 | BE93: 0 | BF93: 0 | BG93: 0 | BH93: 0 | BI93: 1615 | BJ93: 903 | BK93: 430 | BL93: 745 | BM93: 241 | BN93: 121 | BO93: 2249 | BP93: 1086 | BQ93: 706 | BR93: 1130 | BS93: 396 | BT93: 244 | BU93: 0 | BV93: 0 | BW93: 0 | BX93: 0 | BY93: 0 | BZ93: 0 | CA93: 2 | CB93: 0 | CC93: 0 | CD93: 0 | CE93: 0 | CF93: 0 | CG93: 0 | CH93: 0 | CI93: 0 | CJ93: 0 | CK93: 0 | CL93: 0 | CM93: 0 | CN93: 0 | CO93: 0 | CP93: 0 | CQ93: 0 | CR93: 0 | CS93: 0 | CT93: 0 | CU93: 0 | CV93: 0 | CW93: 0 | CX93: 0 | CY93: 0 | CZ93: 0 | DA93: 0 | DB93: 0 | DC93: 0 | DD93: 0 | DE93: 0 | DF93: 0 | DG93: 0 | DH93: 0 | DI93: 0 | DJ93: 0 | DK93: 0 | DL93: 0 | DM93: 0 | DN93: 0 | DO93: 0 | DP93: 0 | DQ93: 0 | DR93: 0 | DS93: 0 | DT93: 0 | DU93: 0 | DV93: 0 | DW93: 0 | DX93: 0 | DY93: 0 | DZ93: 0 | EA93: 0 | EB93: 0 | EC93: 0 | ED93: 0 | EE93: 0 | EF93: 0 | EG93: 0 | EH93: 0 | EI93: 0 | EJ93: 0 | EK93: 0 | EL93: 0 | EM93: 0 | EN93: 0 | EO93: 1 | EP93: 0 | EQ93: 0 | ER93: 0 | ES93: 0 | ET93: 2 | EU93: 0 | EV93: 0 | EW93: 0 | EX93: 0 | EY93: 0 | EZ93: 0 | FA93: 0 | FB93: 0 | FC93: 0 | FD93: 0 | FE93: 0 | FF93: 0 | FG93: 0 | FH93: 0 | FI93: 0 | FJ93: 0 | FK93: 0 | FL93: 0 | FM93: 0 | FN93: 0 | FO93: 0 | FP93: 0 | FQ93: 0 | FR93: 0 | FS93: 0 | FT93: 0 | FU93: 0 | FV93: 0 | FW93: 0 | FX93: 0 | FY93: 0 | FZ93: 0 | GA93: 0 | GB93: 0 | GC93: 0 | GD93: 0 | GE93: 0 | GF93: 0 | GG93: 0 | GH93: 0 | GI93: 0 | GJ93: 0 | GK93: 0 | GL93: 0 | GM93: 0 | GN93: 0 | GO93: 0 | GP93: 0 | GQ93: 0 | GR93: 0 | GS93: 0 | GT93: 0 | GU93: 0 | GV93: 0 | GW93: 0 | GX93: 0 | GY93: 0 | GZ93: 0 | HA93: 0 | HB93: 0 | HC93: 0 | HD93: 0 | HE93: 0 | HF93: 0 | HG93: 0 | HH93: 0 | HI93: 0 | HJ93: 0 | HK93: 0 | HL93: 0
A94: 8 | B94: 0 | C94: 0 | D94: 0 | E94: 0 | F94: 0 | G94: 0 | H94: 1 | I94: 0 | J94: 0 | K94: 0 | L94: 0 | M94: 0 | N94: 0 | O94: 0 | P94: 1 | Q94: 2 | R94: 2 | S94: 2 | T94: 0 | U94: 0 | V94: 0 | W94: 0 | X94: 0 | Y94: 0 | Z94: 0 | AA94: 0 | AB94: 0 | AC94: 0 | AD94: 0 | AE94: 0 | AF94: 0 | AG94: 0 | AH94: 0 | AI94: 0 | AJ94: 0 | AK94: 0 | AL94: 0 | AM94: 0 | AN94: 0 | AO94: 0 | AP94: 0 | AQ94: 0 | AR94: 0 | AS94: 0 | AT94: 0 | AU94: 0 | AV94: 0 | AW94: 0 | AX94: 0 | AY94: 0 | AZ94: 0 | BA94: 0 | BB94: 0 | BC94: 0 | BD94: 0 | BE94: 0 | BF94: 0 | BG94: 0 | BH94: 0 | BI94: 965 | BJ94: 655 | BK94: 450 | BL94: 652 | BM94: 279 | BN94: 124 | BO94: 1843 | BP94: 956 | BQ94: 698 | BR94: 1062 | BS94: 438 | BT94: 212 | BU94: 0 | BV94: 0 | BW94: 0 | BX94: 0 | BY94: 0 | BZ94: 2 | CA94: 0 | CB94: 0 | CC94: 0 | CD94: 0 | CE94: 0 | CF94: 0 | CG94: 0 | CH94: 0 | CI94: 0 | CJ94: 0 | CK94: 0 | CL94: 0 | CM94: 0 | CN94: 0 | CO94: 0 | CP94: 0 | CQ94: 0 | CR94: 0 | CS94: 0 | CT94: 0 | CU94: 0 | CV94: 0 | CW94: 0 | CX94: 0 | CY94: 0 | CZ94: 0 | DA94: 0 | DB94: 0 | DC94: 0 | DD94: 0 | DE94: 0 | DF94: 0 | DG94: 0 | DH94: 0 | DI94: 0 | DJ94: 0 | DK94: 1 | DL94: 0 | DM94: 0 | DN94: 0 | DO94: 3 | DP94: 0 | DQ94: 0 | DR94: 0 | DS94: 0 | DT94: 0 | DU94: 0 | DV94: 0 | DW94: 0 | DX94: 0 | DY94: 0 | DZ94: 0 | EA94: 0 | EB94: 0 | EC94: 0 | ED94: 0 | EE94: 0 | EF94: 0 | EG94: 0 | EH94: 2 | EI94: 0 | EJ94: 0 | EK94: 0 | EL94: 2 | EM94: 2 | EN94: 0 | EO94: 0 | EP94: 0 | EQ94: 0 | ER94: 0 | ES94: 1 | ET94: 0 | EU94: 0 | EV94: 0 | EW94: 0 | EX94: 0 | EY94: 0 | EZ94: 1 | FA94: 0 | FB94: 0 | FC94: 0 | FD94: 0 | FE94: 0 | FF94: 0 | FG94: 0 | FH94: 0 | FI94: 0 | FJ94: 0 | FK94: 0 | FL94: 0 | FM94: 0 | FN94: 0 | FO94: 0 | FP94: 0 | FQ94: 0 | FR94: 0 | FS94: 0 | FT94: 0 | FU94: 0 | FV94: 0 | FW94: 0 | FX94: 0 | FY94: 0 | FZ94: 0 | GA94: 0 | GB94: 0 | GC94: 0 | GD94: 0 | GE94: 0 | GF94: 0 | GG94: 0 | GH94: 0 | GI94: 0 | GJ94: 0 | GK94: 0 | GL94: 0 | GM94: 0 | GN94: 0 | GO94: 0 | GP94: 0 | GQ94: 0 | GR94: 0 | GS94: 0 | GT94: 0 | GU94: 0 | GV94: 0 | GW94: 0 | GX94: 0 | GY94: 0 | GZ94: 0 | HA94: 0 | HB94: 0 | HC94: 0 | HD94: 0 | HE94: 0 | HF94: 0 | HG94: 0 | HH94: 0 | HI94: 0 | HJ94: 0 | HK94: 0 | HL94: 0
A95: 9 | B95: 0 | C95: 0 | D95: 0 | E95: 0 | F95: 1 | G95: 0 | H95: 1 | I95: 0 | J95: 0 | K95: 0 | L95: 0 | M95: 0 | N95: 0 | O95: 0 | P95: 0 | Q95: 0 | R95: 0 | S95: 0 | T95: 0 | U95: 0 | V95: 0 | W95: 0 | X95: 0 | Y95: 0 | Z95: 0 | AA95: 0 | AB95: 0 | AC95: 0 | AD95: 0 | AE95: 0 | AF95: 0 | AG95: 0 | AH95: 0 | AI95: 0 | AJ95: 0 | AK95: 0 | AL95: 0 | AM95: 0 | AN95: 0 | AO95: 0 | AP95: 0 | AQ95: 0 | AR95: 0 | AS95: 0 | AT95: 0 | AU95: 0 | AV95: 0 | AW95: 0 | AX95: 0 | AY95: 0 | AZ95: 0 | BA95: 0 | BB95: 0 | BC95: 0 | BD95: 0 | BE95: 0 | BF95: 0 | BG95: 0 | BH95: 0 | BI95: 956 | BJ95: 352 | BK95: 403 | BL95: 746 | BM95: 261 | BN95: 96 | BO95: 2285 | BP95: 681 | BQ95: 680 | BR95: 1088 | BS95: 422 | BT95: 195 | BU95: 0 | BV95: 0 | BW95: 0 | BX95: 0 | BY95: 0 | BZ95: 0 | CA95: 0 | CB95: 0 | CC95: 0 | CD95: 0 | CE95: 0 | CF95: 0 | CG95: 0 | CH95: 0 | CI95: 0 | CJ95: 0 | CK95: 0 | CL95: 0 | CM95: 0 | CN95: 0 | CO95: 0 | CP95: 0 | CQ95: 0 | CR95: 0 | CS95: 0 | CT95: 0 | CU95: 0 | CV95: 0 | CW95: 0 | CX95: 0 | CY95: 0 | CZ95: 0 | DA95: 0 | DB95: 0 | DC95: 0 | DD95: 0 | DE95: 0 | DF95: 0 | DG95: 0 | DH95: 0 | DI95: 0 | DJ95: 0 | DK95: 0 | DL95: 0 | DM95: 2 | DN95: 0 | DO95: 0 | DP95: 2 | DQ95: 0 | DR95: 0 | DS95: 0 | DT95: 0 | DU95: 0 | DV95: 0 | DW95: 0 | DX95: 0 | DY95: 0 | DZ95: 0 | EA95: 0 | EB95: 0 | EC95: 0 | ED95: 0 | EE95: 0 | EF95: 0 | EG95: 0 | EH95: 0 | EI95: 1 | EJ95: 0 | EK95: 0 | EL95: 0 | EM95: 0 | EN95: 0 | EO95: 0 | EP95: 0 | EQ95: 0 | ER95: 0 | ES95: 0 | ET95: 1 | EU95: 0 | EV95: 0 | EW95: 0 | EX95: 0 | EY95: 0 | EZ95: 0 | FA95: 0 | FB95: 0 | FC95: 0 | FD95: 0 | FE95: 0 | FF95: 0 | FG95: 0 | FH95: 0 | FI95: 0 | FJ95: 0 | FK95: 0 | FL95: 0 | FM95: 0 | FN95: 0 | FO95: 0 | FP95: 0 | FQ95: 0 | FR95: 0 | FS95: 0 | FT95: 0 | FU95: 0 | FV95: 0 | FW95: 0 | FX95: 0 | FY95: 0 | FZ95: 0 | GA95: 0 | GB95: 0 | GC95: 0 | GD95: 0 | GE95: 0 | GF95: 0 | GG95: 0 | GH95: 0 | GI95: 0 | GJ95: 0 | GK95: 0 | GL95: 0 | GM95: 0 | GN95: 0 | GO95: 0 | GP95: 0 | GQ95: 0 | GR95: 0 | GS95: 0 | GT95: 0 | GU95: 0 | GV95: 0 | GW95: 0 | GX95: 0 | GY95: 0 | GZ95: 0 | HA95: 0 | HB95: 0 | HC95: 0 | HD95: 0 | HE95: 0 | HF95: 0 | HG95: 0 | HH95: 0 | HI95: 0 | HJ95: 0 | HK95: 0 | HL95: 0
A96: 10 | B96: 0 | C96: 2 | D96: 0 | E96: 0 | F96: 0 | G96: 0 | H96: 0 | I96: 0 | J96: 0 | K96: 0 | L96: 0 | M96: 0 | N96: 0 | O96: 0 | P96: 0 | Q96: 0 | R96: 1 | S96: 0 | T96: 0 | U96: 0 | V96: 0 | W96: 0 | X96: 0 | Y96: 0 | Z96: 0 | AA96: 0 | AB96: 0 | AC96: 0 | AD96: 0 | AE96: 0 | AF96: 0 | AG96: 0 | AH96: 0 | AI96: 0 | AJ96: 0 | AK96: 0 | AL96: 0 | AM96: 0 | AN96: 0 | AO96: 0 | AP96: 0 | AQ96: 0 | AR96: 0 | AS96: 0 | AT96: 0 | AU96: 0 | AV96: 0 | AW96: 0 | AX96: 0 | AY96: 0 | AZ96: 0 | BA96: 0 | BB96: 0 | BC96: 0 | BD96: 0 | BE96: 0 | BF96: 0 | BG96: 0 | BH96: 0 | BI96: 1004 | BJ96: 265 | BK96: 466 | BL96: 675 | BM96: 228 | BN96: 83 | BO96: 2580 | BP96: 636 | BQ96: 792 | BR96: 1114 | BS96: 362 | BT96: 174 | BU96: 0 | BV96: 0 | BW96: 0 | BX96: 0 | BY96: 0 | BZ96: 0 | CA96: 0 | CB96: 0 | CC96: 0 | CD96: 0 | CE96: 0 | CF96: 0 | CG96: 0 | CH96: 0 | CI96: 0 | CJ96: 0 | CK96: 0 | CL96: 0 | CM96: 0 | CN96: 0 | CO96: 0 | CP96: 0 | CQ96: 0 | CR96: 0 | CS96: 0 | CT96: 0 | CU96: 0 | CV96: 0 | CW96: 0 | CX96: 0 | CY96: 0 | CZ96: 0 | DA96: 0 | DB96: 0 | DC96: 0 | DD96: 0 | DE96: 1 | DF96: 0 | DG96: 0 | DH96: 0 | DI96: 0 | DJ96: 0 | DK96: 1 | DL96: 0 | DM96: 2 | DN96: 2 | DO96: 1 | DP96: 0 | DQ96: 0 | DR96: 0 | DS96: 0 | DT96: 0 | DU96: 0 | DV96: 0 | DW96: 0 | DX96: 0 | DY96: 0 | DZ96: 0 | EA96: 0 | EB96: 0 | EC96: 0 | ED96: 0 | EE96: 0 | EF96: 0 | EG96: 0 | EH96: 1 | EI96: 0 | EJ96: 0 | EK96: 0 | EL96: 0 | EM96: 0 | EN96: 0 | EO96: 0 | EP96: 0 | EQ96: 0 | ER96: 0 | ES96: 0 | ET96: 1 | EU96: 0 | EV96: 0 | EW96: 0 | EX96: 1 | EY96: 0 | EZ96: 0 | FA96: 0 | FB96: 0 | FC96: 0 | FD96: 0 | FE96: 0 | FF96: 0 | FG96: 0 | FH96: 0 | FI96: 0 | FJ96: 0 | FK96: 0 | FL96: 0 | FM96: 0 | FN96: 0 | FO96: 0 | FP96: 0 | FQ96: 0 | FR96: 0 | FS96: 0 | FT96: 0 | FU96: 0 | FV96: 0 | FW96: 0 | FX96: 0 | FY96: 0 | FZ96: 0 | GA96: 0 | GB96: 0 | GC96: 0 | GD96: 0 | GE96: 0 | GF96: 0 | GG96: 0 | GH96: 0 | GI96: 0 | GJ96: 0 | GK96: 0 | GL96: 0 | GM96: 0 | GN96: 0 | GO96: 0 | GP96: 0 | GQ96: 0 | GR96: 0 | GS96: 0 | GT96: 0 | GU96: 0 | GV96: 0 | GW96: 0 | GX96: 0 | GY96: 0 | GZ96: 0 | HA96: 0 | HB96: 0 | HC96: 0 | HD96: 0 | HE96: 0 | HF96: 0 | HG96: 0 | HH96: 0 | HI96: 0 | HJ96: 0 | HK96: 0 | HL96: 0
A97: 11 | B97: 1 | C97: 0 | D97: 0 | E97: 0 | F97: 1 | G97: 0 | H97: 2 | I97: 0 | J97: 0 | K97: 0 | L97: 0 | M97: 0 | N97: 0 | O97: 0 | P97: 0 | Q97: 1 | R97: 2 | S97: 3 | T97: 0 | U97: 0 | V97: 0 | W97: 0 | X97: 0 | Y97: 0 | Z97: 0 | AA97: 0 | AB97: 0 | AC97: 0 | AD97: 0 | AE97: 0 | AF97: 0 | AG97: 0 | AH97: 0 | AI97: 0 | AJ97: 0 | AK97: 0 | AL97: 0 | AM97: 0 | AN97: 0 | AO97: 0 | AP97: 0 | AQ97: 0 | AR97: 0 | AS97: 0 | AT97: 0 | AU97: 0 | AV97: 0 | AW97: 0 | AX97: 0 | AY97: 0 | AZ97: 0 | BA97: 0 | BB97: 0 | BC97: 0 | BD97: 0 | BE97: 0 | BF97: 0 | BG97: 0 | BH97: 0 | BI97: 662 | BJ97: 275 | BK97: 326 | BL97: 582 | BM97: 219 | BN97: 93 | BO97: 2334 | BP97: 843 | BQ97: 577 | BR97: 942 | BS97: 327 | BT97: 189 | BU97: 0 | BV97: 0 | BW97: 0 | BX97: 0 | BY97: 0 | BZ97: 0 | CA97: 0 | CB97: 0 | CC97: 0 | CD97: 0 | CE97: 0 | CF97: 0 | CG97: 0 | CH97: 0 | CI97: 0 | CJ97: 0 | CK97: 0 | CL97: 0 | CM97: 0 | CN97: 0 | CO97: 0 | CP97: 0 | CQ97: 0 | CR97: 0 | CS97: 0 | CT97: 0 | CU97: 0 | CV97: 0 | CW97: 0 | CX97: 0 | CY97: 0 | CZ97: 0 | DA97: 0 | DB97: 0 | DC97: 0 | DD97: 0 | DE97: 0 | DF97: 0 | DG97: 0 | DH97: 0 | DI97: 0 | DJ97: 0 | DK97: 0 | DL97: 1 | DM97: 1 | DN97: 0 | DO97: 4 | DP97: 0 | DQ97: 0 | DR97: 0 | DS97: 0 | DT97: 0 | DU97: 0 | DV97: 0 | DW97: 0 | DX97: 0 | DY97: 0 | DZ97: 0 | EA97: 0 | EB97: 0 | EC97: 0 | ED97: 0 | EE97: 0 | EF97: 0 | EG97: 0 | EH97: 0 | EI97: 0 | EJ97: 0 | EK97: 0 | EL97: 0 | EM97: 0 | EN97: 0 | EO97: 0 | EP97: 0 | EQ97: 0 | ER97: 0 | ES97: 0 | ET97: 2 | EU97: 0 | EV97: 0 | EW97: 1 | EX97: 1 | EY97: 2 | EZ97: 0 | FA97: 0 | FB97: 0 | FC97: 0 | FD97: 0 | FE97: 0 | FF97: 0 | FG97: 0 | FH97: 0 | FI97: 0 | FJ97: 0 | FK97: 0 | FL97: 0 | FM97: 0 | FN97: 0 | FO97: 0 | FP97: 0 | FQ97: 0 | FR97: 0 | FS97: 0 | FT97: 0 | FU97: 0 | FV97: 0 | FW97: 0 | FX97: 0 | FY97: 0 | FZ97: 0 | GA97: 0 | GB97: 0 | GC97: 0 | GD97: 0 | GE97: 0 | GF97: 0 | GG97: 0 | GH97: 0 | GI97: 0 | GJ97: 0 | GK97: 0 | GL97: 0 | GM97: 0 | GN97: 0 | GO97: 0 | GP97: 0 | GQ97: 0 | GR97: 0 | GS97: 0 | GT97: 0 | GU97: 0 | GV97: 0 | GW97: 0 | GX97: 0 | GY97: 0 | GZ97: 0 | HA97: 0 | HB97: 0 | HC97: 0 | HD97: 0 | HE97: 0 | HF97: 0 | HG97: 0 | HH97: 0 | HI97: 0 | HJ97: 0 | HK97: 0 | HL97: 0
A98: Total general | B98: 2 | C98: 3 | D98: 1 | E98: 0 | F98: 4 | G98: 0 | H98: 7 | I98: 0 | J98: 0 | K98: 0 | L98: 0 | M98: 0 | N98: 0 | O98: 2 | P98: 2 | Q98: 21 | R98: 12 | S98: 8 | T98: 0 | U98: 0 | V98: 0 | W98: 0 | X98: 0 | Y98: 0 | Z98: 0 | AA98: 0 | AB98: 0 | AC98: 0 | AD98: 0 | AE98: 0 | AF98: 0 | AG98: 0 | AH98: 0 | AI98: 0 | AJ98: 0 | AK98: 0 | AL98: 0 | AM98: 0 | AN98: 0 | AO98: 0 | AP98: 0 | AQ98: 0 | AR98: 0 | AS98: 0 | AT98: 0 | AU98: 0 | AV98: 0 | AW98: 0 | AX98: 0 | AY98: 0 | AZ98: 0 | BA98: 0 | BB98: 0 | BC98: 0 | BD98: 0 | BE98: 0 | BF98: 0 | BG98: 0 | BH98: 0 | BI98: 15161 | BJ98: 6456 | BK98: 5444 | BL98: 8530 | BM98: 2978 | BN98: 1277 | BO98: 24498 | BP98: 9380 | BQ98: 8305 | BR98: 12233 | BS98: 4330 | BT98: 2369 | BU98: 0 | BV98: 0 | BW98: 0 | BX98: 0 | BY98: 0 | BZ98: 6 | CA98: 2 | CB98: 0 | CC98: 0 | CD98: 0 | CE98: 0 | CF98: 0 | CG98: 0 | CH98: 0 | CI98: 0 | CJ98: 0 | CK98: 0 | CL98: 0 | CM98: 0 | CN98: 0 | CO98: 0 | CP98: 0 | CQ98: 0 | CR98: 0 | CS98: 0 | CT98: 0 | CU98: 0 | CV98: 0 | CW98: 0 | CX98: 0 | CY98: 0 | CZ98: 0 | DA98: 0 | DB98: 0 | DC98: 0 | DD98: 0 | DE98: 2 | DF98: 0 | DG98: 0 | DH98: 0 | DI98: 0 | DJ98: 1 | DK98: 3 | DL98: 1 | DM98: 6 | DN98: 2 | DO98: 8 | DP98: 2 | DQ98: 0 | DR98: 0 | DS98: 0 | DT98: 0 | DU98: 0 | DV98: 0 | DW98: 0 | DX98: 0 | DY98: 0 | DZ98: 0 | EA98: 0 | EB98: 0 | EC98: 0 | ED98: 0 | EE98: 0 | EF98: 0 | EG98: 1 | EH98: 6 | EI98: 2 | EJ98: 1 | EK98: 1 | EL98: 4 | EM98: 3 | EN98: 0 | EO98: 2 | EP98: 0 | EQ98: 0 | ER98: 2 | ES98: 3 | ET98: 14 | EU98: 6 | EV98: 3 | EW98: 2 | EX98: 3 | EY98: 3 | EZ98: 1 | FA98: 0 | FB98: 0 | FC98: 0 | FD98: 0 | FE98: 0 | FF98: 0 | FG98: 0 | FH98: 0 | FI98: 0 | FJ98: 0 | FK98: 0 | FL98: 0 | FM98: 0 | FN98: 0 | FO98: 0 | FP98: 0 | FQ98: 0 | FR98: 0 | FS98: 0 | FT98: 0 | FU98: 0 | FV98: 0 | FW98: 0 | FX98: 0 | FY98: 0 | FZ98: 0 | GA98: 0 | GB98: 0 | GC98: 0 | GD98: 0 | GE98: 0 | GF98: 0 | GG98: 0 | GH98: 0 | GI98: 0 | GJ98: 0 | GK98: 0 | GL98: 0 | GM98: 0 | GN98: 0 | GO98: 0 | GP98: 0 | GQ98: 0 | GR98: 0 | GS98: 0 | GT98: 0 | GU98: 0 | GV98: 0 | GW98: 0 | GX98: 1 | GY98: 0 | GZ98: 0 | HA98: 0 | HB98: 0 | HC98: 0 | HD98: 0 | HE98: 0 | HF98: 0 | HG98: 0 | HH98: 0 | HI98: 0 | HJ98: 0 | HK98: 0 | HL98: 0
A104: Salud Bucal 4
A105: Anio | B105: 2024
A106: UE | B106: (Todas)
A107: Red | B107: LA CONVENCION
A108: MicroRed | B108: (Todas)
A109: EESS | B109: (Todas)
A110: Provincia | B110: (Todas)
A111: Distrito | B111: (Todas)
A113: Etiquetas de fila | B113: Suma de B_ANCEDN_CT_0_28d | C113: Suma de B_ANCEDN_CT_29_5m | D113: Suma de B_ANCEDN_CT_6_11m | E113: Suma de B_ANCEDN_CT_1a | F113: Suma de B_ANCEDN_CT_2a | G113: Suma de B_ANCEDN_CT_3_5a | H113: Suma de B_ANCEDN_CT_6_11a | I113: Suma de B_ANCEDN_CT_Adolesc | J113: Suma de B_ANCEDN_CT_Joven | K113: Suma de B_ANCEDN_CT_Adulto | L113: Suma de B_ANCEDN_CT_AdultoM | M113: Suma de B_ANCEDN_CT_6_11a_g | N113: Suma de B_ANCEDN_CT_Adol_g | O113: Suma de B_ANCEDN_CT_Joven_g | P113: Suma de B_ANCEDN_CT_Adulto_g | Q113: Suma de B_EXODONN_CT_0_28d | R113: Suma de B_EXODONN_CT_29_5m | S113: Suma de B_EXODONN_CT_6_11m | T113: Suma de B_EXODONN_CT_1a | U113: Suma de B_EXODONN_CT_2a | V113: Suma de B_EXODONN_CT_3_5a | W113: Suma de B_EXODONN_CT_6_11a | X113: Suma de B_EXODONN_CT_Adolesc | Y113: Suma de B_EXODONN_CT_Joven | Z113: Suma de B_EXODONN_CT_Adulto | AA113: Suma de B_EXODONN_CT_AdultoM | AB113: Suma de B_EXODONN_CT_6_11a_g | AC113: Suma de B_EXODONN_CT_Adol_g | AD113: Suma de B_EXODONN_CT_Joven_g | AE113: Suma de B_EXODONN_CT_Adulto_g | AF113: Suma de B_IHON_CT_6_11m | AG113: Suma de B_IHON_CT_1a | AH113: Suma de B_IHON_CT_2a | AI113: Suma de B_IHON_CT_3_5a | AJ113: Suma de B_IHON_CT_6_11a | AK113: Suma de B_IHON_CT_Adolesc | AL113: Suma de B_IHON_CT_Joven | AM113: Suma de B_IHON_CT_Adulto | AN113: Suma de B_IHON_CT_AdultoM | AO113: Suma de B_IHON_CT_6_11a_g | AP113: Suma de B_IHON_CT_Adol_g | AQ113: Suma de B_IHON_CT_Joven_g | AR113: Suma de B_IHON_CT_Adulto_g | AS113: Suma de B_ASELN_CT_2a | AT113: Suma de B_ASELN_CT_3_5a | AU113: Suma de B_ASELN_CT_6_11a | AV113: Suma de B_ASELN_CT_Adolesc | AW113: Suma de B_ASELN_CT_Joven | AX113: Suma de B_ASELN_CT_Adulto | AY113: Suma de B_ASELN_CT_AdultoM | AZ113: Suma de B_ASELN_CT_6_11a_g | BA113: Suma de B_ASELN_CT_Adol_g | BB113: Suma de B_ASELN_CT_Joven_g | BC113: Suma de B_ASELN_CT_Adulto_g | BD113: Suma de B_ABFN_CT_6_11m | BE113: Suma de B_ABFN_CT_1a | BF113: Suma de B_ABFN_CT_2a | BG113: Suma de B_ABFN_CT_3_5a | BH113: Suma de B_ABFN_CT_6_11a | BI113: Suma de B_ABFN_CT_Adolesc | BJ113: Suma de B_ABFN_CT_Joven | BK113: Suma de B_ABFN_CT_Adulto | BL113: Suma de B_ABFN_CT_AdultoM | BM113: Suma de B_ABFN_CT_6_11a_g | BN113: Suma de B_ABFN_CT_Adol_g | BO113: Suma de B_ABFN_CT_Joven_g | BP113: Suma de B_ABFN_CT_Adulto_g | BQ113: Suma de B_AFGN_CT_Adulto | BR113: Suma de B_AFGN_CT_AdultoM | BS113: Suma de B_AFGN_CT_6_11a_g | BT113: Suma de B_AFGN_CT_Adol_g | BU113: Suma de B_AFGN_CT_Joven_g | BV113: Suma de B_AFGN_CT_Adulto_g | BW113: Suma de B_PDN_CT_6_11m | BX113: Suma de B_PDN_CT_1a | BY113: Suma de B_PDN_CT_2a | BZ113: Suma de B_PDN_CT_3_5a | CA113: Suma de B_PDN_CT_6_11a | CB113: Suma de B_PDN_CT_Adolesc | CC113: Suma de B_PDN_CT_Joven | CD113: Suma de B_PDN_CT_Adulto | CE113: Suma de B_PDN_CT_AdultoM | CF113: Suma de B_PDN_CT_6_11a_g | CG113: Suma de B_PDN_CT_Adol_g | CH113: Suma de B_PDN_CT_Joven_g | CI113: Suma de B_PDN_CT_Adulto_g | CJ113: Suma de B_DestartrajeN_CT_0_28d | CK113: Suma de B_DestartrajeN_CT_29_5m | CL113: Suma de B_DestartrajeN_CT_6_11m | CM113: Suma de B_DestartrajeN_CT_1a | CN113: Suma de B_DestartrajeN_CT_2a | CO113: Suma de B_DestartrajeN_CT_3_5a | CP113: Suma de B_DestartrajeN_CT_6_11a | CQ113: Suma de B_DestartrajeN_CT_Adolesc | CR113: Suma de B_DestartrajeN_CT_Joven | CS113: Suma de B_DestartrajeN_CT_Adulto | CT113: Suma de B_DestartrajeN_CT_AdultoM | CU113: Suma de B_DestartrajeN_CT_6_11a_g | CV113: Suma de B_DestartrajeN_CT_Adol_g | CW113: Suma de B_DestartrajeN_CT_Joven_g | CX113: Suma de B_DestartrajeN_CT_Adulto_g | CY113: Suma de B_Debridacion_BucodenN_0_28d | CZ113: Suma de B_Debridacion_BucodenN_29_5m | DA113: Suma de B_Debridacion_BucodenN_6_11m | DB113: Suma de B_Debridacion_BucodenN_1a | DC113: Suma de B_Debridacion_BucodenN_2a | DD113: Suma de B_Debridacion_BucodenN_3_5a | DE113: Suma de B_Debridacion_BucodenN_6_11a | DF113: Suma de B_Debridacion_BucodenN_Adolesc | DG113: Suma de B_Debridacion_BucodenN_Joven | DH113: Suma de B_Debridacion_BucodenN_Adulto | DI113: Suma de B_Debridacion_BucodenN_AdultoM | DJ113: Suma de B_Debridacion_BucodenN_6_11a_g | DK113: Suma de B_Debridacion_BucodenN_Adol_g | DL113: Suma de B_Debridacion_BucodenN_Joven_g | DM113: Suma de B_Debridacion_BucodenN_Adulto_g | DN113: Suma de B_Consulta_EstomatoN_0_28d | DO113: Suma de B_Consulta_EstomatoN_29_5m | DP113: Suma de B_Consulta_EstomatoN_6_11m | DQ113: Suma de B_Consulta_EstomatoN_1a | DR113: Suma de B_Consulta_EstomatoN_2a | DS113: Suma de B_Consulta_EstomatoN_3_5a | DT113: Suma de B_Consulta_EstomatoN_6_11a | DU113: Suma de B_Consulta_EstomatoN_Adolesc | DV113: Suma de B_Consulta_EstomatoN_Joven | DW113: Suma de B_Consulta_EstomatoN_Adulto | DX113: Suma de B_Consulta_EstomatoN_AdultoM | DY113: Suma de B_Consulta_EstomatoN_6_11a_g | DZ113: Suma de B_Consulta_EstomatoN_Adol_g | EA113: Suma de B_Consulta_EstomatoN_Joven_g | EB113: Suma de B_Consulta_EstomatoN_Adulto_g | EC113: Suma de B_Exodoncia_SimpleN_I_0_28d | ED113: Suma de B_Exodoncia_SimpleN_I_29_5m | EE113: Suma de B_Exodoncia_SimpleN_I_6_11m | EF113: Suma de B_Exodoncia_SimpleN_I_1a | EG113: Suma de B_Exodoncia_SimpleN_I_2a | EH113: Suma de B_Exodoncia_SimpleN_I_3_5a | EI113: Suma de B_Exodoncia_SimpleN_I_6_11a | EJ113: Suma de B_Exodoncia_SimpleN_I_Adolesc | EK113: Suma de B_Exodoncia_SimpleN_I_Joven | EL113: Suma de B_Exodoncia_SimpleN_I_Adulto | EM113: Suma de B_Exodoncia_SimpleN_I_AdultoM | EN113: Suma de B_Exodoncia_SimpleN_I_6_11a_g | EO113: Suma de B_Exodoncia_SimpleN_I_Adol_g | EP113: Suma de B_Exodoncia_SimpleN_I_Joven_g | EQ113: Suma de B_Exodoncia_SimpleN_I_Adulto_g | ER113: Suma de B_Ionomero_VidrioN_I_6_11m | ES113: Suma de B_Ionomero_VidrioN_I_1a | ET113: Suma de B_Ionomero_VidrioN_I_2a | EU113: Suma de B_Ionomero_VidrioN_I_3_5a | EV113: Suma de B_Ionomero_VidrioN_I_6_11a | EW113: Suma de B_Ionomero_VidrioN_I_Adolesc | EX113: Suma de B_Ionomero_VidrioN_I_Joven | EY113: Suma de B_Ionomero_VidrioN_I_Adulto | EZ113: Suma de B_Ionomero_VidrioN_I_AdultoM | FA113: Suma de B_Ionomero_VidrioN_I_6_11a_g | FB113: Suma de B_Ionomero_VidrioN_I_Adol_g | FC113: Suma de B_Ionomero_VidrioN_I_Joven_g | FD113: Suma de B_Ionomero_VidrioN_I_Adulto_g | FE113: Suma de B_ResinaN_I_6_11m | FF113: Suma de B_ResinaN_I_1a | FG113: Suma de B_ResinaN_I_2a | FH113: Suma de B_ResinaN_I_3_5a | FI113: Suma de B_ResinaN_I_6_11a | FJ113: Suma de B_ResinaN_I_Adolesc | FK113: Suma de B_ResinaN_I_Joven | FL113: Suma de B_ResinaN_I_Adulto | FM113: Suma de B_ResinaN_I_AdultoM | FN113: Suma de B_ResinaN_I_6_11a_g | FO113: Suma de B_ResinaN_I_Adol_g | FP113: Suma de B_ResinaN_I_Joven_g | FQ113: Suma de B_ResinaN_I_Adulto_g | FR113: Suma de B_PulpotomiaN_I_6_11m | FS113: Suma de B_PulpotomiaN_I_1a | FT113: Suma de B_PulpotomiaN_I_2a | FU113: Suma de B_PulpotomiaN_I_3_5a | FV113: Suma de B_PulpotomiaN_I_6_11a | FW113: Suma de B_PulpotomiaN_I_Adolesc | FX113: Suma de B_PulpotomiaN_I_Joven | FY113: Suma de B_PulpotomiaN_I_Adulto | FZ113: Suma de B_PulpotomiaN_I_AdultoM | GA113: Suma de B_PulpotomiaN_I_6_11a_g | GB113: Suma de B_PulpotomiaN_I_Adol_g | GC113: Suma de B_PulpotomiaN_I_Joven_g | GD113: Suma de B_PulpotomiaN_I_Adulto_g | GE113: Suma de B_TEndodonticaN_TA_6_11m | GF113: Suma de B_TEndodonticaN_TA_1a | GG113: Suma de B_TEndodonticaN_TA_2a | GH113: Suma de B_TEndodonticaN_TA_3_5a | GI113: Suma de B_TEndodonticaN_TA_6_11a | GJ113: Suma de B_TEndodonticaN_TA_Adolesc | GK113: Suma de B_TEndodonticaN_TA_Joven | GL113: Suma de B_TEndodonticaN_TA_Adulto | GM113: Suma de B_TEndodonticaN_TA_AdultoM | GN113: Suma de B_TEndodonticaN_TA_6_11a_g | GO113: Suma de B_TEndodonticaN_TA_Adol_g | GP113: Suma de B_TEndodonticaN_TA_Joven_g | GQ113: Suma de B_TEndodonticaN_TA_Adulto_g | GR113: Suma de B_OrtopediaMaxilarN_in_6_11m | GS113: Suma de B_OrtopediaMaxilarN_in_1a | GT113: Suma de B_OrtopediaMaxilarN_in_2a | GU113: Suma de B_OrtopediaMaxilarN_in_3_5a | GV113: Suma de B_OrtopediaMaxilarN_in_6_11a | GW113: Suma de B_OrtopediaMaxilarN_in_Adolesc | GX113: Suma de B_OrtopediaMaxilarN_in_Joven | GY113: Suma de B_OrtopediaMaxilarN_in_Adulto | GZ113: Suma de B_OrtopediaMaxilarN_in_AdultoM | HA113: Suma de B_OrtopediaMaxilarN_in_6_11a_g | HB113: Suma de B_OrtopediaMaxilarN_in_Adol_g | HC113: Suma de B_OrtopediaMaxilarN_in_Joven_g | HD113: Suma de B_OrtopediaMaxilarN_in_Adulto_g | HE113: Suma de B_RehabProtesicaN_in_3_5a | HF113: Suma de B_RehabProtesicaN_in_6_11a | HG113: Suma de B_RehabProtesicaN_in_Adolesc | HH113: Suma de B_RehabProtesicaN_in_Joven | HI113: Suma de B_RehabProtesicaN_in_Adulto | HJ113: Suma de B_RehabProtesicaN_in_AdultoM | HK113: Suma de B_RehabProtesicaN_in_6_11a_g | HL113: Suma de B_RehabProtesicaN_in_Adol_g | HM113: Suma de B_RehabProtesicaN_in_Joven_g | HN113: Suma de B_RehabProtesicaN_in_Adulto_g | HO113: Suma de B_TtoPeriodontalN_3_5a | HP113: Suma de B_TtoPeriodontalN_6_11a | HQ113: Suma de B_TtoPeriodontalN_Adolesc | HR113: Suma de B_TtoPeriodontalN_Joven | HS113: Suma de B_TtoPeriodontalN_Adulto | HT113: Suma de B_TtoPeriodontalN_AdultoM | HU113: Suma de B_TtoPeriodontalN_6_11a_g | HV113: Suma de B_TtoPeriodontalN_Adol_g | HW113: Suma de B_TtoPeriodontalN_Joven_g | HX113: Suma de B_TtoPeriodontalN_Adulto_g | HY113: Suma de B_MaxiloFacialN_I_0_28d | HZ113: Suma de B_MaxiloFacialN_I_29_5m | IA113: Suma de B_MaxiloFacialN_I_6_11m | IB113: Suma de B_MaxiloFacialN_I_1a | IC113: Suma de B_MaxiloFacialN_I_2a | ID113: Suma de B_MaxiloFacialN_3_5a | IE113: Suma de B_MaxiloFacialN_6_11a | IF113: Suma de B_MaxiloFacialN_Adolesc | IG113: Suma de B_MaxiloFacialN_Joven | IH113: Suma de B_MaxiloFacialN_Adulto | II113: Suma de B_MaxiloFacialN_AdultoM | IJ113: Suma de B_MaxiloFacialN_6_11a_g | IK113: Suma de B_MaxiloFacialN_Adol_g | IL113: Suma de B_MaxiloFacialN_Joven_g | IM113: Suma de B_MaxiloFacialN_Adulto_g
A114: 1 | B114: 0 | C114: 0 | D114: 1 | E114: 0 | F114: 2 | G114: 10 | H114: 12 | I114: 8 | J114: 12 | K114: 8 | L114: 3 | M114: 0 | N114: 2 | O114: 3 | P114: 2 | Q114: 3 | R114: 6 | S114: 17 | T114: 17 | U114: 16 | V114: 137 | W114: 241 | X114: 201 | Y114: 203 | Z114: 308 | AA114: 104 | AB114: 2 | AC114: 5 | AD114: 84 | AE114: 62 | AF114: 1 | AG114: 0 | AH114: 2 | AI114: 10 | AJ114: 12 | AK114: 8 | AL114: 12 | AM114: 8 | AN114: 3 | AO114: 0 | AP114: 2 | AQ114: 3 | AR114: 2 | AS114: 0 | AT114: 3 | AU114: 17 | AV114: 3 | AW114: 0 | AX114: 0 | AY114: 0 | AZ114: 2 | BA114: 0 | BB114: 0 | BC114: 0 | BD114: 1 | BE114: 0 | BF114: 2 | BG114: 19 | BH114: 33 | BI114: 17 | BJ114: 12 | BK114: 0 | BL114: 1 | BM114: 0 | BN114: 1 | BO114: 5 | BP114: 1 | BQ114: 17 | BR114: 3 | BS114: 0 | BT114: 1 | BU114: 1 | BV114: 1 | BW114: 0 | BX114: 0 | BY114: 2 | BZ114: 17 | CA114: 33 | CB114: 19 | CC114: 19 | CD114: 14 | CE114: 4 | CF114: 0 | CG114: 2 | CH114: 5 | CI114: 1 | CJ114: 0 | CK114: 0 | CL114: 0 | CM114: 0 | CN114: 0 | CO114: 0 | CP114: 6 | CQ114: 33 | CR114: 39 | CS114: 71 | CT114: 29 | CU114: 0 | CV114: 0 | CW114: 23 | CX114: 24 | CY114: 0 | CZ114: 0 | DA114: 0 | DB114: 0 | DC114: 0 | DD114: 4 | DE114: 10 | DF114: 10 | DG114: 5 | DH114: 10 | DI114: 2 | DJ114: 0 | DK114: 0 | DL114: 1 | DM114: 0 | DN114: 0 | DO114: 0 | DP114: 0 | DQ114: 3 | DR114: 2 | DS114: 43 | DT114: 91 | DU114: 50 | DV114: 86 | DW114: 118 | DX114: 48 | DY114: 0 | DZ114: 0 | EA114: 3 | EB114: 6 | EC114: 0 | ED114: 0 | EE114: 0 | EF114: 0 | EG114: 0 | EH114: 4 | EI114: 85 | EJ114: 37 | EK114: 58 | EL114: 114 | EM114: 67 | EN114: 0 | EO114: 0 | EP114: 4 | EQ114: 2 | ER114: 0 | ES114: 0 | ET114: 0 | EU114: 73 | EV114: 48 | EW114: 17 | EX114: 20 | EY114: 39 | EZ114: 3 | FA114: 0 | FB114: 0 | FC114: 11 | FD114: 6 | FE114: 0 | FF114: 1 | FG114: 15 | FH114: 100 | FI114: 254 | FJ114: 379 | FK114: 270 | FL114: 311 | FM114: 45 | FN114: 0 | FO114: 6 | FP114: 80 | FQ114: 53 | FR114: 0 | FS114: 0 | FT114: 2 | FU114: 10 | FV114: 9 | FW114: 36 | FX114: 27 | FY114: 26 | FZ114: 5 | GA114: 0 | GB114: 0 | GC114: 2 | GD114: 0 | GE114: 0 | GF114: 0 | GG114: 2 | GH114: 10 | GI114: 0 | GJ114: 0 | GK114: 0 | GL114: 0 | GM114: 0 | GN114: 0 | GO114: 0 | GP114: 0 | GQ114: 0 | GR114: 0 | GS114: 0 | GT114: 0 | GU114: 0 | GV114: 0 | GW114: 0 | GX114: 0 | GY114: 0 | GZ114: 0 | HA114: 0 | HB114: 0 | HC114: 0 | HD114: 0 | HE114: 0 | HF114: 0 | HG114: 0 | HH114: 0 | HI114: 0 | HJ114: 0 | HK114: 0 | HL114: 0 | HM114: 0 | HN114: 0 | HO114: 0 | HP114: 0 | HQ114: 0 | HR114: 0 | HS114: 1 | HT114: 0 | HU114: 0 | HV114: 0 | HW114: 0 | HX114: 0 | HY114: 0 | HZ114: 0 | IA114: 0 | IB114: 0 | IC114: 0 | ID114: 0 | IE114: 0 | IF114: 0 | IG114: 3 | IH114: 1 | II114: 0 | IJ114: 0 | IK114: 0 | IL114: 0 | IM114: 0
A115: 2 | B115: 0 | C115: 0 | D115: 0 | E115: 1 | F115: 0 | G115: 11 | H115: 25 | I115: 11 | J115: 6 | K115: 8 | L115: 2 | M115: 0 | N115: 0 | O115: 11 | P115: 7 | Q115: 1 | R115: 1 | S115: 2 | T115: 17 | U115: 15 | V115: 107 | W115: 177 | X115: 150 | Y115: 120 | Z115: 186 | AA115: 66 | AB115: 1 | AC115: 14 | AD115: 39 | AE115: 32 | AF115: 0 | AG115: 1 | AH115: 0 | AI115: 11 | AJ115: 25 | AK115: 11 | AL115: 6 | AM115: 8 | AN115: 2 | AO115: 0 | AP115: 0 | AQ115: 10 | AR115: 7 | AS115: 0 | AT115: 2 | AU115: 12 | AV115: 2 | AW115: 0 | AX115: 0 | AY115: 0 | AZ115: 0 | BA115: 0 | BB115: 0 | BC115: 0 | BD115: 0 | BE115: 1 | BF115: 1 | BG115: 13 | BH115: 24 | BI115: 9 | BJ115: 9 | BK115: 0 | BL115: 0 | BM115: 0 | BN115: 0 | BO115: 13 | BP115: 10 | BQ115: 18 | BR115: 2 | BS115: 0 | BT115: 0 | BU115: 4 | BV115: 2 | BW115: 0 | BX115: 1 | BY115: 1 | BZ115: 13 | CA115: 25 | CB115: 12 | CC115: 20 | CD115: 12 | CE115: 2 | CF115: 0 | CG115: 0 | CH115: 17 | CI115: 9 | CJ115: 0 | CK115: 0 | CL115: 0 | CM115: 0 | CN115: 0 | CO115: 1 | CP115: 1 | CQ115: 23 | CR115: 25 | CS115: 47 | CT115: 16 | CU115: 0 | CV115: 2 | CW115: 19 | CX115: 13 | CY115: 0 | CZ115: 0 | DA115: 0 | DB115: 0 | DC115: 1 | DD115: 4 | DE115: 3 | DF115: 0 | DG115: 4 | DH115: 2 | DI115: 0 | DJ115: 0 | DK115: 0 | DL115: 0 | DM115: 0 | DN115: 1 | DO115: 0 | DP115: 0 | DQ115: 0 | DR115: 3 | DS115: 27 | DT115: 63 | DU115: 44 | DV115: 48 | DW115: 71 | DX115: 26 | DY115: 0 | DZ115: 0 | EA115: 8 | EB115: 3 | EC115: 0 | ED115: 0 | EE115: 0 | EF115: 0 | EG115: 0 | EH115: 15 | EI115: 85 | EJ115: 31 | EK115: 36 | EL115: 66 | EM115: 49 | EN115: 0 | EO115: 0 | EP115: 3 | EQ115: 2 | ER115: 0 | ES115: 0 | ET115: 2 | EU115: 69 | EV115: 56 | EW115: 18 | EX115: 16 | EY115: 36 | EZ115: 10 | FA115: 0 | FB115: 1 | FC115: 9 | FD115: 1 | FE115: 0 | FF115: 0 | FG115: 3 | FH115: 104 | FI115: 225 | FJ115: 280 | FK115: 176 | FL115: 251 | FM115: 32 | FN115: 0 | FO115: 9 | FP115: 57 | FQ115: 40 | FR115: 0 | FS115: 0 | FT115: 0 | FU115: 4 | FV115: 27 | FW115: 42 | FX115: 10 | FY115: 16 | FZ115: 8 | GA115: 0 | GB115: 1 | GC115: 3 | GD115: 2 | GE115: 0 | GF115: 0 | GG115: 0 | GH115: 1 | GI115: 0 | GJ115: 0 | GK115: 1 | GL115: 0 | GM115: 0 | GN115: 0 | GO115: 0 | GP115: 0 | GQ115: 0 | GR115: 0 | GS115: 0 | GT115: 0 | GU115: 0 | GV115: 0 | GW115: 0 | GX115: 0 | GY115: 0 | GZ115: 0 | HA115: 0 | HB115: 0 | HC115: 0 | HD115: 0 | HE115: 0 | HF115: 0 | HG115: 0 | HH115: 0 | HI115: 0 | HJ115: 0 | HK115: 0 | HL115: 0 | HM115: 0 | HN115: 0 | HO115: 0 | HP115: 0 | HQ115: 0 | HR115: 0 | HS115: 0 | HT115: 0 | HU115: 0 | HV115: 0 | HW115: 0 | HX115: 0 | HY115: 0 | HZ115: 0 | IA115: 0 | IB115: 0 | IC115: 0 | ID115: 0 | IE115: 0 | IF115: 0 | IG115: 3 | IH115: 0 | II115: 1 | IJ115: 0 | IK115: 0 | IL115: 0 | IM115: 0
A116: 3 | B116: 0 | C116: 0 | D116: 1 | E116: 2 | F116: 1 | G116: 12 | H116: 26 | I116: 11 | J116: 13 | K116: 9 | L116: 9 | M116: 0 | N116: 4 | O116: 22 | P116: 19 | Q116: 0 | R116: 3 | S116: 14 | T116: 18 | U116: 14 | V116: 102 | W116: 190 | X116: 183 | Y116: 220 | Z116: 253 | AA116: 102 | AB116: 0 | AC116: 6 | AD116: 57 | AE116: 41 | AF116: 1 | AG116: 2 | AH116: 1 | AI116: 12 | AJ116: 26 | AK116: 11 | AL116: 13 | AM116: 9 | AN116: 9 | AO116: 0 | AP116: 4 | AQ116: 21 | AR116: 19 | AS116: 0 | AT116: 5 | AU116: 9 | AV116: 2 | AW116: 0 | AX116: 0 | AY116: 0 | AZ116: 0 | BA116: 0 | BB116: 0 | BC116: 0 | BD116: 1 | BE116: 1 | BF116: 3 | BG116: 18 | BH116: 35 | BI116: 11 | BJ116: 19 | BK116: 3 | BL116: 0 | BM116: 0 | BN116: 4 | BO116: 24 | BP116: 19 | BQ116: 22 | BR116: 13 | BS116: 0 | BT116: 0 | BU116: 4 | BV116: 2 | BW116: 0 | BX116: 1 | BY116: 3 | BZ116: 15 | CA116: 33 | CB116: 21 | CC116: 26 | CD116: 21 | CE116: 13 | CF116: 0 | CG116: 4 | CH116: 27 | CI116: 22 | CJ116: 0 | CK116: 0 | CL116: 0 | CM116: 0 | CN116: 0 | CO116: 1 | CP116: 3 | CQ116: 17 | CR116: 46 | CS116: 69 | CT116: 34 | CU116: 0 | CV116: 2 | CW116: 26 | CX116: 9 | CY116: 0 | CZ116: 0 | DA116: 0 | DB116: 0 | DC116: 0 | DD116: 5 | DE116: 1 | DF116: 3 | DG116: 3 | DH116: 11 | DI116: 2 | DJ116: 0 | DK116: 0 | DL116: 1 | DM116: 0 | DN116: 0 | DO116: 0 | DP116: 0 | DQ116: 0 | DR116: 1 | DS116: 30 | DT116: 30 | DU116: 45 | DV116: 82 | DW116: 98 | DX116: 48 | DY116: 0 | DZ116: 0 | EA116: 7 | EB116: 3 | EC116: 0 | ED116: 0 | EE116: 0 | EF116: 0 | EG116: 0 | EH116: 15 | EI116: 77 | EJ116: 39 | EK116: 77 | EL116: 106 | EM116: 52 | EN116: 0 | EO116: 1 | EP116: 5 | EQ116: 5 | ER116: 0 | ES116: 0 | ET116: 1 | EU116: 77 | EV116: 69 | EW116: 28 | EX116: 18 | EY116: 8 | EZ116: 3 | FA116: 0 | FB116: 0 | FC116: 5 | FD116: 2 | FE116: 0 | FF116: 0 | FG116: 3 | FH116: 104 | FI116: 198 | FJ116: 255 | FK116: 270 | FL116: 251 | FM116: 55 | FN116: 0 | FO116: 8 | FP116: 98 | FQ116: 70 | FR116: 0 | FS116: 0 | FT116: 0 | FU116: 5 | FV116: 13 | FW116: 21 | FX116: 13 | FY116: 16 | FZ116: 1 | GA116: 0 | GB116: 1 | GC116: 0 | GD116: 1 | GE116: 0 | GF116: 0 | GG116: 0 | GH116: 9 | GI116: 5 | GJ116: 1 | GK116: 0 | GL116: 1 | GM116: 0 | GN116: 0 | GO116: 0 | GP116: 0 | GQ116: 0 | GR116: 0 | GS116: 0 | GT116: 0 | GU116: 0 | GV116: 0 | GW116: 0 | GX116: 0 | GY116: 0 | GZ116: 0 | HA116: 0 | HB116: 0 | HC116: 0 | HD116: 0 | HE116: 0 | HF116: 0 | HG116: 0 | HH116: 0 | HI116: 0 | HJ116: 0 | HK116: 0 | HL116: 0 | HM116: 0 | HN116: 0 | HO116: 0 | HP116: 0 | HQ116: 0 | HR116: 0 | HS116: 0 | HT116: 0 | HU116: 0 | HV116: 0 | HW116: 0 | HX116: 0 | HY116: 0 | HZ116: 0 | IA116: 0 | IB116: 0 | IC116: 0 | ID116: 0 | IE116: 2 | IF116: 1 | IG116: 1 | IH116: 1 | II116: 0 | IJ116: 0 | IK116: 0 | IL116: 0 | IM116: 0
A117: 4 | B117: 0 | C117: 0 | D117: 6 | E117: 7 | F117: 3 | G117: 48 | H117: 59 | I117: 19 | J117: 19 | K117: 30 | L117: 9 | M117: 0 | N117: 3 | O117: 37 | P117: 35 | Q117: 2 | R117: 0 | S117: 29 | T117: 31 | U117: 30 | V117: 278 | W117: 749 | X117: 404 | Y117: 170 | Z117: 277 | AA117: 110 | AB117: 10 | AC117: 19 | AD117: 75 | AE117: 43 | AF117: 6 | AG117: 7 | AH117: 3 | AI117: 49 | AJ117: 60 | AK117: 19 | AL117: 20 | AM117: 29 | AN117: 10 | AO117: 0 | AP117: 3 | AQ117: 37 | AR117: 35 | AS117: 0 | AT117: 4 | AU117: 19 | AV117: 3 | AW117: 0 | AX117: 0 | AY117: 0 | AZ117: 1 | BA117: 0 | BB117: 0 | BC117: 0 | BD117: 3 | BE117: 7 | BF117: 4 | BG117: 62 | BH117: 72 | BI117: 21 | BJ117: 23 | BK117: 10 | BL117: 2 | BM117: 0 | BN117: 2 | BO117: 37 | BP117: 31 | BQ117: 22 | BR117: 8 | BS117: 0 | BT117: 1 | BU117: 2 | BV117: 7 | BW117: 3 | BX117: 5 | BY117: 5 | BZ117: 63 | CA117: 79 | CB117: 19 | CC117: 27 | CD117: 32 | CE117: 11 | CF117: 0 | CG117: 3 | CH117: 39 | CI117: 33 | CJ117: 0 | CK117: 0 | CL117: 0 | CM117: 0 | CN117: 0 | CO117: 1 | CP117: 4 | CQ117: 51 | CR117: 47 | CS117: 63 | CT117: 25 | CU117: 0 | CV117: 7 | CW117: 44 | CX117: 26 | CY117: 0 | CZ117: 0 | DA117: 0 | DB117: 0 | DC117: 0 | DD117: 7 | DE117: 6 | DF117: 3 | DG117: 3 | DH117: 8 | DI117: 1 | DJ117: 0 | DK117: 0 | DL117: 0 | DM117: 0 | DN117: 0 | DO117: 0 | DP117: 0 | DQ117: 1 | DR117: 1 | DS117: 29 | DT117: 50 | DU117: 25 | DV117: 64 | DW117: 95 | DX117: 36 | DY117: 0 | DZ117: 1 | EA117: 16 | EB117: 8 | EC117: 0 | ED117: 0 | EE117: 0 | EF117: 0 | EG117: 0 | EH117: 8 | EI117: 77 | EJ117: 45 | EK117: 65 | EL117: 115 | EM117: 49 | EN117: 3 | EO117: 1 | EP117: 6 | EQ117: 6 | ER117: 0 | ES117: 1 | ET117: 0 | EU117: 76 | EV117: 29 | EW117: 11 | EX117: 15 | EY117: 15 | EZ117: 10 | FA117: 0 | FB117: 0 | FC117: 9 | FD117: 6 | FE117: 0 | FF117: 1 | FG117: 6 | FH117: 112 | FI117: 197 | FJ117: 199 | FK117: 256 | FL117: 266 | FM117: 56 | FN117: 12 | FO117: 30 | FP117: 124 | FQ117: 72 | FR117: 0 | FS117: 0 | FT117: 0 | FU117: 4 | FV117: 22 | FW117: 10 | FX117: 13 | FY117: 18 | FZ117: 1 | GA117: 12 | GB117: 0 | GC117: 8 | GD117: 2 | GE117: 0 | GF117: 0 | GG117: 0 | GH117: 17 | GI117: 0 | GJ117: 0 | GK117: 0 | GL117: 0 | GM117: 0 | GN117: 0 | GO117: 0 | GP117: 0 | GQ117: 0 | GR117: 0 | GS117: 0 | GT117: 0 | GU117: 0 | GV117: 0 | GW117: 0 | GX117: 0 | GY117: 0 | GZ117: 0 | HA117: 0 | HB117: 0 | HC117: 0 | HD117: 0 | HE117: 0 | HF117: 0 | HG117: 0 | HH117: 0 | HI117: 0 | HJ117: 0 | HK117: 0 | HL117: 0 | HM117: 0 | HN117: 0 | HO117: 0 | HP117: 0 | HQ117: 0 | HR117: 0 | HS117: 0 | HT117: 0 | HU117: 0 | HV117: 0 | HW117: 0 | HX117: 0 | HY117: 0 | HZ117: 0 | IA117: 0 | IB117: 0 | IC117: 0 | ID117: 0 | IE117: 0 | IF117: 0 | IG117: 4 | IH117: 0 | II117: 0 | IJ117: 0 | IK117: 0 | IL117: 0 | IM117: 0
A118: 5 | B118: 0 | C118: 0 | D118: 1 | E118: 2 | F118: 4 | G118: 20 | H118: 28 | I118: 21 | J118: 21 | K118: 21 | L118: 8 | M118: 0 | N118: 6 | O118: 28 | P118: 26 | Q118: 0 | R118: 0 | S118: 21 | T118: 14 | U118: 22 | V118: 227 | W118: 190 | X118: 140 | Y118: 108 | Z118: 171 | AA118: 62 | AB118: 1 | AC118: 5 | AD118: 47 | AE118: 26 | AF118: 1 | AG118: 2 | AH118: 4 | AI118: 20 | AJ118: 29 | AK118: 21 | AL118: 21 | AM118: 21 | AN118: 8 | AO118: 0 | AP118: 6 | AQ118: 28 | AR118: 26 | AS118: 0 | AT118: 7 | AU118: 8 | AV118: 0 | AW118: 0 | AX118: 0 | AY118: 0 | AZ118: 0 | BA118: 0 | BB118: 0 | BC118: 0 | BD118: 1 | BE118: 1 | BF118: 6 | BG118: 30 | BH118: 33 | BI118: 20 | BJ118: 23 | BK118: 8 | BL118: 3 | BM118: 0 | BN118: 7 | BO118: 29 | BP118: 26 | BQ118: 23 | BR118: 6 | BS118: 0 | BT118: 0 | BU118: 1 | BV118: 1 | BW118: 0 | BX118: 0 | BY118: 5 | BZ118: 28 | CA118: 35 | CB118: 24 | CC118: 23 | CD118: 28 | CE118: 10 | CF118: 0 | CG118: 7 | CH118: 31 | CI118: 27 | CJ118: 0 | CK118: 0 | CL118: 0 | CM118: 1 | CN118: 0 | CO118: 2 | CP118: 1 | CQ118: 12 | CR118: 31 | CS118: 59 | CT118: 20 | CU118: 0 | CV118: 2 | CW118: 25 | CX118: 18 | CY118: 0 | CZ118: 0 | DA118: 0 | DB118: 0 | DC118: 0 | DD118: 4 | DE118: 5 | DF118: 2 | DG118: 5 | DH118: 13 | DI118: 1 | DJ118: 0 | DK118: 0 | DL118: 0 | DM118: 0 | DN118: 0 | DO118: 0 | DP118: 0 | DQ118: 0 | DR118: 1 | DS118: 21 | DT118: 35 | DU118: 37 | DV118: 54 | DW118: 81 | DX118: 35 | DY118: 0 | DZ118: 0 | EA118: 2 | EB118: 0 | EC118: 0 | ED118: 0 | EE118: 0 | EF118: 0 | EG118: 0 | EH118: 8 | EI118: 61 | EJ118: 28 | EK118: 43 | EL118: 69 | EM118: 50 | EN118: 1 | EO118: 0 | EP118: 5 | EQ118: 4 | ER118: 0 | ES118: 0 | ET118: 0 | EU118: 216 | EV118: 38 | EW118: 13 | EX118: 7 | EY118: 8 | EZ118: 2 | FA118: 0 | FB118: 1 | FC118: 1 | FD118: 5 | FE118: 1 | FF118: 1 | FG118: 6 | FH118: 115 | FI118: 115 | FJ118: 145 | FK118: 150 | FL118: 197 | FM118: 40 | FN118: 0 | FO118: 16 | FP118: 76 | FQ118: 51 | FR118: 0 | FS118: 0 | FT118: 0 | FU118: 3 | FV118: 3 | FW118: 4 | FX118: 7 | FY118: 6 | FZ118: 1 | GA118: 0 | GB118: 1 | GC118: 0 | GD118: 0 | GE118: 0 | GF118: 0 | GG118: 0 | GH118: 4 | GI118: 1 | GJ118: 0 | GK118: 0 | GL118: 0 | GM118: 0 | GN118: 0 | GO118: 0 | GP118: 0 | GQ118: 0 | GR118: 0 | GS118: 0 | GT118: 0 | GU118: 0 | GV118: 0 | GW118: 0 | GX118: 0 | GY118: 0 | GZ118: 0 | HA118: 0 | HB118: 0 | HC118: 0 | HD118: 0 | HE118: 0 | HF118: 0 | HG118: 0 | HH118: 0 | HI118: 0 | HJ118: 0 | HK118: 0 | HL118: 0 | HM118: 0 | HN118: 0 | HO118: 0 | HP118: 0 | HQ118: 0 | HR118: 0 | HS118: 0 | HT118: 0 | HU118: 0 | HV118: 0 | HW118: 0 | HX118: 0 | HY118: 0 | HZ118: 0 | IA118: 0 | IB118: 0 | IC118: 0 | ID118: 0 | IE118: 0 | IF118: 0 | IG118: 2 | IH118: 0 | II118: 0 | IJ118: 0 | IK118: 0 | IL118: 0 | IM118: 0
A119: 6 | B119: 0 | C119: 0 | D119: 1 | E119: 1 | F119: 1 | G119: 25 | H119: 93 | I119: 9 | J119: 10 | K119: 4 | L119: 3 | M119: 0 | N119: 1 | O119: 10 | P119: 6 | Q119: 0 | R119: 2 | S119: 1 | T119: 19 | U119: 20 | V119: 88 | W119: 125 | X119: 83 | Y119: 79 | Z119: 140 | AA119: 50 | AB119: 1 | AC119: 1 | AD119: 27 | AE119: 28 | AF119: 1 | AG119: 1 | AH119: 1 | AI119: 26 | AJ119: 93 | AK119: 9 | AL119: 10 | AM119: 4 | AN119: 3 | AO119: 0 | AP119: 1 | AQ119: 10 | AR119: 6 | AS119: 1 | AT119: 2 | AU119: 9 | AV119: 0 | AW119: 0 | AX119: 0 | AY119: 0 | AZ119: 0 | BA119: 0 | BB119: 0 | BC119: 0 | BD119: 1 | BE119: 2 | BF119: 3 | BG119: 37 | BH119: 108 | BI119: 10 | BJ119: 6 | BK119: 0 | BL119: 2 | BM119: 0 | BN119: 1 | BO119: 11 | BP119: 5 | BQ119: 6 | BR119: 3 | BS119: 0 | BT119: 0 | BU119: 0 | BV119: 5 | BW119: 1 | BX119: 2 | BY119: 4 | BZ119: 38 | CA119: 108 | CB119: 30 | CC119: 19 | CD119: 4 | CE119: 7 | CF119: 0 | CG119: 1 | CH119: 11 | CI119: 5 | CJ119: 0 | CK119: 0 | CL119: 0 | CM119: 0 | CN119: 0 | CO119: 0 | CP119: 0 | CQ119: 9 | CR119: 10 | CS119: 41 | CT119: 10 | CU119: 0 | CV119: 0 | CW119: 10 | CX119: 14 | CY119: 0 | CZ119: 0 | DA119: 0 | DB119: 0 | DC119: 0 | DD119: 2 | DE119: 0 | DF119: 3 | DG119: 2 | DH119: 5 | DI119: 3 | DJ119: 0 | DK119: 0 | DL119: 0 | DM119: 0 | DN119: 0 | DO119: 0 | DP119: 0 | DQ119: 1 | DR119: 4 | DS119: 23 | DT119: 21 | DU119: 25 | DV119: 34 | DW119: 46 | DX119: 22 | DY119: 0 | DZ119: 0 | EA119: 2 | EB119: 1 | EC119: 0 | ED119: 0 | EE119: 0 | EF119: 0 | EG119: 1 | EH119: 10 | EI119: 59 | EJ119: 17 | EK119: 34 | EL119: 55 | EM119: 26 | EN119: 0 | EO119: 0 | EP119: 0 | EQ119: 0 | ER119: 0 | ES119: 0 | ET119: 11 | EU119: 57 | EV119: 50 | EW119: 9 | EX119: 7 | EY119: 10 | EZ119: 6 | FA119: 2 | FB119: 0 | FC119: 2 | FD119: 2 | FE119: 0 | FF119: 1 | FG119: 5 | FH119: 71 | FI119: 149 | FJ119: 97 | FK119: 145 | FL119: 146 | FM119: 35 | FN119: 0 | FO119: 8 | FP119: 45 | FQ119: 24 | FR119: 0 | FS119: 0 | FT119: 0 | FU119: 0 | FV119: 2 | FW119: 2 | FX119: 3 | FY119: 2 | FZ119: 0 | GA119: 0 | GB119: 0 | GC119: 2 | GD119: 0 | GE119: 0 | GF119: 0 | GG119: 0 | GH119: 2 | GI119: 0 | GJ119: 0 | GK119: 2 | GL119: 0 | GM119: 0 | GN119: 0 | GO119: 0 | GP119: 0 | GQ119: 0 | GR119: 0 | GS119: 0 | GT119: 0 | GU119: 0 | GV119: 0 | GW119: 0 | GX119: 0 | GY119: 0 | GZ119: 0 | HA119: 0 | HB119: 0 | HC119: 0 | HD119: 0 | HE119: 0 | HF119: 0 | HG119: 0 | HH119: 0 | HI119: 0 | HJ119: 0 | HK119: 0 | HL119: 0 | HM119: 0 | HN119: 0 | HO119: 0 | HP119: 0 | HQ119: 0 | HR119: 0 | HS119: 0 | HT119: 0 | HU119: 0 | HV119: 0 | HW119: 0 | HX119: 2 | HY119: 0 | HZ119: 0 | IA119: 0 | IB119: 0 | IC119: 0 | ID119: 0 | IE119: 0 | IF119: 0 | IG119: 2 | IH119: 0 | II119: 1 | IJ119: 0 | IK119: 0 | IL119: 0 | IM119: 0
A120: 7 | B120: 0 | C120: 0 | D120: 0 | E120: 0 | F120: 2 | G120: 7 | H120: 14 | I120: 17 | J120: 6 | K120: 8 | L120: 1 | M120: 0 | N120: 3 | O120: 8 | P120: 8 | Q120: 1 | R120: 0 | S120: 1 | T120: 3 | U120: 6 | V120: 41 | W120: 51 | X120: 97 | Y120: 49 | Z120: 69 | AA120: 28 | AB120: 0 | AC120: 2 | AD120: 17 | AE120: 13 | AF120: 0 | AG120: 0 | AH120: 2 | AI120: 7 | AJ120: 14 | AK120: 17 | AL120: 7 | AM120: 8 | AN120: 1 | AO120: 0 | AP120: 3 | AQ120: 8 | AR120: 8 | AS120: 0 | AT120: 2 | AU120: 1 | AV120: 3 | AW120: 0 | AX120: 0 | AY120: 0 | AZ120: 0 | BA120: 0 | BB120: 0 | BC120: 0 | BD120: 0 | BE120: 1 | BF120: 2 | BG120: 8 | BH120: 17 | BI120: 12 | BJ120: 9 | BK120: 2 | BL120: 0 | BM120: 0 | BN120: 2 | BO120: 10 | BP120: 7 | BQ120: 12 | BR120: 3 | BS120: 0 | BT120: 0 | BU120: 0 | BV120: 4 | BW120: 0 | BX120: 1 | BY120: 2 | BZ120: 8 | CA120: 16 | CB120: 17 | CC120: 17 | CD120: 15 | CE120: 6 | CF120: 0 | CG120: 3 | CH120: 11 | CI120: 7 | CJ120: 0 | CK120: 0 | CL120: 0 | CM120: 0 | CN120: 0 | CO120: 4 | CP120: 2 | CQ120: 4 | CR120: 8 | CS120: 10 | CT120: 6 | CU120: 0 | CV120: 3 | CW120: 16 | CX120: 11 | CY120: 0 | CZ120: 0 | DA120: 0 | DB120: 0 | DC120: 0 | DD120: 3 | DE120: 3 | DF120: 6 | DG120: 6 | DH120: 5 | DI120: 1 | DJ120: 0 | DK120: 0 | DL120: 0 | DM120: 0 | DN120: 1 | DO120: 0 | DP120: 0 | DQ120: 0 | DR120: 2 | DS120: 18 | DT120: 10 | DU120: 18 | DV120: 29 | DW120: 42 | DX120: 23 | DY120: 0 | DZ120: 0 | EA120: 2 | EB120: 1 | EC120: 0 | ED120: 0 | EE120: 0 | EF120: 0 | EG120: 0 | EH120: 6 | EI120: 22 | EJ120: 8 | EK120: 20 | EL120: 56 | EM120: 35 | EN120: 0 | EO120: 0 | EP120: 2 | EQ120: 0 | ER120: 0 | ES120: 0 | ET120: 2 | EU120: 45 | EV120: 53 | EW120: 143 | EX120: 3 | EY120: 10 | EZ120: 0 | FA120: 0 | FB120: 2 | FC120: 3 | FD120: 3 | FE120: 0 | FF120: 0 | FG120: 2 | FH120: 44 | FI120: 54 | FJ120: 75 | FK120: 88 | FL120: 102 | FM120: 21 | FN120: 0 | FO120: 5 | FP120: 35 | FQ120: 21 | FR120: 0 | FS120: 0 | FT120: 0 | FU120: 1 | FV120: 4 | FW120: 7 | FX120: 13 | FY120: 11 | FZ120: 1 | GA120: 0 | GB120: 0 | GC120: 0 | GD120: 0 | GE120: 0 | GF120: 0 | GG120: 0 | GH120: 4 | GI120: 0 | GJ120: 4 | GK120: 0 | GL120: 0 | GM120: 0 | GN120: 0 | GO120: 0 | GP120: 0 | GQ120: 0 | GR120: 0 | GS120: 0 | GT120: 0 | GU120: 0 | GV120: 0 | GW120: 0 | GX120: 0 | GY120: 0 | GZ120: 0 | HA120: 0 | HB120: 0 | HC120: 0 | HD120: 0 | HE120: 0 | HF120: 0 | HG120: 0 | HH120: 0 | HI120: 0 | HJ120: 0 | HK120: 0 | HL120: 0 | HM120: 0 | HN120: 0 | HO120: 0 | HP120: 1 | HQ120: 1 | HR120: 0 | HS120: 1 | HT120: 0 | HU120: 0 | HV120: 0 | HW120: 0 | HX120: 1 | HY120: 0 | HZ120: 0 | IA120: 0 | IB120: 0 | IC120: 0 | ID120: 0 | IE120: 0 | IF120: 0 | IG120: 2 | IH120: 1 | II120: 0 | IJ120: 0 | IK120: 0 | IL120: 0 | IM120: 0
A121: 8 | B121: 0 | C121: 0 | D121: 0 | E121: 1 | F121: 1 | G121: 5 | H121: 77 | I121: 19 | J121: 6 | K121: 1 | L121: 5 | M121: 0 | N121: 0 | O121: 5 | P121: 8 | Q121: 1 | R121: 0 | S121: 2 | T121: 5 | U121: 4 | V121: 17 | W121: 58 | X121: 29 | Y121: 64 | Z121: 69 | AA121: 17 | AB121: 0 | AC121: 3 | AD121: 12 | AE121: 16 | AF121: 0 | AG121: 1 | AH121: 1 | AI121: 5 | AJ121: 77 | AK121: 19 | AL121: 6 | AM121: 1 | AN121: 5 | AO121: 0 | AP121: 0 | AQ121: 5 | AR121: 8 | AS121: 0 | AT121: 0 | AU121: 1 | AV121: 0 | AW121: 0 | AX121: 0 | AY121: 0 | AZ121: 0 | BA121: 0 | BB121: 0 | BC121: 0 | BD121: 0 | BE121: 1 | BF121: 0 | BG121: 6 | BH121: 66 | BI121: 18 | BJ121: 4 | BK121: 0 | BL121: 0 | BM121: 0 | BN121: 0 | BO121: 11 | BP121: 6 | BQ121: 14 | BR121: 5 | BS121: 0 | BT121: 0 | BU121: 0 | BV121: 2 | BW121: 0 | BX121: 1 | BY121: 0 | BZ121: 7 | CA121: 76 | CB121: 21 | CC121: 13 | CD121: 13 | CE121: 9 | CF121: 0 | CG121: 0 | CH121: 11 | CI121: 6 | CJ121: 0 | CK121: 0 | CL121: 0 | CM121: 0 | CN121: 0 | CO121: 1 | CP121: 2 | CQ121: 5 | CR121: 12 | CS121: 20 | CT121: 5 | CU121: 0 | CV121: 2 | CW121: 7 | CX121: 7 | CY121: 0 | CZ121: 0 | DA121: 0 | DB121: 0 | DC121: 0 | DD121: 2 | DE121: 2 | DF121: 5 | DG121: 6 | DH121: 10 | DI121: 1 | DJ121: 0 | DK121: 0 | DL121: 0 | DM121: 0 | DN121: 0 | DO121: 0 | DP121: 0 | DQ121: 1 | DR121: 1 | DS121: 10 | DT121: 28 | DU121: 27 | DV121: 35 | DW121: 54 | DX121: 22 | DY121: 0 | DZ121: 0 | EA121: 2 | EB121: 3 | EC121: 0 | ED121: 0 | EE121: 0 | EF121: 0 | EG121: 0 | EH121: 3 | EI121: 24 | EJ121: 11 | EK121: 18 | EL121: 47 | EM121: 31 | EN121: 0 | EO121: 0 | EP121: 3 | EQ121: 0 | ER121: 0 | ES121: 0 | ET121: 1 | EU121: 21 | EV121: 24 | EW121: 6 | EX121: 8 | EY121: 11 | EZ121: 0 | FA121: 0 | FB121: 0 | FC121: 0 | FD121: 1 | FE121: 0 | FF121: 0 | FG121: 0 | FH121: 36 | FI121: 70 | FJ121: 85 | FK121: 119 | FL121: 88 | FM121: 11 | FN121: 0 | FO121: 3 | FP121: 17 | FQ121: 14 | FR121: 0 | FS121: 0 | FT121: 0 | FU121: 2 | FV121: 5 | FW121: 17 | FX121: 9 | FY121: 9 | FZ121: 2 | GA121: 0 | GB121: 0 | GC121: 0 | GD121: 1 | GE121: 0 | GF121: 0 | GG121: 0 | GH121: 1 | GI121: 0 | GJ121: 0 | GK121: 0 | GL121: 0 | GM121: 0 | GN121: 0 | GO121: 0 | GP121: 0 | GQ121: 1 | GR121: 0 | GS121: 0 | GT121: 0 | GU121: 0 | GV121: 0 | GW121: 0 | GX121: 0 | GY121: 0 | GZ121: 0 | HA121: 0 | HB121: 0 | HC121: 0 | HD121: 0 | HE121: 0 | HF121: 0 | HG121: 0 | HH121: 0 | HI121: 0 | HJ121: 0 | HK121: 0 | HL121: 0 | HM121: 0 | HN121: 0 | HO121: 0 | HP121: 0 | HQ121: 0 | HR121: 0 | HS121: 0 | HT121: 0 | HU121: 0 | HV121: 0 | HW121: 0 | HX121: 1 | HY121: 0 | HZ121: 0 | IA121: 0 | IB121: 0 | IC121: 0 | ID121: 0 | IE121: 0 | IF121: 0 | IG121: 2 | IH121: 1 | II121: 1 | IJ121: 0 | IK121: 0 | IL121: 0 | IM121: 0
A122: 9 | B122: 0 | C122: 0 | D122: 2 | E122: 4 | F122: 1 | G122: 25 | H122: 142 | I122: 6 | J122: 10 | K122: 15 | L122: 6 | M122: 0 | N122: 1 | O122: 8 | P122: 11 | Q122: 0 | R122: 0 | S122: 2 | T122: 4 | U122: 10 | V122: 30 | W122: 71 | X122: 49 | Y122: 58 | Z122: 117 | AA122: 50 | AB122: 0 | AC122: 2 | AD122: 20 | AE122: 18 | AF122: 2 | AG122: 4 | AH122: 0 | AI122: 25 | AJ122: 142 | AK122: 6 | AL122: 10 | AM122: 15 | AN122: 7 | AO122: 0 | AP122: 1 | AQ122: 8 | AR122: 11 | AS122: 0 | AT122: 7 | AU122: 11 | AV122: 1 | AW122: 0 | AX122: 0 | AY122: 0 | AZ122: 0 | BA122: 0 | BB122: 0 | BC122: 0 | BD122: 2 | BE122: 4 | BF122: 2 | BG122: 30 | BH122: 147 | BI122: 6 | BJ122: 9 | BK122: 5 | BL122: 0 | BM122: 0 | BN122: 1 | BO122: 9 | BP122: 10 | BQ122: 25 | BR122: 8 | BS122: 0 | BT122: 0 | BU122: 1 | BV122: 2 | BW122: 2 | BX122: 3 | BY122: 2 | BZ122: 32 | CA122: 147 | CB122: 10 | CC122: 17 | CD122: 32 | CE122: 9 | CF122: 0 | CG122: 1 | CH122: 11 | CI122: 10 | CJ122: 0 | CK122: 0 | CL122: 0 | CM122: 0 | CN122: 1 | CO122: 2 | CP122: 2 | CQ122: 10 | CR122: 11 | CS122: 27 | CT122: 19 | CU122: 0 | CV122: 2 | CW122: 11 | CX122: 6 | CY122: 0 | CZ122: 0 | DA122: 0 | DB122: 0 | DC122: 1 | DD122: 4 | DE122: 5 | DF122: 9 | DG122: 6 | DH122: 10 | DI122: 1 | DJ122: 0 | DK122: 0 | DL122: 0 | DM122: 1 | DN122: 0 | DO122: 0 | DP122: 0 | DQ122: 2 | DR122: 1 | DS122: 18 | DT122: 34 | DU122: 26 | DV122: 43 | DW122: 64 | DX122: 34 | DY122: 0 | DZ122: 0 | EA122: 1 | EB122: 7 | EC122: 0 | ED122: 0 | EE122: 0 | EF122: 0 | EG122: 0 | EH122: 7 | EI122: 42 | EJ122: 23 | EK122: 29 | EL122: 74 | EM122: 40 | EN122: 0 | EO122: 0 | EP122: 0 | EQ122: 2 | ER122: 0 | ES122: 0 | ET122: 0 | EU122: 47 | EV122: 22 | EW122: 9 | EX122: 7 | EY122: 8 | EZ122: 0 | FA122: 0 | FB122: 0 | FC122: 1 | FD122: 1 | FE122: 0 | FF122: 1 | FG122: 2 | FH122: 51 | FI122: 89 | FJ122: 64 | FK122: 109 | FL122: 140 | FM122: 38 | FN122: 0 | FO122: 5 | FP122: 24 | FQ122: 18 | FR122: 0 | FS122: 0 | FT122: 0 | FU122: 2 | FV122: 8 | FW122: 6 | FX122: 5 | FY122: 16 | FZ122: 10 | GA122: 0 | GB122: 0 | GC122: 4 | GD122: 10 | GE122: 0 | GF122: 0 | GG122: 0 | GH122: 0 | GI122: 0 | GJ122: 0 | GK122: 0 | GL122: 0 | GM122: 0 | GN122: 0 | GO122: 0 | GP122: 0 | GQ122: 0 | GR122: 0 | GS122: 0 | GT122: 0 | GU122: 0 | GV122: 0 | GW122: 0 | GX122: 0 | GY122: 0 | GZ122: 0 | HA122: 0 | HB122: 0 | HC122: 0 | HD122: 0 | HE122: 0 | HF122: 0 | HG122: 0 | HH122: 0 | HI122: 0 | HJ122: 0 | HK122: 0 | HL122: 0 | HM122: 0 | HN122: 0 | HO122: 0 | HP122: 0 | HQ122: 0 | HR122: 0 | HS122: 1 | HT122: 0 | HU122: 0 | HV122: 0 | HW122: 0 | HX122: 1 | HY122: 0 | HZ122: 0 | IA122: 0 | IB122: 0 | IC122: 0 | ID122: 0 | IE122: 0 | IF122: 0 | IG122: 0 | IH122: 0 | II122: 0 | IJ122: 0 | IK122: 0 | IL122: 0 | IM122: 0
A123: 10 | B123: 0 | C123: 0 | D123: 3 | E123: 10 | F123: 5 | G123: 73 | H123: 217 | I123: 76 | J123: 23 | K123: 28 | L123: 9 | M123: 0 | N123: 1 | O123: 12 | P123: 10 | Q123: 0 | R123: 10 | S123: 13 | T123: 11 | U123: 17 | V123: 79 | W123: 141 | X123: 67 | Y123: 104 | Z123: 149 | AA123: 60 | AB123: 0 | AC123: 1 | AD123: 30 | AE123: 21 | AF123: 3 | AG123: 10 | AH123: 5 | AI123: 73 | AJ123: 217 | AK123: 76 | AL123: 23 | AM123: 29 | AN123: 8 | AO123: 0 | AP123: 1 | AQ123: 12 | AR123: 10 | AS123: 0 | AT123: 5 | AU123: 12 | AV123: 2 | AW123: 0 | AX123: 0 | AY123: 0 | AZ123: 0 | BA123: 0 | BB123: 0 | BC123: 0 | BD123: 3 | BE123: 10 | BF123: 6 | BG123: 79 | BH123: 253 | BI123: 82 | BJ123: 22 | BK123: 3 | BL123: 0 | BM123: 0 | BN123: 1 | BO123: 13 | BP123: 10 | BQ123: 31 | BR123: 9 | BS123: 0 | BT123: 0 | BU123: 0 | BV123: 3 | BW123: 3 | BX123: 7 | BY123: 5 | BZ123: 53 | CA123: 236 | CB123: 81 | CC123: 30 | CD123: 33 | CE123: 9 | CF123: 0 | CG123: 1 | CH123: 14 | CI123: 11 | CJ123: 0 | CK123: 0 | CL123: 0 | CM123: 0 | CN123: 0 | CO123: 1 | CP123: 2 | CQ123: 3 | CR123: 29 | CS123: 39 | CT123: 22 | CU123: 0 | CV123: 0 | CW123: 25 | CX123: 16 | CY123: 0 | CZ123: 0 | DA123: 0 | DB123: 0 | DC123: 0 | DD123: 2 | DE123: 8 | DF123: 4 | DG123: 11 | DH123: 8 | DI123: 0 | DJ123: 0 | DK123: 0 | DL123: 0 | DM123: 0 | DN123: 3 | DO123: 0 | DP123: 0 | DQ123: 0 | DR123: 1 | DS123: 30 | DT123: 59 | DU123: 30 | DV123: 53 | DW123: 113 | DX123: 38 | DY123: 0 | DZ123: 0 | EA123: 4 | EB123: 6 | EC123: 0 | ED123: 0 | EE123: 0 | EF123: 0 | EG123: 0 | EH123: 11 | EI123: 66 | EJ123: 32 | EK123: 48 | EL123: 95 | EM123: 51 | EN123: 0 | EO123: 0 | EP123: 9 | EQ123: 6 | ER123: 0 | ES123: 0 | ET123: 4 | EU123: 49 | EV123: 102 | EW123: 10 | EX123: 13 | EY123: 15 | EZ123: 3 | FA123: 0 | FB123: 0 | FC123: 2 | FD123: 0 | FE123: 0 | FF123: 0 | FG123: 0 | FH123: 99 | FI123: 159 | FJ123: 127 | FK123: 167 | FL123: 160 | FM123: 37 | FN123: 0 | FO123: 5 | FP123: 37 | FQ123: 28 | FR123: 0 | FS123: 0 | FT123: 0 | FU123: 4 | FV123: 4 | FW123: 10 | FX123: 19 | FY123: 18 | FZ123: 3 | GA123: 0 | GB123: 0 | GC123: 0 | GD123: 3 | GE123: 0 | GF123: 0 | GG123: 0 | GH123: 0 | GI123: 1 | GJ123: 0 | GK123: 0 | GL123: 0 | GM123: 0 | GN123: 0 | GO123: 0 | GP123: 0 | GQ123: 0 | GR123: 0 | GS123: 0 | GT123: 0 | GU123: 0 | GV123: 0 | GW123: 0 | GX123: 0 | GY123: 0 | GZ123: 0 | HA123: 0 | HB123: 0 | HC123: 0 | HD123: 0 | HE123: 0 | HF123: 0 | HG123: 0 | HH123: 0 | HI123: 0 | HJ123: 0 | HK123: 0 | HL123: 0 | HM123: 0 | HN123: 0 | HO123: 0 | HP123: 2 | HQ123: 0 | HR123: 0 | HS123: 0 | HT123: 0 | HU123: 0 | HV123: 0 | HW123: 0 | HX123: 0 | HY123: 0 | HZ123: 0 | IA123: 0 | IB123: 0 | IC123: 0 | ID123: 0 | IE123: 0 | IF123: 0 | IG123: 0 | IH123: 1 | II123: 0 | IJ123: 0 | IK123: 0 | IL123: 0 | IM123: 0
A124: 11 | B124: 0 | C124: 7 | D124: 1 | E124: 5 | F124: 2 | G124: 119 | H124: 290 | I124: 171 | J124: 31 | K124: 35 | L124: 11 | M124: 0 | N124: 1 | O124: 20 | P124: 16 | Q124: 0 | R124: 2 | S124: 3 | T124: 8 | U124: 11 | V124: 62 | W124: 75 | X124: 76 | Y124: 73 | Z124: 147 | AA124: 50 | AB124: 0 | AC124: 4 | AD124: 23 | AE124: 27 | AF124: 1 | AG124: 5 | AH124: 2 | AI124: 117 | AJ124: 287 | AK124: 171 | AL124: 31 | AM124: 35 | AN124: 10 | AO124: 0 | AP124: 1 | AQ124: 19 | AR124: 17 | AS124: 0 | AT124: 4 | AU124: 54 | AV124: 1 | AW124: 0 | AX124: 0 | AY124: 0 | AZ124: 0 | BA124: 0 | BB124: 0 | BC124: 0 | BD124: 1 | BE124: 3 | BF124: 3 | BG124: 135 | BH124: 291 | BI124: 166 | BJ124: 33 | BK124: 9 | BL124: 0 | BM124: 0 | BN124: 1 | BO124: 23 | BP124: 16 | BQ124: 27 | BR124: 14 | BS124: 0 | BT124: 0 | BU124: 0 | BV124: 2 | BW124: 1 | BX124: 5 | BY124: 4 | BZ124: 140 | CA124: 264 | CB124: 148 | CC124: 35 | CD124: 41 | CE124: 14 | CF124: 0 | CG124: 1 | CH124: 23 | CI124: 15 | CJ124: 0 | CK124: 0 | CL124: 0 | CM124: 0 | CN124: 0 | CO124: 1 | CP124: 4 | CQ124: 17 | CR124: 21 | CS124: 42 | CT124: 6 | CU124: 0 | CV124: 0 | CW124: 18 | CX124: 18 | CY124: 0 | CZ124: 0 | DA124: 0 | DB124: 0 | DC124: 0 | DD124: 1 | DE124: 4 | DF124: 4 | DG124: 6 | DH124: 5 | DI124: 0 | DJ124: 0 | DK124: 0 | DL124: 1 | DM124: 0 | DN124: 1 | DO124: 0 | DP124: 1 | DQ124: 1 | DR124: 0 | DS124: 23 | DT124: 42 | DU124: 33 | DV124: 35 | DW124: 75 | DX124: 24 | DY124: 0 | DZ124: 0 | EA124: 2 | EB124: 9 | EC124: 0 | ED124: 0 | EE124: 0 | EF124: 0 | EG124: 0 | EH124: 9 | EI124: 71 | EJ124: 39 | EK124: 45 | EL124: 104 | EM124: 53 | EN124: 0 | EO124: 1 | EP124: 0 | EQ124: 2 | ER124: 0 | ES124: 0 | ET124: 4 | EU124: 102 | EV124: 103 | EW124: 10 | EX124: 6 | EY124: 9 | EZ124: 3 | FA124: 0 | FB124: 0 | FC124: 0 | FD124: 0 | FE124: 1 | FF124: 0 | FG124: 1 | FH124: 73 | FI124: 130 | FJ124: 135 | FK124: 135 | FL124: 170 | FM124: 19 | FN124: 0 | FO124: 0 | FP124: 32 | FQ124: 24 | FR124: 0 | FS124: 0 | FT124: 0 | FU124: 11 | FV124: 22 | FW124: 11 | FX124: 10 | FY124: 19 | FZ124: 0 | GA124: 0 | GB124: 0 | GC124: 1 | GD124: 3 | GE124: 0 | GF124: 0 | GG124: 0 | GH124: 4 | GI124: 0 | GJ124: 0 | GK124: 0 | GL124: 0 | GM124: 0 | GN124: 0 | GO124: 0 | GP124: 0 | GQ124: 0 | GR124: 0 | GS124: 0 | GT124: 0 | GU124: 0 | GV124: 0 | GW124: 0 | GX124: 0 | GY124: 0 | GZ124: 0 | HA124: 0 | HB124: 0 | HC124: 0 | HD124: 0 | HE124: 0 | HF124: 0 | HG124: 0 | HH124: 0 | HI124: 0 | HJ124: 0 | HK124: 0 | HL124: 0 | HM124: 0 | HN124: 0 | HO124: 1 | HP124: 0 | HQ124: 0 | HR124: 0 | HS124: 1 | HT124: 0 | HU124: 0 | HV124: 0 | HW124: 0 | HX124: 2 | HY124: 0 | HZ124: 0 | IA124: 0 | IB124: 0 | IC124: 0 | ID124: 0 | IE124: 0 | IF124: 0 | IG124: 1 | IH124: 2 | II124: 3 | IJ124: 0 | IK124: 0 | IL124: 0 | IM124: 0
A125: Total general | B125: 0 | C125: 7 | D125: 16 | E125: 33 | F125: 22 | G125: 355 | H125: 983 | I125: 368 | J125: 157 | K125: 167 | L125: 66 | M125: 0 | N125: 22 | O125: 164 | P125: 148 | Q125: 8 | R125: 24 | S125: 105 | T125: 147 | U125: 165 | V125: 1168 | W125: 2068 | X125: 1479 | Y125: 1248 | Z125: 1886 | AA125: 699 | AB125: 15 | AC125: 62 | AD125: 431 | AE125: 327 | AF125: 16 | AG125: 33 | AH125: 21 | AI125: 355 | AJ125: 982 | AK125: 368 | AL125: 159 | AM125: 167 | AN125: 66 | AO125: 0 | AP125: 22 | AQ125: 161 | AR125: 149 | AS125: 1 | AT125: 41 | AU125: 153 | AV125: 17 | AW125: 0 | AX125: 0 | AY125: 0 | AZ125: 3 | BA125: 0 | BB125: 0 | BC125: 0 | BD125: 13 | BE125: 31 | BF125: 32 | BG125: 437 | BH125: 1079 | BI125: 372 | BJ125: 169 | BK125: 40 | BL125: 8 | BM125: 0 | BN125: 20 | BO125: 185 | BP125: 141 | BQ125: 217 | BR125: 74 | BS125: 0 | BT125: 2 | BU125: 13 | BV125: 31 | BW125: 10 | BX125: 26 | BY125: 33 | BZ125: 414 | CA125: 1052 | CB125: 402 | CC125: 246 | CD125: 245 | CE125: 94 | CF125: 0 | CG125: 23 | CH125: 200 | CI125: 146 | CJ125: 0 | CK125: 0 | CL125: 0 | CM125: 1 | CN125: 1 | CO125: 14 | CP125: 27 | CQ125: 184 | CR125: 279 | CS125: 488 | CT125: 192 | CU125: 0 | CV125: 20 | CW125: 224 | CX125: 162 | CY125: 0 | CZ125: 0 | DA125: 0 | DB125: 0 | DC125: 2 | DD125: 38 | DE125: 47 | DF125: 49 | DG125: 57 | DH125: 87 | DI125: 12 | DJ125: 0 | DK125: 0 | DL125: 3 | DM125: 1 | DN125: 6 | DO125: 0 | DP125: 1 | DQ125: 9 | DR125: 17 | DS125: 272 | DT125: 463 | DU125: 360 | DV125: 563 | DW125: 857 | DX125: 356 | DY125: 0 | DZ125: 1 | EA125: 49 | EB125: 47 | EC125: 0 | ED125: 0 | EE125: 0 | EF125: 0 | EG125: 1 | EH125: 96 | EI125: 669 | EJ125: 310 | EK125: 473 | EL125: 901 | EM125: 503 | EN125: 4 | EO125: 3 | EP125: 37 | EQ125: 29 | ER125: 0 | ES125: 1 | ET125: 25 | EU125: 832 | EV125: 594 | EW125: 274 | EX125: 120 | EY125: 169 | EZ125: 40 | FA125: 2 | FB125: 4 | FC125: 43 | FD125: 27 | FE125: 2 | FF125: 5 | FG125: 43 | FH125: 909 | FI125: 1640 | FJ125: 1841 | FK125: 1885 | FL125: 2082 | FM125: 389 | FN125: 12 | FO125: 95 | FP125: 625 | FQ125: 415 | FR125: 0 | FS125: 0 | FT125: 2 | FU125: 46 | FV125: 119 | FW125: 166 | FX125: 129 | FY125: 157 | FZ125: 32 | GA125: 12 | GB125: 3 | GC125: 20 | GD125: 22 | GE125: 0 | GF125: 0 | GG125: 2 | GH125: 52 | GI125: 7 | GJ125: 5 | GK125: 3 | GL125: 1 | GM125: 0 | GN125: 0 | GO125: 0 | GP125: 0 | GQ125: 1 | GR125: 0 | GS125: 0 | GT125: 0 | GU125: 0 | GV125: 0 | GW125: 0 | GX125: 0 | GY125: 0 | GZ125: 0 | HA125: 0 | HB125: 0 | HC125: 0 | HD125: 0 | HE125: 0 | HF125: 0 | HG125: 0 | HH125: 0 | HI125: 0 | HJ125: 0 | HK125: 0 | HL125: 0 | HM125: 0 | HN125: 0 | HO125: 1 | HP125: 3 | HQ125: 1 | HR125: 0 | HS125: 4 | HT125: 0 | HU125: 0 | HV125: 0 | HW125: 0 | HX125: 7 | HY125: 0 | HZ125: 0 | IA125: 0 | IB125: 0 | IC125: 0 | ID125: 0 | IE125: 2 | IF125: 1 | IG125: 20 | IH125: 7 | II125: 6 | IJ125: 0 | IK125: 0 | IL125: 0 | IM125: 0
A130: Salud Bucal 5
A132: Anio | B132: 2024
A133: UE | B133: (Todas)
A134: Red | B134: LA CONVENCION
A135: MicroRed | B135: (Todas)
A136: EESS | B136: (Todas)
A137: Provincia | B137: (Todas)
A138: Distrito | B138: (Todas)
A140: Etiquetas de fila | B140: B_ABFNs_CT_1a | C140: B_ABFNs_CT_2a | D140: B_ABFNs_CT_3_5a | E140: B_ABFNs_CT_6_11a | F140: B_ABFNs_CT_6_11a_g | G140: B_ABFNs_CT_6_11m | H140: B_ABFNs_CT_Adol_g | I140: B_ABFNs_CT_Adolesc | J140: B_ABFNs_CT_Adulto | K140: B_ABFNs_CT_Adulto_g | L140: B_ABFNs_CT_AdultoM | M140: B_ABFNs_CT_Joven | N140: B_ABFNs_CT_Joven_g | O140: B_AFGNs_CT_6_11a_g | P140: B_AFGNs_CT_Adol_g | Q140: B_AFGNs_CT_Adulto | R140: B_AFGNs_CT_Adulto_g | S140: B_AFGNs_CT_AdultoM | T140: B_AFGNs_CT_Joven_g | U140: B_ANCEDNs_CT_0_28d | V140: B_ANCEDNs_CT_1a | W140: B_ANCEDNs_CT_29_5m | X140: B_ANCEDNs_CT_2a | Y140: B_ANCEDNs_CT_3_5a | Z140: B_ANCEDNs_CT_6_11a | AA140: B_ANCEDNs_CT_6_11a_g | AB140: B_ANCEDNs_CT_6_11m | AC140: B_ANCEDNs_CT_Adol_g | AD140: B_ANCEDNs_CT_Adolesc | AE140: B_ANCEDNs_CT_Adulto | AF140: B_ANCEDNs_CT_Adulto_g | AG140: B_ANCEDNs_CT_AdultoM | AH140: B_ANCEDNs_CT_Joven | AI140: B_ANCEDNs_CT_Joven_g | AJ140: B_ASELNs_CT_2a | AK140: B_ASELNs_CT_3_5a | AL140: B_ASELNs_CT_6_11a | AM140: B_ASELNs_CT_6_11a_g | AN140: B_ASELNs_CT_Adol_g | AO140: B_ASELNs_CT_Adolesc | AP140: B_ASELNs_CT_Adulto | AQ140: B_ASELNs_CT_Adulto_g | AR140: B_ASELNs_CT_AdultoM | AS140: B_ASELNs_CT_Joven | AT140: B_ASELNs_CT_Joven_g | AU140: B_Consulta_EstomatoNs_0_28d | AV140: B_Consulta_EstomatoNs_1a | AW140: B_Consulta_EstomatoNs_29_5m | AX140: B_Consulta_EstomatoNs_2a | AY140: B_Consulta_EstomatoNs_3_5a | AZ140: B_Consulta_EstomatoNs_6_11a | BA140: B_Consulta_EstomatoNs_6_11a_g | BB140: B_Consulta_EstomatoNs_6_11m | BC140: B_Consulta_EstomatoNs_Adol_g | BD140: B_Consulta_EstomatoNs_Adolesc | BE140: B_Consulta_EstomatoNs_Adulto | BF140: B_Consulta_EstomatoNs_Adulto_g | BG140: B_Consulta_EstomatoNs_AdultoM | BH140: B_Consulta_EstomatoNs_Joven | BI140: B_Consulta_EstomatoNs_Joven_g | BJ140: B_Debridacion_BucodenNs_0_28d | BK140: B_Debridacion_BucodenNs_1a | BL140: B_Debridacion_BucodenNs_29_5m | BM140: B_Debridacion_BucodenNs_2a | BN140: B_Debridacion_BucodenNs_3_5a | BO140: B_Debridacion_BucodenNs_6_11a | BP140: B_Debridacion_BucodenNs_6_11a_g | BQ140: B_Debridacion_BucodenNs_6_11m | BR140: B_Debridacion_BucodenNs_Adol_g | BS140: B_Debridacion_BucodenNs_Adolesc | BT140: B_Debridacion_BucodenNs_Adulto | BU140: B_Debridacion_BucodenNs_Adulto_g | BV140: B_Debridacion_BucodenNs_AdultoM | BW140: B_Debridacion_BucodenNs_Joven | BX140: B_Debridacion_BucodenNs_Joven_g | BY140: B_DestartrajeNs_CT_0_28d | BZ140: B_DestartrajeNs_CT_1a | CA140: B_DestartrajeNs_CT_29_5m | CB140: B_DestartrajeNs_CT_2a | CC140: B_DestartrajeNs_CT_3_5a | CD140: B_DestartrajeNs_CT_6_11a | CE140: B_DestartrajeNs_CT_6_11a_g | CF140: B_DestartrajeNs_CT_6_11m | CG140: B_DestartrajeNs_CT_Adol_g | CH140: B_DestartrajeNs_CT_Adolesc | CI140: B_DestartrajeNs_CT_Adulto | CJ140: B_DestartrajeNs_CT_Adulto_g | CK140: B_DestartrajeNs_CT_AdultoM | CL140: B_DestartrajeNs_CT_Joven | CM140: B_DestartrajeNs_CT_Joven_g | CN140: B_Exodoncia_SimpleNs_I_0_28d | CO140: B_Exodoncia_SimpleNs_I_1a | CP140: B_Exodoncia_SimpleNs_I_29_5m | CQ140: B_Exodoncia_SimpleNs_I_2a | CR140: B_Exodoncia_SimpleNs_I_3_5a | CS140: B_Exodoncia_SimpleNs_I_6_11a | CT140: B_Exodoncia_SimpleNs_I_6_11a_g | CU140: B_Exodoncia_SimpleNs_I_6_11m | CV140: B_Exodoncia_SimpleNs_I_Adol_g | CW140: B_Exodoncia_SimpleNs_I_Adolesc | CX140: B_Exodoncia_SimpleNs_I_Adulto | CY140: B_Exodoncia_SimpleNs_I_Adulto_g | CZ140: B_Exodoncia_SimpleNs_I_AdultoM | DA140: B_Exodoncia_SimpleNs_I_Joven | DB140: B_Exodoncia_SimpleNs_I_Joven_g | DC140: B_EXODONNs_CT_0_28d | DD140: B_EXODONNs_CT_1a | DE140: B_EXODONNs_CT_29_5m | DF140: B_EXODONNs_CT_2a | DG140: B_EXODONNs_CT_3_5a | DH140: B_EXODONNs_CT_6_11a | DI140: B_EXODONNs_CT_6_11a_g | DJ140: B_EXODONNs_CT_6_11m | DK140: B_EXODONNs_CT_Adol_g | DL140: B_EXODONNs_CT_Adolesc | DM140: B_EXODONNs_CT_Adulto | DN140: B_EXODONNs_CT_Adulto_g | DO140: B_EXODONNs_CT_AdultoM | DP140: B_EXODONNs_CT_Joven | DQ140: B_EXODONNs_CT_Joven_g | DR140: B_IHONs_CT_1a | DS140: B_IHONs_CT_2a | DT140: B_IHONs_CT_3_5a | DU140: B_IHONs_CT_6_11a | DV140: B_IHONs_CT_6_11a_g | DW140: B_IHONs_CT_6_11m | DX140: B_IHONs_CT_Adol_g | DY140: B_IHONs_CT_Adolesc | DZ140: B_IHONs_CT_Adulto | EA140: B_IHONs_CT_Adulto_g | EB140: B_IHONs_CT_AdultoM | EC140: B_IHONs_CT_Joven | ED140: B_IHONs_CT_Joven_g | EE140: B_Ionomero_VidrioNs_I_1a | EF140: B_Ionomero_VidrioNs_I_2a | EG140: B_Ionomero_VidrioNs_I_3_5a | EH140: B_Ionomero_VidrioNs_I_6_11a | EI140: B_Ionomero_VidrioNs_I_6_11a_g | EJ140: B_Ionomero_VidrioNs_I_6_11m | EK140: B_Ionomero_VidrioNs_I_Adol_g | EL140: B_Ionomero_VidrioNs_I_Adolesc | EM140: B_Ionomero_VidrioNs_I_Adulto | EN140: B_Ionomero_VidrioNs_I_Adulto_g | EO140: B_Ionomero_VidrioNs_I_AdultoM | EP140: B_Ionomero_VidrioNs_I_Joven | EQ140: B_Ionomero_VidrioNs_I_Joven_g | ER140: B_MaxiloFacialNs_3_5a | ES140: B_MaxiloFacialNs_6_11a | ET140: B_MaxiloFacialNs_6_11a_g | EU140: B_MaxiloFacialNs_Adol_g | EV140: B_MaxiloFacialNs_Adolesc | EW140: B_MaxiloFacialNs_Adulto | EX140: B_MaxiloFacialNs_Adulto_g | EY140: B_MaxiloFacialNs_AdultoM | EZ140: B_MaxiloFacialNs_I_0_28d | FA140: B_MaxiloFacialNs_I_1a | FB140: B_MaxiloFacialNs_I_29_5m | FC140: B_MaxiloFacialNs_I_2a | FD140: B_MaxiloFacialNs_I_6_11m | FE140: B_MaxiloFacialNs_Joven | FF140: B_MaxiloFacialNs_Joven_g | FG140: B_OrtopediaMaxilarNs_in_1a | FH140: B_OrtopediaMaxilarNs_in_2a | FI140: B_OrtopediaMaxilarNs_in_3_5a | FJ140: B_OrtopediaMaxilarNs_in_6_11a | FK140: B_OrtopediaMaxilarNs_in_6_11a_g | FL140: B_OrtopediaMaxilarNs_in_6_11m | FM140: B_OrtopediaMaxilarNs_in_Adol_g | FN140: B_OrtopediaMaxilarNs_in_Adolesc | FO140: B_OrtopediaMaxilarNs_in_Adulto | FP140: B_OrtopediaMaxilarNs_in_Adulto_g | FQ140: B_OrtopediaMaxilarNs_in_AdultoM | FR140: B_OrtopediaMaxilarNs_in_Joven | FS140: B_OrtopediaMaxilarNs_in_Joven_g | FT140: B_PDNs_CT_1a | FU140: B_PDNs_CT_2a | FV140: B_PDNs_CT_3_5a | FW140: B_PDNs_CT_6_11a | FX140: B_PDNs_CT_6_11a_g | FY140: B_PDNs_CT_6_11m | FZ140: B_PDNs_CT_Adol_g | GA140: B_PDNs_CT_Adolesc | GB140: B_PDNs_CT_Adulto | GC140: B_PDNs_CT_Adulto_g | GD140: B_PDNs_CT_AdultoM | GE140: B_PDNs_CT_Joven | GF140: B_PDNs_CT_Joven_g | GG140: B_PulpotomiaNs_I_1a | GH140: B_PulpotomiaNs_I_2a | GI140: B_PulpotomiaNs_I_3_5a | GJ140: B_PulpotomiaNs_I_6_11a | GK140: B_PulpotomiaNs_I_6_11a_g | GL140: B_PulpotomiaNs_I_6_11m | GM140: B_PulpotomiaNs_I_Adol_g | GN140: B_PulpotomiaNs_I_Adolesc | GO140: B_PulpotomiaNs_I_Adulto | GP140: B_PulpotomiaNs_I_Adulto_g | GQ140: B_PulpotomiaNs_I_AdultoM | GR140: B_PulpotomiaNs_I_Joven | GS140: B_PulpotomiaNs_I_Joven_g | GT140: B_RehabProtesicaNs_in_3_5a | GU140: B_RehabProtesicaNs_in_6_11a | GV140: B_RehabProtesicaNs_in_6_11a_g | GW140: B_RehabProtesicaNs_in_Adol_g | GX140: B_RehabProtesicaNs_in_Adolesc | GY140: B_RehabProtesicaNs_in_Adulto | GZ140: B_RehabProtesicaNs_in_Adulto_g | HA140: B_RehabProtesicaNs_in_AdultoM | HB140: B_RehabProtesicaNs_in_Joven | HC140: B_RehabProtesicaNs_in_Joven_g | HD140: B_ResinaNs_I_1a | HE140: B_ResinaNs_I_2a | HF140: B_ResinaNs_I_3_5a | HG140: B_ResinaNs_I_6_11a | HH140: B_ResinaNs_I_6_11a_g | HI140: B_ResinaNs_I_6_11m | HJ140: B_ResinaNs_I_Adol_g | HK140: B_ResinaNs_I_Adolesc | HL140: B_ResinaNs_I_Adulto | HM140: B_ResinaNs_I_Adulto_g | HN140: B_ResinaNs_I_AdultoM | HO140: B_ResinaNs_I_Joven | HP140: B_ResinaNs_I_Joven_g | HQ140: B_TEndodonticaNs_TA_1a | HR140: B_TEndodonticaNs_TA_2a | HS140: B_TEndodonticaNs_TA_3_5a | HT140: B_TEndodonticaNs_TA_6_11a | HU140: B_TEndodonticaNs_TA_6_11a_g | HV140: B_TEndodonticaNs_TA_6_11m | HW140: B_TEndodonticaNs_TA_Adol_g | HX140: B_TEndodonticaNs_TA_Adolesc | HY140: B_TEndodonticaNs_TA_Adulto | HZ140: B_TEndodonticaNs_TA_Adulto_g | IA140: B_TEndodonticaNs_TA_AdultoM | IB140: B_TEndodonticaNs_TA_Joven | IC140: B_TEndodonticaNs_TA_Joven_g | ID140: B_TtoPeriodontalNs_3_5a | IE140: B_TtoPeriodontalNs_6_11a | IF140: B_TtoPeriodontalNs_6_11a_g | IG140: B_TtoPeriodontalNs_Adol_g | IH140: B_TtoPeriodontalNs_Adolesc | II140: B_TtoPeriodontalNs_Adulto | IJ140: B_TtoPeriodontalNs_Adulto_g | IK140: B_TtoPeriodontalNs_AdultoM | IL140: B_TtoPeriodontalNs_Joven | IM140: B_TtoPeriodontalNs_Joven_g
A141: 1 | B141: 0 | C141: 0 | D141: 0 | E141: 0 | F141: 0 | G141: 0 | H141: 0 | I141: 0 | J141: 0 | K141: 0 | L141: 0 | M141: 0 | N141: 0 | O141: 0 | P141: 0 | Q141: 0 | R141: 0 | S141: 0 | T141: 0 | U141: 0 | V141: 0 | W141: 0 | X141: 0 | Y141: 0 | Z141: 0 | AA141: 0 | AB141: 0 | AC141: 0 | AD141: 0 | AE141: 0 | AF141: 0 | AG141: 0 | AH141: 0 | AI141: 0 | AJ141: 0 | AK141: 0 | AL141: 0 | AM141: 0 | AN141: 0 | AO141: 0 | AP141: 0 | AQ141: 0 | AR141: 0 | AS141: 0 | AT141: 0 | AU141: 0 | AV141: 0 | AW141: 0 | AX141: 0 | AY141: 0 | AZ141: 0 | BA141: 0 | BB141: 0 | BC141: 0 | BD141: 0 | BE141: 0 | BF141: 0 | BG141: 0 | BH141: 0 | BI141: 0 | BJ141: 0 | BK141: 0 | BL141: 0 | BM141: 0 | BN141: 0 | BO141: 0 | BP141: 0 | BQ141: 0 | BR141: 0 | BS141: 0 | BT141: 0 | BU141: 0 | BV141: 0 | BW141: 0 | BX141: 0 | BY141: 0 | BZ141: 0 | CA141: 0 | CB141: 0 | CC141: 0 | CD141: 0 | CE141: 0 | CF141: 0 | CG141: 0 | CH141: 0 | CI141: 0 | CJ141: 0 | CK141: 0 | CL141: 0 | CM141: 0 | CN141: 0 | CO141: 0 | CP141: 0 | CQ141: 0 | CR141: 0 | CS141: 0 | CT141: 0 | CU141: 0 | CV141: 0 | CW141: 0 | CX141: 0 | CY141: 0 | CZ141: 0 | DA141: 0 | DB141: 0 | DC141: 0 | DD141: 0 | DE141: 0 | DF141: 0 | DG141: 0 | DH141: 0 | DI141: 0 | DJ141: 0 | DK141: 0 | DL141: 0 | DM141: 0 | DN141: 0 | DO141: 0 | DP141: 0 | DQ141: 0 | DR141: 0 | DS141: 0 | DT141: 0 | DU141: 0 | DV141: 0 | DW141: 0 | DX141: 0 | DY141: 0 | DZ141: 0 | EA141: 0 | EB141: 0 | EC141: 0 | ED141: 0 | EE141: 0 | EF141: 0 | EG141: 0 | EH141: 0 | EI141: 0 | EJ141: 0 | EK141: 0 | EL141: 0 | EM141: 0 | EN141: 0 | EO141: 0 | EP141: 0 | EQ141: 0 | ER141: 0 | ES141: 0 | ET141: 0 | EU141: 0 | EV141: 0 | EW141: 0 | EX141: 0 | EY141: 0 | EZ141: 0 | FA141: 0 | FB141: 0 | FC141: 0 | FD141: 0 | FE141: 0 | FF141: 0 | FG141: 0 | FH141: 0 | FI141: 0 | FJ141: 0 | FK141: 0 | FL141: 0 | FM141: 0 | FN141: 0 | FO141: 0 | FP141: 0 | FQ141: 0 | FR141: 0 | FS141: 0 | FT141: 0 | FU141: 0 | FV141: 0 | FW141: 0 | FX141: 0 | FY141: 0 | FZ141: 0 | GA141: 0 | GB141: 0 | GC141: 0 | GD141: 0 | GE141: 0 | GF141: 0 | GG141: 0 | GH141: 0 | GI141: 0 | GJ141: 0 | GK141: 0 | GL141: 0 | GM141: 0 | GN141: 0 | GO141: 0 | GP141: 0 | GQ141: 0 | GR141: 0 | GS141: 0 | GT141: 0 | GU141: 0 | GV141: 0 | GW141: 0 | GX141: 0 | GY141: 0 | GZ141: 0 | HA141: 0 | HB141: 0 | HC141: 0 | HD141: 0 | HE141: 0 | HF141: 0 | HG141: 0 | HH141: 0 | HI141: 0 | HJ141: 0 | HK141: 0 | HL141: 0 | HM141: 0 | HN141: 0 | HO141: 0 | HP141: 0 | HQ141: 0 | HR141: 0 | HS141: 0 | HT141: 0 | HU141: 0 | HV141: 0 | HW141: 0 | HX141: 0 | HY141: 0 | HZ141: 0 | IA141: 0 | IB141: 0 | IC141: 0 | ID141: 0 | IE141: 0 | IF141: 0 | IG141: 0 | IH141: 0 | II141: 0 | IJ141: 0 | IK141: 0 | IL141: 0 | IM141: 0
A142: 2 | B142: 0 | C142: 0 | D142: 0 | E142: 0 | F142: 0 | G142: 0 | H142: 0 | I142: 0 | J142: 0 | K142: 0 | L142: 0 | M142: 0 | N142: 0 | O142: 0 | P142: 0 | Q142: 0 | R142: 0 | S142: 0 | T142: 0 | U142: 0 | V142: 0 | W142: 0 | X142: 0 | Y142: 0 | Z142: 0 | AA142: 0 | AB142: 0 | AC142: 0 | AD142: 0 | AE142: 0 | AF142: 0 | AG142: 0 | AH142: 0 | AI142: 0 | AJ142: 0 | AK142: 0 | AL142: 0 | AM142: 0 | AN142: 0 | AO142: 0 | AP142: 0 | AQ142: 0 | AR142: 0 | AS142: 0 | AT142: 0 | AU142: 0 | AV142: 0 | AW142: 0 | AX142: 0 | AY142: 0 | AZ142: 0 | BA142: 0 | BB142: 0 | BC142: 0 | BD142: 0 | BE142: 0 | BF142: 0 | BG142: 0 | BH142: 0 | BI142: 0 | BJ142: 0 | BK142: 0 | BL142: 0 | BM142: 0 | BN142: 0 | BO142: 0 | BP142: 0 | BQ142: 0 | BR142: 0 | BS142: 0 | BT142: 0 | BU142: 0 | BV142: 0 | BW142: 0 | BX142: 0 | BY142: 0 | BZ142: 0 | CA142: 0 | CB142: 0 | CC142: 0 | CD142: 0 | CE142: 0 | CF142: 0 | CG142: 0 | CH142: 0 | CI142: 0 | CJ142: 0 | CK142: 0 | CL142: 0 | CM142: 0 | CN142: 0 | CO142: 0 | CP142: 0 | CQ142: 0 | CR142: 0 | CS142: 0 | CT142: 0 | CU142: 0 | CV142: 0 | CW142: 0 | CX142: 0 | CY142: 0 | CZ142: 0 | DA142: 0 | DB142: 0 | DC142: 0 | DD142: 0 | DE142: 0 | DF142: 0 | DG142: 0 | DH142: 0 | DI142: 0 | DJ142: 0 | DK142: 0 | DL142: 0 | DM142: 0 | DN142: 0 | DO142: 0 | DP142: 0 | DQ142: 0 | DR142: 0 | DS142: 0 | DT142: 0 | DU142: 0 | DV142: 0 | DW142: 0 | DX142: 0 | DY142: 0 | DZ142: 0 | EA142: 0 | EB142: 0 | EC142: 0 | ED142: 0 | EE142: 0 | EF142: 0 | EG142: 0 | EH142: 0 | EI142: 0 | EJ142: 0 | EK142: 0 | EL142: 0 | EM142: 0 | EN142: 0 | EO142: 0 | EP142: 0 | EQ142: 0 | ER142: 0 | ES142: 0 | ET142: 0 | EU142: 0 | EV142: 0 | EW142: 0 | EX142: 0 | EY142: 0 | EZ142: 0 | FA142: 0 | FB142: 0 | FC142: 0 | FD142: 0 | FE142: 0 | FF142: 0 | FG142: 0 | FH142: 0 | FI142: 0 | FJ142: 0 | FK142: 0 | FL142: 0 | FM142: 0 | FN142: 0 | FO142: 0 | FP142: 0 | FQ142: 0 | FR142: 0 | FS142: 0 | FT142: 0 | FU142: 0 | FV142: 0 | FW142: 0 | FX142: 0 | FY142: 0 | FZ142: 0 | GA142: 0 | GB142: 0 | GC142: 0 | GD142: 0 | GE142: 0 | GF142: 0 | GG142: 0 | GH142: 0 | GI142: 0 | GJ142: 0 | GK142: 0 | GL142: 0 | GM142: 0 | GN142: 0 | GO142: 0 | GP142: 0 | GQ142: 0 | GR142: 0 | GS142: 0 | GT142: 0 | GU142: 0 | GV142: 0 | GW142: 0 | GX142: 0 | GY142: 0 | GZ142: 0 | HA142: 0 | HB142: 0 | HC142: 0 | HD142: 0 | HE142: 0 | HF142: 0 | HG142: 0 | HH142: 0 | HI142: 0 | HJ142: 0 | HK142: 0 | HL142: 0 | HM142: 0 | HN142: 0 | HO142: 0 | HP142: 0 | HQ142: 0 | HR142: 0 | HS142: 0 | HT142: 0 | HU142: 0 | HV142: 0 | HW142: 0 | HX142: 0 | HY142: 0 | HZ142: 0 | IA142: 0 | IB142: 0 | IC142: 0 | ID142: 0 | IE142: 0 | IF142: 0 | IG142: 0 | IH142: 0 | II142: 0 | IJ142: 0 | IK142: 0 | IL142: 0 | IM142: 0
A143: 3 | B143: 0 | C143: 0 | D143: 0 | E143: 0 | F143: 0 | G143: 0 | H143: 0 | I143: 0 | J143: 0 | K143: 0 | L143: 0 | M143: 0 | N143: 0 | O143: 0 | P143: 0 | Q143: 0 | R143: 0 | S143: 0 | T143: 0 | U143: 0 | V143: 0 | W143: 0 | X143: 0 | Y143: 0 | Z143: 0 | AA143: 0 | AB143: 0 | AC143: 0 | AD143: 0 | AE143: 0 | AF143: 0 | AG143: 0 | AH143: 0 | AI143: 0 | AJ143: 0 | AK143: 0 | AL143: 0 | AM143: 0 | AN143: 0 | AO143: 0 | AP143: 0 | AQ143: 0 | AR143: 0 | AS143: 0 | AT143: 0 | AU143: 0 | AV143: 0 | AW143: 0 | AX143: 0 | AY143: 0 | AZ143: 0 | BA143: 0 | BB143: 0 | BC143: 0 | BD143: 0 | BE143: 0 | BF143: 0 | BG143: 0 | BH143: 0 | BI143: 0 | BJ143: 0 | BK143: 0 | BL143: 0 | BM143: 0 | BN143: 0 | BO143: 0 | BP143: 0 | BQ143: 0 | BR143: 0 | BS143: 0 | BT143: 0 | BU143: 0 | BV143: 0 | BW143: 0 | BX143: 0 | BY143: 0 | BZ143: 0 | CA143: 0 | CB143: 0 | CC143: 0 | CD143: 0 | CE143: 0 | CF143: 0 | CG143: 0 | CH143: 0 | CI143: 0 | CJ143: 0 | CK143: 0 | CL143: 0 | CM143: 0 | CN143: 0 | CO143: 0 | CP143: 0 | CQ143: 0 | CR143: 0 | CS143: 0 | CT143: 0 | CU143: 0 | CV143: 0 | CW143: 0 | CX143: 0 | CY143: 0 | CZ143: 0 | DA143: 0 | DB143: 0 | DC143: 0 | DD143: 0 | DE143: 0 | DF143: 0 | DG143: 0 | DH143: 0 | DI143: 0 | DJ143: 0 | DK143: 0 | DL143: 0 | DM143: 0 | DN143: 0 | DO143: 0 | DP143: 0 | DQ143: 0 | DR143: 0 | DS143: 0 | DT143: 0 | DU143: 0 | DV143: 0 | DW143: 0 | DX143: 0 | DY143: 0 | DZ143: 0 | EA143: 0 | EB143: 0 | EC143: 0 | ED143: 0 | EE143: 0 | EF143: 0 | EG143: 0 | EH143: 0 | EI143: 0 | EJ143: 0 | EK143: 0 | EL143: 0 | EM143: 0 | EN143: 0 | EO143: 0 | EP143: 0 | EQ143: 0 | ER143: 0 | ES143: 0 | ET143: 0 | EU143: 0 | EV143: 0 | EW143: 0 | EX143: 0 | EY143: 0 | EZ143: 0 | FA143: 0 | FB143: 0 | FC143: 0 | FD143: 0 | FE143: 0 | FF143: 0 | FG143: 0 | FH143: 0 | FI143: 0 | FJ143: 0 | FK143: 0 | FL143: 0 | FM143: 0 | FN143: 0 | FO143: 0 | FP143: 0 | FQ143: 0 | FR143: 0 | FS143: 0 | FT143: 0 | FU143: 0 | FV143: 0 | FW143: 0 | FX143: 0 | FY143: 0 | FZ143: 0 | GA143: 0 | GB143: 0 | GC143: 0 | GD143: 0 | GE143: 0 | GF143: 0 | GG143: 0 | GH143: 0 | GI143: 0 | GJ143: 0 | GK143: 0 | GL143: 0 | GM143: 0 | GN143: 0 | GO143: 0 | GP143: 0 | GQ143: 0 | GR143: 0 | GS143: 0 | GT143: 0 | GU143: 0 | GV143: 0 | GW143: 0 | GX143: 0 | GY143: 0 | GZ143: 0 | HA143: 0 | HB143: 0 | HC143: 0 | HD143: 0 | HE143: 0 | HF143: 0 | HG143: 0 | HH143: 0 | HI143: 0 | HJ143: 0 | HK143: 0 | HL143: 0 | HM143: 0 | HN143: 0 | HO143: 0 | HP143: 0 | HQ143: 0 | HR143: 0 | HS143: 0 | HT143: 0 | HU143: 0 | HV143: 0 | HW143: 0 | HX143: 0 | HY143: 0 | HZ143: 0 | IA143: 0 | IB143: 0 | IC143: 0 | ID143: 0 | IE143: 0 | IF143: 0 | IG143: 0 | IH143: 0 | II143: 0 | IJ143: 0 | IK143: 0 | IL143: 0 | IM143: 0
A144: 4 | B144: 0 | C144: 0 | D144: 0 | E144: 0 | F144: 0 | G144: 0 | H144: 0 | I144: 0 | J144: 0 | K144: 0 | L144: 0 | M144: 0 | N144: 0 | O144: 0 | P144: 0 | Q144: 0 | R144: 0 | S144: 0 | T144: 0 | U144: 0 | V144: 0 | W144: 0 | X144: 0 | Y144: 0 | Z144: 0 | AA144: 0 | AB144: 0 | AC144: 0 | AD144: 0 | AE144: 0 | AF144: 0 | AG144: 0 | AH144: 0 | AI144: 0 | AJ144: 0 | AK144: 0 | AL144: 0 | AM144: 0 | AN144: 0 | AO144: 0 | AP144: 0 | AQ144: 0 | AR144: 0 | AS144: 0 | AT144: 0 | AU144: 0 | AV144: 0 | AW144: 0 | AX144: 0 | AY144: 0 | AZ144: 0 | BA144: 0 | BB144: 0 | BC144: 0 | BD144: 0 | BE144: 0 | BF144: 0 | BG144: 0 | BH144: 0 | BI144: 0 | BJ144: 0 | BK144: 0 | BL144: 0 | BM144: 0 | BN144: 0 | BO144: 0 | BP144: 0 | BQ144: 0 | BR144: 0 | BS144: 0 | BT144: 0 | BU144: 0 | BV144: 0 | BW144: 0 | BX144: 0 | BY144: 0 | BZ144: 0 | CA144: 0 | CB144: 0 | CC144: 0 | CD144: 0 | CE144: 0 | CF144: 0 | CG144: 0 | CH144: 0 | CI144: 0 | CJ144: 0 | CK144: 0 | CL144: 0 | CM144: 0 | CN144: 0 | CO144: 0 | CP144: 0 | CQ144: 0 | CR144: 0 | CS144: 0 | CT144: 0 | CU144: 0 | CV144: 0 | CW144: 0 | CX144: 0 | CY144: 0 | CZ144: 0 | DA144: 0 | DB144: 0 | DC144: 0 | DD144: 0 | DE144: 0 | DF144: 0 | DG144: 0 | DH144: 0 | DI144: 0 | DJ144: 0 | DK144: 0 | DL144: 0 | DM144: 0 | DN144: 0 | DO144: 0 | DP144: 0 | DQ144: 0 | DR144: 0 | DS144: 0 | DT144: 0 | DU144: 0 | DV144: 0 | DW144: 0 | DX144: 0 | DY144: 0 | DZ144: 0 | EA144: 0 | EB144: 0 | EC144: 0 | ED144: 0 | EE144: 0 | EF144: 0 | EG144: 0 | EH144: 0 | EI144: 0 | EJ144: 0 | EK144: 0 | EL144: 0 | EM144: 0 | EN144: 0 | EO144: 0 | EP144: 0 | EQ144: 0 | ER144: 0 | ES144: 0 | ET144: 0 | EU144: 0 | EV144: 0 | EW144: 0 | EX144: 0 | EY144: 0 | EZ144: 0 | FA144: 0 | FB144: 0 | FC144: 0 | FD144: 0 | FE144: 0 | FF144: 0 | FG144: 0 | FH144: 0 | FI144: 0 | FJ144: 0 | FK144: 0 | FL144: 0 | FM144: 0 | FN144: 0 | FO144: 0 | FP144: 0 | FQ144: 0 | FR144: 0 | FS144: 0 | FT144: 0 | FU144: 0 | FV144: 0 | FW144: 0 | FX144: 0 | FY144: 0 | FZ144: 0 | GA144: 0 | GB144: 0 | GC144: 0 | GD144: 0 | GE144: 0 | GF144: 0 | GG144: 0 | GH144: 0 | GI144: 0 | GJ144: 0 | GK144: 0 | GL144: 0 | GM144: 0 | GN144: 0 | GO144: 0 | GP144: 0 | GQ144: 0 | GR144: 0 | GS144: 0 | GT144: 0 | GU144: 0 | GV144: 0 | GW144: 0 | GX144: 0 | GY144: 0 | GZ144: 0 | HA144: 0 | HB144: 0 | HC144: 0 | HD144: 0 | HE144: 0 | HF144: 0 | HG144: 0 | HH144: 0 | HI144: 0 | HJ144: 0 | HK144: 0 | HL144: 0 | HM144: 0 | HN144: 0 | HO144: 0 | HP144: 0 | HQ144: 0 | HR144: 0 | HS144: 0 | HT144: 0 | HU144: 0 | HV144: 0 | HW144: 0 | HX144: 0 | HY144: 0 | HZ144: 0 | IA144: 0 | IB144: 0 | IC144: 0 | ID144: 0 | IE144: 0 | IF144: 0 | IG144: 0 | IH144: 0 | II144: 0 | IJ144: 0 | IK144: 0 | IL144: 0 | IM144: 0
A145: 5 | B145: 0 | C145: 0 | D145: 0 | E145: 0 | F145: 0 | G145: 0 | H145: 0 | I145: 0 | J145: 0 | K145: 0 | L145: 0 | M145: 0 | N145: 0 | O145: 0 | P145: 0 | Q145: 0 | R145: 0 | S145: 0 | T145: 0 | U145: 0 | V145: 0 | W145: 0 | X145: 0 | Y145: 0 | Z145: 0 | AA145: 0 | AB145: 0 | AC145: 0 | AD145: 0 | AE145: 0 | AF145: 0 | AG145: 0 | AH145: 0 | AI145: 0 | AJ145: 0 | AK145: 0 | AL145: 0 | AM145: 0 | AN145: 0 | AO145: 0 | AP145: 0 | AQ145: 0 | AR145: 0 | AS145: 0 | AT145: 0 | AU145: 0 | AV145: 0 | AW145: 0 | AX145: 0 | AY145: 0 | AZ145: 0 | BA145: 0 | BB145: 0 | BC145: 0 | BD145: 0 | BE145: 0 | BF145: 0 | BG145: 0 | BH145: 0 | BI145: 0 | BJ145: 0 | BK145: 0 | BL145: 0 | BM145: 0 | BN145: 0 | BO145: 0 | BP145: 0 | BQ145: 0 | BR145: 0 | BS145: 0 | BT145: 0 | BU145: 0 | BV145: 0 | BW145: 0 | BX145: 0 | BY145: 0 | BZ145: 0 | CA145: 0 | CB145: 0 | CC145: 0 | CD145: 0 | CE145: 0 | CF145: 0 | CG145: 0 | CH145: 0 | CI145: 0 | CJ145: 0 | CK145: 0 | CL145: 0 | CM145: 0 | CN145: 0 | CO145: 0 | CP145: 0 | CQ145: 0 | CR145: 0 | CS145: 0 | CT145: 0 | CU145: 0 | CV145: 0 | CW145: 0 | CX145: 0 | CY145: 0 | CZ145: 0 | DA145: 0 | DB145: 0 | DC145: 0 | DD145: 0 | DE145: 0 | DF145: 0 | DG145: 0 | DH145: 0 | DI145: 0 | DJ145: 0 | DK145: 0 | DL145: 0 | DM145: 0 | DN145: 0 | DO145: 0 | DP145: 0 | DQ145: 0 | DR145: 0 | DS145: 0 | DT145: 0 | DU145: 0 | DV145: 0 | DW145: 0 | DX145: 0 | DY145: 0 | DZ145: 0 | EA145: 0 | EB145: 0 | EC145: 0 | ED145: 0 | EE145: 0 | EF145: 0 | EG145: 0 | EH145: 0 | EI145: 0 | EJ145: 0 | EK145: 0 | EL145: 0 | EM145: 0 | EN145: 0 | EO145: 0 | EP145: 0 | EQ145: 0 | ER145: 0 | ES145: 0 | ET145: 0 | EU145: 0 | EV145: 0 | EW145: 0 | EX145: 0 | EY145: 0 | EZ145: 0 | FA145: 0 | FB145: 0 | FC145: 0 | FD145: 0 | FE145: 0 | FF145: 0 | FG145: 0 | FH145: 0 | FI145: 0 | FJ145: 0 | FK145: 0 | FL145: 0 | FM145: 0 | FN145: 0 | FO145: 0 | FP145: 0 | FQ145: 0 | FR145: 0 | FS145: 0 | FT145: 0 | FU145: 0 | FV145: 0 | FW145: 0 | FX145: 0 | FY145: 0 | FZ145: 0 | GA145: 0 | GB145: 0 | GC145: 0 | GD145: 0 | GE145: 0 | GF145: 0 | GG145: 0 | GH145: 0 | GI145: 0 | GJ145: 0 | GK145: 0 | GL145: 0 | GM145: 0 | GN145: 0 | GO145: 0 | GP145: 0 | GQ145: 0 | GR145: 0 | GS145: 0 | GT145: 0 | GU145: 0 | GV145: 0 | GW145: 0 | GX145: 0 | GY145: 0 | GZ145: 0 | HA145: 0 | HB145: 0 | HC145: 0 | HD145: 0 | HE145: 0 | HF145: 0 | HG145: 0 | HH145: 0 | HI145: 0 | HJ145: 0 | HK145: 0 | HL145: 0 | HM145: 0 | HN145: 0 | HO145: 0 | HP145: 0 | HQ145: 0 | HR145: 0 | HS145: 0 | HT145: 0 | HU145: 0 | HV145: 0 | HW145: 0 | HX145: 0 | HY145: 0 | HZ145: 0 | IA145: 0 | IB145: 0 | IC145: 0 | ID145: 0 | IE145: 0 | IF145: 0 | IG145: 0 | IH145: 0 | II145: 0 | IJ145: 0 | IK145: 0 | IL145: 0 | IM145: 0
A146: 6 | B146: 0 | C146: 0 | D146: 0 | E146: 0 | F146: 0 | G146: 0 | H146: 0 | I146: 0 | J146: 0 | K146: 0 | L146: 0 | M146: 0 | N146: 0 | O146: 0 | P146: 0 | Q146: 0 | R146: 0 | S146: 0 | T146: 0 | U146: 0 | V146: 0 | W146: 0 | X146: 0 | Y146: 0 | Z146: 0 | AA146: 0 | AB146: 0 | AC146: 0 | AD146: 0 | AE146: 0 | AF146: 0 | AG146: 0 | AH146: 0 | AI146: 0 | AJ146: 0 | AK146: 0 | AL146: 0 | AM146: 0 | AN146: 0 | AO146: 0 | AP146: 0 | AQ146: 0 | AR146: 0 | AS146: 0 | AT146: 0 | AU146: 0 | AV146: 0 | AW146: 0 | AX146: 0 | AY146: 0 | AZ146: 0 | BA146: 0 | BB146: 0 | BC146: 0 | BD146: 0 | BE146: 0 | BF146: 0 | BG146: 0 | BH146: 0 | BI146: 0 | BJ146: 0 | BK146: 0 | BL146: 0 | BM146: 0 | BN146: 0 | BO146: 0 | BP146: 0 | BQ146: 0 | BR146: 0 | BS146: 0 | BT146: 0 | BU146: 0 | BV146: 0 | BW146: 0 | BX146: 0 | BY146: 0 | BZ146: 0 | CA146: 0 | CB146: 0 | CC146: 0 | CD146: 0 | CE146: 0 | CF146: 0 | CG146: 0 | CH146: 0 | CI146: 0 | CJ146: 0 | CK146: 0 | CL146: 0 | CM146: 0 | CN146: 0 | CO146: 0 | CP146: 0 | CQ146: 0 | CR146: 0 | CS146: 0 | CT146: 0 | CU146: 0 | CV146: 0 | CW146: 0 | CX146: 0 | CY146: 0 | CZ146: 0 | DA146: 0 | DB146: 0 | DC146: 0 | DD146: 0 | DE146: 0 | DF146: 0 | DG146: 0 | DH146: 0 | DI146: 0 | DJ146: 0 | DK146: 0 | DL146: 0 | DM146: 0 | DN146: 0 | DO146: 0 | DP146: 0 | DQ146: 0 | DR146: 0 | DS146: 0 | DT146: 0 | DU146: 0 | DV146: 0 | DW146: 0 | DX146: 0 | DY146: 0 | DZ146: 0 | EA146: 0 | EB146: 0 | EC146: 0 | ED146: 0 | EE146: 0 | EF146: 0 | EG146: 0 | EH146: 0 | EI146: 0 | EJ146: 0 | EK146: 0 | EL146: 0 | EM146: 0 | EN146: 0 | EO146: 0 | EP146: 0 | EQ146: 0 | ER146: 0 | ES146: 0 | ET146: 0 | EU146: 0 | EV146: 0 | EW146: 0 | EX146: 0 | EY146: 0 | EZ146: 0 | FA146: 0 | FB146: 0 | FC146: 0 | FD146: 0 | FE146: 0 | FF146: 0 | FG146: 0 | FH146: 0 | FI146: 0 | FJ146: 0 | FK146: 0 | FL146: 0 | FM146: 0 | FN146: 0 | FO146: 0 | FP146: 0 | FQ146: 0 | FR146: 0 | FS146: 0 | FT146: 0 | FU146: 0 | FV146: 0 | FW146: 0 | FX146: 0 | FY146: 0 | FZ146: 0 | GA146: 0 | GB146: 0 | GC146: 0 | GD146: 0 | GE146: 0 | GF146: 0 | GG146: 0 | GH146: 0 | GI146: 0 | GJ146: 0 | GK146: 0 | GL146: 0 | GM146: 0 | GN146: 0 | GO146: 0 | GP146: 0 | GQ146: 0 | GR146: 0 | GS146: 0 | GT146: 0 | GU146: 0 | GV146: 0 | GW146: 0 | GX146: 0 | GY146: 0 | GZ146: 0 | HA146: 0 | HB146: 0 | HC146: 0 | HD146: 0 | HE146: 0 | HF146: 0 | HG146: 0 | HH146: 0 | HI146: 0 | HJ146: 0 | HK146: 0 | HL146: 0 | HM146: 0 | HN146: 0 | HO146: 0 | HP146: 0 | HQ146: 0 | HR146: 0 | HS146: 0 | HT146: 0 | HU146: 0 | HV146: 0 | HW146: 0 | HX146: 0 | HY146: 0 | HZ146: 0 | IA146: 0 | IB146: 0 | IC146: 0 | ID146: 0 | IE146: 0 | IF146: 0 | IG146: 0 | IH146: 0 | II146: 0 | IJ146: 0 | IK146: 0 | IL146: 0 | IM146: 0
A147: 7 | B147: 0 | C147: 0 | D147: 0 | E147: 0 | F147: 0 | G147: 0 | H147: 0 | I147: 0 | J147: 0 | K147: 0 | L147: 0 | M147: 0 | N147: 0 | O147: 0 | P147: 0 | Q147: 0 | R147: 0 | S147: 0 | T147: 0 | U147: 0 | V147: 0 | W147: 0 | X147: 0 | Y147: 0 | Z147: 0 | AA147: 0 | AB147: 0 | AC147: 0 | AD147: 0 | AE147: 0 | AF147: 0 | AG147: 0 | AH147: 0 | AI147: 0 | AJ147: 0 | AK147: 0 | AL147: 0 | AM147: 0 | AN147: 0 | AO147: 0 | AP147: 0 | AQ147: 0 | AR147: 0 | AS147: 0 | AT147: 0 | AU147: 0 | AV147: 0 | AW147: 0 | AX147: 0 | AY147: 0 | AZ147: 0 | BA147: 0 | BB147: 0 | BC147: 0 | BD147: 0 | BE147: 0 | BF147: 0 | BG147: 0 | BH147: 0 | BI147: 0 | BJ147: 0 | BK147: 0 | BL147: 0 | BM147: 0 | BN147: 0 | BO147: 0 | BP147: 0 | BQ147: 0 | BR147: 0 | BS147: 0 | BT147: 0 | BU147: 0 | BV147: 0 | BW147: 0 | BX147: 0 | BY147: 0 | BZ147: 0 | CA147: 0 | CB147: 0 | CC147: 0 | CD147: 0 | CE147: 0 | CF147: 0 | CG147: 0 | CH147: 0 | CI147: 0 | CJ147: 0 | CK147: 0 | CL147: 0 | CM147: 0 | CN147: 0 | CO147: 0 | CP147: 0 | CQ147: 0 | CR147: 0 | CS147: 0 | CT147: 0 | CU147: 0 | CV147: 0 | CW147: 0 | CX147: 0 | CY147: 0 | CZ147: 0 | DA147: 0 | DB147: 0 | DC147: 0 | DD147: 0 | DE147: 0 | DF147: 0 | DG147: 0 | DH147: 0 | DI147: 0 | DJ147: 0 | DK147: 0 | DL147: 0 | DM147: 0 | DN147: 0 | DO147: 0 | DP147: 0 | DQ147: 0 | DR147: 0 | DS147: 0 | DT147: 0 | DU147: 0 | DV147: 0 | DW147: 0 | DX147: 0 | DY147: 0 | DZ147: 0 | EA147: 0 | EB147: 0 | EC147: 0 | ED147: 0 | EE147: 0 | EF147: 0 | EG147: 0 | EH147: 0 | EI147: 0 | EJ147: 0 | EK147: 0 | EL147: 0 | EM147: 0 | EN147: 0 | EO147: 0 | EP147: 0 | EQ147: 0 | ER147: 0 | ES147: 0 | ET147: 0 | EU147: 0 | EV147: 0 | EW147: 0 | EX147: 0 | EY147: 0 | EZ147: 0 | FA147: 0 | FB147: 0 | FC147: 0 | FD147: 0 | FE147: 0 | FF147: 0 | FG147: 0 | FH147: 0 | FI147: 0 | FJ147: 0 | FK147: 0 | FL147: 0 | FM147: 0 | FN147: 0 | FO147: 0 | FP147: 0 | FQ147: 0 | FR147: 0 | FS147: 0 | FT147: 0 | FU147: 0 | FV147: 0 | FW147: 0 | FX147: 0 | FY147: 0 | FZ147: 0 | GA147: 0 | GB147: 0 | GC147: 0 | GD147: 0 | GE147: 0 | GF147: 0 | GG147: 0 | GH147: 0 | GI147: 0 | GJ147: 0 | GK147: 0 | GL147: 0 | GM147: 0 | GN147: 0 | GO147: 0 | GP147: 0 | GQ147: 0 | GR147: 0 | GS147: 0 | GT147: 0 | GU147: 0 | GV147: 0 | GW147: 0 | GX147: 0 | GY147: 0 | GZ147: 0 | HA147: 0 | HB147: 0 | HC147: 0 | HD147: 0 | HE147: 0 | HF147: 0 | HG147: 0 | HH147: 0 | HI147: 0 | HJ147: 0 | HK147: 0 | HL147: 0 | HM147: 0 | HN147: 0 | HO147: 0 | HP147: 0 | HQ147: 0 | HR147: 0 | HS147: 0 | HT147: 0 | HU147: 0 | HV147: 0 | HW147: 0 | HX147: 0 | HY147: 0 | HZ147: 0 | IA147: 0 | IB147: 0 | IC147: 0 | ID147: 0 | IE147: 0 | IF147: 0 | IG147: 0 | IH147: 0 | II147: 0 | IJ147: 0 | IK147: 0 | IL147: 0 | IM147: 0
A148: 8 | B148: 0 | C148: 0 | D148: 0 | E148: 0 | F148: 0 | G148: 0 | H148: 0 | I148: 0 | J148: 0 | K148: 0 | L148: 0 | M148: 0 | N148: 0 | O148: 0 | P148: 0 | Q148: 0 | R148: 0 | S148: 0 | T148: 0 | U148: 0 | V148: 0 | W148: 0 | X148: 0 | Y148: 0 | Z148: 0 | AA148: 0 | AB148: 0 | AC148: 0 | AD148: 0 | AE148: 0 | AF148: 0 | AG148: 0 | AH148: 0 | AI148: 0 | AJ148: 0 | AK148: 0 | AL148: 0 | AM148: 0 | AN148: 0 | AO148: 0 | AP148: 0 | AQ148: 0 | AR148: 0 | AS148: 0 | AT148: 0 | AU148: 0 | AV148: 0 | AW148: 0 | AX148: 0 | AY148: 0 | AZ148: 0 | BA148: 0 | BB148: 0 | BC148: 0 | BD148: 0 | BE148: 0 | BF148: 0 | BG148: 0 | BH148: 0 | BI148: 0 | BJ148: 0 | BK148: 0 | BL148: 0 | BM148: 0 | BN148: 0 | BO148: 0 | BP148: 0 | BQ148: 0 | BR148: 0 | BS148: 0 | BT148: 0 | BU148: 0 | BV148: 0 | BW148: 0 | BX148: 0 | BY148: 0 | BZ148: 0 | CA148: 0 | CB148: 0 | CC148: 0 | CD148: 0 | CE148: 0 | CF148: 0 | CG148: 0 | CH148: 0 | CI148: 0 | CJ148: 0 | CK148: 0 | CL148: 0 | CM148: 0 | CN148: 0 | CO148: 0 | CP148: 0 | CQ148: 0 | CR148: 0 | CS148: 0 | CT148: 0 | CU148: 0 | CV148: 0 | CW148: 0 | CX148: 0 | CY148: 0 | CZ148: 0 | DA148: 0 | DB148: 0 | DC148: 0 | DD148: 0 | DE148: 0 | DF148: 0 | DG148: 0 | DH148: 0 | DI148: 0 | DJ148: 0 | DK148: 0 | DL148: 0 | DM148: 0 | DN148: 0 | DO148: 0 | DP148: 0 | DQ148: 0 | DR148: 0 | DS148: 0 | DT148: 0 | DU148: 0 | DV148: 0 | DW148: 0 | DX148: 0 | DY148: 0 | DZ148: 0 | EA148: 0 | EB148: 0 | EC148: 0 | ED148: 0 | EE148: 0 | EF148: 0 | EG148: 0 | EH148: 0 | EI148: 0 | EJ148: 0 | EK148: 0 | EL148: 0 | EM148: 0 | EN148: 0 | EO148: 0 | EP148: 0 | EQ148: 0 | ER148: 0 | ES148: 0 | ET148: 0 | EU148: 0 | EV148: 0 | EW148: 0 | EX148: 0 | EY148: 0 | EZ148: 0 | FA148: 0 | FB148: 0 | FC148: 0 | FD148: 0 | FE148: 0 | FF148: 0 | FG148: 0 | FH148: 0 | FI148: 0 | FJ148: 0 | FK148: 0 | FL148: 0 | FM148: 0 | FN148: 0 | FO148: 0 | FP148: 0 | FQ148: 0 | FR148: 0 | FS148: 0 | FT148: 0 | FU148: 0 | FV148: 0 | FW148: 0 | FX148: 0 | FY148: 0 | FZ148: 0 | GA148: 0 | GB148: 0 | GC148: 0 | GD148: 0 | GE148: 0 | GF148: 0 | GG148: 0 | GH148: 0 | GI148: 0 | GJ148: 0 | GK148: 0 | GL148: 0 | GM148: 0 | GN148: 0 | GO148: 0 | GP148: 0 | GQ148: 0 | GR148: 0 | GS148: 0 | GT148: 0 | GU148: 0 | GV148: 0 | GW148: 0 | GX148: 0 | GY148: 0 | GZ148: 0 | HA148: 0 | HB148: 0 | HC148: 0 | HD148: 0 | HE148: 0 | HF148: 0 | HG148: 0 | HH148: 0 | HI148: 0 | HJ148: 0 | HK148: 0 | HL148: 0 | HM148: 0 | HN148: 0 | HO148: 0 | HP148: 0 | HQ148: 0 | HR148: 0 | HS148: 0 | HT148: 0 | HU148: 0 | HV148: 0 | HW148: 0 | HX148: 0 | HY148: 0 | HZ148: 0 | IA148: 0 | IB148: 0 | IC148: 0 | ID148: 0 | IE148: 0 | IF148: 0 | IG148: 0 | IH148: 0 | II148: 0 | IJ148: 0 | IK148: 0 | IL148: 0 | IM148: 0
A149: 9 | B149: 0 | C149: 0 | D149: 0 | E149: 0 | F149: 0 | G149: 0 | H149: 0 | I149: 0 | J149: 0 | K149: 0 | L149: 0 | M149: 0 | N149: 0 | O149: 0 | P149: 0 | Q149: 0 | R149: 0 | S149: 0 | T149: 0 | U149: 0 | V149: 0 | W149: 0 | X149: 0 | Y149: 0 | Z149: 0 | AA149: 0 | AB149: 0 | AC149: 0 | AD149: 0 | AE149: 0 | AF149: 0 | AG149: 0 | AH149: 0 | AI149: 0 | AJ149: 0 | AK149: 0 | AL149: 0 | AM149: 0 | AN149: 0 | AO149: 0 | AP149: 0 | AQ149: 0 | AR149: 0 | AS149: 0 | AT149: 0 | AU149: 0 | AV149: 0 | AW149: 0 | AX149: 0 | AY149: 0 | AZ149: 0 | BA149: 0 | BB149: 0 | BC149: 0 | BD149: 0 | BE149: 0 | BF149: 0 | BG149: 0 | BH149: 0 | BI149: 0 | BJ149: 0 | BK149: 0 | BL149: 0 | BM149: 0 | BN149: 0 | BO149: 0 | BP149: 0 | BQ149: 0 | BR149: 0 | BS149: 0 | BT149: 0 | BU149: 0 | BV149: 0 | BW149: 0 | BX149: 0 | BY149: 0 | BZ149: 0 | CA149: 0 | CB149: 0 | CC149: 0 | CD149: 0 | CE149: 0 | CF149: 0 | CG149: 0 | CH149: 0 | CI149: 0 | CJ149: 0 | CK149: 0 | CL149: 0 | CM149: 0 | CN149: 0 | CO149: 0 | CP149: 0 | CQ149: 0 | CR149: 0 | CS149: 0 | CT149: 0 | CU149: 0 | CV149: 0 | CW149: 0 | CX149: 0 | CY149: 0 | CZ149: 0 | DA149: 0 | DB149: 0 | DC149: 0 | DD149: 0 | DE149: 0 | DF149: 0 | DG149: 0 | DH149: 0 | DI149: 0 | DJ149: 0 | DK149: 0 | DL149: 0 | DM149: 0 | DN149: 0 | DO149: 0 | DP149: 0 | DQ149: 0 | DR149: 0 | DS149: 0 | DT149: 0 | DU149: 0 | DV149: 0 | DW149: 0 | DX149: 0 | DY149: 0 | DZ149: 0 | EA149: 0 | EB149: 0 | EC149: 0 | ED149: 0 | EE149: 0 | EF149: 0 | EG149: 0 | EH149: 0 | EI149: 0 | EJ149: 0 | EK149: 0 | EL149: 0 | EM149: 0 | EN149: 0 | EO149: 0 | EP149: 0 | EQ149: 0 | ER149: 0 | ES149: 0 | ET149: 0 | EU149: 0 | EV149: 0 | EW149: 0 | EX149: 0 | EY149: 0 | EZ149: 0 | FA149: 0 | FB149: 0 | FC149: 0 | FD149: 0 | FE149: 0 | FF149: 0 | FG149: 0 | FH149: 0 | FI149: 0 | FJ149: 0 | FK149: 0 | FL149: 0 | FM149: 0 | FN149: 0 | FO149: 0 | FP149: 0 | FQ149: 0 | FR149: 0 | FS149: 0 | FT149: 0 | FU149: 0 | FV149: 0 | FW149: 0 | FX149: 0 | FY149: 0 | FZ149: 0 | GA149: 0 | GB149: 0 | GC149: 0 | GD149: 0 | GE149: 0 | GF149: 0 | GG149: 0 | GH149: 0 | GI149: 0 | GJ149: 0 | GK149: 0 | GL149: 0 | GM149: 0 | GN149: 0 | GO149: 0 | GP149: 0 | GQ149: 0 | GR149: 0 | GS149: 0 | GT149: 0 | GU149: 0 | GV149: 0 | GW149: 0 | GX149: 0 | GY149: 0 | GZ149: 0 | HA149: 0 | HB149: 0 | HC149: 0 | HD149: 0 | HE149: 0 | HF149: 0 | HG149: 0 | HH149: 0 | HI149: 0 | HJ149: 0 | HK149: 0 | HL149: 0 | HM149: 0 | HN149: 0 | HO149: 0 | HP149: 0 | HQ149: 0 | HR149: 0 | HS149: 0 | HT149: 0 | HU149: 0 | HV149: 0 | HW149: 0 | HX149: 0 | HY149: 0 | HZ149: 0 | IA149: 0 | IB149: 0 | IC149: 0 | ID149: 0 | IE149: 0 | IF149: 0 | IG149: 0 | IH149: 0 | II149: 0 | IJ149: 0 | IK149: 0 | IL149: 0 | IM149: 0
A150: 10 | B150: 0 | C150: 0 | D150: 0 | E150: 0 | F150: 0 | G150: 0 | H150: 0 | I150: 0 | J150: 0 | K150: 0 | L150: 0 | M150: 0 | N150: 0 | O150: 0 | P150: 0 | Q150: 0 | R150: 0 | S150: 0 | T150: 0 | U150: 0 | V150: 0 | W150: 0 | X150: 0 | Y150: 0 | Z150: 0 | AA150: 0 | AB150: 0 | AC150: 0 | AD150: 0 | AE150: 0 | AF150: 0 | AG150: 0 | AH150: 0 | AI150: 0 | AJ150: 0 | AK150: 0 | AL150: 0 | AM150: 0 | AN150: 0 | AO150: 0 | AP150: 0 | AQ150: 0 | AR150: 0 | AS150: 0 | AT150: 0 | AU150: 0 | AV150: 0 | AW150: 0 | AX150: 0 | AY150: 0 | AZ150: 0 | BA150: 0 | BB150: 0 | BC150: 0 | BD150: 0 | BE150: 0 | BF150: 0 | BG150: 0 | BH150: 0 | BI150: 0 | BJ150: 0 | BK150: 0 | BL150: 0 | BM150: 0 | BN150: 0 | BO150: 0 | BP150: 0 | BQ150: 0 | BR150: 0 | BS150: 0 | BT150: 0 | BU150: 0 | BV150: 0 | BW150: 0 | BX150: 0 | BY150: 0 | BZ150: 0 | CA150: 0 | CB150: 0 | CC150: 0 | CD150: 0 | CE150: 0 | CF150: 0 | CG150: 0 | CH150: 0 | CI150: 0 | CJ150: 0 | CK150: 0 | CL150: 0 | CM150: 0 | CN150: 0 | CO150: 0 | CP150: 0 | CQ150: 0 | CR150: 0 | CS150: 0 | CT150: 0 | CU150: 0 | CV150: 0 | CW150: 0 | CX150: 0 | CY150: 0 | CZ150: 0 | DA150: 0 | DB150: 0 | DC150: 0 | DD150: 0 | DE150: 0 | DF150: 0 | DG150: 0 | DH150: 0 | DI150: 0 | DJ150: 0 | DK150: 0 | DL150: 0 | DM150: 0 | DN150: 0 | DO150: 0 | DP150: 0 | DQ150: 0 | DR150: 0 | DS150: 0 | DT150: 0 | DU150: 0 | DV150: 0 | DW150: 0 | DX150: 0 | DY150: 0 | DZ150: 0 | EA150: 0 | EB150: 0 | EC150: 0 | ED150: 0 | EE150: 0 | EF150: 0 | EG150: 0 | EH150: 0 | EI150: 0 | EJ150: 0 | EK150: 0 | EL150: 0 | EM150: 0 | EN150: 0 | EO150: 0 | EP150: 0 | EQ150: 0 | ER150: 0 | ES150: 0 | ET150: 0 | EU150: 0 | EV150: 0 | EW150: 0 | EX150: 0 | EY150: 0 | EZ150: 0 | FA150: 0 | FB150: 0 | FC150: 0 | FD150: 0 | FE150: 0 | FF150: 0 | FG150: 0 | FH150: 0 | FI150: 0 | FJ150: 0 | FK150: 0 | FL150: 0 | FM150: 0 | FN150: 0 | FO150: 0 | FP150: 0 | FQ150: 0 | FR150: 0 | FS150: 0 | FT150: 0 | FU150: 0 | FV150: 0 | FW150: 0 | FX150: 0 | FY150: 0 | FZ150: 0 | GA150: 0 | GB150: 0 | GC150: 0 | GD150: 0 | GE150: 0 | GF150: 0 | GG150: 0 | GH150: 0 | GI150: 0 | GJ150: 0 | GK150: 0 | GL150: 0 | GM150: 0 | GN150: 0 | GO150: 0 | GP150: 0 | GQ150: 0 | GR150: 0 | GS150: 0 | GT150: 0 | GU150: 0 | GV150: 0 | GW150: 0 | GX150: 0 | GY150: 0 | GZ150: 0 | HA150: 0 | HB150: 0 | HC150: 0 | HD150: 0 | HE150: 0 | HF150: 0 | HG150: 0 | HH150: 0 | HI150: 0 | HJ150: 0 | HK150: 0 | HL150: 0 | HM150: 0 | HN150: 0 | HO150: 0 | HP150: 0 | HQ150: 0 | HR150: 0 | HS150: 0 | HT150: 0 | HU150: 0 | HV150: 0 | HW150: 0 | HX150: 0 | HY150: 0 | HZ150: 0 | IA150: 0 | IB150: 0 | IC150: 0 | ID150: 0 | IE150: 0 | IF150: 0 | IG150: 0 | IH150: 0 | II150: 0 | IJ150: 0 | IK150: 0 | IL150: 0 | IM150: 0
A151: 11 | B151: 0 | C151: 0 | D151: 0 | E151: 0 | F151: 0 | G151: 0 | H151: 0 | I151: 0 | J151: 0 | K151: 0 | L151: 0 | M151: 0 | N151: 0 | O151: 0 | P151: 0 | Q151: 0 | R151: 0 | S151: 0 | T151: 0 | U151: 0 | V151: 0 | W151: 0 | X151: 0 | Y151: 0 | Z151: 0 | AA151: 0 | AB151: 0 | AC151: 0 | AD151: 0 | AE151: 0 | AF151: 0 | AG151: 0 | AH151: 0 | AI151: 0 | AJ151: 0 | AK151: 0 | AL151: 0 | AM151: 0 | AN151: 0 | AO151: 0 | AP151: 0 | AQ151: 0 | AR151: 0 | AS151: 0 | AT151: 0 | AU151: 0 | AV151: 0 | AW151: 0 | AX151: 0 | AY151: 0 | AZ151: 0 | BA151: 0 | BB151: 0 | BC151: 0 | BD151: 0 | BE151: 0 | BF151: 0 | BG151: 0 | BH151: 0 | BI151: 0 | BJ151: 0 | BK151: 0 | BL151: 0 | BM151: 0 | BN151: 0 | BO151: 0 | BP151: 0 | BQ151: 0 | BR151: 0 | BS151: 0 | BT151: 0 | BU151: 0 | BV151: 0 | BW151: 0 | BX151: 0 | BY151: 0 | BZ151: 0 | CA151: 0 | CB151: 0 | CC151: 0 | CD151: 0 | CE151: 0 | CF151: 0 | CG151: 0 | CH151: 0 | CI151: 0 | CJ151: 0 | CK151: 0 | CL151: 0 | CM151: 0 | CN151: 0 | CO151: 0 | CP151: 0 | CQ151: 0 | CR151: 0 | CS151: 0 | CT151: 0 | CU151: 0 | CV151: 0 | CW151: 0 | CX151: 0 | CY151: 0 | CZ151: 0 | DA151: 0 | DB151: 0 | DC151: 0 | DD151: 0 | DE151: 0 | DF151: 0 | DG151: 0 | DH151: 0 | DI151: 0 | DJ151: 0 | DK151: 0 | DL151: 0 | DM151: 0 | DN151: 0 | DO151: 0 | DP151: 0 | DQ151: 0 | DR151: 0 | DS151: 0 | DT151: 0 | DU151: 0 | DV151: 0 | DW151: 0 | DX151: 0 | DY151: 0 | DZ151: 0 | EA151: 0 | EB151: 0 | EC151: 0 | ED151: 0 | EE151: 0 | EF151: 0 | EG151: 0 | EH151: 0 | EI151: 0 | EJ151: 0 | EK151: 0 | EL151: 0 | EM151: 0 | EN151: 0 | EO151: 0 | EP151: 0 | EQ151: 0 | ER151: 0 | ES151: 0 | ET151: 0 | EU151: 0 | EV151: 0 | EW151: 0 | EX151: 0 | EY151: 0 | EZ151: 0 | FA151: 0 | FB151: 0 | FC151: 0 | FD151: 0 | FE151: 0 | FF151: 0 | FG151: 0 | FH151: 0 | FI151: 0 | FJ151: 0 | FK151: 0 | FL151: 0 | FM151: 0 | FN151: 0 | FO151: 0 | FP151: 0 | FQ151: 0 | FR151: 0 | FS151: 0 | FT151: 0 | FU151: 0 | FV151: 0 | FW151: 0 | FX151: 0 | FY151: 0 | FZ151: 0 | GA151: 0 | GB151: 0 | GC151: 0 | GD151: 0 | GE151: 0 | GF151: 0 | GG151: 0 | GH151: 0 | GI151: 0 | GJ151: 0 | GK151: 0 | GL151: 0 | GM151: 0 | GN151: 0 | GO151: 0 | GP151: 0 | GQ151: 0 | GR151: 0 | GS151: 0 | GT151: 0 | GU151: 0 | GV151: 0 | GW151: 0 | GX151: 0 | GY151: 0 | GZ151: 0 | HA151: 0 | HB151: 0 | HC151: 0 | HD151: 0 | HE151: 0 | HF151: 0 | HG151: 0 | HH151: 0 | HI151: 0 | HJ151: 0 | HK151: 0 | HL151: 0 | HM151: 0 | HN151: 0 | HO151: 0 | HP151: 0 | HQ151: 0 | HR151: 0 | HS151: 0 | HT151: 0 | HU151: 0 | HV151: 0 | HW151: 0 | HX151: 0 | HY151: 0 | HZ151: 0 | IA151: 0 | IB151: 0 | IC151: 0 | ID151: 0 | IE151: 0 | IF151: 0 | IG151: 0 | IH151: 0 | II151: 0 | IJ151: 0 | IK151: 0 | IL151: 0 | IM151: 0
A152: Total general | B152: 0 | C152: 0 | D152: 0 | E152: 0 | F152: 0 | G152: 0 | H152: 0 | I152: 0 | J152: 0 | K152: 0 | L152: 0 | M152: 0 | N152: 0 | O152: 0 | P152: 0 | Q152: 0 | R152: 0 | S152: 0 | T152: 0 | U152: 0 | V152: 0 | W152: 0 | X152: 0 | Y152: 0 | Z152: 0 | AA152: 0 | AB152: 0 | AC152: 0 | AD152: 0 | AE152: 0 | AF152: 0 | AG152: 0 | AH152: 0 | AI152: 0 | AJ152: 0 | AK152: 0 | AL152: 0 | AM152: 0 | AN152: 0 | AO152: 0 | AP152: 0 | AQ152: 0 | AR152: 0 | AS152: 0 | AT152: 0 | AU152: 0 | AV152: 0 | AW152: 0 | AX152: 0 | AY152: 0 | AZ152: 0 | BA152: 0 | BB152: 0 | BC152: 0 | BD152: 0 | BE152: 0 | BF152: 0 | BG152: 0 | BH152: 0 | BI152: 0 | BJ152: 0 | BK152: 0 | BL152: 0 | BM152: 0 | BN152: 0 | BO152: 0 | BP152: 0 | BQ152: 0 | BR152: 0 | BS152: 0 | BT152: 0 | BU152: 0 | BV152: 0 | BW152: 0 | BX152: 0 | BY152: 0 | BZ152: 0 | CA152: 0 | CB152: 0 | CC152: 0 | CD152: 0 | CE152: 0 | CF152: 0 | CG152: 0 | CH152: 0 | CI152: 0 | CJ152: 0 | CK152: 0 | CL152: 0 | CM152: 0 | CN152: 0 | CO152: 0 | CP152: 0 | CQ152: 0 | CR152: 0 | CS152: 0 | CT152: 0 | CU152: 0 | CV152: 0 | CW152: 0 | CX152: 0 | CY152: 0 | CZ152: 0 | DA152: 0 | DB152: 0 | DC152: 0 | DD152: 0 | DE152: 0 | DF152: 0 | DG152: 0 | DH152: 0 | DI152: 0 | DJ152: 0 | DK152: 0 | DL152: 0 | DM152: 0 | DN152: 0 | DO152: 0 | DP152: 0 | DQ152: 0 | DR152: 0 | DS152: 0 | DT152: 0 | DU152: 0 | DV152: 0 | DW152: 0 | DX152: 0 | DY152: 0 | DZ152: 0 | EA152: 0 | EB152: 0 | EC152: 0 | ED152: 0 | EE152: 0 | EF152: 0 | EG152: 0 | EH152: 0 | EI152: 0 | EJ152: 0 | EK152: 0 | EL152: 0 | EM152: 0 | EN152: 0 | EO152: 0 | EP152: 0 | EQ152: 0 | ER152: 0 | ES152: 0 | ET152: 0 | EU152: 0 | EV152: 0 | EW152: 0 | EX152: 0 | EY152: 0 | EZ152: 0 | FA152: 0 | FB152: 0 | FC152: 0 | FD152: 0 | FE152: 0 | FF152: 0 | FG152: 0 | FH152: 0 | FI152: 0 | FJ152: 0 | FK152: 0 | FL152: 0 | FM152: 0 | FN152: 0 | FO152: 0 | FP152: 0 | FQ152: 0 | FR152: 0 | FS152: 0 | FT152: 0 | FU152: 0 | FV152: 0 | FW152: 0 | FX152: 0 | FY152: 0 | FZ152: 0 | GA152: 0 | GB152: 0 | GC152: 0 | GD152: 0 | GE152: 0 | GF152: 0 | GG152: 0 | GH152: 0 | GI152: 0 | GJ152: 0 | GK152: 0 | GL152: 0 | GM152: 0 | GN152: 0 | GO152: 0 | GP152: 0 | GQ152: 0 | GR152: 0 | GS152: 0 | GT152: 0 | GU152: 0 | GV152: 0 | GW152: 0 | GX152: 0 | GY152: 0 | GZ152: 0 | HA152: 0 | HB152: 0 | HC152: 0 | HD152: 0 | HE152: 0 | HF152: 0 | HG152: 0 | HH152: 0 | HI152: 0 | HJ152: 0 | HK152: 0 | HL152: 0 | HM152: 0 | HN152: 0 | HO152: 0 | HP152: 0 | HQ152: 0 | HR152: 0 | HS152: 0 | HT152: 0 | HU152: 0 | HV152: 0 | HW152: 0 | HX152: 0 | HY152: 0 | HZ152: 0 | IA152: 0 | IB152: 0 | IC152: 0 | ID152: 0 | IE152: 0 | IF152: 0 | IG152: 0 | IH152: 0 | II152: 0 | IJ152: 0 | IK152: 0 | IL152: 0 | IM152: 0

Sheet Menu
E2: GERESA CUSCO
E3: REPORTE HISMINSA 2024
E4: SALUD BUCAL
F31: Fecha Actualización DATA | I31: 30/11/2024

Sheet Informe_Poblacion_General
A1: GERENCIA REGIONAL DE SALUD CUSCO
A2: DIRECCION EJECUTIVA DE INTELIGENCIA SANITARIA
A3: DIRECCION DE ESTADISTICA INFORMATICA Y TELECOMUNICACIONES
A4: SALUD BUCAL
A5: INFORME DE AVANCES DE METAS FISICAS TODO TIPO DE SEGURO
D7: RED DE SALUD | E7: =TD!F3 -> LA CONVENCION | Q7: PROVINCIA | S7: =TD!F6 -> (All) | Z7: AÑO : | AB7: =TD!C10 -> 2024
D9: MICRO RED | E9: =TD!F4 -> (All) | Q9: DISTRITO | S9: =TD!F7 -> (All) | Z9: MES : | AB9: =TD!O17 -> ENERO - NOVIEMBRE
D11: ESTABLECIMIENTO | E11: =TD!F5 -> (All) | Q11: U.E. | S11: =TD!F8 -> (All)
E14: Total | G14: Curso de Vida Niño | Q14: Cursos de Vida | W14: Gestante
Q15: Adolescente | S15: Joven | T15: Adulto | U15: Adulto Mayor | W15: 6a - 11a | X15: Adolescente | Z15: Joven | AA15: Adulta
G16: 0 a 28d | H16: 29dias a 5meses | J16: 6meses a 11meses | L16: 1 año | M16: 2 años | N16: 3 a 5 años | O16: 6 a 11 años
A17: 1 | B17: Alta Básica Odontológica | E17: =+G17+H17+J17+L17+M17+N17+O17+Q17+S17+T17+U17 -> 3190 | G17: =SUM(GETPIVOTDATA("Suma de B_ABO_0_28d",TD!$A$38)) -> 6 | H17: =SUM(GETPIVOTDATA("Suma de B_ABO_29_5m",TD!$A$38)) -> 30 | J17: =SUM(GETPIVOTDATA("Suma de B_ABO_6_11m",TD!$A$38)) -> 114 | L17: =SUM(GETPIVOTDATA("Suma de B_ABO_1a",TD!$A$38)) -> 149 | M17: =SUM(GETPIVOTDATA("Suma de B_ABO_2a",TD!$A$38)) -> 98 | N17: =SUM(GETPIVOTDATA("Suma de B_ABO_3_5a",TD!$A$38)) -> 627 | O17: =SUM(GETPIVOTDATA("Suma de B_ABO_6_11a",TD!$A$38)) -> 1294 | Q17: =SUM(GETPIVOTDATA("Suma de B_ABO_Adolesc",TD!$A$38)) -> 459 | S17: =SUM(GETPIVOTDATA("Suma de B_ABO_Joven",TD!$A$38)) -> 161 | T17: =SUM(GETPIVOTDATA("Suma de B_ABO_Adulto",TD!$A$38)) -> 147 | U17: =SUM(GETPIVOTDATA("Suma de B_ABO_AdultoM",TD!$A$38)) -> 105 | W17: =SUM(GETPIVOTDATA("Suma de B_ABO_6_11a_g",TD!$A$38)) -> 0 | X17: =SUM(GETPIVOTDATA("Suma de B_ABO_adolesc_g",TD!$A$38)) -> 20 | Z17: =SUM(GETPIVOTDATA("Suma de B_ABO_Joven_g",TD!$A$38)) -> 164 | AA17: =SUM(GETPIVOTDATA("Suma de B_ABO_Adulto_g",TD!$A$38)) -> 153
E19: Total | G19: Curso de Vida Niño | U19: META NIÑO | X19: Cursos de Vida | AF19: META ADULTO MAYOR | AH19: Gestante | AJ19: META GESTANTE
G20: 0 a 28d | I20: 29d a 5m | K20: 6m a 11m | M20: 1 año | O20: 2 años | Q20: 3 a 5 años | S20: 6 a 11 años | X20: Adolescente | Z20: Joven | AB20: Adulto | AD20: Adulto Mayor
B21: PpR | C21: Freq | D21: Atención Estomatológica Preventiva (3000680) | E21: Inician | F21: Caso Ttdo. | G21: Inician | H21: Caso Ttdo. | I21: Inician | J21: Caso Ttdo. | K21: Inician | L21: Caso Ttdo. | M21: Inician | N21: Caso Ttdo. | O21: Inician | P21: Caso Ttdo. | Q21: Inician | R21: Caso Ttdo. | S21: Inician | T21: Caso Ttdo. | U21: Total Caso Ttdo. | V21: Meta | W21: % Avance | X21: Inician | Y21: Caso Ttdo. | Z21: Inician | AA21: Caso Ttdo. | AB21: Inician | AC21: Caso Ttdo. | AD21: Inician | AE21: Caso Ttdo. | AF21: Meta | AG21: % Avance | AH21: Inician | AI21: Caso Ttdo. | AJ21: Meta | AK21: % Avance
A22: 1 | B22: 0068001 | C22: 2 | D22: Asesoría nutricional para el control de enfermedades dentales | E22: =+G22+I22+K22+M22+O22+Q22+S22+X22+Z22+AB22+AD22 -> 12584 | F22: =+H22+J22+L22+N22+P22+R22+T22+Y22+AA22+AC22+AE22 -> 3591 | G22: =SUM(GETPIVOTDATA("Suma de B_ANCED_I_0_28d",TD!$A$38)) -> 11 | H22: =SUM(GETPIVOTDATA("Suma de B_ANCED_ct_0_28d",TD!$A$38)) -> 0 | I22: =SUM(GETPIVOTDATA("Suma de B_ANCED_I_29_5m",TD!$A$38)) -> 28 | J22: =SUM(GETPIVOTDATA("Suma de B_ANCED_ct_29_5m",TD!$A$38)) -> 10 | K22: =SUM(GETPIVOTDATA("Suma de B_ANCED_I_6_11m",TD!$A$38)) -> 143 | L22: =SUM(GETPIVOTDATA("Suma de B_ANCED_ct_6_11m",TD!$A$38)) -> 23 | M22: =SUM(GETPIVOTDATA("Suma de B_ANCED_I_1a",TD!$A$38)) -> 215 | N22: =SUM(GETPIVOTDATA("Suma de B_ANCED_ct_1a",TD!$A$38)) -> 48 | O22: =SUM(GETPIVOTDATA("Suma de B_ANCED_I_2a",TD!$A$38)) -> 219 | P22: =SUM(GETPIVOTDATA("Suma de B_ANCED_ct_2a",TD!$A$38)) -> 39 | Q22: =SUM(GETPIVOTDATA("Suma de B_ANCED_I_3_5a",TD!$A$38)) -> 1566 | R22: =SUM(GETPIVOTDATA("Suma de B_ANCED_ct_3_5a",TD!$A$38)) -> 616 | S22: =SUM(GETPIVOTDATA("Suma de B_ANCED_I_6_11a",TD!$A$38)) -> 3108 | T22: =SUM(GETPIVOTDATA("Suma de B_ANCED_ct_6_11a",TD!$A$38)) -> 1545 | U22: =+H22+J22+L22+N22+P22+R22+T22 -> 2281 | W22: =IFERROR(+U22*100/V22,0) -> 0 | X22: =SUM(GETPIVOTDATA("Suma de B_ANCED_I_Adolesc",TD!$A$38)) -> 2160 | Y22: =SUM(GETPIVOTDATA("Suma de B_ANCED_ct_Adolesc",TD!$A$38)) -> 615 | Z22: =SUM(GETPIVOTDATA("Suma de B_ANCED_I_JOven",TD!$A$38)) -> 1609 | AA22: =SUM(GETPIVOTDATA("Suma de B_ANCED_ct_JOven",TD!$A$38)) -> 260 | AB22: =SUM(GETPIVOTDATA("Suma de B_ANCED_I_Adulto",TD!$A$38)) -> 2563 | AC22: =SUM(GETPIVOTDATA("Suma de B_ANCED_ct_Adulto",TD!$A$38)) -> 313 | AD22: =SUM(GETPIVOTDATA("Suma de B_ANCED_I_AdultoM",TD!$A$38)) -> 962 | AE22: =SUM(GETPIVOTDATA("Suma de B_ANCED_ct_AdultoM",TD!$A$38)) -> 122 | AG22: =IFERROR(+AE22*100/AF22,0) -> 0 | AH22: =SUM(GETPIVOTDATA("Suma de B_ANCED_I_Gest",TD!$A$38)) -> 1195 | AI22: =SUM(GETPIVOTDATA("Suma de B_ANCED_ct_Gest",TD!$A$38)) -> 528 | AK22: =IFERROR(+AI22*100/AJ22,0) -> 0
A23: 2 | B23: 0068002 | C23: 2 | D23: Examen Estomatológico | E23: =+G23+I23+K23+M23+O23+Q23+S23+X23+Z23+AB23+AD23 -> 12538 | G23: =SUM(GETPIVOTDATA("Suma de B_EXODON_CT_0_28d",TD!$A$38)) -> 10 | I23: =SUM(GETPIVOTDATA("Suma de B_EXODON_CT_29_5m",TD!$A$38)) -> 29 | K23: =SUM(GETPIVOTDATA("Suma de B_EXODON_CT_6_11m",TD!$A$38)) -> 145 | M23: =SUM(GETPIVOTDATA("Suma de B_EXODON_CT_1a",TD!$A$38)) -> 218 | O23: =SUM(GETPIVOTDATA("Suma de B_EXODON_CT_2a",TD!$A$38)) -> 225 | Q23: =SUM(GETPIVOTDATA("Suma de B_EXODON_CT_3_5a",TD!$A$38)) -> 1553 | S23: =SUM(GETPIVOTDATA("Suma de B_EXODON_CT_6_11a",TD!$A$38)) -> 3049 | U23: =+G23+I23+K23+M23+O23+Q23+S23 -> 5229 | W23: =IFERROR(+U23*100/V23,0) -> 0 | X23: =SUM(GETPIVOTDATA("Suma de B_EXODON_CT_Adolesc",TD!$A$38)) -> 2154 | Z23: =SUM(GETPIVOTDATA("Suma de B_EXODON_CT_Joven",TD!$A$38)) -> 1604 | AB23: =SUM(GETPIVOTDATA("Suma de B_EXODON_CT_Adulto",TD!$A$38)) -> 2587 | AD23: =SUM(GETPIVOTDATA("Suma de B_EXODON_CT_AdultoM",TD!$A$38)) -> 964 | AG23: 0 | AH23: =SUM(GETPIVOTDATA("Suma de B_EXODON_CT_Gest",TD!$A$38)) -> 1187 | AK23: =IFERROR(+AI23*100/AJ23,0) -> 0
A24: 3 | B24: 0068003 | C24: 2 | D24: Instrucción de higiene oral | E24: =+G24+I24+K24+M24+O24+Q24+S24+X24+Z24+AB24+AD24 -> 12641 | F24: =+H24+J24+L24+N24+P24+R24+T24+Y24+AA24+AC24+AE24 -> 3597 | G24: =SUM(GETPIVOTDATA("Suma de B_IHO_i_0_28d",TD!$A$38)) -> 11 | H24: =SUM(GETPIVOTDATA("Suma de B_IHO_ct_0_28d",TD!$A$38)) -> 0 | I24: =SUM(GETPIVOTDATA("Suma de B_IHO_I_29_5m",TD!$A$38)) -> 28 | J24: =SUM(GETPIVOTDATA("Suma de B_IHO_ct_29_5m",TD!$A$38)) -> 10 | K24: =SUM(GETPIVOTDATA("Suma de B_IHO_I_6_11m",TD!$A$38)) -> 145 | L24: =SUM(GETPIVOTDATA("Suma de B_IHO_ct_6_11m",TD!$A$38)) -> 24 | M24: =SUM(GETPIVOTDATA("Suma de B_IHO_I_1a",TD!$A$38)) -> 219 | N24: =SUM(GETPIVOTDATA("Suma de B_IHO_ct_1a",TD!$A$38)) -> 48 | O24: =SUM(GETPIVOTDATA("Suma de B_IHO_I_2a",TD!$A$38)) -> 223 | P24: =SUM(GETPIVOTDATA("Suma de B_IHO_ct_2a",TD!$A$38)) -> 38 | Q24: =SUM(GETPIVOTDATA("Suma de B_IHO_I_3_5a",TD!$A$38)) -> 1578 | R24: =SUM(GETPIVOTDATA("Suma de B_IHO_ct_3_5a",TD!$A$38)) -> 618 | S24: =SUM(GETPIVOTDATA("Suma de B_IHO_I_6_11a",TD!$A$38)) -> 3109 | T24: =SUM(GETPIVOTDATA("Suma de B_IHO_ct_6_11a",TD!$A$38)) -> 1553 | U24: =+H24+J24+L24+N24+P24+R24+T24 -> 2291 | W24: =IFERROR(+U24*100/V24,0) -> 0 | X24: =SUM(GETPIVOTDATA("Suma de B_IHO_I_Adolesc",TD!$A$38)) -> 2165 | Y24: =SUM(GETPIVOTDATA("Suma de B_IHO_ct_Adolesc",TD!$A$38)) -> 614 | Z24: =SUM(GETPIVOTDATA("Suma de B_IHO_I_JOven",TD!$A$38)) -> 1616 | AA24: =SUM(GETPIVOTDATA("Suma de B_IHO_ct_JOven",TD!$A$38)) -> 260 | AB24: =SUM(GETPIVOTDATA("Suma de B_IHO_I_Adulto",TD!$A$38)) -> 2577 | AC24: =SUM(GETPIVOTDATA("Suma de B_IHO_ct_Adulto",TD!$A$38)) -> 311 | AD24: =SUM(GETPIVOTDATA("Suma de B_IHO_I_AdultoM",TD!$A$38)) -> 970 | AE24: =SUM(GETPIVOTDATA("Suma de B_IHO_ct_AdultoM",TD!$A$38)) -> 121 | AG24: 0 | AH24: =SUM(GETPIVOTDATA("Suma de B_IHO_I_Gest",TD!$A$38)) -> 1200 | AI24: =SUM(GETPIVOTDATA("Suma de B_IHO_ct_Gest",TD!$A$38)) -> 526 | AK24: 0
A25: 4 | B25: 5000602 | C25: 4 | D25: Aplicación de Sellantes | E25: =+G25+I25+K25+M25+O25+Q25+S25+X25+Z25+AB25+AD25 -> 1562 | F25: =+H25+J25+L25+N25+P25+R25+T25+Y25+AA25+AC25+AE25 -> 468 | G25: =SUM(GETPIVOTDATA("Suma de B_ASEL_i_0_28d",TD!$A$38)) -> 0 | H25: =SUM(GETPIVOTDATA("Suma de B_ASEL_ct_0_28d",TD!$A$38)) -> 0 | I25: =SUM(GETPIVOTDATA("Suma de B_ASEL_I_29_5m",TD!$A$38)) -> 0 | J25: =SUM(GETPIVOTDATA("Suma de B_ASEL_ct_29_5m",TD!$A$38)) -> 0 | K25: =SUM(GETPIVOTDATA("Suma de B_ASEL_I_6_11m",TD!$A$38)) -> 0 | L25: =SUM(GETPIVOTDATA("Suma de B_ASEL_ct_6_11m",TD!$A$38)) -> 0 | M25: =SUM(GETPIVOTDATA("Suma de B_ASEL_I_1a",TD!$A$38)) -> 0 | N25: =SUM(GETPIVOTDATA("Suma de B_ASEL_ct_1a",TD!$A$38)) -> 0 | O25: =SUM(GETPIVOTDATA("Suma de B_ASEL_I_2a",TD!$A$38)) -> 8 | P25: =SUM(GETPIVOTDATA("Suma de B_ASEL_ct_2a",TD!$A$38)) -> 1 | Q25: =SUM(GETPIVOTDATA("Suma de B_ASEL_I_3_5a",TD!$A$38)) -> 256 | R25: =SUM(GETPIVOTDATA("Suma de B_ASEL_ct_3_5a",TD!$A$38)) -> 72 | S25: =SUM(GETPIVOTDATA("Suma de B_ASEL_I_6_11a",TD!$A$38)) -> 1182 | T25: =SUM(GETPIVOTDATA("Suma de B_ASEL_ct_6_11a",TD!$A$38)) -> 360 | U25: =+H25+J25+L25+N25+P25+R25+T25 -> 433 | W25: =IFERROR(+U25*100/V25,0) -> 0 | X25: =SUM(GETPIVOTDATA("Suma de B_ASEL_I_Adolesc",TD!$A$38)) -> 98 | Y25: =SUM(GETPIVOTDATA("Suma de B_ASEL_ct_Adolesc",TD!$A$38)) -> 28 | Z25: =SUM(GETPIVOTDATA("Suma de B_ASEL_I_JOven",TD!$A$38)) -> 15 | AA25: =SUM(GETPIVOTDATA("Suma de B_ASEL_ct_JOven",TD!$A$38)) -> 5 | AB25: =SUM(GETPIVOTDATA("Suma de B_ASEL_I_Adulto",TD!$A$38)) -> 3 | AC25: =SUM(GETPIVOTDATA("Suma de B_ASEL_ct_Adulto",TD!$A$38)) -> 2 | AD25: =SUM(GETPIVOTDATA("Suma de B_ASEL_I_AdultoM",TD!$A$38)) -> 0 | AE25: =SUM(GETPIVOTDATA("Suma de B_ASEL_ct_AdultoM",TD!$A$38)) -> 0 | AG25: 0 | AH25: =SUM(GETPIVOTDATA("Suma de B_ASEL_I_Gest",TD!$A$38)) -> 4 | AI25: =SUM(GETPIVOTDATA("Suma de B_ASEL_ct_Gest",TD!$A$38)) -> 3 | AK25: 0
A26: 5 | B26: 5000603 | C26: 2 | D26: Aplicación de Barniz Fluorado | E26: =+G26+I26+K26+M26+O26+Q26+S26+X26+Z26+AB26+AD26 -> 8626 | F26: =+H26+J26+L26+N26+P26+R26+T26+Y26+AA26+AC26+AE26 -> 3445 | G26: =SUM(GETPIVOTDATA("Suma de B_ABF_i_0_28d",TD!$A$38)) -> 0 | H26: =SUM(GETPIVOTDATA("Suma de B_ABF_ct_0_28d",TD!$A$38)) -> 0 | I26: =SUM(GETPIVOTDATA("Suma de B_ABF_I_29_5m",TD!$A$38)) -> 6 | J26: =SUM(GETPIVOTDATA("Suma de B_ABF_ct_29_5m",TD!$A$38)) -> 1 | K26: =SUM(GETPIVOTDATA("Suma de B_ABF_I_6_11m",TD!$A$38)) -> 125 | L26: =SUM(GETPIVOTDATA("Suma de B_ABF_ct_6_11m",TD!$A$38)) -> 20 | M26: =SUM(GETPIVOTDATA("Suma de B_ABF_I_1a",TD!$A$38)) -> 210 | N26: =SUM(GETPIVOTDATA("Suma de B_ABF_ct_1a",TD!$A$38)) -> 46 | O26: =SUM(GETPIVOTDATA("Suma de B_ABF_I_2a",TD!$A$38)) -> 216 | P26: =SUM(GETPIVOTDATA("Suma de B_ABF_ct_2a",TD!$A$38)) -> 52 | Q26: =SUM(GETPIVOTDATA("Suma de B_ABF_I_3_5a",TD!$A$38)) -> 1599 | R26: =SUM(GETPIVOTDATA("Suma de B_ABF_ct_3_5a",TD!$A$38)) -> 696 | S26: =SUM(GETPIVOTDATA("Suma de B_ABF_I_6_11a",TD!$A$38)) -> 3095 | T26: =SUM(GETPIVOTDATA("Suma de B_ABF_ct_6_11a",TD!$A$38)) -> 1658 | U26: =+H26+J26+L26+N26+P26+R26+T26 -> 2473 | W26: =IFERROR(+U26*100/V26,0) -> 0 | X26: =SUM(GETPIVOTDATA("Suma de B_ABF_I_Adolesc",TD!$A$38)) -> 1811 | Y26: =SUM(GETPIVOTDATA("Suma de B_ABF_ct_Adolesc",TD!$A$38)) -> 610 | Z26: =SUM(GETPIVOTDATA("Suma de B_ABF_I_JOven",TD!$A$38)) -> 1046 | AA26: =SUM(GETPIVOTDATA("Suma de B_ABF_ct_JOven",TD!$A$38)) -> 268 | AB26: =SUM(GETPIVOTDATA("Suma de B_ABF_I_Adulto",TD!$A$38)) -> 393 | AC26: =SUM(GETPIVOTDATA("Suma de B_ABF_ct_Adulto",TD!$A$38)) -> 79 | AD26: =SUM(GETPIVOTDATA("Suma de B_ABF_I_AdultoM",TD!$A$38)) -> 125 | AE26: =SUM(GETPIVOTDATA("Suma de B_ABF_ct_AdultoM",TD!$A$38)) -> 15 | AG26: 0 | AH26: =SUM(GETPIVOTDATA("Suma de B_ABF_I_Gest",TD!$A$38)) -> 1053 | AI26: =SUM(GETPIVOTDATA("Suma de B_ABF_ct_Gest",TD!$A$38)) -> 536 | AK26: 0
A27: 6 | B27: 5000603 | C27: 2 | D27: Aplicación de Flúor Gel | E27: =+G27+I27+K27+M27+O27+Q27+S27+X27+Z27+AB27+AD27 -> 3141 | F27: =+H27+J27+L27+N27+P27+R27+T27+Y27+AA27+AC27+AE27 -> 654 | G27: =SUM(GETPIVOTDATA("Suma de B_AFG_i_0_28d",TD!$A$38)) -> 0 | H27: =SUM(GETPIVOTDATA("Suma de B_AFG_ct_0_28d",TD!$A$38)) -> 0 | I27: =SUM(GETPIVOTDATA("Suma de B_AFG_I_29_5m",TD!$A$38)) -> 0 | J27: =SUM(GETPIVOTDATA("Suma de B_AFG_ct_29_5m",TD!$A$38)) -> 0 | K27: =SUM(GETPIVOTDATA("Suma de B_AFG_I_6_11m",TD!$A$38)) -> 4 | L27: =SUM(GETPIVOTDATA("Suma de B_AFG_ct_6_11m",TD!$A$38)) -> 0 | M27: =SUM(GETPIVOTDATA("Suma de B_AFG_I_1a",TD!$A$38)) -> 3 | N27: =SUM(GETPIVOTDATA("Suma de B_AFG_ct_1a",TD!$A$38)) -> 2 | O27: =SUM(GETPIVOTDATA("Suma de B_AFG_I_2a",TD!$A$38)) -> 4 | P27: =SUM(GETPIVOTDATA("Suma de B_AFG_ct_2a",TD!$A$38)) -> 0 | Q27: =SUM(GETPIVOTDATA("Suma de B_AFG_I_3_5a",TD!$A$38)) -> 30 | R27: =SUM(GETPIVOTDATA("Suma de B_AFG_ct_3_5a",TD!$A$38)) -> 9 | S27: =SUM(GETPIVOTDATA("Suma de B_AFG_I_6_11a",TD!$A$38)) -> 72 | T27: =SUM(GETPIVOTDATA("Suma de B_AFG_ct_6_11a",TD!$A$38)) -> 38 | U27: =+H27+J27+L27+N27+P27+R27+T27 -> 49 | W27: =IFERROR(+U27*100/V27,0) -> 0 | X27: =SUM(GETPIVOTDATA("Suma de B_AFG_I_Adolesc",TD!$A$38)) -> 227 | Y27: =SUM(GETPIVOTDATA("Suma de B_AFG_ct_Adolesc",TD!$A$38)) -> 67 | Z27: =SUM(GETPIVOTDATA("Suma de B_AFG_I_JOven",TD!$A$38)) -> 378 | AA27: =SUM(GETPIVOTDATA("Suma de B_AFG_ct_JOven",TD!$A$38)) -> 84 | AB27: =SUM(GETPIVOTDATA("Suma de B_AFG_I_Adulto",TD!$A$38)) -> 1754 | AC27: =SUM(GETPIVOTDATA("Suma de B_AFG_ct_Adulto",TD!$A$38)) -> 333 | AD27: =SUM(GETPIVOTDATA("Suma de B_AFG_I_AdultoM",TD!$A$38)) -> 669 | AE27: =SUM(GETPIVOTDATA("Suma de B_AFG_ct_AdultoM",TD!$A$38)) -> 121 | AG27: 0 | AH27: =SUM(GETPIVOTDATA("Suma de B_AFG_I_Gest",TD!$A$38)) -> 125 | AI27: =SUM(GETPIVOTDATA("Suma de B_AFG_ct_Gest",TD!$A$38)) -> 57 | AK27: 0
A28: 7 | B28: 5000606 | C28: 2 | D28: Profilaxis Dental | E28: =+G28+I28+K28+M28+O28+Q28+S28+X28+Z28+AB28+AD28 -> 11797 | F28: =+H28+J28+L28+N28+P28+R28+T28+Y28+AA28+AC28+AE28 -> 4027 | G28: =SUM(GETPIVOTDATA("Suma de B_PD_i_0_28d",TD!$A$38)) -> 0 | H28: =SUM(GETPIVOTDATA("Suma de B_PD_ct_0_28d",TD!$A$38)) -> 0 | I28: =SUM(GETPIVOTDATA("Suma de B_PD_I_29_5m",TD!$A$38)) -> 3 | J28: =SUM(GETPIVOTDATA("Suma de B_PD_ct_29_5m",TD!$A$38)) -> 1 | K28: =SUM(GETPIVOTDATA("Suma de B_PD_I_6_11m",TD!$A$38)) -> 55 | L28: =SUM(GETPIVOTDATA("Suma de B_PD_ct_6_11m",TD!$A$38)) -> 14 | M28: =SUM(GETPIVOTDATA("Suma de B_PD_I_1a",TD!$A$38)) -> 121 | N28: =SUM(GETPIVOTDATA("Suma de B_PD_ct_1a",TD!$A$38)) -> 32 | O28: =SUM(GETPIVOTDATA("Suma de B_PD_I_2a",TD!$A$38)) -> 181 | P28: =SUM(GETPIVOTDATA("Suma de B_PD_ct_2a",TD!$A$38)) -> 51 | Q28: =SUM(GETPIVOTDATA("Suma de B_PD_I_3_5a",TD!$A$38)) -> 1538 | R28: =SUM(GETPIVOTDATA("Suma de B_PD_ct_3_5a",TD!$A$38)) -> 694 | S28: =SUM(GETPIVOTDATA("Suma de B_PD_I_6_11a",TD!$A$38)) -> 3081 | T28: =SUM(GETPIVOTDATA("Suma de B_PD_ct_6_11a",TD!$A$38)) -> 1689 | U28: =+H28+J28+L28+N28+P28+R28+T28 -> 2481 | W28: =IFERROR(+U28*100/V28,0) -> 0 | X28: =SUM(GETPIVOTDATA("Suma de B_PD_I_Adolesc",TD!$A$38)) -> 2065 | Y28: =SUM(GETPIVOTDATA("Suma de B_PD_ct_Adolesc",TD!$A$38)) -> 667 | Z28: =SUM(GETPIVOTDATA("Suma de B_PD_I_JOven",TD!$A$38)) -> 1530 | AA28: =SUM(GETPIVOTDATA("Suma de B_PD_ct_JOven",TD!$A$38)) -> 346 | AB28: =SUM(GETPIVOTDATA("Suma de B_PD_I_Adulto",TD!$A$38)) -> 2383 | AC28: =SUM(GETPIVOTDATA("Suma de B_PD_ct_Adulto",TD!$A$38)) -> 387 | AD28: =SUM(GETPIVOTDATA("Suma de B_PD_I_AdultoM",TD!$A$38)) -> 840 | AE28: =SUM(GETPIVOTDATA("Suma de B_PD_ct_AdultoM",TD!$A$38)) -> 146 | AG28: 0 | AH28: =SUM(GETPIVOTDATA("Suma de B_PD_I_Gest",TD!$A$38)) -> 1161 | AI28: =SUM(GETPIVOTDATA("Suma de B_PD_ct_Gest",TD!$A$38)) -> 568 | AK28: 0
E30: Total | G30: Curso de Vida Niño | U30: META NIÑO | X30: Cursos de Vida | AF30: META ADULTO MAYOR | AH30: Gestante | AJ30: META GESTANTE
G31: 0 a 28d | I31: 29d a 5m | K31: 6m a 11m | M31: 1 año | O31: 2 años | Q31: 3 a 5 años | S31: 6 a 11 años | X31: Adolescente | Z31: Joven | AB31: Adulto | AD31: Adulto Mayor | AH31: Inician | AI31: Caso Ttdo.
B32: PpR | C32: Freq | D32: Atención Estomatológica Recuperativa (3000681) | E32: Inician | F32: Caso Ttdo. | G32: Inician | H32: Caso Ttdo. | I32: Inician | J32: Caso Ttdo. | K32: Inician | L32: Caso Ttdo. | M32: Inician | N32: Caso Ttdo. | O32: Inician | P32: Caso Ttdo. | Q32: Inician | R32: Caso Ttdo. | S32: Inician | T32: Caso Ttdo. | U32: Total Caso Ttdo. | V32: Meta | W32: % Avance | X32: Inician | Y32: Caso Ttdo. | Z32: Inician | AA32: Caso Ttdo. | AB32: Inician | AC32: Caso Ttdo. | AD32: Inician | AE32: Caso Ttdo. | AF32: Meta | AG32: % Avance | AJ32: Meta | AK32: % Avance
A33: 8 | B33: 0068101 | C33: 2 | D33: Raspaje Dental (Destartraje) | E33: =+G33+I33+K33+M33+O33+Q33+S33+X33+Z33+AB33+AD33 -> 1762 | G33: =SUM(GETPIVOTDATA("Suma de B_Destartraje_CT_0_28d",TD!$A$62)) -> 0 | I33: =SUM(GETPIVOTDATA("Suma de B_Destartraje_CT_29_5m",TD!$A$62)) -> 0 | K33: =SUM(GETPIVOTDATA("Suma de B_Destartraje_CT_6_11m",TD!$A$62)) -> 0 | M33: =SUM(GETPIVOTDATA("Suma de B_Destartraje_CT_1a",TD!$A$62)) -> 1 | O33: =SUM(GETPIVOTDATA("Suma de B_Destartraje_CT_2a",TD!$A$62)) -> 1 | Q33: =SUM(GETPIVOTDATA("Suma de B_Destartraje_CT_3_5a",TD!$A$62)) -> 17 | S33: =SUM(GETPIVOTDATA("Suma de B_Destartraje_CT_6_11a",TD!$A$62)) -> 31 | U33: =+G33+I33+K33+M33+O33+Q33+S33 -> 50 | W33: =IFERROR(+U33*100/V33,0) -> 0 | X33: =SUM(GETPIVOTDATA("Suma de B_Destartraje_CT_Adolesc",TD!$A$62)) -> 277 | Z33: =SUM(GETPIVOTDATA("Suma de B_Destartraje_CT_Joven",TD!$A$62)) -> 405 | AB33: =SUM(GETPIVOTDATA("Suma de B_Destartraje_CT_Adulto",TD!$A$62)) -> 750 | AD33: =SUM(GETPIVOTDATA("Suma de B_Destartraje_CT_Adultom",TD!$A$62)) -> 280 | AG33: =IFERROR(+AE33*100/AF33,0) -> 0 | AH33: =SUM(GETPIVOTDATA("Suma de B_Destartraje_CT_Gest",TD!$A$62)) -> 607 | AK33: =IFERROR(+AI33*100/AJ33,0) -> 0
A34: 9 | C34: 1 | D34: Debridación de los Procesos Infecciosos Bucodentales | E34: 384 | G34: =SUM(GETPIVOTDATA("Suma de B_Debridacion_Bucoden_0_28d",TD!$A$62)) -> 0 | I34: =SUM(GETPIVOTDATA("Suma de B_Debridacion_Bucoden_29_5m",TD!$A$62)) -> 0 | K34: =SUM(GETPIVOTDATA("Suma de B_Debridacion_Bucoden_6_11m",TD!$A$62)) -> 0 | M34: =SUM(GETPIVOTDATA("Suma de B_Debridacion_Bucoden_1a",TD!$A$62)) -> 0 | O34: =SUM(GETPIVOTDATA("Suma de B_Debridacion_Bucoden_2a",TD!$A$62)) -> 2 | Q34: =SUM(GETPIVOTDATA("Suma de B_Debridacion_Bucoden_3_5a",TD!$A$62)) -> 49 | S34: =SUM(GETPIVOTDATA("Suma de B_Debridacion_Bucoden_6_11a",TD!$A$62)) -> 59 | U34: 110 | W34: =IFERROR(+U34*100/V34,0) -> 0 | X34: =SUM(GETPIVOTDATA("Suma de B_Debridacion_Bucoden_Adolesc",TD!$A$62)) -> 59 | Z34: =SUM(GETPIVOTDATA("Suma de B_Debridacion_Bucoden_Joven",TD!$A$62)) -> 82 | AB34: =SUM(GETPIVOTDATA("Suma de B_Debridacion_Bucoden_Adulto",TD!$A$62)) -> 111 | AD34: =SUM(GETPIVOTDATA("Suma de B_Debridacion_Bucoden_Adultom",TD!$A$62)) -> 22 | AG34: =IFERROR(+AE34*100/AF34,0) -> 0 | AH34: =SUM(GETPIVOTDATA("Suma de B_Debridacion_Bucoden_Gest",TD!$A$62)) -> 5 | AK34: =IFERROR(+AI34*100/AJ34,0) -> 0
A35: 10 | B35: 5000702 | C35: 1 | D35: Consulta Estomatológica | E35: 3705 | G35: =SUM(GETPIVOTDATA("Suma de B_Consulta_Estomato_0_28d",TD!$A$62)) -> 8 | I35: =SUM(GETPIVOTDATA("Suma de B_Consulta_Estomato_29_5m",TD!$A$62)) -> 0 | K35: =SUM(GETPIVOTDATA("Suma de B_Consulta_Estomato_6_11m",TD!$A$62)) -> 1 | M35: =SUM(GETPIVOTDATA("Suma de B_Consulta_Estomato_1a",TD!$A$62)) -> 13 | O35: =SUM(GETPIVOTDATA("Suma de B_Consulta_Estomato_2a",TD!$A$62)) -> 21 | Q35: =SUM(GETPIVOTDATA("Suma de B_Consulta_Estomato_3_5a",TD!$A$62)) -> 336 | S35: =SUM(GETPIVOTDATA("Suma de B_Consulta_Estomato_6_11a",TD!$A$62)) -> 572 | U35: 951 | W35: 0 | X35: =SUM(GETPIVOTDATA("Suma de B_Consulta_Estomato_Adolesc",TD!$A$62)) -> 435 | Z35: =SUM(GETPIVOTDATA("Suma de B_Consulta_Estomato_Joven",TD!$A$62)) -> 712 | AB35: =SUM(GETPIVOTDATA("Suma de B_Consulta_Estomato_Adulto",TD!$A$62)) -> 1155 | AD35: =SUM(GETPIVOTDATA("Suma de B_Consulta_Estomato_Adultom",TD!$A$62)) -> 452 | AG35: 0 | AH35: =SUM(GETPIVOTDATA("Suma de B_Consulta_Estomato_Gest",TD!$A$62)) -> 118 | AK35: =IFERROR(+AI35*100/AJ35,0) -> 0
A36: 11 | B36: 5000703 | C36: 2 | D36: Exodoncia Simple | E36: 3842 | G36: =SUM(GETPIVOTDATA("Suma de B_Exodoncia_Simple_I_0_28d",TD!$A$62)) -> 0 | I36: =SUM(GETPIVOTDATA("Suma de B_Exodoncia_Simple_I_29_5m",TD!$A$62)) -> 0 | K36: =SUM(GETPIVOTDATA("Suma de B_Exodoncia_Simple_I_6_11m",TD!$A$62)) -> 0 | M36: =SUM(GETPIVOTDATA("Suma de B_Exodoncia_Simple_I_1a",TD!$A$62)) -> 0 | O36: =SUM(GETPIVOTDATA("Suma de B_Exodoncia_Simple_I_2a",TD!$A$62)) -> 1 | Q36: =SUM(GETPIVOTDATA("Suma de B_Exodoncia_Simple_I_3_5a",TD!$A$62)) -> 112 | S36: =SUM(GETPIVOTDATA("Suma de B_Exodoncia_Simple_I_6_11a",TD!$A$62)) -> 869 | U36: 982 | W36: 0 | X36: =SUM(GETPIVOTDATA("Suma de B_Exodoncia_Simple_I_Adolesc",TD!$A$62)) -> 392 | Z36: =SUM(GETPIVOTDATA("Suma de B_Exodoncia_Simple_I_Joven",TD!$A$62)) -> 598 | AB36: =SUM(GETPIVOTDATA("Suma de B_Exodoncia_Simple_I_Adulto",TD!$A$62)) -> 1203 | AD36: =SUM(GETPIVOTDATA("Suma de B_Exodoncia_Simple_I_Adultom",TD!$A$62)) -> 667 | AG36: 0 | AH36: =SUM(GETPIVOTDATA("Suma de B_Exodoncia_Simple_I_Gest",TD!$A$62)) -> 100 | AK36: =IFERROR(+AI36*100/AJ36,0) -> 0
A37: 12 | B37: 5000704 | C37: 3 | D37: Restauraciones Dentales con Ionómero de Vidrio | E37: 2554 | G37: =SUM(GETPIVOTDATA("Suma de B_Ionomero_Vidrio_I_0_28d",TD!$A$62)) -> 0 | I37: =SUM(GETPIVOTDATA("Suma de B_Ionomero_Vidrio_I_29_5m",TD!$A$62)) -> 0 | K37: =SUM(GETPIVOTDATA("Suma de B_Ionomero_Vidrio_I_6_11m",TD!$A$62)) -> 1 | M37: =SUM(GETPIVOTDATA("Suma de B_Ionomero_Vidrio_I_1a",TD!$A$62)) -> 2 | O37: =SUM(GETPIVOTDATA("Suma de B_Ionomero_Vidrio_I_2a",TD!$A$62)) -> 35 | Q37: =SUM(GETPIVOTDATA("Suma de B_Ionomero_Vidrio_I_3_5a",TD!$A$62)) -> 1057 | S37: =SUM(GETPIVOTDATA("Suma de B_Ionomero_Vidrio_I_6_11a",TD!$A$62)) -> 726 | U37: 1821 | W37: 0 | X37: =SUM(GETPIVOTDATA("Suma de B_Ionomero_Vidrio_I_Adolesc",TD!$A$62)) -> 317 | Z37: =SUM(GETPIVOTDATA("Suma de B_Ionomero_Vidrio_I_Joven",TD!$A$62)) -> 159 | AB37: =SUM(GETPIVOTDATA("Suma de B_Ionomero_Vidrio_I_Adulto",TD!$A$62)) -> 207 | AD37: =SUM(GETPIVOTDATA("Suma de B_Ionomero_Vidrio_I_Adultom",TD!$A$62)) -> 50 | AG37: 0 | AH37: =SUM(GETPIVOTDATA("Suma de B_Ionomero_Vidrio_I_Gest",TD!$A$62)) -> 93 | AK37: =IFERROR(+AI37*100/AJ37,0) -> 0
A38: 13 | B38: 5000705 | C38: 4 | D38: Restauraciones Dentales con Resina | E38: 11902 | G38: =SUM(GETPIVOTDATA("Suma de B_Resina_I_0_28d",TD!$A$62)) -> 0 | I38: =SUM(GETPIVOTDATA("Suma de B_Resina_I_29_5m",TD!$A$62)) -> 0 | K38: =SUM(GETPIVOTDATA("Suma de B_Resina_I_6_11m",TD!$A$62)) -> 6 | M38: =SUM(GETPIVOTDATA("Suma de B_Resina_I_1a",TD!$A$62)) -> 10 | O38: =SUM(GETPIVOTDATA("Suma de B_Resina_I_2a",TD!$A$62)) -> 59 | Q38: =SUM(GETPIVOTDATA("Suma de B_Resina_I_3_5a",TD!$A$62)) -> 1234 | S38: =SUM(GETPIVOTDATA("Suma de B_Resina_I_6_11a",TD!$A$62)) -> 2270 | U38: 3579 | W38: =IFERROR(+U38*100/V38,0) -> 0 | X38: =SUM(GETPIVOTDATA("Suma de B_Resina_I_Adolesc",TD!$A$62)) -> 2466 | Z38: =SUM(GETPIVOTDATA("Suma de B_Resina_I_Joven",TD!$A$62)) -> 2448 | AB38: =SUM(GETPIVOTDATA("Suma de B_Resina_I_Adulto",TD!$A$62)) -> 2838 | AD38: =SUM(GETPIVOTDATA("Suma de B_Resina_I_Adultom",TD!$A$62)) -> 571 | AG38: =IFERROR(+AE38*100/AF38,0) -> 0 | AH38: =SUM(GETPIVOTDATA("Suma de B_Resina_I_Gest",TD!$A$62)) -> 1660 | AK38: =IFERROR(+AI38*100/AJ38,0) -> 0
E40: Total | H40: Curso de Vida Niño | W40: META NIÑO | Z40: Cursos de Vida | AL40: Gestante | AO40: META GESTANTE
H41: 6m a 11m | K41: 1 año | N41: 2 años | Q41: 3 a 5 años | T41: 6 a 11 años | Z41: Adolescente | AC41: Joven | AF41: Adulto | AI41: Adulto Mayor
B42: PpR | C42: Freq | D42: Atención Estomatológica Especializada (3000682) | E42: Inicio | F42: Caso Continuado. | G42: Caso Ttdo. | H42: Inicio | I42: Caso Continuado. | J42: Caso Ttdo. | K42: Inicio | L42: Caso Continuado. | M42: Caso Ttdo. | N42: Inicio | O42: Caso Continuado. | P42: Caso Ttdo. | Q42: Inicio | R42: Caso Continuado. | S42: Caso Ttdo. | T42: Inicio | U42: Caso Continuado. | V42: Caso Ttdo. | W42: Total Caso Ttdo. | X42: Meta | Y42: % Avance | Z42: Inicio | AA42: Caso Continuado. | AB42: Caso Ttdo. | AC42: Inicio | AD42: Caso Continuado. | AE42: Caso Ttdo. | AF42: Inicio | AG42: Caso Continuado. | AH42: Caso Ttdo. | AI42: Inicio | AJ42: Caso Continuado. | AK42: Caso Ttdo. | AL42: Inicio | AM42: Caso Continuado | AN42: Caso Ttdo. | AO42: Meta | AP42: % Avance
A43: 14 | B43: 5000814 | C43: 2 | D43: Terapia Pulpar | E43: =+H43+K43+N43+Q43+T43+Z43+AC43+AF43+AI43 -> 748 | H43: =SUM(GETPIVOTDATA("Suma de B_Pulpotomia_I_6_11m",TD!$A$62)) -> 0 | K43: =SUM(GETPIVOTDATA("Suma de B_Pulpotomia_I_1a",TD!$A$62)) -> 0 | N43: =SUM(GETPIVOTDATA("Suma de B_Pulpotomia_I_2a",TD!$A$62)) -> 2 | Q43: =SUM(GETPIVOTDATA("Suma de B_Pulpotomia_I_3_5a",TD!$A$62)) -> 51 | T43: =SUM(GETPIVOTDATA("Suma de B_Pulpotomia_I_6_11a",TD!$A$62)) -> 128 | W43: =+H43+K43+N43+Q43+T43 -> 181 | Y43: =IFERROR(+W43*100/X43,0) -> 0 | Z43: =SUM(GETPIVOTDATA("Suma de B_Pulpotomia_I_Adolesc",TD!$A$62)) -> 190 | AC43: =SUM(GETPIVOTDATA("Suma de B_Pulpotomia_I_Joven",TD!$A$62)) -> 148 | AF43: =SUM(GETPIVOTDATA("Suma de B_Pulpotomia_I_Adulto",TD!$A$62)) -> 183 | AI43: =SUM(GETPIVOTDATA("Suma de B_Pulpotomia_I_AdultoM",TD!$A$62)) -> 46 | AL43: =SUM(GETPIVOTDATA("Suma de B_Pulpotomia_I_Gest",TD!$A$62)) -> 62 | AP43: =IFERROR(+AN43*100/AO43,0) -> 0
A44: 15 | B44: 5000815 | C44: 2 | D44: Terapia Endodóntica | E44: =+H44+K44+N44+Q44+T44+Z44+AC44+AF44+AI44 -> 54 | F44: =+I44+L44+O44+R44+U44+AA44+AD44+AG44+AJ44 -> 35 | G44: =+J44+M44+P44+S44+V44+AB44+AE44+AH44+AK44 -> 86 | H44: =SUM(GETPIVOTDATA("Suma de B_TEndodontica_IA_6_11m",TD!$A$62)) -> 0 | I44: =SUM(GETPIVOTDATA("Suma de B_TEndodontica_CA_6_11m",TD!$A$62)) -> 0 | J44: =SUM(GETPIVOTDATA("Suma de B_TEndodontica_tA_6_11m",TD!$A$62)) -> 0 | K44: =SUM(GETPIVOTDATA("Suma de B_TEndodontica_IA_1a",TD!$A$62)) -> 0 | L44: =SUM(GETPIVOTDATA("Suma de B_TEndodontica_CA_1a",TD!$A$62)) -> 0 | M44: =SUM(GETPIVOTDATA("Suma de B_TEndodontica_TA_1a",TD!$A$62)) -> 0 | N44: =SUM(GETPIVOTDATA("Suma de B_TEndodontica_IA_2a",TD!$A$62)) -> 0 | O44: =SUM(GETPIVOTDATA("Suma de B_TEndodontica_CA_2a",TD!$A$62)) -> 0 | P44: =SUM(GETPIVOTDATA("Suma de B_TEndodontica_TA_2a",TD!$A$62)) -> 2 | Q44: =SUM(GETPIVOTDATA("Suma de B_TEndodontica_IA_3_5a",TD!$A$62)) -> 17 | R44: =SUM(GETPIVOTDATA("Suma de B_TEndodontica_CA_3_5a",TD!$A$62)) -> 6 | S44: =SUM(GETPIVOTDATA("Suma de B_TEndodontica_TA_3_5a",TD!$A$62)) -> 56 | T44: =SUM(GETPIVOTDATA("Suma de B_TEndodontica_IA_6_11a",TD!$A$62)) -> 4 | U44: =SUM(GETPIVOTDATA("Suma de B_TEndodontica_CA_6_11a",TD!$A$62)) -> 3 | V44: =SUM(GETPIVOTDATA("Suma de B_TEndodontica_TA_6_11a",TD!$A$62)) -> 10 | W44: =+J44+M44+P44+S44+V44 -> 68 | Y44: =IFERROR(+W44*100/X44,0) -> 0 | Z44: =SUM(GETPIVOTDATA("Suma de B_TEndodontica_IA_Adolesc",TD!$A$62)) -> 10 | AA44: =SUM(GETPIVOTDATA("Suma de B_TEndodontica_CA_Adolesc",TD!$A$62)) -> 10 | AB44: =SUM(GETPIVOTDATA("Suma de B_TEndodontica_TA_Adolesc",TD!$A$62)) -> 10 | AC44: =SUM(GETPIVOTDATA("Suma de B_TEndodontica_IA_JOven",TD!$A$62)) -> 14 | AD44: =SUM(GETPIVOTDATA("Suma de B_TEndodontica_CA_JOven",TD!$A$62)) -> 11 | AE44: =SUM(GETPIVOTDATA("Suma de B_TEndodontica_TA_JOven",TD!$A$62)) -> 7 | AF44: =SUM(GETPIVOTDATA("Suma de B_TEndodontica_IA_Adulto",TD!$A$62)) -> 9 | AG44: =SUM(GETPIVOTDATA("Suma de B_TEndodontica_CA_Adulto",TD!$A$62)) -> 4 | AH44: =SUM(GETPIVOTDATA("Suma de B_TEndodontica_TA_Adulto",TD!$A$62)) -> 1 | AI44: =SUM(GETPIVOTDATA("Suma de B_TEndodontica_IA_AdultoM",TD!$A$62)) -> 0 | AJ44: =SUM(GETPIVOTDATA("Suma de B_TEndodontica_CA_AdultoM",TD!$A$62)) -> 1 | AK44: =SUM(GETPIVOTDATA("Suma de B_TEndodontica_TA_AdultoM",TD!$A$62)) -> 0 | AL44: =SUM(GETPIVOTDATA("Suma de B_TEndodontica_IA_G",TD!$A$62)) -> 1 | AM44: =SUM(GETPIVOTDATA("Suma de B_TEndodontica_CA_g",TD!$A$62)) -> 0 | AN44: =SUM(GETPIVOTDATA("Suma de B_TEndodontica_TA_g",TD!$A$62)) -> 1 | AP44: =IFERROR(+AN44*100/AO44,0) -> 0
A45: 16 | B45: 5000816 | C45: 2 | D45: Tratamiento Periodontal | E45: =+Q45+T45+Z45+AC45+AF45+AI45 -> 10 | Q45: =SUM(GETPIVOTDATA("Suma de B_TtoPeriodontal_3_5a",TD!$A$86)) -> 2 | T45: =SUM(GETPIVOTDATA("Suma de B_TtoPeriodontal_6_11a",TD!$A$82)) -> 3 | W45: =Q45+T45 -> 5 | Y45: 0 | Z45: =SUM(GETPIVOTDATA("Suma de B_TtoPeriodontal_Adolesc",TD!$A$82)) -> 1 | AC45: =SUM(GETPIVOTDATA("Suma de B_TtoPeriodontal_Joven",TD!$A$82)) -> 0 | AF45: =SUM(GETPIVOTDATA("Suma de B_TtoPeriodontal_Adulto",TD!$A$82)) -> 4 | AI45: =SUM(GETPIVOTDATA("Suma de B_TtoPeriodontal_AdultoM",TD!$A$82)) -> 0 | AL45: =SUM(GETPIVOTDATA("Suma de B_TtoPeriodontal_G",TD!$A$82)) -> 7 | AP45: =IFERROR(+AN45*100/AO45,0) -> 0
E47: Total | I47: Curso de Vida Niño | AC47: META NIÑO | AF47: Cursos de Vida | AV47: Gestante | AZ47: META GESTANTE
I48: 6m a 11m | M48: 1 año | Q48: 2 años | U48: 3 a 5 años | Y48: 6 a 11 años | AF48: Adolescente | AJ48: Joven | AN48: Adulto | AR48: Adulto Mayor
A49: 17 | B49: PpR | C49: Freq | D49: Atención Estomatológica Especializada (3000682) | E49: Inicio | F49: Caso Ttdo | G49: Continua Tto | H49: Termina Tto | I49: Inicio | J49: Caso Ttdo. | K49: Continua Tto | L49: Termina Tto | M49: Inicio | N49: Caso Ttdo. | O49: Continua Tto | P49: Termina Tto | Q49: Inicio | R49: Caso Ttdo. | S49: Continua Tto | T49: Termina Tto | U49: Inicio | V49: Caso Ttdo. | W49: Continua Tto | X49: Termina Tto | Y49: Inicio | Z49: Caso Ttdo. | AA49: Continua Tto | AB49: Termina Tto | AC49: Total Caso Ttdo. | AD49: Meta | AE49: % Avance | AF49: Inicio | AG49: Caso Ttdo. | AH49: Continua Tto | AI49: TerminaTto | AJ49: Inicio | AK49: Caso Ttdo. | AL49: Continua Tto | AM49: TerminaTto | AN49: Inicio | AO49: Caso Ttdo. | AP49: Continua Tto | AQ49: TerminaTto | AR49: Inicio | AS49: Caso Ttdo. | AT49: Continua Tto | AU49: TerminaTto | AV49: Inicio | AW49: Caso Ttdo | AX49: Continua Tto | AY49: Termina Tto | AZ49: Meta | BA49: % Avance
A50: 18 | B50: 500818 | D50: Tto de Ortodoncia y Ortopedia Maxilar | I50: =SUM(GETPIVOTDATA("Suma de B_OrtopediaMaxilar_ia_6_11m",TD!$A$62)) -> 0 | J50: =SUM(GETPIVOTDATA("Suma de B_OrtopediaMaxilar_in_6_11m",TD!$A$62)) -> 0 | K50: =SUM(GETPIVOTDATA("Suma de B_OrtopediaMaxilar_ca_6_11m",TD!$A$62)) -> 0 | L50: =SUM(GETPIVOTDATA("Suma de B_OrtopediaMaxilar_ta_6_11m",TD!$A$62)) -> 0 | M50: =SUM(GETPIVOTDATA("Suma de B_OrtopediaMaxilar_ia_1a",TD!$A$62)) -> 0 | N50: =SUM(GETPIVOTDATA("Suma de B_OrtopediaMaxilar_in_1a",TD!$A$62)) -> 0 | O50: =SUM(GETPIVOTDATA("Suma de B_OrtopediaMaxilar_ca_1a",TD!$A$62)) -> 0 | P50: =SUM(GETPIVOTDATA("Suma de B_OrtopediaMaxilar_ta_1a",TD!$A$62)) -> 0 | Q50: =SUM(GETPIVOTDATA("Suma de B_OrtopediaMaxilar_ia_2a",TD!$A$62)) -> 0 | R50: =SUM(GETPIVOTDATA("Suma de B_OrtopediaMaxilar_in_2a",TD!$A$62)) -> 0 | S50: =SUM(GETPIVOTDATA("Suma de B_OrtopediaMaxilar_ca_2a",TD!$A$62)) -> 0 | T50: =SUM(GETPIVOTDATA("Suma de B_OrtopediaMaxilar_ta_2a",TD!$A$62)) -> 0 | U50: =SUM(GETPIVOTDATA("Suma de B_OrtopediaMaxilar_ia_3_5a",TD!$A$62)) -> 0 | V50: =SUM(GETPIVOTDATA("Suma de B_OrtopediaMaxilar_in_3_5a",TD!$A$62)) -> 0 | W50: =SUM(GETPIVOTDATA("Suma de B_OrtopediaMaxilar_ca_3_5a",TD!$A$62)) -> 0 | X50: =SUM(GETPIVOTDATA("Suma de B_OrtopediaMaxilar_ta_3_5a",TD!$A$62)) -> 0 | Y50: =SUM(GETPIVOTDATA("Suma de B_OrtopediaMaxilar_ia_6_11a",TD!$A$62)) -> 0 | Z50: =SUM(GETPIVOTDATA("Suma de B_OrtopediaMaxilar_in_6_11a",TD!$A$62)) -> 0 | AA50: =SUM(GETPIVOTDATA("Suma de B_OrtopediaMaxilar_ca_6_11a",TD!$A$62)) -> 0 | AB50: =SUM(GETPIVOTDATA("Suma de B_OrtopediaMaxilar_ta_6_11a",TD!$A$62)) -> 0 | AC50: =+J50+N50+R50+V50+Z50 -> 0 | AE50: =IFERROR(+AC50*100/AD50,0) -> 0 | AF50: =SUM(GETPIVOTDATA("Suma de B_OrtopediaMaxilar_ia_Adolesc",TD!$A$62)) -> 0 | AG50: =SUM(GETPIVOTDATA("Suma de B_OrtopediaMaxilar_in_Adolesc",TD!$A$62)) -> 0 | AH50: =SUM(GETPIVOTDATA("Suma de B_OrtopediaMaxilar_ca_Adolesc",TD!$A$62)) -> 0 | AI50: =SUM(GETPIVOTDATA("Suma de B_OrtopediaMaxilar_ta_Adolesc",TD!$A$62)) -> 0 | AJ50: =SUM(GETPIVOTDATA("Suma de B_OrtopediaMaxilar_ia_Joven",TD!$A$62)) -> 0 | AK50: =SUM(GETPIVOTDATA("Suma de B_OrtopediaMaxilar_in_Joven",TD!$A$62)) -> 0 | AL50: =SUM(GETPIVOTDATA("Suma de B_OrtopediaMaxilar_ca_Joven",TD!$A$62)) -> 0 | AM50: =SUM(GETPIVOTDATA("Suma de B_OrtopediaMaxilar_ta_Joven",TD!$A$62)) -> 0 | AN50: =SUM(GETPIVOTDATA("Suma de B_OrtopediaMaxilar_ia_Adulto",TD!$A$62)) -> 0 | AO50: =SUM(GETPIVOTDATA("Suma de B_OrtopediaMaxilar_in_Adulto",TD!$A$62)) -> 0 | AP50: =SUM(GETPIVOTDATA("Suma de B_OrtopediaMaxilar_ca_Adulto",TD!$A$62)) -> 0 | AQ50: =SUM(GETPIVOTDATA("Suma de B_OrtopediaMaxilar_ta_Adulto",TD!$A$62)) -> 0 | AR50: =SUM(GETPIVOTDATA("Suma de B_OrtopediaMaxilar_ia_AdultoM",TD!$A$62)) -> 0 | AS50: =SUM(GETPIVOTDATA("Suma de B_OrtopediaMaxilar_in_Adultom",TD!$A$62)) -> 0 | AT50: =SUM(GETPIVOTDATA("Suma de B_OrtopediaMaxilar_ca_Adultom",TD!$A$62)) -> 0 | AU50: =SUM(GETPIVOTDATA("Suma de B_OrtopediaMaxilar_ta_Adultom",TD!$A$62)) -> 0 | AV50: =SUM(GETPIVOTDATA("Suma de B_OrtopediaMaxilar_ia_g",TD!$A$62)) -> 0 | AW50: =SUM(GETPIVOTDATA("Suma de B_OrtopediaMaxilar_in_g",TD!$A$62)) -> 0 | AX50: =SUM(GETPIVOTDATA("Suma de B_OrtopediaMaxilar_ca_g",TD!$A$62)) -> 0 | AY50: =SUM(GETPIVOTDATA("Suma de B_OrtopediaMaxilar_ta_g",TD!$A$62)) -> 0 | BA50: =IFERROR(+AW50*100/AZ50,0) -> 0
E52: Total | G52: Curso de Vida Niño | U52: META NIÑO | Y52: Cursos de Vida | AF52: META ADULTO MAYOR | AH52: Gestante | AJ52: META GESTANTE
G53: 0 a 28d | I53: 29d a 5m | K53: 6m a 11m | M53: 1 año | O53: 2 años | Q53: 3 a 5 años | S53: 6 a 11 años | X53: Adolescente | Z53: Joven | AB53: Adulto | AD53: Adulto Mayor
B54: PpR | C54: Freq | D54: Atención Estomatológica Especializada (3000682) | E54: Inicio | F54: Caso Ttdo | G54: Inicio | H54: Caso Ttdo. | I54: Inicio | J54: Caso Ttdo. | K54: Inicio | L54: Caso Ttdo. | M54: Inicio | N54: Caso Ttdo. | O54: Inicio | P54: Caso Ttdo. | Q54: Inicio | R54: Caso Ttdo. | S54: Inicio | T54: Caso Ttdo. | U54: Total Caso Ttdo. | V54: Meta | W54: % Avance | X54: Inicio | Y54: Caso Ttdo. | Z54: Inicio | AA54: Caso Ttdo. | AB54: Inicio | AC54: Caso Ttdo. | AD54: Inicio | AE54: Caso Ttdo. | AF54: Meta | AG54: % Avance | AH54: Inicio | AI54: Caso Ttdo | AJ54: Meta | AK54: % Avance
B55: 500817 | D55: Tto Quirurgico Bucal y Máxilo Facial | E55: =SUM(H55,Q55,T55,W55,Z55) -> 21 | G55: =SUM(GETPIVOTDATA("Suma de B_MaxiloFacial_I_0_28d",TD!$A$86)) -> 0 | I55: =SUM(GETPIVOTDATA("Suma de B_MaxiloFacial_I_29_5m",TD!$A$86)) -> 0 | K55: =SUM(GETPIVOTDATA("Suma de B_MaxiloFacial_I_6_11m",TD!$A$86)) -> 0 | M55: =SUM(GETPIVOTDATA("Suma de B_MaxiloFacial_I_1a",TD!$A$86)) -> 0 | O55: =SUM(GETPIVOTDATA("Suma de B_MaxiloFacial_I_2a",TD!$A$86)) -> 0 | Q55: =SUM(GETPIVOTDATA("Suma de B_MaxiloFacial_3_5a",TD!$A$86)) -> 0 | S55: =SUM(GETPIVOTDATA("Suma de B_MaxiloFacial_6_11a",TD!$A$86)) -> 2 | U55: =+G55+I55+K55+M55+O55+Q55+S55 -> 2 | W55: =IFERROR(+U55*100/V55,0) -> 0 | X55: =SUM(GETPIVOTDATA("Suma de B_MaxiloFacial_Adolesc",TD!$A$86)) -> 2 | Z55: =SUM(GETPIVOTDATA("Suma de B_MaxiloFacial_Joven",TD!$A$86)) -> 21 | AB55: =SUM(GETPIVOTDATA("Suma de B_MaxiloFacial_Adulto",TD!$A$86)) -> 12 | AD55: =SUM(GETPIVOTDATA("Suma de B_MaxiloFacial_AdultoM",TD!$A$86)) -> 8 | AG55: =IFERROR(+AE55*100/AF55,0) -> 0 | AH55: =SUM(GETPIVOTDATA("Suma de B_MaxiloFacial_g",TD!$A$86)) -> 0 | AK55: =IFERROR(+AH55*100/AJ55,0) -> 0
A57: 31 | E57: Cursos de Vida | U57: Total | W57: Docentes | Y57: Alumnos | AA57: Mujeres | AC57: Gestantes | AE57: Puerperas
A58: 32 | E58: Adulto Mayor | R58: Prevención: Grupos de Riesgo | U58: Nº | V58: Personas | W58: Nº | X58: Personas | Y58: Nº | Z58: Personas | AA58: Nº | AB58: Personas | AC58: Nº | AD58: Personas | AE58: Nº | AF58: Personas
A59: 33 | B59: 5000804 | C59: 1 | D59: Rehabilitación Protésica | E59: N° | R59: Sesión Educativa | U59: =SUM(W59,Y59,AA59,AC59,AE59) -> 0 | V59: =SUM(X59,Z59,AB59,AD59,AF59) -> 0 | W59: =SUM(GETPIVOTDATA("suma de B_GR_Edu_doce_Act",TD!$A$86)) -> 0 | X59: =SUM(GETPIVOTDATA("suma de B_GR_Edu_doce_pers",TD!$A$86)) -> 0 | Y59: =SUM(GETPIVOTDATA("suma de B_GR_Edu_alu_Act",TD!$A$86)) -> 0 | Z59: =SUM(GETPIVOTDATA("suma de B_GR_Edu_alu_pers",TD!$A$86)) -> 0 | AA59: =SUM(GETPIVOTDATA("suma de B_GR_Edu_mujer_Act",TD!$A$86)) -> 0 | AB59: =SUM(GETPIVOTDATA("suma de B_GR_Edu_mujer_pers",TD!$A$86)) -> 0 | AC59: =SUM(GETPIVOTDATA("suma de B_GR_Edu_gest_Act",TD!$A$86)) -> 0 | AD59: =SUM(GETPIVOTDATA("suma de B_GR_Edu_gest_pers",TD!$A$86)) -> 0 | AE59: =SUM(GETPIVOTDATA("suma de B_GR_Edu_puerp_Act",TD!$A$86)) -> 0 | AF59: =SUM(GETPIVOTDATA("suma de B_GR_Edu_puerp_pers",TD!$A$86)) -> 0
A60: 34 | D60: Impresión Primaria = IP | E60: =SUM(GETPIVOTDATA("Suma de B_RehabProtesica_ip_AdultoM",TD!$A$62)) -> 0 | R60: Sesión Demostrativa | U60: =SUM(W60,Y60,AA60,AC60,AE60) -> 0 | V60: =SUM(X60,Z60,AB60,AD60,AF60) -> 0 | W60: =SUM(GETPIVOTDATA("suma de B_GR_Dem_doce_Act",TD!$A$86)) -> 0 | X60: =SUM(GETPIVOTDATA("suma de B_GR_Dem_doce_pers",TD!$A$86)) -> 0 | Y60: =SUM(GETPIVOTDATA("suma de B_GR_Dem_alu_Act",TD!$A$86)) -> 0 | Z60: =SUM(GETPIVOTDATA("suma de B_GR_Dem_alu_pers",TD!$A$86)) -> 0 | AA60: =SUM(GETPIVOTDATA("suma de B_GR_Dem_mujer_Act",TD!$A$86)) -> 0 | AB60: =SUM(GETPIVOTDATA("suma de B_GR_Dem_mujer_pers",TD!$A$86)) -> 0 | AC60: =SUM(GETPIVOTDATA("suma de B_GR_Dem_gest_Act",TD!$A$86)) -> 0 | AD60: =SUM(GETPIVOTDATA("suma de B_GR_Dem_gest_pers",TD!$A$86)) -> 0 | AE60: =SUM(GETPIVOTDATA("suma de B_GR_Dem_puerp_Act",TD!$A$86)) -> 0 | AF60: =SUM(GETPIVOTDATA("suma de B_GR_Dem_puerp_pers",TD!$A$86)) -> 0
A61: 35 | D61: Impresión Defenitiva = ID | E61: =SUM(GETPIVOTDATA("Suma de B_RehabProtesica_id_AdultoM",TD!$A$62)) -> 0
D62: Relación Intermaxilar = RI | E62: =SUM(GETPIVOTDATA("Suma de B_RehabProtesica_ri_AdultoM",TD!$A$62)) -> 0 | T62: Total | V62: Niño | X62: Adolescente | Z62: Joven | AB62: Adulto | AD62: Adulto Mayor
D63: Prueba de Enfilado = PEN | E63: =SUM(GETPIVOTDATA("Suma de B_RehabProtesica_pen_AdultoM",TD!$A$62)) -> 0 | R63: Prevención: Curso de Vida | T63: Nº | U63: Personas | V63: Nº | W63: Personas | X63: Nº | Y63: Personas | Z63: Nº | AA63: Personas | AB63: Nº | AC63: Personas | AD63: Nº | AE63: Personas
D64: Instalación de Protesis = IN | E64: =SUM(GETPIVOTDATA("Suma de B_RehabProtesica_in_AdultoM",TD!$A$62)) -> 0 | R64: Sesión Educativa | T64: =SUM(V64,X64,Z64,AB64,AD64) -> 0 | U64: =SUM(W64,Y64,AA64,AC64,AE64) -> 0 | V64: =SUM(GETPIVOTDATA("suma de B_GR_Edu_niño_Act",TD!$A$86)) -> 0 | W64: =SUM(GETPIVOTDATA("suma de B_GR_Edu_niño_pers",TD!$A$86)) -> 0 | X64: =SUM(GETPIVOTDATA("suma de B_GR_Edu_adoles_Act",TD!$A$86)) -> 0 | Y64: =SUM(GETPIVOTDATA("suma de B_GR_Edu_adoles_pers",TD!$A$86)) -> 0 | Z64: =SUM(GETPIVOTDATA("suma de B_GR_Edu_joven_Act",TD!$A$86)) -> 0 | AA64: =SUM(GETPIVOTDATA("suma de B_GR_Edu_joven_pers",TD!$A$86)) -> 0 | AB64: =SUM(GETPIVOTDATA("suma de B_GR_Edu_adulto_Act",TD!$A$86)) -> 0 | AC64: =SUM(GETPIVOTDATA("suma de B_GR_Edu_adulto_pers",TD!$A$86)) -> 0 | AD64: =SUM(GETPIVOTDATA("suma de B_GR_Edu_adultom_Act",TD!$A$86)) -> 0 | AE64: =SUM(GETPIVOTDATA("suma de B_GR_Edu_adultom_pers",TD!$A$86)) -> 0
D65: Primer Control = 1C | E65: =SUM(GETPIVOTDATA("Suma de B_RehabProtesica_1c_AdultoM",TD!$A$62)) -> 0 | R65: Sesión Demostrativa | T65: =SUM(V65,X65,Z65,AB65,AD65) -> 0 | U65: =SUM(W65,Y65,AA65,AC65,AE65) -> 0 | V65: =SUM(GETPIVOTDATA("suma de B_GR_Dem_niño_Act",TD!$A$86)) -> 0 | W65: =SUM(GETPIVOTDATA("suma de B_GR_Dem_niño_pers",TD!$A$86)) -> 0 | X65: =SUM(GETPIVOTDATA("suma de B_GR_Dem_adoles_Act",TD!$A$86)) -> 0 | Y65: =SUM(GETPIVOTDATA("suma de B_GR_Dem_adoles_pers",TD!$A$86)) -> 0 | Z65: =SUM(GETPIVOTDATA("suma de B_GR_Dem_joven_Act",TD!$A$86)) -> 0 | AA65: =SUM(GETPIVOTDATA("suma de B_GR_Dem_joven_pers",TD!$A$86)) -> 0 | AB65: =SUM(GETPIVOTDATA("suma de B_GR_Dem_adulto_Act",TD!$A$86)) -> 0 | AC65: =SUM(GETPIVOTDATA("suma de B_GR_Dem_adulto_pers",TD!$A$86)) -> 0 | AD65: =SUM(GETPIVOTDATA("suma de B_GR_Dem_adultom_Act",TD!$A$86)) -> 0 | AE65: =SUM(GETPIVOTDATA("suma de B_GR_Dem_adultom_pers",TD!$A$86)) -> 0
D66: Segundo Control = 2C | E66: =SUM(GETPIVOTDATA("Suma de B_RehabProtesica_2c_AdultoM",TD!$A$62)) -> 0
R67: ATENDIDOS | Y67: ATENCIONES
R68: Total | S68: Niño | T68: Adolescente | U68: Joven | V68: Adulto | W68: Adulto Mayor | X68: Gestante | Y68: Total | Z68: Niño | AA68: Adolescente | AB68: Joven | AC68: Adulto | AD68: Adulto Mayor | AE68: Gestante
R69: =SUM(S69:X69) -> 39846 | S69: =SUM(GETPIVOTDATA("Suma de B_ATD_Niños",TD!$A$86)) -> 15161 | T69: =SUM(GETPIVOTDATA("Suma de B_ATD_adolesc",TD!$A$86)) -> 6456 | U69: =SUM(GETPIVOTDATA("Suma de B_ATD_joven",TD!$A$86)) -> 5444 | V69: =SUM(GETPIVOTDATA("Suma de B_ATD_adulto",TD!$A$86)) -> 8530 | W69: =SUM(GETPIVOTDATA("Suma de B_ATD_adultom",TD!$A$86)) -> 2978 | X69: =SUM(GETPIVOTDATA("Suma de B_ATD_gest",TD!$A$86)) -> 1277 | Y69: =SUM(Z69:AE69) -> 61115 | Z69: =SUM(GETPIVOTDATA("Suma de B_ATC_Niños",TD!$A$86)) -> 24498 | AA69: =SUM(GETPIVOTDATA("Suma de B_ATC_adolesc",TD!$A$86)) -> 9380 | AB69: =SUM(GETPIVOTDATA("Suma de B_ATC_joven",TD!$A$86)) -> 8305 | AC69: =SUM(GETPIVOTDATA("Suma de B_ATC_adulto",TD!$A$86)) -> 12233 | AD69: =SUM(GETPIVOTDATA("Suma de B_ATC_adultom",TD!$A$86)) -> 4330 | AE69: =SUM(GETPIVOTDATA("Suma de B_ATC_gest",TD!$A$86)) -> 2369
E71: Cursos de Vida | Y71: Cursos de Vida
E72: 3 - 5 años | G72: 6 - 11 años | I72: Adolescente | K72: Joven | M72: Adulto | O72: Adulto Mayor | Q72: Gestante | Y72: 3 - 5 años | Z72: 6 - 11 años | AA72: Adolescente | AC72: Joven | AD72: Adulto | AE72: Adulto Mayor | AF72: Gestante
B73: Procedimiento de Inactivación de Caries | E73: N° | G73: N° | I73: N° | K73: N° | M73: N° | O73: N° | Q73: N° | T73: Procedimiento de Interconsulta,Referencia y Contrareferencia | Y73: N° | Z73: N° | AA73: N° | AC73: N° | AD73: N° | AE73: N° | AF73: N°
B74: Inactivación de Caries con Fluoruro de Amino Plata = F | E74: =SUM(GETPIVOTDATA("Suma de B_InactivaC_F_3_5a",TD!$A$86)) -> 6 | G74: =SUM(GETPIVOTDATA("Suma de B_InactivaC_F_6_11a",TD!$A$86)) -> 2 | I74: =SUM(GETPIVOTDATA("Suma de B_InactivaC_F_Adolesc",TD!$A$86)) -> 0 | K74: =SUM(GETPIVOTDATA("Suma de B_InactivaC_F_JOven",TD!$A$86)) -> 0 | M74: =SUM(GETPIVOTDATA("Suma de B_InactivaC_F_Adulto",TD!$A$86)) -> 0 | O74: =SUM(GETPIVOTDATA("Suma de B_InactivaC_F_AdultoM",TD!$A$86)) -> 0 | Q74: =SUM(GETPIVOTDATA("Suma de B_InactivaC_F_g",TD!$A$86)) -> 0 | T74: Interconsulta de Hospitalizacion | Y74: =SUM(GETPIVOTDATA("Suma de B_InterConsulHosp_3_5a",TD!$A$86)) -> 1 | Z74: =SUM(GETPIVOTDATA("Suma de B_InterConsulHosp_6_11a",TD!$A$86)) -> 3 | AA74: =SUM(GETPIVOTDATA("Suma de B_InterConsulHosp_Adolesc",TD!$A$86)) -> 1 | AC74: =SUM(GETPIVOTDATA("Suma de B_InterConsulHosp_JOven",TD!$A$86)) -> 6 | AD74: =SUM(GETPIVOTDATA("Suma de B_InterConsulHosp_Adulto",TD!$A$86)) -> 2 | AE74: =SUM(GETPIVOTDATA("Suma de B_InterConsulHosp_AdultoM",TD!$A$86)) -> 8 | AF74: =SUM(GETPIVOTDATA("Suma de B_InterConsulHosp_gest",TD!$A$86)) -> 2
B75: Inactivación de Caries con Resina = R | E75: =SUM(GETPIVOTDATA("Suma de B_InactivaC_R_3_5a",TD!$A$86)) -> 0 | G75: =SUM(GETPIVOTDATA("Suma de B_InactivaC_R_6_11a",TD!$A$86)) -> 0 | I75: =SUM(GETPIVOTDATA("Suma de B_InactivaC_R_Adolesc",TD!$A$86)) -> 0 | K75: =SUM(GETPIVOTDATA("Suma de B_InactivaC_R_JOven",TD!$A$86)) -> 0 | M75: =SUM(GETPIVOTDATA("Suma de B_InactivaC_R_Adulto",TD!$A$86)) -> 0 | O75: =SUM(GETPIVOTDATA("Suma de B_InactivaC_R_AdultoM",TD!$A$86)) -> 0 | Q75: =SUM(GETPIVOTDATA("Suma de B_InactivaC_R_g",TD!$A$86)) -> 0 | T75: Interconsulta Ambulatoria | Y75: =SUM(GETPIVOTDATA("Suma de B_InterConsulAmb_3_5a",TD!$A$86)) -> 0 | Z75: =SUM(GETPIVOTDATA("Suma de B_InterConsulAmb_6_11a",TD!$A$86)) -> 0 | AA75: =SUM(GETPIVOTDATA("Suma de B_InterConsulAmb_Adolesc",TD!$A$86)) -> 0 | AC75: =SUM(GETPIVOTDATA("Suma de B_InterConsulAmb_JOven",TD!$A$86)) -> 0 | AD75: =SUM(GETPIVOTDATA("Suma de B_InterConsulAmb_Adulto",TD!$A$86)) -> 0 | AE75: =SUM(GETPIVOTDATA("Suma de B_InterConsulAmb_AdultoM",TD!$A$86)) -> 0 | AF75: =SUM(GETPIVOTDATA("Suma de B_InterConsulAmb_gest",TD!$A$86)) -> 0
B76: Inactivación de Caries con Ionomero de Vidrio = IV | E76: =SUM(GETPIVOTDATA("Suma de B_InactivaC_IV_3_5a",TD!$A$86)) -> 0 | G76: =SUM(GETPIVOTDATA("Suma de B_InactivaC_IV_6_11a",TD!$A$86)) -> 0 | I76: =SUM(GETPIVOTDATA("Suma de B_InactivaC_IV_Adolesc",TD!$A$86)) -> 0 | K76: =SUM(GETPIVOTDATA("Suma de B_InactivaC_IV_JOven",TD!$A$86)) -> 0 | M76: =SUM(GETPIVOTDATA("Suma de B_InactivaC_IV_Adulto",TD!$A$86)) -> 0 | O76: =SUM(GETPIVOTDATA("Suma de B_InactivaC_IV_AdultoM",TD!$A$86)) -> 0 | Q76: =SUM(GETPIVOTDATA("Suma de B_InactivaC_IV_g",TD!$A$86)) -> 0 | T76: Referencia a EE.SS. con capacidad resolutiva | Y76: =SUM(GETPIVOTDATA("Suma de B_Referencia_3_5a",TD!$A$86)) -> 6 | Z76: =SUM(GETPIVOTDATA("Suma de B_Referencia_6_11a",TD!$A$86)) -> 2 | AA76: =SUM(GETPIVOTDATA("Suma de B_Referencia_Adolesc",TD!$A$86)) -> 1 | AC76: =SUM(GETPIVOTDATA("Suma de B_Referencia_JOven",TD!$A$86)) -> 1 | AD76: =SUM(GETPIVOTDATA("Suma de B_Referencia_Adulto",TD!$A$86)) -> 4 | AE76: =SUM(GETPIVOTDATA("Suma de B_Referencia_AdultoM",TD!$A$86)) -> 3 | AF76: =SUM(GETPIVOTDATA("Suma de B_Referencia_gest",TD!$A$86)) -> 0
T77: Contrarreferencia | Y77: =SUM(GETPIVOTDATA("Suma de B_CReferencia_3_5a",TD!$A$86)) -> 14 | Z77: =SUM(GETPIVOTDATA("Suma de B_CReferencia_6_11a",TD!$A$86)) -> 6 | AA77: =SUM(GETPIVOTDATA("Suma de B_CReferencia_Adolesc",TD!$A$86)) -> 3 | AC77: =SUM(GETPIVOTDATA("Suma de B_CReferencia_JOven",TD!$A$86)) -> 2 | AD77: =SUM(GETPIVOTDATA("Suma de B_CReferencia_Adulto",TD!$A$86)) -> 3 | AE77: =SUM(GETPIVOTDATA("Suma de B_CReferencia_AdultoM",TD!$A$86)) -> 3 | AF77: =SUM(GETPIVOTDATA("Suma de B_Referencia_gest",TD!$A$86)) -> 0
H79: Actividades | L79: N°
H80: Monitoreo = C7001 | L80: =SUM(GETPIVOTDATA("Suma de B_Monitoreo",TD!$A$86)) -> 0
H81: Supervisión = C7002 | L81: =SUM(GETPIVOTDATA("Suma de B_Supervicion",TD!$A$86)) -> 0
H82: Evaluación = C7003 | L82: =SUM(GETPIVOTDATA("Suma de B_Evaluacion",TD!$A$86)) -> 0
H83: Asistencia Técnica = C7004 | L83: =SUM(GETPIVOTDATA("Suma de B_Asistecnica",TD!$A$86)) -> 0
B85: ACTIVIDADES EN SALUD BUCAL REALIZADAS A TRAVÉS DE TELESALUD | E85: Total | G85: Curso de Vida Niño | U85: Cursos de Vida | AC85: GESTANTE
G86: 0 - 28d | I86: 29 - 5m | K86: 6m - 11m | M86: 1 año | O86: 2 años | Q86: 3 a 5 años | S86: 6 a 11 años | U86: Adolescente | W86: Joven | Y86: Adulto | AA86: Adulto Mayor
B87: Teleorientación Síncrona | E87: =SUM(G87:AD87) -> 0 | G87: =SUM(GETPIVOTDATA("Suma de B_TeleOriSinc_0_28d",TD!$A$86)) -> 0 | I87: =SUM(GETPIVOTDATA("Suma de B_TeleOriSinc_29_5m",TD!$A$86)) -> 0 | K87: =SUM(GETPIVOTDATA("Suma de B_TeleOriSinc_6_11m",TD!$A$86)) -> 0 | M87: =SUM(GETPIVOTDATA("Suma de B_TeleOriSinc_1a",TD!$A$86)) -> 0 | O87: =SUM(GETPIVOTDATA("Suma de B_TeleOriSinc_2a",TD!$A$86)) -> 0 | Q87: =SUM(GETPIVOTDATA("Suma de B_TeleOriSinc_3_5a",TD!$A$86)) -> 0 | S87: =SUM(GETPIVOTDATA("Suma de B_TeleOriSinc_6_11a",TD!$A$86)) -> 0 | U87: =SUM(GETPIVOTDATA("Suma de B_TeleOriSinc_Adolesc",TD!$A$86)) -> 0 | W87: =SUM(GETPIVOTDATA("Suma de B_TeleOriSinc_Joven",TD!$A$86)) -> 0 | Y87: =SUM(GETPIVOTDATA("Suma de B_TeleOriSinc_Adulto",TD!$A$86)) -> 0 | AA87: =SUM(GETPIVOTDATA("Suma de B_TeleOriSinc_AdultoM",TD!$A$86)) -> 0 | AC87: =SUM(GETPIVOTDATA("Suma de B_TeleOriSinc_gest",TD!$A$86)) -> 0
B88: Teleorientación Síncrona - Salud Bucal - Atención Preventiva (Asesoría Nutricional y Instrucción de Higiene Oral) | E88: =+G88+M88+O88+Q88+U88+W88+Y88+AC88+S88+AA88+I88+K88 -> 0 | G88: =SUM(GETPIVOTDATA("Suma de B_TeleOriSinc_ap_0_28d",TD!$A$86)) -> 0 | I88: =SUM(GETPIVOTDATA("Suma de B_TeleOriSinc_ap_29_5m",TD!$A$86)) -> 0 | K88: =SUM(GETPIVOTDATA("Suma de B_TeleOriSinc_ap_6_11m",TD!$A$86)) -> 0 | M88: =SUM(GETPIVOTDATA("Suma de B_TeleOriSinc_ap_1a",TD!$A$86)) -> 0 | O88: =SUM(GETPIVOTDATA("Suma de B_TeleOriSinc_2a",TD!$A$86)) -> 0 | Q88: =SUM(GETPIVOTDATA("Suma de B_TeleOriSinc_AP_3_5a",TD!$A$86)) -> 0 | S88: =SUM(GETPIVOTDATA("Suma de B_TeleOriSinc_AP_6_11a",TD!$A$86)) -> 0 | U88: =SUM(GETPIVOTDATA("Suma de B_TeleOriSinc_AP_Adolesc",TD!$A$86)) -> 0 | W88: =SUM(GETPIVOTDATA("Suma de B_TeleOriSinc_AP_Joven",TD!$A$86)) -> 0 | Y88: =SUM(GETPIVOTDATA("Suma de B_TeleOriSinc_AP_Adulto",TD!$A$86)) -> 0 | AA88: =SUM(GETPIVOTDATA("Suma de B_TeleOriSinc_AP_AdultoM",TD!$A$86)) -> 0 | AC88: =SUM(GETPIVOTDATA("Suma de B_TeleOriSinc_AP_gest",TD!$A$86)) -> 0
B89: Telemonitoreo | E89: =+G89+M89+O89+Q89+U89+W89+Y89+AC89+S89+AA89+I89+K89 -> 0 | G89: =SUM(GETPIVOTDATA("Suma de B_Telemonitoreo_0_28d",TD!$A$86)) -> 0 | I89: =SUM(GETPIVOTDATA("Suma de B_Telemonitoreo_29_5m",TD!$A$86)) -> 0 | K89: =SUM(GETPIVOTDATA("Suma de B_Telemonitoreo_6_11m",TD!$A$86)) -> 0 | M89: =SUM(GETPIVOTDATA("Suma de B_Telemonitoreo_1a",TD!$A$86)) -> 0 | O89: =SUM(GETPIVOTDATA("Suma de B_Telemonitoreo_2a",TD!$A$86)) -> 0 | Q89: =SUM(GETPIVOTDATA("Suma de B_Telemonitoreo_3_5a",TD!$A$86)) -> 0 | S89: =SUM(GETPIVOTDATA("Suma de B_Telemonitoreo_6_11a",TD!$A$86)) -> 0 | U89: =SUM(GETPIVOTDATA("Suma de B_Telemonitoreo_Adolesc",TD!$A$86)) -> 0 | W89: =SUM(GETPIVOTDATA("Suma de B_Telemonitoreo_Joven",TD!$A$86)) -> 0 | Y89: =SUM(GETPIVOTDATA("Suma de B_Telemonitoreo_Adulto",TD!$A$86)) -> 0 | AA89: =SUM(GETPIVOTDATA("Suma de B_Telemonitoreo_AdultoM",TD!$A$86)) -> 0 | AC89: =SUM(GETPIVOTDATA("Suma de B_Telemonitoreo_gest",TD!$A$86)) -> 0
B90: Teleinterconsulta Síncrona (teleinterconsultante) | E90: =+G90+M90+O90+Q90+U90+W90+Y90+AC90+S90+AA90+I90+K90 -> 1 | G90: =SUM(GETPIVOTDATA("Suma de B_TSInterconsultante_0_28d",TD!$A$86)) -> 0 | I90: =SUM(GETPIVOTDATA("Suma de B_TSInterconsultante_29_5m",TD!$A$86)) -> 0 | K90: =SUM(GETPIVOTDATA("Suma de B_TSInterconsultante_6_11m",TD!$A$86)) -> 0 | M90: =SUM(GETPIVOTDATA("Suma de B_TSInterconsultante_1a",TD!$A$86)) -> 0 | O90: =SUM(GETPIVOTDATA("Suma de B_TSInterconsultante_2a",TD!$A$86)) -> 0 | Q90: =SUM(GETPIVOTDATA("Suma de B_TSInterconsultante_3_5a",TD!$A$86)) -> 0 | S90: =SUM(GETPIVOTDATA("Suma de B_TSInterconsultante_6_11a",TD!$A$86)) -> 0 | U90: =SUM(GETPIVOTDATA("Suma de B_TSInterconsultante_Adolesc",TD!$A$86)) -> 0 | W90: =SUM(GETPIVOTDATA("Suma de B_TSInterconsultante_Joven",TD!$A$86)) -> 0 | Y90: =SUM(GETPIVOTDATA("Suma de B_TSInterconsultante_Adulto",TD!$A$86)) -> 1 | AA90: =SUM(GETPIVOTDATA("Suma de B_TSInterconsultante_AdultoM",TD!$A$86)) -> 0 | AC90: =SUM(GETPIVOTDATA("Suma de B_TSInterconsultante_gest",TD!$A$86)) -> 0
B91: Teleinterconsulta Síncrona (teleinterconsultor) | E91: =+G91+M91+O91+Q91+U91+W91+Y91+AC91+S91+AA91+I91+K91 -> 0 | G91: =SUM(GETPIVOTDATA("Suma de B_TSInterconsultor_0_28d",TD!$A$86)) -> 0 | I91: =SUM(GETPIVOTDATA("Suma de B_TSInterconsultor_29_5m",TD!$A$86)) -> 0 | K91: =SUM(GETPIVOTDATA("Suma de B_TSInterconsultor_6_11m",TD!$A$86)) -> 0 | M91: =SUM(GETPIVOTDATA("Suma de B_TSInterconsultor_1a",TD!$A$86)) -> 0 | O91: =SUM(GETPIVOTDATA("Suma de B_TSInterconsultor_2a",TD!$A$86)) -> 0 | Q91: =SUM(GETPIVOTDATA("Suma de B_TSInterconsultor_3_5a",TD!$A$86)) -> 0 | S91: =SUM(GETPIVOTDATA("Suma de B_TSInterconsultor_6_11a",TD!$A$86)) -> 0 | U91: =SUM(GETPIVOTDATA("Suma de B_TSInterconsultor_Adolesc",TD!$A$86)) -> 0 | W91: =SUM(GETPIVOTDATA("Suma de B_TSInterconsultor_Joven",TD!$A$86)) -> 0 | Y91: =SUM(GETPIVOTDATA("Suma de B_TSInterconsultor_Adulto",TD!$A$86)) -> 0 | AA91: =SUM(GETPIVOTDATA("Suma de B_TSInterconsultor_AdultoM",TD!$A$86)) -> 0 | AC91: =SUM(GETPIVOTDATA("Suma de B_TSInterconsultor_gest",TD!$A$86)) -> 0

Sheet Avance_Meta_Fisica_Pob_Asignada
A1: GERENCIA REGIONAL DE SALUD CUSCO
A2: DIRECCION EJECUTIVA DE INTELIGENCIA SANITARIA
A3: DIRECCION DE ESTADISTICA INFORMATICA Y TELECOMUNICACIONES
A4: SALUD BUCAL
A5: INFORME DE AVANCES DE METAS FISICAS SIS CON POBLACION ASIGNADA
C7: RED DE SALUD | D7: =TD!F3 -> LA CONVENCION | I7: PROVINCIA | K7: =TD!F6 -> (All) | P7: AÑO : | Q7: =TD!C10 -> 2024
C9: MICRO RED | D9: =TD!F4 -> (All) | I9: DISTRITO | K9: =TD!F7 -> (All) | P9: MES : | Q9: =TD!O17 -> ENERO - NOVIEMBRE
C11: ESTABLECIMIENTO | D11: =TD!F5 -> (All) | I11: U.E. | K11: =TD!F8 -> (All)
B14: PRODUCTO: ATENCIÓN ESTOMATOLOGICA PREVENTIVA (3000680)
B16: AVANCE DE META FISICA A NIVEL DE PRODUCTO | E16: PERSONA ATENDIDA | F16: =+Q21+Q23+Q25+Q27+Q29+Q31+Q33 -> 18510
B18: PpR | C18: SUB PRODUCTO | D18: CODICION | E18: UNIDAD DE MEDIDA | F18: CURSO DE VIDA NIÑO | M18: CURSO DE VIDA ADOLESCENTE | N18: CURSO DE VIDA JOVEN | O18: CURSO DE VIDA ADULTO | P18: CURSO DE VIDA ADULTO MAYOR | Q18: AVANCE DE META FISICA A NIVEL DE SUB PRODUCTOS
F19: 0 - 28d | G19: 29d - 5m | H19: 6m - 11m | I19: 1 año | J19: 2 años | K19: 3a - 5a | L19: 6a - 11a | M19: 12a - 17a | N19: 18a - 29a | O19: 30a - 59a | P19: 60 años a mas
A21: 1 | B21: 0068001 | C21: ASESORÍA NUTRICIONAL PARA EL CONTROL DE ENFERMEDADES DENTALES | D21: NO GESTANTE | E21: PERSONA ATENDIDA | F21: =SUM(GETPIVOTDATA("Suma de B_ANCEDN_CT_0_28d",TD!$A$113)) -> 0 | G21: =SUM(GETPIVOTDATA("Suma de B_ANCEDN_CT_29_5m",TD!$A$113)) -> 7 | H21: =SUM(GETPIVOTDATA("Suma de B_ANCEDN_CT_6_11m",TD!$A$113)) -> 16 | I21: =SUM(GETPIVOTDATA("Suma de B_ANCEDN_CT_1a",TD!$A$113)) -> 33 | J21: =SUM(GETPIVOTDATA("Suma de B_ANCEDN_CT_2a",TD!$A$113)) -> 22 | K21: =SUM(GETPIVOTDATA("Suma de B_ANCEDN_CT_3_5a",TD!$A$113)) -> 355 | L21: =SUM(GETPIVOTDATA("Suma de B_ANCEDN_CT_6_11a",TD!$A$113)) -> 983 | M21: =SUM(GETPIVOTDATA("Suma de B_ANCEDN_CT_Adolesc",TD!$A$113)) -> 368 | N21: =SUM(GETPIVOTDATA("Suma de B_ANCEDN_CT_Joven",TD!$A$113)) -> 157 | O21: =SUM(GETPIVOTDATA("Suma de B_ANCEDN_CT_Adulto",TD!$A$113)) -> 167 | P21: =SUM(GETPIVOTDATA("Suma de B_ANCEDN_CT_AdultoM",TD!$A$113)) -> 66 | Q21: =SUM(F21+G21+H21+I21+J21+K21+L21+M21+N21+O21+P21) -> 2174
D22: GESTANTE | E22: PERSONA ATENDIDA | L22: =SUM(GETPIVOTDATA("Suma de B_ANCEDN_CT_6_11a_g",TD!$A$113)) -> 0 | M22: =SUM(GETPIVOTDATA("Suma de B_ANCEDN_CT_Adol_g",TD!$A$113)) -> 22 | N22: =SUM(GETPIVOTDATA("Suma de B_ANCEDN_CT_Joven_g",TD!$A$113)) -> 164 | O22: =SUM(GETPIVOTDATA("Suma de B_ANCEDN_CT_Adulto_g",TD!$A$113)) -> 148
A23: 2 | B23: 0068002 | C23: EXAMEN ESTOMATOLÓGICO | D23: NO GESTANTE | E23: PERSONA ATENDIDA | F23: =SUM(GETPIVOTDATA("Suma de B_EXODONN_CT_0_28d",TD!$A$113)) -> 8 | G23: =SUM(GETPIVOTDATA("Suma de B_EXODONN_CT_29_5m",TD!$A$113)) -> 24 | H23: =SUM(GETPIVOTDATA("Suma de B_EXODONN_CT_6_11m",TD!$A$113)) -> 105 | I23: =SUM(GETPIVOTDATA("Suma de B_EXODONN_CT_1a",TD!$A$113)) -> 147 | J23: =SUM(GETPIVOTDATA("Suma de B_EXODONN_CT_2a",TD!$A$113)) -> 165 | K23: =SUM(GETPIVOTDATA("Suma de B_EXODONN_CT_3_5a",TD!$A$113)) -> 1168 | L23: =SUM(GETPIVOTDATA("Suma de B_EXODONN_CT_6_11a",TD!$A$113)) -> 2068 | M23: =SUM(GETPIVOTDATA("Suma de B_EXODONN_CT_Adolesc",TD!$A$113)) -> 1479 | N23: =SUM(GETPIVOTDATA("Suma de B_EXODONN_CT_Joven",TD!$A$113)) -> 1248 | O23: =SUM(GETPIVOTDATA("Suma de B_EXODONN_CT_Adulto",TD!$A$113)) -> 1886 | P23: =SUM(GETPIVOTDATA("Suma de B_EXODONN_CT_AdultoM",TD!$A$113)) -> 699 | Q23: =SUM(F23+G23+H23+I23+J23+K23+L23+M23+N23+O23+P23) -> 8997
D24: GESTANTE | E24: PERSONA ATENDIDA | L24: =SUM(GETPIVOTDATA("Suma de B_EXODONN_CT_6_11a_g",TD!$A$113)) -> 15 | M24: =SUM(GETPIVOTDATA("Suma de B_EXODONN_CT_Adol_g",TD!$A$113)) -> 62 | N24: =SUM(GETPIVOTDATA("Suma de B_EXODONN_CT_Joven_g",TD!$A$113)) -> 431 | O24: =SUM(GETPIVOTDATA("Suma de B_EXODONN_CT_Adulto_g",TD!$A$113)) -> 327
A25: 3 | B25: 0068003 | C25: INSTRUCCIÓN DE HIGIENE ORAL | D25: NO GESTANTE | E25: PERSONA ATENDIDA | H25: =SUM(GETPIVOTDATA("Suma de B_IHON_CT_6_11m",TD!$A$113)) -> 16 | I25: =SUM(GETPIVOTDATA("Suma de B_IHON_CT_1a",TD!$A$113)) -> 33 | J25: =SUM(GETPIVOTDATA("Suma de B_IHON_CT_2a",TD!$A$113)) -> 21 | K25: =SUM(GETPIVOTDATA("Suma de B_IHON_CT_3_5a",TD!$A$113)) -> 355 | L25: =SUM(GETPIVOTDATA("Suma de B_IHON_CT_6_11a",TD!$A$113)) -> 982 | M25: =SUM(GETPIVOTDATA("Suma de B_IHON_CT_Adolesc",TD!$A$113)) -> 368 | N25: =SUM(GETPIVOTDATA("Suma de B_IHON_CT_Joven",TD!$A$113)) -> 159 | O25: =SUM(GETPIVOTDATA("Suma de B_IHON_CT_Adulto",TD!$A$113)) -> 167 | P25: =SUM(GETPIVOTDATA("Suma de B_IHON_CT_AdultoM",TD!$A$113)) -> 66 | Q25: =SUM(H25+I25+J25+K25+L25+M25+N25+O25+P25) -> 2167
D26: GESTANTE | E26: PERSONA ATENDIDA | L26: =SUM(GETPIVOTDATA("Suma de B_IHON_CT_6_11a_g",TD!$A$113)) -> 0 | M26: =SUM(GETPIVOTDATA("Suma de B_IHON_CT_Adol_g",TD!$A$113)) -> 22 | N26: =SUM(GETPIVOTDATA("Suma de B_IHON_CT_Joven_g",TD!$A$113)) -> 161 | O26: =SUM(GETPIVOTDATA("Suma de B_IHON_CT_Adulto_g",TD!$A$113)) -> 149
A27: 4 | B27: 5000601 | C27: APLICACIÓN DE SELLANTES | D27: NO GESTANTE | E27: PERSONA ATENDIDA | J27: =SUM(GETPIVOTDATA("Suma de B_ASELN_CT_2a",TD!$A$113)) -> 1 | K27: =SUM(GETPIVOTDATA("Suma de B_ASELN_CT_3_5a",TD!$A$113)) -> 41 | L27: =SUM(GETPIVOTDATA("Suma de B_ASELN_CT_6_11a",TD!$A$113)) -> 153 | M27: =SUM(GETPIVOTDATA("Suma de B_ASELN_CT_Adolesc",TD!$A$113)) -> 17 | N27: =SUM(GETPIVOTDATA("Suma de B_ASELN_CT_Joven",TD!$A$113)) -> 0 | O27: =SUM(GETPIVOTDATA("Suma de B_ASELN_CT_Adulto",TD!$A$113)) -> 0 | P27: =SUM(GETPIVOTDATA("Suma de B_ASELN_CT_AdultoM",TD!$A$113)) -> 0 | Q27: =SUM(J27+K27+L27) -> 195
D28: GESTANTE | E28: PERSONA ATENDIDA | L28: =SUM(GETPIVOTDATA("Suma de B_ASELN_CT_6_11a_g",TD!$A$113)) -> 3 | M28: =SUM(GETPIVOTDATA("Suma de B_ASELN_CT_Adol_g",TD!$A$113)) -> 0 | N28: =SUM(GETPIVOTDATA("Suma de B_ASELN_CT_Joven_g",TD!$A$113)) -> 0 | O28: =SUM(GETPIVOTDATA("Suma de B_ASELN_CT_Adulto_g",TD!$A$113)) -> 0
A29: 5 | B29: 5000602 | C29: APLICACIÓN DE FLÚOR BARNIZ | D29: NO GESTANTE | E29: PERSONA ATENDIDA | H29: =SUM(GETPIVOTDATA("Suma de B_ABFN_CT_6_11m",TD!$A$113)) -> 13 | I29: =SUM(GETPIVOTDATA("Suma de B_ABFN_CT_1a",TD!$A$113)) -> 31 | J29: =SUM(GETPIVOTDATA("Suma de B_ABFN_CT_2a",TD!$A$113)) -> 32 | K29: =SUM(GETPIVOTDATA("Suma de B_ABFN_CT_3_5a",TD!$A$113)) -> 437 | L29: =SUM(GETPIVOTDATA("Suma de B_ABFN_CT_6_11a",TD!$A$113)) -> 1079 | M29: =SUM(GETPIVOTDATA("Suma de B_ABFN_CT_Adolesc",TD!$A$113)) -> 372 | N29: =SUM(GETPIVOTDATA("Suma de B_ABFN_CT_Joven",TD!$A$113)) -> 169 | O29: =SUM(GETPIVOTDATA("Suma de B_ABFN_CT_Adulto",TD!$A$113)) -> 40 | P29: =SUM(GETPIVOTDATA("Suma de B_ABFN_CT_AdultoM",TD!$A$113)) -> 8 | Q29: =SUM(H29+I29+J29+K29+L29+M29+N29) -> 2133
D30: GESTANTE | E30: PERSONA ATENDIDA | L30: =SUM(GETPIVOTDATA("Suma de B_ABFN_CT_6_11a_g",TD!$A$113)) -> 0 | M30: =SUM(GETPIVOTDATA("Suma de B_ABFN_CT_Adol_g",TD!$A$113)) -> 20 | N30: =SUM(GETPIVOTDATA("Suma de B_ABFN_CT_Joven_g",TD!$A$113)) -> 185 | O30: =SUM(GETPIVOTDATA("Suma de B_ABFN_CT_Adulto_g",TD!$A$113)) -> 141
A31: 6 | B31: 5000603 | C31: APLICACIÓN DE FLÚOR GEL | D31: NO GESTANTE | E31: PERSONA ATENDIDA | O31: =SUM(GETPIVOTDATA("Suma de B_AFGN_CT_Adulto",TD!$A$113)) -> 217 | P31: =SUM(GETPIVOTDATA("Suma de B_AFGN_CT_AdultoM",TD!$A$113)) -> 74 | Q31: =SUM(O31+P31+O32) -> 322
D32: GESTANTE | E32: PERSONA ATENDIDA | L32: =SUM(GETPIVOTDATA("Suma de B_AFGN_CT_6_11a_g",TD!$A$113)) -> 0 | M32: =SUM(GETPIVOTDATA("Suma de B_AFGN_CT_Adol_g",TD!$A$113)) -> 2 | N32: =SUM(GETPIVOTDATA("Suma de B_AFGN_CT_Joven_g",TD!$A$113)) -> 13 | O32: =SUM(GETPIVOTDATA("Suma de B_AFGN_CT_Adulto_g",TD!$A$113)) -> 31
A33: 7 | B33: 5000606 | C33: PROFILAXIS DENTAL | D33: NO GESTANTE | E33: PERSONA ATENDIDA | H33: =SUM(GETPIVOTDATA("Suma de B_PDN_CT_6_11m",TD!$A$113)) -> 10 | I33: =SUM(GETPIVOTDATA("Suma de B_PDN_CT_1a",TD!$A$113)) -> 26 | J33: =SUM(GETPIVOTDATA("Suma de B_PDN_CT_2a",TD!$A$113)) -> 33 | K33: =SUM(GETPIVOTDATA("Suma de B_PDN_CT_3_5a",TD!$A$113)) -> 414 | L33: =SUM(GETPIVOTDATA("Suma de B_PDN_CT_6_11a",TD!$A$113)) -> 1052 | M33: =SUM(GETPIVOTDATA("Suma de B_PDN_CT_Adolesc",TD!$A$113)) -> 402 | N33: =SUM(GETPIVOTDATA("Suma de B_PDN_CT_Joven",TD!$A$113)) -> 246 | O33: =SUM(GETPIVOTDATA("Suma de B_PDN_CT_Adulto",TD!$A$113)) -> 245 | P33: =SUM(GETPIVOTDATA("Suma de B_PDN_CT_AdultoM",TD!$A$113)) -> 94 | Q33: =SUM(H33+I33+J33+K33+L33+M33+N33+O33+P33) -> 2522
D34: GESTANTE | E34: PERSONA ATENDIDA | L34: =SUM(GETPIVOTDATA("Suma de B_PDN_CT_6_11a_g",TD!$A$113)) -> 0 | M34: =SUM(GETPIVOTDATA("Suma de B_PDN_CT_Adol_g",TD!$A$113)) -> 23 | N34: =SUM(GETPIVOTDATA("Suma de B_PDN_CT_Joven_g",TD!$A$113)) -> 200 | O34: =SUM(GETPIVOTDATA("Suma de B_PDN_CT_Adulto_g",TD!$A$113)) -> 146
B42: PRODUCTO: ATENCION ESTOMATOLOGICA RECUPERATIVA (5006276)
B43: AVANCE DE META FISICA A NIVEL DE PRODUCTO | E43: PERSONA TRATADA | F43: =+Q48+Q50+Q52+Q54+Q56+Q58 -> 19583
B45: PpR | C45: SUB PRODUCTO | D45: CODICION | E45: UNIDAD DE MEDIDA | F45: CURSO DE VIDA NIÑO | M45: CURSO DE VIDA ADOLESCENTE | N45: CURSO DE VIDA JOVEN | O45: CURSO DE VIDA ADULTO | P45: CURSO DE VIDA ADULTO MAYOR | Q45: AVANCE DE META FISICA A NIVEL DE SUB PRODUCTOS
F46: 0 - 28d | G46: 29d - 5m | H46: 6m - 11m | I46: 1 año | J46: 2 años | K46: 3a - 5a | L46: 6a - 11a | M46: 12a - 17a | N46: 18a - 29a | O46: 30a - 59a | P46: 60 años a mas
A48: 1 | B48: 0068101 | C48: RASPAJE DENTAL | D48: NO GESTANTE | E48: CASO TRATADO | F48: =SUM(GETPIVOTDATA("Suma de B_DestartrajeN_CT_0_28d",TD!$A$113)) -> 0 | G48: =SUM(GETPIVOTDATA("Suma de B_DestartrajeN_CT_29_5m",TD!$A$113)) -> 0 | H48: =SUM(GETPIVOTDATA("Suma de B_DestartrajeN_CT_6_11m",TD!$A$113)) -> 0 | I48: =SUM(GETPIVOTDATA("Suma de B_DestartrajeN_CT_1a",TD!$A$113)) -> 1 | J48: =SUM(GETPIVOTDATA("Suma de B_DestartrajeN_CT_2a",TD!$A$113)) -> 1 | K48: =SUM(GETPIVOTDATA("Suma de B_DestartrajeN_CT_3_5a",TD!$A$113)) -> 14 | L48: =SUM(GETPIVOTDATA("Suma de B_DestartrajeN_CT_6_11a",TD!$A$113)) -> 27 | M48: =SUM(GETPIVOTDATA("Suma de B_DestartrajeN_CT_Adolesc",TD!$A$113)) -> 184 | N48: =SUM(GETPIVOTDATA("Suma de B_DestartrajeN_CT_Joven",TD!$A$113)) -> 279 | O48: =SUM(GETPIVOTDATA("Suma de B_DestartrajeN_CT_Adulto",TD!$A$113)) -> 488 | P48: =SUM(GETPIVOTDATA("Suma de B_DestartrajeN_CT_AdultoM",TD!$A$113)) -> 192 | Q48: =SUM(F48+G48+H48+I48+J48+K48+L48+M48+N48+O48+P48) -> 1186
D49: GESTANTE | E49: CASO TRATADO | L49: =SUM(GETPIVOTDATA("Suma de B_DestartrajeN_CT_6_11a_g",TD!$A$113)) -> 0 | M49: =SUM(GETPIVOTDATA("Suma de B_DestartrajeN_CT_Adol_g",TD!$A$113)) -> 20 | N49: =SUM(GETPIVOTDATA("Suma de B_DestartrajeN_CT_Joven_g",TD!$A$113)) -> 224 | O49: =SUM(GETPIVOTDATA("Suma de B_DestartrajeN_CT_Adulto_g",TD!$A$113)) -> 162
A50: 2 | B50: 5000701 | C50: DEBRIDACIÓN DE LOS PROCESOS INFECCIOSOS BUCODENTALES | D50: NO GESTANTE | E50: CASO TRATADO | F50: =SUM(GETPIVOTDATA("Suma de B_Debridacion_BucodenN_0_28d",TD!$A$113)) -> 0 | G50: =SUM(GETPIVOTDATA("Suma de B_Debridacion_BucodenN_29_5m",TD!$A$113)) -> 0 | H50: =SUM(GETPIVOTDATA("Suma de B_Debridacion_BucodenN_6_11m",TD!$A$113)) -> 0 | I50: =SUM(GETPIVOTDATA("Suma de B_Debridacion_BucodenN_1a",TD!$A$113)) -> 0 | J50: =SUM(GETPIVOTDATA("Suma de B_Debridacion_BucodenN_2a",TD!$A$113)) -> 2 | K50: =SUM(GETPIVOTDATA("Suma de B_Debridacion_BucodenN_3_5a",TD!$A$113)) -> 38 | L50: =SUM(GETPIVOTDATA("Suma de B_Debridacion_BucodenN_6_11a",TD!$A$113)) -> 47 | M50: =SUM(GETPIVOTDATA("Suma de B_Debridacion_BucodenN_Adolesc",TD!$A$113)) -> 49 | N50: =SUM(GETPIVOTDATA("Suma de B_Debridacion_BucodenN_Joven",TD!$A$113)) -> 57 | O50: =SUM(GETPIVOTDATA("Suma de B_Debridacion_BucodenN_Adulto",TD!$A$113)) -> 87 | P50: =SUM(GETPIVOTDATA("Suma de B_Debridacion_BucodenN_AdultoM",TD!$A$113)) -> 12 | Q50: =SUM(F50+G50+H50+I50+J50+K50+L50+M50+N50+O50+P50+L51+M51+N51+O51) -> 296
D51: GESTANTE | E51: CASO TRATADO | L51: =SUM(GETPIVOTDATA("Suma de B_Debridacion_BucodenN_6_11a_g",TD!$A$113)) -> 0 | M51: =SUM(GETPIVOTDATA("Suma de B_Debridacion_BucodenN_Adol_g",TD!$A$113)) -> 0 | N51: =SUM(GETPIVOTDATA("Suma de B_Debridacion_BucodenN_Joven_g",TD!$A$113)) -> 3 | O51: =SUM(GETPIVOTDATA("Suma de B_Debridacion_BucodenN_Adulto_g",TD!$A$113)) -> 1
A52: 3 | B52: 5000702 | C52: CONSULTA ESTOMATOLÓGICA | D52: NO GESTANTE | E52: CASO TRATADO | F52: =SUM(GETPIVOTDATA("Suma de B_Consulta_EstomatoN_0_28d",TD!$A$113)) -> 6 | G52: =SUM(GETPIVOTDATA("Suma de B_Consulta_EstomatoN_29_5m",TD!$A$113)) -> 0 | H52: =SUM(GETPIVOTDATA("Suma de B_Consulta_EstomatoN_6_11m",TD!$A$113)) -> 1 | I52: =SUM(GETPIVOTDATA("Suma de B_Consulta_EstomatoN_1a",TD!$A$113)) -> 9 | J52: =SUM(GETPIVOTDATA("Suma de B_Consulta_EstomatoN_2a",TD!$A$113)) -> 17 | K52: =SUM(GETPIVOTDATA("Suma de B_Consulta_EstomatoN_3_5a",TD!$A$113)) -> 272 | L52: =SUM(GETPIVOTDATA("Suma de B_Consulta_EstomatoN_6_11a",TD!$A$113)) -> 463 | M52: =SUM(GETPIVOTDATA("Suma de B_Consulta_EstomatoN_Adolesc",TD!$A$113)) -> 360 | N52: =SUM(GETPIVOTDATA("Suma de B_Consulta_EstomatoN_Joven",TD!$A$113)) -> 563 | O52: =SUM(GETPIVOTDATA("Suma de B_Consulta_EstomatoN_Adulto",TD!$A$113)) -> 857 | P52: =SUM(GETPIVOTDATA("Suma de B_Consulta_EstomatoN_AdultoM",TD!$A$113)) -> 356 | Q52: =SUM(F52+G52+H52+I52+J52+K52+L52+M52+N52+O52+P52+L53+M53+N53+O53) -> 3001
D53: GESTANTE | E53: CASO TRATADO | L53: =SUM(GETPIVOTDATA("Suma de B_Consulta_EstomatoN_6_11a_g",TD!$A$113)) -> 0 | M53: =SUM(GETPIVOTDATA("Suma de B_Consulta_EstomatoN_Adol_g",TD!$A$113)) -> 1 | N53: =SUM(GETPIVOTDATA("Suma de B_Consulta_EstomatoN_Joven_g",TD!$A$113)) -> 49 | O53: =SUM(GETPIVOTDATA("Suma de B_Consulta_EstomatoN_Adulto_g",TD!$A$113)) -> 47
A54: 4 | B54: 5000703 | C54: EXODONCIA SIMPLE | D54: NO GESTANTE | E54: CASO TRATADO | F54: =SUM(GETPIVOTDATA("Suma de B_Exodoncia_SimpleN_I_0_28d",TD!$A$113)) -> 0 | G54: =SUM(GETPIVOTDATA("Suma de B_Exodoncia_SimpleN_I_29_5m",TD!$A$113)) -> 0 | H54: =SUM(GETPIVOTDATA("Suma de B_Exodoncia_SimpleN_I_6_11m",TD!$A$113)) -> 0 | I54: =SUM(GETPIVOTDATA("Suma de B_Exodoncia_SimpleN_I_1a",TD!$A$113)) -> 0 | J54: =SUM(GETPIVOTDATA("Suma de B_Exodoncia_SimpleN_I_2a",TD!$A$113)) -> 1 | K54: =SUM(GETPIVOTDATA("Suma de B_Exodoncia_SimpleN_I_3_5a",TD!$A$113)) -> 96 | L54: =SUM(GETPIVOTDATA("Suma de B_Exodoncia_SimpleN_I_6_11a",TD!$A$113)) -> 669 | M54: =SUM(GETPIVOTDATA("Suma de B_Exodoncia_SimpleN_I_Adolesc",TD!$A$113)) -> 310 | N54: =SUM(GETPIVOTDATA("Suma de B_Exodoncia_SimpleN_I_Joven",TD!$A$113)) -> 473 | O54: =SUM(GETPIVOTDATA("Suma de B_Exodoncia_SimpleN_I_Adulto",TD!$A$113)) -> 901 | P54: =SUM(GETPIVOTDATA("Suma de B_Exodoncia_SimpleN_I_AdultoM",TD!$A$113)) -> 503 | Q54: =SUM(F54+G54+H54+I54+J54+K54+L54+M54+N54+O54+P54+L55+M55+N55+O55) -> 3026
D55: GESTANTE | E55: CASO TRATADO | L55: =SUM(GETPIVOTDATA("Suma de B_Exodoncia_SimpleN_I_6_11a_g",TD!$A$113)) -> 4 | M55: =SUM(GETPIVOTDATA("Suma de B_Exodoncia_SimpleN_I_Adol_g",TD!$A$113)) -> 3 | N55: =SUM(GETPIVOTDATA("Suma de B_Exodoncia_SimpleN_I_Joven_g",TD!$A$113)) -> 37 | O55: =SUM(GETPIVOTDATA("Suma de B_Exodoncia_SimpleN_I_Adulto_g",TD!$A$113)) -> 29
A56: 5 | B56: 5000704 | C56: RESTAURACIONES DENTALES CON IONÓMERO DE VIDRIO | D56: NO GESTANTE | E56: CASO TRATADO | H56: =SUM(GETPIVOTDATA("Suma de B_Ionomero_VidrioN_I_6_11m",TD!$A$113)) -> 0 | I56: =SUM(GETPIVOTDATA("Suma de B_Ionomero_VidrioN_I_1a",TD!$A$113)) -> 1 | J56: =SUM(GETPIVOTDATA("Suma de B_Ionomero_VidrioN_I_2a",TD!$A$113)) -> 25 | K56: =SUM(GETPIVOTDATA("Suma de B_Ionomero_VidrioN_I_3_5a",TD!$A$113)) -> 832 | L56: =SUM(GETPIVOTDATA("Suma de B_Ionomero_VidrioN_I_6_11a",TD!$A$113)) -> 594 | M56: =SUM(GETPIVOTDATA("Suma de B_Ionomero_VidrioN_I_Adolesc",TD!$A$113)) -> 274 | N56: =SUM(GETPIVOTDATA("Suma de B_Ionomero_VidrioN_I_Joven",TD!$A$113)) -> 120 | O56: =SUM(GETPIVOTDATA("Suma de B_Ionomero_VidrioN_I_Adulto",TD!$A$113)) -> 169 | P56: =SUM(GETPIVOTDATA("Suma de B_Ionomero_VidrioN_I_AdultoM",TD!$A$113)) -> 40 | Q56: =SUM(F56+G56+H56+I56+J56+K56+L56+M56+N56+O56+P56+L57+M57+N57+O57) -> 2131
D57: GESTANTE | E57: CASO TRATADO | L57: =SUM(GETPIVOTDATA("Suma de B_Ionomero_VidrioN_I_6_11a_g",TD!$A$113)) -> 2 | M57: =SUM(GETPIVOTDATA("Suma de B_Ionomero_VidrioN_I_Adol_g",TD!$A$113)) -> 4 | N57: =SUM(GETPIVOTDATA("Suma de B_Ionomero_VidrioN_I_Joven_g",TD!$A$113)) -> 43 | O57: =SUM(GETPIVOTDATA("Suma de B_Ionomero_VidrioN_I_Adulto_g",TD!$A$113)) -> 27
A58: 6 | B58: 5000705 | C58: RESTAURACIÓN DENTAL CON RESINA | D58: NO GESTANTE | E58: CASO TRATADO | H58: =SUM(GETPIVOTDATA("Suma de B_ResinaN_I_6_11m",TD!$A$113)) -> 2 | I58: =SUM(GETPIVOTDATA("Suma de B_ResinaN_I_1a",TD!$A$113)) -> 5 | J58: =SUM(GETPIVOTDATA("Suma de B_ResinaN_I_2a",TD!$A$113)) -> 43 | K58: =SUM(GETPIVOTDATA("Suma de B_ResinaN_I_3_5a",TD!$A$113)) -> 909 | L58: =SUM(GETPIVOTDATA("Suma de B_ResinaN_I_6_11a",TD!$A$113)) -> 1640 | M58: =SUM(GETPIVOTDATA("Suma de B_ResinaN_I_Adolesc",TD!$A$113)) -> 1841 | N58: =SUM(GETPIVOTDATA("Suma de B_ResinaN_I_Joven",TD!$A$113)) -> 1885 | O58: =SUM(GETPIVOTDATA("Suma de B_ResinaN_I_Adulto",TD!$A$113)) -> 2082 | P58: =SUM(GETPIVOTDATA("Suma de B_ResinaN_I_AdultoM",TD!$A$113)) -> 389 | Q58: =SUM(H58+I58+J58+K58+L58+M58+N58+O58+P58+L59+M59+N59+O59) -> 9943
D59: GESTANTE | E59: CASO TRATADO | L59: =SUM(GETPIVOTDATA("Suma de B_ResinaN_I_6_11a_g",TD!$A$113)) -> 12 | M59: =SUM(GETPIVOTDATA("Suma de B_ResinaN_I_Adol_g",TD!$A$113)) -> 95 | N59: =SUM(GETPIVOTDATA("Suma de B_ResinaN_I_Joven_g",TD!$A$113)) -> 625 | O59: =SUM(GETPIVOTDATA("Suma de B_ResinaN_I_Adulto_g",TD!$A$113)) -> 415
C62: PRODUCTO: ATENCION ESTOMATOLOGICA ESPECIALIZADA (3000682)
C63: AVANCE DE META FISICA A NIVEL DE PRODUCTO | E63: PERSONA TRATADA | F63: =+Q68+Q70+Q74+Q76+Q78 -> 831
B65: PpR | C65: SUB PRODUCTO | D65: CODICI,N | E65: UNIDAD DE MEDIDA | F65: CURSO DE VIDA NIÑO | M65: CURSO DE VIDA ADOLESCENTE | N65: CURSO DE VIDA JOVEN | O65: CURSO DE VIDA ADULTO | P65: CURSO DE VIDA ADULTO MAYOR | Q65: AVANCE DE META FISICA A NIVEL DE SUB PRODUCTOS
F66: 0 - 28d | G66: 29d - 5m | H66: 6m - 11m | I66: 1 año | J66: 2 años | K66: 3a - 5a | L66: 6a - 11a | M66: 12a - 17a | N66: 18a - 29a | O66: 30a - 59a | P66: 60 años a mas
A68: 1 | B68: 5000814 | C68: TERAPIA PULPAR | D68: NO GESTANTE | E68: CASO TRATADO | H68: =SUM(GETPIVOTDATA("Suma de B_PulpotomiaN_I_6_11m",TD!$A$113)) -> 0 | I68: =SUM(GETPIVOTDATA("Suma de B_PulpotomiaN_I_1a",TD!$A$113)) -> 0 | J68: =SUM(GETPIVOTDATA("Suma de B_PulpotomiaN_I_2a",TD!$A$113)) -> 2 | K68: =SUM(GETPIVOTDATA("Suma de B_PulpotomiaN_I_3_5a",TD!$A$113)) -> 46 | L68: =SUM(GETPIVOTDATA("Suma de B_PulpotomiaN_I_6_11a",TD!$A$113)) -> 119 | M68: =SUM(GETPIVOTDATA("Suma de B_PulpotomiaN_I_Adolesc",TD!$A$113)) -> 166 | N68: =SUM(GETPIVOTDATA("Suma de B_PulpotomiaN_I_Joven",TD!$A$113)) -> 129 | O68: =SUM(GETPIVOTDATA("Suma de B_PulpotomiaN_I_Adulto",TD!$A$113)) -> 157 | P68: =SUM(GETPIVOTDATA("Suma de B_PulpotomiaN_I_AdultoM",TD!$A$113)) -> 32 | Q68: =SUM(H68+I68+J68+K68+L68+M68+N68+O68+P68+L69+M69+N69+O69) -> 708
D69: GESTANTE | E69: CASO TRATADO | L69: =SUM(GETPIVOTDATA("Suma de B_PulpotomiaN_I_6_11a_g",TD!$A$113)) -> 12 | M69: =SUM(GETPIVOTDATA("Suma de B_PulpotomiaN_I_Adol_g",TD!$A$113)) -> 3 | N69: =SUM(GETPIVOTDATA("Suma de B_PulpotomiaN_I_Joven_g",TD!$A$113)) -> 20 | O69: =SUM(GETPIVOTDATA("Suma de B_PulpotomiaN_I_Adulto_g",TD!$A$113)) -> 22
A70: 2 | B70: 5000815 | C70: TERAPIA ENDODÓNTICA | D70: NO GESTANTE | E70: CASO TRATADO | H70: =SUM(GETPIVOTDATA("Suma de B_TEndodonticaN_TA_6_11m",TD!$A$113)) -> 0 | I70: =SUM(GETPIVOTDATA("Suma de B_TEndodonticaN_TA_1a",TD!$A$113)) -> 0 | J70: =SUM(GETPIVOTDATA("Suma de B_TEndodonticaN_TA_2a",TD!$A$113)) -> 2 | K70: =SUM(GETPIVOTDATA("Suma de B_TEndodonticaN_TA_3_5a",TD!$A$113)) -> 52 | L70: =SUM(GETPIVOTDATA("Suma de B_TEndodonticaN_TA_6_11a",TD!$A$113)) -> 7 | M70: =SUM(GETPIVOTDATA("Suma de B_TEndodonticaN_TA_Adolesc",TD!$A$113)) -> 5 | N70: =SUM(GETPIVOTDATA("Suma de B_TEndodonticaN_TA_Joven",TD!$A$113)) -> 3 | O70: =SUM(GETPIVOTDATA("Suma de B_TEndodonticaN_TA_Adulto",TD!$A$113)) -> 1 | P70: =SUM(GETPIVOTDATA("Suma de B_TEndodonticaN_TA_AdultoM",TD!$A$113)) -> 0 | Q70: =SUM(H70+I70+J70+K70+L70+M70+N70+O70+P70+L71+M71+N71+O71) -> 71
D71: GESTANTE | E71: CASO TRATADO | L71: =SUM(GETPIVOTDATA("Suma de B_TEndodonticaN_TA_6_11a_g",TD!$A$113)) -> 0 | M71: =SUM(GETPIVOTDATA("Suma de B_TEndodonticaN_TA_Adol_g",TD!$A$113)) -> 0 | N71: =SUM(GETPIVOTDATA("Suma de B_TEndodonticaN_TA_Joven_g",TD!$A$113)) -> 0 | O71: =SUM(GETPIVOTDATA("Suma de B_TEndodonticaN_TA_Adulto_g",TD!$A$113)) -> 1
A72: 3 | B72: 500818 | C72: TRATAMIENTO DE ORTODONCIA Y ORTOPEDIA MAXILAR | D72: NO GESTANTE | E72: CASO TRATADO | H72: =SUM(GETPIVOTDATA("Suma de B_OrtopediaMaxilarN_in_6_11m",TD!$A$113)) -> 0 | I72: =SUM(GETPIVOTDATA("Suma de B_OrtopediaMaxilarN_in_1a",TD!$A$113)) -> 0 | J72: =SUM(GETPIVOTDATA("Suma de B_OrtopediaMaxilarN_in_2a",TD!$A$113)) -> 0 | K72: =SUM(GETPIVOTDATA("Suma de B_OrtopediaMaxilarN_in_3_5a",TD!$A$113)) -> 0 | L72: =SUM(GETPIVOTDATA("Suma de B_OrtopediaMaxilarN_in_6_11a",TD!$A$113)) -> 0 | M72: =SUM(GETPIVOTDATA("Suma de B_OrtopediaMaxilarN_in_Adolesc",TD!$A$113)) -> 0 | N72: =SUM(GETPIVOTDATA("Suma de B_OrtopediaMaxilarN_in_Joven",TD!$A$113)) -> 0 | O72: =SUM(GETPIVOTDATA("Suma de B_OrtopediaMaxilarN_in_Adulto",TD!$A$113)) -> 0 | P72: =SUM(GETPIVOTDATA("Suma de B_OrtopediaMaxilarN_in_AdultoM",TD!$A$113)) -> 0 | Q72: =SUM(H72+I72+J72+K72+L72+M72+N72+O72+P72+L73+M73+N73+O73) -> 0
D73: GESTANTE | E73: CASO TRATADO | L73: =SUM(GETPIVOTDATA("Suma de B_OrtopediaMaxilarN_in_6_11a_g",TD!$A$113)) -> 0 | M73: =SUM(GETPIVOTDATA("Suma de B_OrtopediaMaxilarN_in_Adol_g",TD!$A$113)) -> 0 | N73: =SUM(GETPIVOTDATA("Suma de B_OrtopediaMaxilarN_in_Joven_g",TD!$A$113)) -> 0 | O73: =SUM(GETPIVOTDATA("Suma de B_OrtopediaMaxilarN_in_Adulto_g",TD!$A$113)) -> 0
A74: 4 | B74: 5000804 | C74: REHABILITACIÓN PROTÉSICA | D74: NO GESTANTE | E74: CASO TRATADO | K74: =SUM(GETPIVOTDATA("Suma de B_RehabProtesicaN_in_3_5a",TD!$A$113)) -> 0 | L74: =SUM(GETPIVOTDATA("Suma de B_RehabProtesicaN_in_6_11a",TD!$A$113)) -> 0 | M74: =SUM(GETPIVOTDATA("Suma de B_RehabProtesicaN_in_Adolesc",TD!$A$113)) -> 0 | N74: =SUM(GETPIVOTDATA("Suma de B_RehabProtesicaN_in_Joven",TD!$A$113)) -> 0 | O74: =SUM(GETPIVOTDATA("Suma de B_RehabProtesicaN_in_Adulto",TD!$A$113)) -> 0 | P74: =SUM(GETPIVOTDATA("Suma de B_RehabProtesicaN_in_AdultoM",TD!$A$113)) -> 0 | Q74: =SUM(K74+L74+M74+N74+O74+P74+L75+M75+N75+O75) -> 0
D75: GESTANTE | E75: CASO TRATADO | L75: =SUM(GETPIVOTDATA("Suma de B_RehabProtesicaN_in_6_11a_g",TD!$A$113)) -> 0 | M75: =SUM(GETPIVOTDATA("Suma de B_RehabProtesicaN_in_Adol_g",TD!$A$113)) -> 0 | N75: =SUM(GETPIVOTDATA("Suma de B_RehabProtesicaN_in_Joven_g",TD!$A$113)) -> 0 | O75: =SUM(GETPIVOTDATA("Suma de B_RehabProtesicaN_in_Adulto_g",TD!$A$113)) -> 0
A76: 5 | B76: 5000816 | C76: SUB PRODUCTO: TRATAMIENTO PERIODONTAL | D76: NO GESTANTE | E76: CASO TRATADO | K76: =SUM(GETPIVOTDATA("Suma de B_TtoPeriodontalN_3_5a",TD!$A$113)) -> 1 | L76: =SUM(GETPIVOTDATA("Suma de B_TtoPeriodontalN_6_11a",TD!$A$113)) -> 3 | M76: =SUM(GETPIVOTDATA("Suma de B_TtoPeriodontalN_Adolesc",TD!$A$113)) -> 1 | N76: =SUM(GETPIVOTDATA("Suma de B_TtoPeriodontalN_Joven",TD!$A$113)) -> 0 | O76: =SUM(GETPIVOTDATA("Suma de B_TtoPeriodontalN_Adulto",TD!$A$113)) -> 4 | P76: =SUM(GETPIVOTDATA("Suma de B_TtoPeriodontalN_AdultoM",TD!$A$113)) -> 0 | Q76: =SUM(K76+L76+M76+N76+O76+P76+L77+M77+N77+O77) -> 16
D77: GESTANTE | E77: CASO TRATADO | L77: =SUM(GETPIVOTDATA("Suma de B_TtoPeriodontalN_6_11a_g",TD!$A$113)) -> 0 | M77: =SUM(GETPIVOTDATA("Suma de B_TtoPeriodontalN_Adol_g",TD!$A$113)) -> 0 | N77: =SUM(GETPIVOTDATA("Suma de B_TtoPeriodontalN_Joven_g",TD!$A$113)) -> 0 | O77: =SUM(GETPIVOTDATA("Suma de B_TtoPeriodontalN_Adulto_g",TD!$A$113)) -> 7
A78: 6 | B78: 5000817 | C78: TRATAMIENTO QUIRÚRGICO BUCAL Y MÁXILO FACIAL | D78: NO GESTANTE | E78: CASO TRATADO | F78: =SUM(GETPIVOTDATA("Suma de B_MaxiloFacialN_I_0_28d",TD!$A$113)) -> 0 | G78: =SUM(GETPIVOTDATA("Suma de B_MaxiloFacialN_I_29_5m",TD!$A$113)) -> 0 | H78: =SUM(GETPIVOTDATA("Suma de B_MaxiloFacialN_I_6_11m",TD!$A$113)) -> 0 | I78: =SUM(GETPIVOTDATA("Suma de B_MaxiloFacialN_I_1a",TD!$A$113)) -> 0 | J78: =SUM(GETPIVOTDATA("Suma de B_MaxiloFacialN_I_2a",TD!$A$113)) -> 0 | K78: =SUM(GETPIVOTDATA("Suma de B_MaxiloFacialN_3_5a",TD!$A$113)) -> 0 | L78: =SUM(GETPIVOTDATA("Suma de B_MaxiloFacialN_6_11a",TD!$A$113)) -> 2 | M78: =SUM(GETPIVOTDATA("Suma de B_MaxiloFacialN_Adolesc",TD!$A$113)) -> 1 | N78: =SUM(GETPIVOTDATA("Suma de B_MaxiloFacialN_Joven",TD!$A$113)) -> 20 | O78: =SUM(GETPIVOTDATA("Suma de B_MaxiloFacialN_Adulto",TD!$A$113)) -> 7 | P78: =SUM(GETPIVOTDATA("Suma de B_MaxiloFacialN_AdultoM",TD!$A$113)) -> 6 | Q78: =SUM(F78+G78+H78+I78+J78+K78+L78+M78+N78+O78+P78+L79+M79+N79+O79) -> 36
D79: GESTANTE | E79: CASO TRATADO | L79: =SUM(GETPIVOTDATA("Suma de B_MaxiloFacialN_6_11a_g",TD!$A$113)) -> 0 | M79: =SUM(GETPIVOTDATA("Suma de B_MaxiloFacialN_Adol_g",TD!$A$113)) -> 0 | N79: =SUM(GETPIVOTDATA("Suma de B_MaxiloFacialN_Joven_g",TD!$A$113)) -> 0 | O79: =SUM(GETPIVOTDATA("Suma de B_MaxiloFacialN_Adulto_g",TD!$A$113)) -> 0

Sheet Avance_Meta_Fisica_SinPob_Asig
A1: GERENCIA REGIONAL DE SALUD CUSCO
A2: DIRECCION EJECUTIVA DE INTELIGENCIA SANITARIA
A3: DIRECCION DE ESTADISTICA INFORMATICA Y TELECOMUNICACIONES
A4: SALUD BUCAL
A5: INFORME DE AVANCES DE METAS FISICAS SIS - SIN POBLACION ASIGNADA
C7: RED DE SALUD | D7: =TD!F3 -> LA CONVENCION | I7: PROVINCIA | K7: =TD!F6 -> (All) | P7: AÑO : | Q7: =TD!C10 -> 2024
C9: MICRO RED | D9: =TD!F4 -> (All) | I9: DISTRITO | K9: =TD!F7 -> (All) | P9: MES : | Q9: =TD!O17 -> ENERO - NOVIEMBRE
C11: ESTABLECIMIENTO | D11: =TD!F5 -> (All) | I11: U.E. | K11: =TD!F8 -> (All)
B14: PRODUCTO: ATENCIÓN ESTOMATOLOGICA PREVENTIVA (3000680)
B16: AVANCE DE META FISICA A NIVEL DE PRODUCTO | E16: PERSONA ATENDIDA | F16: =+Q21+Q23+Q25+Q27+Q29+Q31+Q33 -> 0
B18: PpR | C18: SUB PRODUCTO | D18: CODICION | E18: UNIDAD DE MEDIDA | F18: CURSO DE VIDA NIÑO | M18: CURSO DE VIDA ADOLESCENTE | N18: CURSO DE VIDA JOVEN | O18: CURSO DE VIDA ADULTO | P18: CURSO DE VIDA ADULTO MAYOR | Q18: AVANCE DE META FISICA A NIVEL DE SUB PRODUCTOS
F19: 0 - 28d | G19: 29d - 5m | H19: 6m - 11m | I19: 1 año | J19: 2 años | K19: 3a - 5a | L19: 6a - 11a | M19: 12a - 17a | N19: 18a - 29a | O19: 30a - 59a | P19: 60 años a mas
